Workbook

Sheet Index
A1: Number | B1: Spreadsheet | C1: File Location | D1: Magazine | E1: Title | F1: Method | G1: MAXIMUM | H1: MINIMUM | I1: DIFFERENCE | J1: AVERAGE | K1: 4600 To 4999 | L1: 5000 To 5999 | M1: 6,000 To 9999 | N1: 10,000 To 19,999 | O1: Over 19,999 | P1: Total
A2: 1 | B2: Excellent_01 | C2: C:\Essays\Geo_Dating\Lead_206_207\Excellent_01.pdf | D2: Contributions Mineral Petrology (1985) 90, Pages 162-171 | E2: Pre-Hercynian mantle lead transfer | F2: Pb-207/Pb-206 | G2: 5038.389195 | H2: 5021.354203 | I2: 17.03499179 | J2: 5026.166672 | L2: 16 | P2: =SUM(K2:O2) -> 16 | Q2: Ex_01
A3: 2 | B3: Excellent_02 | C3: C:\Essays\Geo_Dating\Lead_206_207\Excellent_02.pdf | D3: Mineralogy and Petrology (1993) 47, Pages 103-126 | E3: Sr, Nd and Pb Isotopic Compositions | F3: Pb-207/Pb-206 | G3: 4989.704795 | H3: 4984.66063 | I3: 5.044165468 | J3: 4986.933159 | K3: 12 | P3: 12 | Q3: Ex_02
A4: 3 | B4: Excellent_03 | C4: C:\Essays\Geo_Dating\Lead_206_207\Excellent_03.pdf | D4: Contributions Mineral Petrology (1984) 85, Pages 376-390 | E4: Pb isotopic and REE geochemistry | F4: Pb-207/Pb-206 | G4: 4987.495393 | H4: 4904.868945 | I4: 82.62644756 | J4: 4931.930175 | K4: 6 | P4: 6 | Q4: Ex_03
A5: 4 | B5: Excellent_04 | C5: C:\Essays\Geo_Dating\Lead_206_207\Excellent_04.pdf | D5: Mineralium Deposita (1999) 34, Pages 273-283 | E5: Damaran-Lufilian Fold Belt of Central Africa | F5: Pb-207/Pb-206 | G5: 5046.475897 | H5: 5028.505388 | I5: 17.97050909 | J5: 5040.722151 | L5: 18 | P5: 18 | Q5: Ex_04
A6: 5 | B6: Excellent_04 | C6: C:\Essays\Geo_Dating\Lead_206_207\Excellent_04.pdf | D6: Mineralium Deposita (1999) 34, Pages 273-283 | E6: Damaran-Lufilian Fold Belt of Central Africa | F6: Pb-207/Pb-206 | G6: 5046.370915 | H6: 5043.396306 | I6: 2.974609382 | J6: 5044.719184 | L6: 6 | P6: 6 | Q6: Ex_04
A7: 6 | B7: Excellent_05 | C7: C:\Essays\Geo_Dating\Lead_206_207\Excellent_05.pdf | D7: Chinese Journal Of Geochemistry, Volume 16, Number 1, 1997, Pages 80-85 | E7: Bayan Obo Deposit | F7: Pb-207/Pb-206 | G7: 5237.372407 | H7: 5065.113389 | I7: 172.2590186 | J7: 5151.242898 | L7: 2 | P7: 2 | Q7: Ex_05
A8: 7 | B8: Excellent_06 | C8: C:\Essays\Geo_Dating\Lead_206_207\Excellent_06.pdf | D8: Isotope Geoscience, 1 (1983) Pages 23-38 | E8: U-Ph And Ph-Pb Dating Of Kimberlites | F8: Pb-207/Pb-206 | G8: 5075.775046 | H8: 4532.86719 | I8: 542.9078561 | J8: 4960.760249 | K8: 5 | L8: 9 | P8: 14 | Q8: Ex_06
A9: 8 | B9: Excellent_07 | C9: C:\Essays\Geo_Dating\Lead_206_207\Excellent_07.pdf | D9: Chemical Geology 211 (2004) Pages 87–109 | E9: U–Pb Zircon Ages | F9: Pb-207/Pb-206 | G9: 5149.75968 | H9: 5039.962975 | I9: 109.7967052 | J9: 5078.553117 | L9: 15 | P9: 15 | Q9: Ex_07
A10: 9 | B10: Excellent_08 | C10: C:\Essays\Geo_Dating\Lead_206_207\Excellent_08.pdf | D10: Earth and Planetary. Science Letters, 94 (1989) Pages 78-96 | E10: Cenozoic-Cretaceous Magmatism | F10: Pb-207/Pb-206 | G10: 6488.877883 | H10: 4930.38853 | I10: 1558.489353 | J10: 5017.956859 | K10: 28 | L10: 3 | M10: 1 | P10: 32 | Q10: Ex_08
A11: 10 | B11: Excellent_09 | C11: C:\Essays\Geo_Dating\Lead_206_207\Excellent_09.pdf | D11: Chemical Geology 233 (2006) Pages 1–45 | E11: Lead Isotope Planetary Profiling | F11: Pb-207/Pb-206 | G11: 5493.360318 | H11: 4834.799635 | I11: 658.5606829 | J11: 5233.571334 | K11: 3 | L11: 10 | P11: 13 | Q11: Ex_09
A12: 11 | B12: Excellent_10 | C12: C:\Essays\Geo_Dating\Lead_206_207\Excellent_10.pdf | D12: Chemical Geology 236 (2007) Pages 27–41 | E12: U–Pb Step-Leaching Ages | F12: Pb-207/Pb-206 | G12: 5014.229252 | H12: 3978.446751 | I12: 1035.7825 | J12: 4671.248179 | K12: 14 | L12: 4 | P12: 18 | Q12: Ex_10
A13: 11 | B13: Excellent_11 | C13: C:\Essays\Geo_Dating\Lead_206_207\Excellent_11.pdf | D13: Chemical Geology, 66 (1987) Pages 193-208 | E13: Pb-Pb Isotope Systematics | F13: Pb-207/Pb-206 | G13: 4756.496627 | H13: 4604.029662 | I13: 152.4669648 | J13: 4657.068403 | K13: 8 | P13: 8 | Q13: Ex_11
A14: 11 | B14: Excellent_11 | C14: C:\Essays\Geo_Dating\Lead_206_207\Excellent_11.pdf | D14: Chemical Geology, 66 (1987) Pages 193-208 | E14: Pb-Pb Isotope Systematics | F14: Pb-207/Pb-206 | G14: 5288.67515 | H14: 3719.159529 | I14: 1569.515621 | J14: 4606.260313 | K14: 2 | L14: 12 | P14: 14 | Q14: Ex_11
A15: 11 | B15: Excellent_11 | C15: C:\Essays\Geo_Dating\Lead_206_207\Excellent_11.pdf | D15: Chemical Geology, 66 (1987) Pages 193-208 | E15: Pb-Pb Isotope Systematics | F15: Pb-207/Pb-206 | G15: 5288.67515 | H15: 4925.133314 | I15: 363.5418361 | J15: 5124.407879 | K15: 2 | L15: 12 | P15: 14 | Q15: Ex_11
A16: 11 | B16: Excellent_11 | C16: C:\Essays\Geo_Dating\Lead_206_207\Excellent_11.pdf | D16: Chemical Geology, 66 (1987) Pages 193-208 | E16: Pb-Pb Isotope Systematics | F16: Pb-207/Pb-206 | G16: 5266.730276 | H16: 3829.387178 | I16: 1437.343098 | J16: 4470.951213 | K16: 1 | L16: 7 | P16: 8 | Q16: Ex_11
A17: 12 | B17: Excellent_12 | C17: C:\Essays\Geo_Dating\Lead_206_207\Excellent_12.pdf | D17: Chemical Geology, 93 (1991) Pages 231-243 | E17: Pb Isotopic Systematics Of Volcanic Rocks | F17: Pb-207/Pb-206 | G17: 4964.253304 | H17: 4909.339018 | I17: 54.91428575 | J17: 4934.492997 | K17: 41 | P17: 41 | Q17: Ex_12
A18: 13 | B18: Excellent_13 | C18: C:\Essays\Geo_Dating\Lead_206_207\Excellent_13.pdf | D18: Earfh and Planetary Science Letters, 94 (1989) Pages 236-244 | E18: U/Pb Whole-Rock And Mineral Dating | F18: Pb-206/U-238 | G18: 15172.53998 | H18: 204.4056528 | I18: 14968.13432 | J18: 2182.375248 | N18: 3 | P18: 3 | Q18: Ex_13
A19: 13 | B19: Excellent_13 | C19: C:\Essays\Geo_Dating\Lead_206_207\Excellent_13.pdf | D19: Earfh and Planetary Science Letters, 94 (1989) Pages 236-244 | E19: U/Pb Whole-Rock And Mineral Dating | F19: Pb-207/Pb-206 | G19: 5016.384572 | H19: 667.5413667 | I19: 4348.843205 | J19: 3643.556374 | K19: 10 | L19: 3 | P19: 13 | Q19: Ex_13
A20: 14 | B20: Excellent_14 | C20: C:\Essays\Geo_Dating\Lead_206_207\Excellent_14.pdf | D20: Earth and Planetary Science Letters, 47 (1980) Pages 370-382 | E20: Speculations About The Age Of The Earth | F20: Pb-207/Pb-206 | G20: 5300.312251 | H20: 4373.888961 | I20: 926.4232902 | J20: 5078.741108 | K20: 6 | L20: 30 | P20: 36 | Q20: Ex_14
A21: 14 | B21: Excellent_14 | C21: C:\Essays\Geo_Dating\Lead_206_207\Excellent_14.pdf | D21: Earth and Planetary Science Letters, 47 (1980) Pages 370-382 | E21: Speculations About The Age Of The Earth | F21: Pb-207/Pb-206 | G21: 5271.903197 | H21: 4828.497548 | I21: 443.405649 | J21: 5169.7187 | K21: 1 | L21: 9 | P21: 10 | Q21: Ex_14
A22: 14 | B22: Excellent_14 | C22: C:\Essays\Geo_Dating\Lead_206_207\Excellent_14.pdf | D22: Earth and Planetary Science Letters, 47 (1980) Pages 370-382 | E22: Speculations About The Age Of The Earth | F22: Pb-207/Pb-206 | G22: 5254.468058 | H22: 5163.503751 | I22: 90.96430716 | J22: 5223.033282 | L22: 6 | P22: 6 | Q22: Ex_14
A23: 15 | B23: Excellent_15 | C23: C:\Essays\Geo_Dating\Lead_206_207\Excellent_15.pdf | D23: Earth and Planetary Science Letters, 42 (1979) Pages 368-378 | E23: Rb-Sr And U-Th-Pb Isotopic Study | F23: Pb-207/Pb-206 | G23: 5127.244714 | H23: 4845.352334 | I23: 281.8923801 | J23: 5035.002128 | K23: 5 | L23: 7 | P23: 12 | Q23: Ex_15
A24: 16 | B24: Excellent_16 | C24: C:\Essays\Geo_Dating\Lead_206_207\Excellent_16.pdf | D24: Earth and Planetarv Science Letters, 46 (1980) Pages 221-232 | E24: U-Pb Ages Of Uraniferous Opals | F24: Pb-207/Pb-206 | G24: 5039.62847 | H24: 4711.61124 | I24: 328.0172306 | J24: 4910.083141 | K24: 18 | L24: 2 | P24: 20 | Q24: Ex_16
A25: 17 | B25: Excellent_17 | C25: C:\Essays\Geo_Dating\Lead_206_207\Excellent_17.pdf | D25: Earth and Planetary Science Letters 244 (2006) Page 251–269 | E25: The South Pacific Superplume Activity | F25: Pb-207/Pb-206 | G25: 5056.862759 | H25: 4838.276971 | I25: 218.585788 | J25: 4945.531714 | K25: 17 | L25: 6 | P25: 23 | Q25: Ex_17
A26: 18 | B26: Excellent_18 | C26: C:\Essays\Geo_Dating\Lead_206_207\Excellent_18.pdf | D26: Gondwana Research 11 (2007) Page 69–91 | E26: Ivisaartoq Greenstone Belt | F26: Pb-207/U-235 | G26: 5406.571835 | H26: 5162.022237 | I26: 244.5495984 | J26: 5291.341709 | L26: 5 | P26: 5 | Q26: Ex_18
A27: 19 | B27: Excellent_19 | C27: C:\Essays\Geo_Dating\Lead_206_207\Excellent_19.pdf | D27: Gondwana Research 11 (2007) Page 382–395 | E27: The Genesis Of Pb–Zn Deposits | F27: Pb-207/Pb-206 | G27: 5071.701928 | H27: 5053.645576 | I27: 18.05635172 | J27: 5063.535624 | L27: 47 | P27: 47 | Q27: Ex_19
A28: 20 | B28: Excellent_20 | C28: C:\Essays\Geo_Dating\Lead_206_207\Excellent_20.pdf | D28: Gondwana Research 14 (2008) Page 644–662 | E28: Geochronological Problems | F28: Pb-207/Pb-206 | G28: 4897.891103 | H28: 2613.644242 | I28: 2284.246861 | J28: 4063.353958 | K28: 8 | P28: 8 | Q28: Ex_20
A29: 21 | B29: Excellent_21 | C29: C:\Essays\Geo_Dating\Lead_206_207\Excellent_21.pdf | D29: Geochemistry And Geophysics Geosystems, 2006, Volume 7, Number 8, Pages 1-29 | E29: Contribution Of Slab Melting | F29: Pb-207/Pb-206 | G29: 5008.874255 | H29: 4991.697772 | I29: 17.17648345 | J29: 5001.330769 | K29: 13 | L29: 31 | P29: 44 | Q29: Ex_21
A30: 22 | B30: Excellent_22 | C30: C:\Essays\Geo_Dating\Lead_206_207\Excellent_22.pdf | D30: Earth and Planetary Science Letters, 42 (1979) Pages 368-378 | E30: Sr–Nd–Pb Isotopic Systematics Of Mafic Igneous Rocks | F30: Pb-207/Pb-206 | G30: 5127.244714 | H30: 4845.352334 | I30: 281.8923801 | J30: 5035.002128 | K30: 5 | L30: 7 | P30: =SUM(K30:O30) -> 12 | Q30: Ex_22
A31: 23 | B31: Excellent_23 | C31: C:\Essays\Geo_Dating\Lead_206_207\Excellent_23.pdf | D31: Earth and Planetarv Science Letters, 46 (1980) Pages 221-232 | E31: Lead Isotopic Study Of Young Volcanic Rocks | F31: Pb-207/Pb-206 | G31: 5039.62847 | H31: 4711.61124 | I31: 328.0172306 | J31: 4910.083141 | K31: 18 | L31: 2 | P31: 20 | Q31: Ex_23
A32: 24 | B32: Excellent_24 | C32: C:\Essays\Geo_Dating\Lead_206_207\Excellent_24.pdf | D32: Earth and Planetary Science Letters 244 (2006) Page 251–269 | E32: Sr–Nd–Pb Isotopic Compositions | F32: Pb-207/Pb-206 | G32: 5056.862759 | H32: 4838.276971 | I32: 218.585788 | J32: 4945.531714 | K32: 17 | L32: 6 | P32: 23 | Q32: Ex_24
A33: 25 | B33: Excellent_25 | C33: C:\Essays\Geo_Dating\Lead_206_207\Excellent_25.pdf | D33: Gondwana Research 11 (2007) Page 69–91 | E33: Sm–Nd, Rb–Sr, And Pb–Pb Isotopic Evidence | F33: Pb-207/U-235 | G33: 5406.571835 | H33: 5162.022237 | I33: 244.5495984 | J33: 5291.341709 | L33: 5 | P33: 5 | Q33: Ex_25
A34: 26 | B34: Excellent_26 | C34: C:\Essays\Geo_Dating\Lead_206_207\Excellent_26.pdf | D34: Gondwana Research 11 (2007) Page 382–395 | E34: High Precision U-Pb Geochronology | F34: Pb-207/Pb-206 | G34: 5071.701928 | H34: 5053.645576 | I34: 18.05635172 | J34: 5063.535624 | L34: 47 | P34: 47 | Q34: Ex_26
A35: 27 | B35: Excellent_27 | C35: C:\Essays\Geo_Dating\Lead_206_207\Excellent_27.pdf | D35: Gondwana Research 14 (2008) Page 644–662 | E35: Precise Lead Isotope Ratios | F35: Pb-207/Pb-206 | G35: 4897.891103 | H35: 2613.644242 | I35: 2284.246861 | J35: 4063.353958 | K35: 8 | P35: 8 | Q35: Ex_27
A36: 28 | B36: Excellent_28 | C36: C:\Essays\Geo_Dating\Lead_206_207\Excellent_28.pdf | D36: Geochemistry And Geophysics Geosystems, 2006, Volume 7, Number 8, Pages 1-29 | E36: Sr–Nd–Pb–O Isotopic Constraints | F36: Pb-207/Pb-206 | G36: 5008.874255 | H36: 4991.697772 | I36: 17.17648345 | J36: 5001.330769 | K36: 13 | L36: 31 | P36: 44 | Q36: Ex_28
A37: 29 | B37: Excellent_29 | C37: C:\Essays\Geo_Dating\Lead_206_207\Excellent_29.pdf | D37: Contributions to Mineralogy and Petrology, Volume 114, 1993, Pages 171 - 188 | E37: Sr, Nd And Pb Isotope Evidence | F37: Pb-207/Pb-206 | G37: 5060.546668 | H37: 4929.525745 | I37: 131.0209237 | J37: 5008.551799 | K37: 8 | L37: 14 | P37: 22 | Q37: Ex_29
A38: 30 | B38: Excellent_30 | C38: C:\Essays\Geo_Dating\Lead_206_207\Excellent_30.pdf | D38: Nature, Volume 368, 1994, Page 514 - 519 | E38: Lead Isotope Ratios In Arc Magams | F38: Pb-207/Pb-206 | G38: 4976.054566 | H38: 4959.029868 | I38: 17.02469835 | J38: 4963.756658 | K38: 23 | P38: 23 | Q38: Ex_30
A39: 31 | B39: Excellent_31 | C39: C:\Essays\Geo_Dating\Lead_206_207\Excellent_31.pdf | D39: Science, Volume 282, 1998, Page 1481 | E39: Pb Isotopic Variability In Melt Inclusions | F39: Pb-207/Pb-206 | G39: 4963.795973 | H39: 4742.979152 | I39: 220.8168201 | J39: 4886.667026 | K39: 81 | P39: 81 | Q39: Ex_31
A40: 32 | B40: Excellent_32 | C40: C:\Essays\Geo_Dating\Lead_206_207\Excellent_32.pdf | D40: Earth and Planetary Science Letters, 59 (1982) Pages 327-342 | E40: Correlated Nd, Sr And Pb Isotope Variations | F40: Pb-207/Pb-206 | G40: 5060.758281 | H40: 5003.922048 | I40: 56.83623276 | J40: 5032.522484 | L40: 9 | P40: 9 | Q40: Ex_32
A41: 33 | B41: Excellent_33 | C41: C:\Essays\Geo_Dating\Lead_206_207\Excellent_33.pdf | D41: Earth and Planetary Science Letters, 76 (1985) Pages 57-70 | E41: Sr, Nd And Pb Isotopes In Minor Elements | F41: Pb-207/Pb-206 | G41: 5163 | H41: 5014 | I41: 149 | J41: 5097.125 | L41: 16 | P41: 16 | Q41: Ex_33
A42: 34 | B42: Excellent_34 | C42: C:\Essays\Geo_Dating\Lead_206_207\Excellent_34.pdf | D42: Geological Society Of London, Special Publications, 2004, Volume 229, Pages 133-150. | E42: Pin Procking The Elephant | F42: Pb-207/Pb-206 | G42: 5005.616685 | H42: 4941.790802 | I42: 63.82588315 | J42: 4986.874176 | K42: 32 | L42: 8 | P42: 40 | Q42: Ex_34
A43: 34 | B43: Excellent_34 | C43: C:\Essays\Geo_Dating\Lead_206_207\Excellent_34.pdf | D43: Geological Society Of London, Special Publications, 2004, Volume 229, Pages 133-150. | E43: Pin Procking The Elephant | F43: Pb-208/Th-232 | G43: 14459.00659 | H43: 12090.24204 | I43: 2368.764547 | J43: 13131.43645 | N43: 3 | P43: 3 | Q43: Ex_34
A44: 34 | B44: Excellent_34 | C44: C:\Essays\Geo_Dating\Lead_206_207\Excellent_34.pdf | D44: Geological Society Of London, Special Publications, 2004, Volume 229, Pages 133-150. | E44: Pin Procking The Elephant | F44: Pb-206/U-238 | G44: 6936 | H44: 4579 | I44: 2357 | J44: 5671 | L44: 1 | M44: 1 | P44: 2 | Q44: Ex_34
A45: 35 | B45: Excellent_35 | C45: C:\Essays\Geo_Dating\Lead_206_207\Excellent_35.pdf | D45: Journal Analytical Atomic Spectrometry, 2002, Volume 17, Pages 922–928 | E45: The Use Of Pb Isotope Ratios | F45: Pb-207/Pb-206 | G45: 5181.942599 | H45: 4981.518162 | I45: 200.4244371 | J45: 5105.691507 | K45: 5 | L45: 21 | P45: 26 | Q45: Ex_35
A46: 36 | B46: Excellent_36 | C46: C:\Essays\Geo_Dating\Lead_206_207\Excellent_36.pdf | D46: Journal of Petrology, 2011, Volume 52, Number 2, Pages 401-430 | E46: Continental Intraplatevolcanism | F46: Pb-207/Pb-206 | G46: 4968.285153 | H46: 4919.84456 | I46: 48.44059313 | J46: 4950.339495 | K46: 5 | P46: 5 | Q46: Ex_36
A47: 37 | B47: Excellent_37 | C47: C:\Essays\Geo_Dating\Lead_206_207\Excellent_37.pdf | D47: Journal Of Petrology, 1998, Volume 39 Number 11-12, Pages 1847–1864 | E47: Geochemical And Nd, Pb, And Sr Isotope Data | F47: Pb-207/Pb-206 | G47: 5019.159826 | H47: 4807.221272 | I47: 211.9385546 | J47: 4950.625318 | K47: 14 | L47: 1 | P47: 15 | Q47: Ex_37
A48: 38 | B48: Excellent_38 | C48: C:\Essays\Geo_Dating\Lead_206_207\Excellent_38.pdf | D48: Ore Geology Reviews 31 (2007) Pages 337–359 | E48: Isotopic Characteristics Of The Jinding Zn–Pb Deposit | F48: Pb-207/Pb-206 | G48: 5009.89772 | H48: 4975.651285 | I48: 34.24643491 | J48: 5000.579295 | K48: 40 | L48: 61 | P48: 101 | Q48: Ex_38
A49: 39 | B49: Excellent_39 | C49: C:\Essays\Geo_Dating\Lead_206_207\Excellent_39.pdf | D49: Journal Of Petrology, April 11, 2012, Pages 1-32 | E49: Chronology And Geochemistry Of Lavas | F49: Pb-207/Pb-206 | G49: 4971.010904 | H49: 4880.697356 | I49: 90.31354862 | J49: 4919.212038 | K49: 46 | P49: 46 | Q49: Ex_39
A50: 39 | B50: Excellent_39 | C50: C:\Essays\Geo_Dating\Lead_206_207\Excellent_39.pdf | D50: Journal Of Petrology, April 11, 2012, Pages 1-32 | E50: Chronology And Geochemistry Of Lavas | F50: Pb-206/U-238 | G50: 9644.596935 | H50: 1165.579048 | I50: 8479.017887 | J50: 3693.867514 | M50: 3 | P50: 3 | Q50: Ex_39
A51: 39 | B51: Excellent_39 | C51: C:\Essays\Geo_Dating\Lead_206_207\Excellent_39.pdf | D51: Journal Of Petrology, April 11, 2012, Pages 1-32 | E51: Chronology And Geochemistry Of Lavas | F51: Pb-208/Th-232 | G51: 23849.56676 | H51: 4129.335882 | I51: 19720.23088 | J51: 8325.003245 | L51: 5 | M51: 12 | N51: 3 | O51: 1 | P51: 21 | Q51: Ex_39
A52: 40 | B52: =("Excellent_" & A52) -> Excellent_40 | C52: C:\Essays\Geo_Dating\Lead_206_207\Excellent_40.pdf | D52: Geochimica et Cosmochimica Acta, 1956, Volume 10, Pages 230 to 237 | E52: Age of meteorites and the earth | K52: =SUM(K45:K51) -> 110 | L52: 88 | M52: 15 | N52: 3 | O52: 1 | P52: 217 | Q52: Ex_40
A53: 41 | B53: Excellent_41 | C53: C:\Essays\Geo_Dating\Lead_206_207\Excellent_41.pdf | D53: Geochemistry, Geophysics And Geosystems, February 14, 2000 | E53: Pb Isotopic Evidence | Q53: Ex_41
A54: 42 | B54: Excellent_42 | C54: C:\Essays\Geo_Dating\Lead_206_207\Excellent_42.pdf | D54: Earth and Planetary Science Letters, 2012, Volume 337–338, Pages 164–173 | E54: Re–Os Isotopes | Q54: Ex_42
A55: 43 | B55: Excellent_43 | C55: C:\Essays\Geo_Dating\Lead_206_207\Excellent_43.pdf | D55: International Geology Review, Volume 45, 2003, Pages 780–797. | E55: Geochemistry of Lavas from Mauritius | Q55: Ex_43
A56: 44 | B56: Excellent_44 | C56: C:\Essays\Geo_Dating\Lead_206_207\Excellent_44.pdf | D56: Chemical Geology, Volume 277 (2010), Pages 227–244 | E56: Isotopic (Sr, Nd, Pb, and Os) composition | Q56: Ex_44
A57: 45 | B57: Excellent_45 | C57: C:\Essays\Geo_Dating\Lead_206_207\Excellent_45.pdf | D57: ???????????? | E57: Mantle Xenoliths from Eastern Paraguay | Q57: Ex_45
A58: 46 | B58: Excellent_46 | C58: C:\Essays\Geo_Dating\Lead_206_207\Excellent_46.pdf | D58: Earth and Planetary Science Letters, 2011, Volume 302, Pages 154–162 | E58: Geochemical portray of the Pacific Ridge | Q58: Ex_46
A59: 47 | B59: Excellent_47 | C59: C:\Essays\Geo_Dating\Lead_206_207\Excellent_47.pdf | D59: Geochemistry, Geophysics And Geosystems, 2005, Volume 6, Number 11 | E59: Isotope Anomaly In The Indian Ocean Mantle | Q59: Ex_47
A60: 48 | B60: Excellent_48 | C60: C:\Essays\Geo_Dating\Lead_206_207\Excellent_48.pdf | D60: ???????????? | E60: The Hadean upper mantle conundrum | Q60: Ex_48
A61: 49 | B61: Excellent_49 | C61: C:\Essays\Geo_Dating\Lead_206_207\Excellent_49.pdf | Q61: Ex_49
A62: 50 | B62: Excellent_50 | C62: C:\Essays\Geo_Dating\Lead_206_207\Excellent_50.pdf | Q62: Ex_50
A63: 51 | B63: Excellent_51 | C63: C:\Essays\Geo_Dating\Lead_206_207\Excellent_51.pdf | Q63: Ex_51
A64: 52 | B64: Excellent_52 | C64: C:\Essays\Geo_Dating\Lead_206_207\Excellent_52.pdf | Q64: Ex_52
A65: 53 | B65: Excellent_53 | C65: C:\Essays\Geo_Dating\Lead_206_207\Excellent_53.pdf | Q65: Ex_53
A66: 54 | B66: Excellent_54 | C66: C:\Essays\Geo_Dating\Lead_206_207\Excellent_54.pdf | Q66: Ex_54
A67: 55 | B67: Excellent_55 | C67: C:\Essays\Geo_Dating\Lead_206_207\Excellent_55.pdf | Q67: Ex_55
A68: 56 | B68: Excellent_56 | C68: C:\Essays\Geo_Dating\Lead_206_207\Excellent_56.pdf | Q68: Ex_56
A69: 57 | B69: Excellent_57 | C69: C:\Essays\Geo_Dating\Lead_206_207\Excellent_57.pdf | Q69: Ex_57
A70: 58 | B70: Excellent_58 | C70: C:\Essays\Geo_Dating\Lead_206_207\Excellent_58.pdf | Q70: Ex_58
A71: 59 | B71: Excellent_59 | C71: C:\Essays\Geo_Dating\Lead_206_207\Excellent_59.pdf | Q71: Ex_59
A72: 60 | B72: Excellent_60 | C72: C:\Essays\Geo_Dating\Lead_206_207\Excellent_60.pdf | Q72: Ex_60

Sheet Exc_01
A1: Location | B1: U (ppm) | C1: Pb (ppm) | D1: 206/204 | E1: 207/204 | F1: 208/204 | G1: 206/204e | H1: 207/204 | I1: 207/206 | J1: 207/206
I2: Ratio | J2: Age
A3: 3674/5 | B3: 0.58 | C3: 80.1 | D3: 18.098 | E3: 15.602 | F3: 38.17 | G3: 18.073 | H3: 15.601 | I3: =(H3/G3) -> 0.86322138 | J3: =[1]!AgePb76($I$3) -> 5029.803969
D4: 5 | E4: 5 | F4: 9 | G4: 6 | H4: 5
A5: 2674/4 | B5: 0.04 | C5: 102.2 | D5: 18.106 | E5: 15.6 | F5: 38.116 | G5: 18.104 | H5: 15.6 | I5: =(H5/G5) -> 0.8616880247 | J5: =[1]!AgePb76($I$5) -> 5027.283734
D6: 6 | E6: 7 | F6: 18 | G6: 6 | H6: 7
A7: 1180IK1 | B7: 0.18 | C7: 87.5 | D7: 18.17 | E7: 15.612 | F7: 38.172 | G7: 18.163 | H7: 15.612 | I7: =(H7/G7) -> 0.8595496339 | J7: =[1]!AgePb76($I$7) -> 5023.761097
D8: 6 | E8: 6 | F8: 11 | G8: 6 | H8: 6
A9: 2674/2 | B9: 0.06 | C9: 104 | D9: 18.161 | E9: 15.62 | F9: 38.187 | G9: 18.159 | H9: 15.62 | I9: =(H9/G9) -> 0.8601795253 | J9: =[1]!AgePb76($I$9) -> 5024.799702
D10: 3 | E10: 3 | F10: 8 | G10: 3 | H10: 3
A11: 2674/1 | B11: 0.04 | C11: 92 | D11: 18.115 | E11: 15.606 | F11: 38.142 | G11: 18.113 | H11: 15.606 | I11: =(H11/G11) -> 0.8615911224 | J11: =[1]!AgePb76($I$11) -> 5027.124305
D12: 5 | E12: 6 | F12: 20 | G12: 5 | H12: 6
A13: Granite ' Lenzkirch-Steina' :
A14: 6676/C | B14: 0.28 | C14: 83.5 | D14: 18.198 | E14: 15.619 | F14: 38.249 | G14: 18.187 | H14: 15.618 | I14: =(H14/G14) -> 0.8587452576 | J14: =[1]!AgePb76($I$14) -> 5022.433614
D15: 5 | E15: 4 | F15: 11 | G15: 5 | H15: 4
A16: Megacryst core | B16: 0.37 | C16: 77.4 | D16: 18.235 | E16: 15.639 | F16: 38.321 | G16: 18.218 | H16: 15.638 | I16: =(H16/G16) -> 0.8583818202 | J16: =[1]!AgePb76($I$16) -> 5021.833391
D17: 4 | E17: 3 | F17: 9 | G17: 5 | H17: 3
A18: Megacryst rim | B18: 0.19 | C18: 74 | D18: 18.223 | E18: 15.639 | F18: 38.316 | G18: 18.214 | H18: 15.638 | I18: =(H18/G18) -> 0.8585703305 | J18: =[1]!AgePb76($I$18) -> 5022.144753
D19: 5 | E19: 4 | F19: 19 | G19: 5 | H19: 4
A20: Granite Albtal' :
A21: 1180ATV
A22: Ground mass | B22: 0.1 | C22: 94.4 | D22: 18.194 | E22: 15.635 | F22: 38.299 | G22: 18.191 | H22: 15.635 | I22: =(H22/G22) -> 0.8594909571 | J22: =[1]!AgePb76($I$22) -> 5023.664306
D23: 4 | E23: 4 | F23: 12 | G23: 4 | H23: 4
A24: Megacryst core | B24: 0.09 | C24: 80.5 | D24: 18.196 | E24: 15.621 | F24: 38.249 | G24: 18.192 | H24: 15.621 | I24: =(H24/G24) -> 0.8586741425 | J24: =[1]!AgePb76($I$24) -> 5022.316187
D25: 5 | E25: 7 | F25: 20 | G25: 5 | H25: 7
A26: Megacryst rim | B26: 0.09 | C26: 78.8 | D26: 18.2 | E26: 15.631 | F26: 38.284 | G26: 18.196 | H26: 15.631 | I26: =(H26/G26) -> 0.8590349527 | J26: =[1]!AgePb76($I$26) -> 5022.911857
D27: 3 | E27: 5 | F27: 11 | G27: 3 | H27: 5
A28: Granite ' Schluchsee' :
A29: 19878/B | B29: 0.11 | C29: 85.2 | D29: 18.149 | E29: 15.62 | F29: 38.214 | G29: 18.145 | H29: 15.62 | I29: =(H29/G29) -> 0.8608432075 | J29: =[1]!AgePb76($I$29) -> 5025.893151
D30: 5 | E30: 5 | F30: 15 | G30: 5 | H30: 5
A31: Granite `Bdrhalde':
A32: 21778/C | B32: 0.37 | C32: 64.8 | D32: 18.234 | E32: 15.632 | F32: 38.249 | G32: 18.216 | H32: 15.631 | I32: =(H32/G32) -> 0.8580917874 | J32: =[1]!AgePb76($I$32) -> 5021.354203
D33: 6 | E33: 6 | F33: 14 | G33: 7 | H33: 6
A34: Diatexites:
A35: S 235 | B35: 0.02 | C35: 75.5 | D35: 17.928 | E35: 15.569 | F35: 38.177 | G35: 17.927 | H35: 15.569 | I35: =(H35/G35) -> 0.8684665588 | J35: =[1]!AgePb76($I$35) -> 5038.389195
D36: 2 | E36: 2 | F36: 5 | G36: 2 | H36: 2
A37: S 239-B | B37: 0.025 | C37: 85.4 | D37: 18.116 | E37: 15.614 | F37: 38.109 | G37: 18.115 | H37: 15.614 | I37: =(H37/G37) -> 0.8619376208 | J37: =[1]!AgePb76($I$37) -> 5027.694296
D38: 5 | E38: 5 | F38: 10 | G38: 5 | H38: 5
A39: Orthogneiss:
A40: S 262-A | B40: 0.036 | C40: 76.5 | D40: 17.941 | E40: 15.567 | F40: 38.071 | G40: 17.939 | H40: 15.567 | I40: =(H40/G40) -> 0.8677741234 | J40: =[1]!AgePb76($I$40) -> 5037.258986
J41: =COUNT(J1:J40) -> 16

Sheet Exc_02
I1: Pb206/Pb204 | J1: Pb207/Pb204 | K1: Pb207/Pb206 | L1: Pb207/Pb206
I2: Ratio | J2: Ratio | K2: Ratio | L2: Age
A3: Dobu Island | E3: 0.702989 | F3: ± 10 | G3: 0.513053 ± 11 | H3: 3.53 | I3: 18.522 | J3: 15.543 | K3: =(J3/I3) -> 0.8391642371 | L3: =[1]!AgePb76($K$3) -> 4989.704795 | M3: 38.31
A4: 33703 (Basalt) | E4: 0.702989 | F4: ± 10 | G4: 0.513053 ± 11 | H4: 3.53 | I4: 18.522 | J4: 15.543 | K4: =(J4/I4) -> 0.8391642371 | L4: =[1]!AgePb76($K$4) -> 4989.704795 | M4: 38.31
A5: 33704 (Basalt) | B5: 19.12 | C5: 496.4 | D5: 0.1114 | E5: 0.703134 | F5: ± 8 | G5: 0.513018 ± 10 | H5: 2.75 | I5: 18.594 | J5: 15.58 | K5: 0.8379047004 | L5: =[1]!AgePb76($K$5) -> 4987.571837 | M5: 38.44
A6: 33706 (Basalt) | B6: 9.7 | C6: 391.1 | D6: 0.0717 | E6: 0.703009 | F6: ± 10 | G6: 0.513045 ± 12 | H6: 3 | I6: 18.619 | J6: 15.595 | K6: 0.8375852624 | L6: =[1]!AgePb76($K$6) -> 4987.030344 | M6: 38.51
A7: 33707 (Hawaiite) | B7: 21.96 | C7: 409.6 | D7: 0.155 | E7: 0.703157 | F7: ± 10 | G7: 0.512984 ± 18 | H7: 9.19 | I7: 18.598 | J7: 15.585 | K7: 0.8379933326 | L7: =[1]!AgePb76($K$7) -> 4987.722043 | M7: 38.45
A8: 33709 (Hawaiite) | B8: 24.45 | C8: 356.6 | D8: 0.1983 | E8: 0.703437 | F8: ± 12 | G8: 0.513001 ± 11 | H8: 10.35 | I8: 18.657 | J8: 15.613 | K8: 0.83684408 | L8: =[1]!AgePb76($K$8) -> 4985.773089 | M8: 38.59
A9: 33710 (Trachyte) | B9: 57.07 | C9: 159 | D9: 1.0382 | E9: 0.703676 | F9: ± 10 | G9: 0.512989 ± 11 | H9: 11.68 | I9: 18.619 | J9: 15.581 | K9: 0.8368333423 | L9: =[1]!AgePb76($K$9) -> 4985.754866 | M9: 38.49
A10: 33711 (Trachyte) | B10: 40.59 | C10: 156 | D10: 0.7256 | E10: 0.703628 | F10: ± 12 | G10: 0.512987 ± 20 | K10: 0
A11: 33731 (Comendite) | B11: 131.7 | C11: 3.82 | D11: 99.68 | E11: 0.70585 | F11: ± 58 | G11: 0.513034 ± 20 | H11: 23.7 | I11: 18.659 | J11: 15.619 | K11: 0.8370759419 | L11: =[1]!AgePb76($K$11) -> 4986.16652 | M11: 38.62
A12: 33743 (Comendite) | B12: 189.2 | C12: 1.81 | D12: 302.3 | E12: 0.70463 | F12: ± 30 | G12: 0.513027 ± 16 | H12: 45.61 | I12: 18.619 | J12: 15.569 | K12: 0.8361888394 | L12: =[1]!AgePb76($K$12) -> 4984.66063 | M12: 38.47
A13: Kukuia Peninsula | B13: 126.8 | C13: 237.9 | D13: 1.541 | E13: 0.704028 | F13: ± 14 | G13: 0.512919 ± 17 | H13: 19.57 | I13: 18.632 | J13: 15.595 | K13: 0.8370008587 | L13: =[1]!AgePb76($K$13) -> 4986.039129 | M13: 38.53
A14: 33677 (Rhyolite) | K14: 0
A15: 33682 (Rhyolite) | B15: 123.8 | C15: 74.78 | D15: 4.787 | E15: 0.703864 | F15: ± 10 | G15: 0.512867 ± 13 | H15: 22.68 | I15: 18.661 | J15: 15.631 | K15: 0.8376292803 | L15: =[1]!AgePb76($K$15) -> 4987.104974 | M15: 38.63
A16: 33685 (Rhyolite) | B16: 140.8 | C16: 69.54 | D16: 6.026 | E16: 0.703901 | F16: ± 10 | G16: 0.512923 ± 15 | K16: 0
A17: 33687 (Rhyolite) | B17: 140.5 | C17: 66.37 | D17: 6.123 | E17: 0.704011 | F17: ± 8 | G17: 0.512921 ± 25 | H17: 22.99 | I17: 18.627 | J17: 15.59 | K17: 0.8369571053 | L17: =[1]!AgePb76($K$17) -> 4985.964889 | M17: 38.51

Sheet Exc_03
A1: Sample | B1: Pb206/Pb204 | C1: Pb207/Pb204 | D1: Pb207/Pb206 | E1: Pb207/Pb206 | G1: Table 2.
A2: Name | B2: Ratio | C2: Ratio | D2: Ratio | E2: Age
A3: SE6 | B3: 18.632 | C3: 15.611 | D3: =(C3/B3) -> 0.8378595964 | E3: =[1]!AgePb76($D$3) -> 4987.495393
A4: SE31 | B4: 19.149 | C4: 15.635 | D4: =(C4/B4) -> 0.8164917228 | E4: =[1]!AgePb76($D$4) -> 4950.779475
A5: PH-i | B5: 19.299 | C5: 15.611 | D5: 0.8089020156 | E5: =[1]!AgePb76($D$5) -> 4937.491798
A6: 31-219 | B6: 19.786 | C6: 15.65 | D6: 0.7909633074 | E6: =[1]!AgePb76($D$6) -> 4905.550982
A7: 7-320 | B7: 19.798 | C7: 15.652 | D7: 0.7905849076 | E7: =[1]!AgePb76($D$7) -> 4904.868945
A8: 43-49 | B8: 19.773 | C8: 15.638 | D8: 0.7908764477 | E8: =[1]!AgePb76($D$8) -> 4905.394455

Sheet Exc_04
D1: Pb206/Pb204 | F1: Pb207/Pb204 | G1: Pb207/Pb206 | H1: Pb207/Pb206 | I1: Table 1.
D2: Ratio | F2: Ratio | G2: Ratio | H2: Age
A3: Kabwe | B3: 2012-06-05 | C3: 880/72 | D3: 17.992 | E3: 0.001 | F3: 15.707 | G3: =(F3/D3) -> 0.8729991107 | H3: =[1]!AgePb76($G$3) -> 5045.763796 | I3: ‹ | J3: 0.005
A4: Kabwe | B4: 2012-06-05 | C4: 910/12 | D4: 17.978 | E4: 0.001 | F4: 15.688 | G4: =(F4/D4) -> 0.8726220937 | H4: =[1]!AgePb76($G$4) -> 5045.151928 | I4: ‹ | J4: 0.002
A5: Kabwe | B5: 2012-06-05 | C5: 910cd13 | D5: 17.983 | E5: 0.001 | F5: 15.694 | G5: 0.8727131179 | H5: =[1]!AgePb76($G$5) -> 5045.299679 | I5: ‹ | J5: 0.001
A6: Kabwe | B6: 2012-06-05 | C6: 910cd14 | D6: 18 | E6: 0.003 | F6: 15.719 | G6: 0.8732777778 | H6: =[1]!AgePb76($G$6) -> 5046.215869 | I6: ‹ | J6: 0.012
A7: Kabwe | B7: 1 | C7: 910/1 | D7: 18.006 | E7: 0.002 | F7: 15.726 | G7: 0.8733755415 | H7: =[1]!AgePb76($G$7) -> 5046.374432 | I7: ‹ | J7: 0.007
A8: Kabwe | B8: 1 | C8: 910/2 | D8: 18.007 | E8: 0.001 | F8: 15.728 | G8: 0.8734381074 | H8: =[1]!AgePb76($G$8) -> 5046.475897 | I8: ‹ | J8: 0.005
A9: Kabwe | B9: 1 | C9: 910/5 | D9: 18.003 | E9: 0.001 | F9: 15.723 | G9: 0.8733544409 | H9: =[1]!AgePb76($G$9) -> 5046.34021 | I9: ‹ | J9: 0.002
A10: Kabwe | B10: 2012-04-03 | C10: 302 | D10: 18.003 | E10: 0.001 | F10: 15.72 | G10: 0.873187802 | H10: =[1]!AgePb76($G$10) -> 5046.069921 | I10: ‹ | J10: 0.004
A11: Kabwe | B11: 2012-04-03 | C11: 312 | D11: 18.008 | E11: 0.002 | F11: 15.723 | G11: 0.8731119502 | H11: =[1]!AgePb76($G$11) -> 5045.94687 | I11: ‹ | J11: 0.007
A12: Kabwe | B12: 2012-04-03 | C12: 313 | D12: 18.007 | E12: 0.003 | F12: 15.723 | G12: 0.8731604376 | H12: =[1]!AgePb76($G$12) -> 5046.02553 | I12: ‹ | J12: 0.016
A13: Kabwe | B13: 2012-04-03 | C13: 315 | D13: 17.983 | E13: 0.002 | F13: 15.692 | G13: 0.8726019018 | H13: =[1]!AgePb76($G$13) -> 5045.119151 | I13: ‹ | J13: 0.005
A14: Tsumeb | B14: 28/T1 | D14: 18.104 | E14: 0.002 | F14: 15.669 | G14: 0.8654993372 | H14: =[1]!AgePb76($G$14) -> 5033.539277 | I14: 38.257 | J14: ‹ | K14: 0.003
A15: Tsumeb | B15: 28/T2 | D15: 18.094 | E15: 0.001 | F15: 15.671 | G15: 0.866088206 | H15: =[1]!AgePb76($G$15) -> 5034.503184 | I15: 38.248 | J15: ‹ | K15: 0.003
A16: Tsumeb | B16: 28/T3 | D16: 18.144 | E16: 0.001 | F16: 15.688 | G16: 0.864638448 | H16: =[1]!AgePb76($G$16) -> 5032.128851 | I16: 38.345 | J16: ‹ | K16: 0.004
A17: Tsumeb | B17: 28/T4 | D17: 18.104 | E17: 0.004 | F17: 15.667 | G17: 0.8653888643 | H17: =[1]!AgePb76($G$17) -> 5033.358368 | I17: 38.255 | J17: ‹ | K17: 0.009
A18: Kipushi | B18: K1 | D18: 18.01 | F18: 15.6 | G18: 0.8661854525 | H18: =[1]!AgePb76($G$18) -> 5034.662298
A19: Kipushi | B19: K2 | D19: 18.05 | F19: 15.6 | G19: 0.864265928 | H19: =[1]!AgePb76($G$19) -> 5031.518076
A20: Kipushi | B20: K3 | D20: 18.1 | F20: 15.61 | G20: 0.8624309392 | H20: =[1]!AgePb76($G$20) -> 5028.505388
B24: Pb206/Pb204 | C24: Pb207/Pb204 | D24: Pb207/Pb206 | E24: Pb207/Pb206
B25: Ratio | C25: Ratio | D25: Ratio | E25: Age
A26: KD203 | B26: 18.014 | C26: 15.722 | D26: =(C26/B26) -> 0.8727656267 | E26: =[1]!AgePb76($D$26) -> 5045.384904 | F26: 0.09 | I26: Table 2.
A27: KD272 | B27: 17.998 | C27: 15.686 | D27: 0.8715412824 | E27: =[1]!AgePb76($D$27) -> 5043.396306 | F27: 0.14
A28: KD294 | B28: 18.017 | C28: 15.71 | D28: 0.8719542654 | E28: =[1]!AgePb76($D$28) -> 5044.06741 | F28: 0.2
A29: KD400 | B29: 18.002 | C29: 15.7 | D29: 0.8721253194 | E29: =[1]!AgePb76($D$29) -> 5044.345277 | F29: 0.3
A30: KD405 | B30: 17.998 | C30: 15.701 | D30: 0.8723747083 | E30: =[1]!AgePb76($D$30) -> 5044.75029 | F30: 1.49
A31: KD411 | B31: 17.982 | C31: 15.705 | D31: 0.8733733734 | E31: =[1]!AgePb76($D$31) -> 5046.370915 | F31: 4.31

Sheet Exc_05
A3: Pb206/Pb204 | B3: Pb207/Pb204 | C3: Pb207/Pb206 | D3: Pb207/Pb206 | E3: Table 4.
A4: Ratio | B4: Ratio | C4: Ratio | D4: Age
A5: 15.57 | B5: 15.57 | C5: =(B5/A5) -> 1 | D5: =[1]!AgePb76($C$5) -> 5237.372407
A6: 17.48 | B6: 15.47 | C6: =(B6/A6) -> 0.8850114416 | D6: =[1]!AgePb76($C$6) -> 5065.113389

Sheet Exc_06
A1: Sample | B1: Pb206/Pb204 | D1: Pb207/Pb204 | F1: Pb207/Pb206 | G1: Pb207/Pb206 | H1: TABLE II
A2: Name | B2: Ratio | D2: Ratio | F2: Ratio | G2: Age
A3: Kao 3 | B3: 19.97 | C3: 0.04 | D3: 15.7 | E3: 0.04 | F3: =(D3/B3) -> 0.7861792689 | G3: =[1]!AgePb76($F$3) -> 4896.90244
A4: Kao 4 | B4: 23.06 | C4: 0.42 | D4: 15.91 | E4: 0.06 | F4: =(D4/B4) -> 0.6899392888 | G4: =[1]!AgePb76($F$4) -> 4709.905945
A5: Jag-K4 (Jagersfontein) | B5: 19.18 | C5: 0.02 | D5: 15.61 | E5: 0.02 | F5: 0.8138686131 | G5: =[1]!AgePb76($F$5) -> 4946.201976
A6: Jag-K7 (Jagersfontein) | B6: 19.28 | C6: 0.01 | D6: 15.54 | E6: 0.01 | F6: 0.8060165975 | G6: =[1]!AgePb76($F$6) -> 4932.405327
A7: Jag-K9 (Jagersfontein) | B7: 26.05 | C7: 0.02 | D7: 15.9 | E7: 0.01 | F7: 0.6103646833 | G7: =[1]!AgePb76($F$7) -> 4532.86719
A8: Jag-K/ 0 (Jagersfontein) | B8: 19.5 | C8: 0.03 | D8: 15.56 | E8: 0.02 | F8: 0.7979487179 | G8: =[1]!AgePb76($F$8) -> 4918.079646
A9: NE-K2 (New Elands) | B9: 17.407 | C9: 0.009 | D9: 15.493 | E9: 0.008 | F9: 0.8900442351 | G9: =[1]!AgePb76($F$9) -> 5073.137595
A10: NE-K4 (New Elands) | B10: 17.479 | C10: 0.004 | D10: 15.482 | E10: 0.004 | F10: 0.8857486126 | G10: =[1]!AgePb76($F$10) -> 5066.291744
A11: NE-K6 (New_Elands) | B11: 17.383 | C11: 0.006 | D11: 15.475 | E11: 0.005 | F11: 0.8902375884 | G11: =[1]!AgePb76($F$11) -> 5073.444914
A12: NE-K10 (New Elands) | B12: 17.36 | C12: 0.01 | D12: 15.48 | E12: 0.01 | F12: 0.8917050691 | G12: =[1]!AgePb76($F$12) -> 5075.775046
A13: SW Main 15/0 | B13: 17.865 | C13: 0.015 | D13: 15.631 | E13: 0.013 | F13: 0.8749510216 | G13: =[1]!AgePb76($F$13) -> 5048.927106
A14: SW Male 14/1 | B14: 17.986 | C14: 0.009 | D14: 15.541 | E14: 0.008 | F14: 0.8640609363 | G14: =[1]!AgePb76($F$14) -> 5031.181858
A15: Finsch D | B15: 17.87 | C15: 0.02 | D15: 15.52 | E15: 0.03 | F15: 0.8684946838 | G15: =[1]!AgePb76($F$15) -> 5038.435081
A16: Finsch E | B16: 17.881 | C16: 0.012 | D16: 15.506 | E16: 0.015 | F16: 0.8671774509 | G16: =[1]!AgePb76($F$16) -> 5036.284315
A17: Finsch B | B17: 17.98 | C17: 0.03 | D17: 15.54 | E17: 0.02 | F17: 0.8642936596 | G17: =[1]!AgePb76($F$17) -> 5031.563554

Sheet Exc_07
B3: 207/204Pb | C3: 206/204Pb | D3: Pb207/Pb206 | E3: Pb207/Pb206 | F3: Table 1
B4: Ratio | C4: Ratio | D4: Ratio | E4: Age
B5: 15.575 | C5: 17.914 | D5: =(B5/C5) -> 0.8694317294 | E5: =[1]!AgePb76($D$5) -> 5039.962975
B6: 15.548 | C6: 17.879 | D6: =(B6/C6) -> 0.8696235807 | E6: =[1]!AgePb76($D$6) -> 5040.275581
B7: 15.32 | C7: 16.668 | D7: 0.9191264699 | E7: =[1]!AgePb76($D$7) -> 5118.583452
B8: 15.522 | C8: 17.803 | D8: 0.8718755266 | E8: =[1]!AgePb76($D$8) -> 5043.939484
B9: 15.495 | C9: 17.679 | D9: 0.8764636009 | E9: =[1]!AgePb76($D$9) -> 5051.373281
B10: 15.524 | C10: 17.816 | D10: 0.8713515941 | E10: =[1]!AgePb76($D$10) -> 5043.087946
B11: 15.587 | C11: 17.865 | D11: 0.8724881052 | E11: =[1]!AgePb76($D$11) -> 5044.934409
B12: 15.395 | C12: 17.138 | D12: 0.8982961839 | E12: =[1]!AgePb76($D$12) -> 5086.190806
B13: 15.561 | C13: 17.744 | D13: 0.8769724977 | E13: =[1]!AgePb76($D$13) -> 5052.195273
B14: 15.469 | C14: 17.375 | D14: 0.8903021583 | E14: =[1]!AgePb76($D$14) -> 5073.547526
B15: 15.277 | C15: 16.446 | D15: 0.9289188861 | E15: =[1]!AgePb76($D$15) -> 5133.543566
B16: 15.339 | C16: 16.395 | D16: 0.9355901189 | E16: =[1]!AgePb76($D$16) -> 5143.640014
B17: 15.183 | C17: 16.158 | D17: 0.9396583736 | E17: =[1]!AgePb76($D$17) -> 5149.75968
B18: 15.494 | C18: 17.368 | D18: 0.8921004146 | E18: =[1]!AgePb76($D$18) -> 5076.402098
B19: 15.44 | C19: 17.253 | D19: 0.8949168261 | E19: =[1]!AgePb76($D$19) -> 5080.86066
A37: Table 3
A38: Summary of zircon U–Th–Pb isotopic analyses | D38: Table 3
A39: Spots | B39: Th | C39: U | D39: Pb | E39: Th/U | F39: Common 206Pb (%) | G39: 204Pb/ 206Pb | H39: 207Pb/206Pb | I39: 207Pb/206Pb | J39: 207Pb/235U | K39: 207Pb/235U | L39: 206Pb/238U | N39: 208Pb/232Th | P39: 207Pb/206Pb | R39: 207Pb/235U | T39: 206Pb/238U | V39: 208Pb/232Th
B40: (ppm) | H40: Ratio | I40: Age | J40: Ratio | K40: Age | L40: Ratio | M40: 1a | N40: Ratio | O40: 1a | P40: Age | Q40: 1a | R40: Age | S40: 1a | T40: Age | U40: 1a | V40: Age | W40: 1a
A41: DMP-315 (LA-ICP-MS)
A42: 5 | B42: 156 | C42: 145 | D42: 5.77 | E42: 1.08 | F42: 0.77 | G42: 0.011 | H42: 0.084 | I42: =[1]!AgePb76($H$42) -> 1292.55303 | J42: 0.266 | K42: =[1]!AgePb7U5(J42) -> 239.4906064 | L42: 0.023 | M42: 0.001 | N42: 0.007 | O42: 0 | P42: 1299 | Q42: 177 | R42: 240 | S42: 26 | T42: 146 | U42: 5 | V42: 144 | W42: 8
A43: 6a | B43: 317 | C43: 235 | D43: 8.39 | E43: 1.35 | F43: 6.25 | G43: 0.011 | H43: 0.074 | I43: =[1]!AgePb76($H$43) -> 1041.467528 | J43: 0.208 | K43: =[1]!AgePb7U5(J43) -> 191.8729751 | L43: 0.021 | M43: 0.001 | N43: 0.006 | O43: 0 | P43: 1034 | Q43: 406 | R43: 192 | S43: 32 | T43: 131 | U43: 4 | V43: 125 | W43: 3
A44: 7a | B44: 209 | C44: 236 | D44: 13.6 | E44: 0.89 | F44: 16.1 | G44: 0.023 | H44: 0.093 | I44: =[1]!AgePb76($H$44) -> 1487.887502 | J44: 0.259 | K44: =[1]!AgePb7U5(J44) -> 233.8607454 | L44: 0.02 | M44: 0.001 | N44: 0.006 | O44: 0 | P44: 1478 | Q44: 442 | R44: 234 | S44: 43 | T44: 129 | U44: 5 | V44: 120 | W44: 4
A45: 8a | B45: 153 | C45: 137 | D45: 7.07 | E45: 1.12 | F45: 18.5 | G45: 0.028 | H45: 0.066 | I45: =[1]!AgePb76($H$45) -> 806.3757012 | J45: 0.194 | K45: =[1]!AgePb7U5(J45) -> 180.036569 | L45: 0.021 | M45: 0.001 | N45: 0.007 | O45: 0 | P45: 809 | Q45: 651 | R45: 180 | S45: 52 | T45: 136 | U45: 6 | V45: 131 | W45: 6
A46: 9a | B46: 145 | C46: 330 | D46: 13.4 | E46: 0.44 | F46: 5.34 | G46: 0.012 | H46: 0.074 | I46: =[1]!AgePb76($H$46) -> 1041.467528 | J46: 0.29 | K46: =[1]!AgePb7U5(J46) -> 258.5593932 | L46: 0.028 | M46: 0.001 | N46: 0.009 | O46: 0 | P46: 1040 | Q46: 296 | R46: 259 | S46: 31 | T46: 181 | U46: 5 | V46: 173 | W46: 4
A47: 11 | B47: 227 | C47: 225 | D47: 8.05 | E47: 1.01 | G47: 0.014 | H47: 0.1 | I47: =[1]!AgePb76($H$47) -> 1624.083157 | J47: 0.292 | K47: =[1]!AgePb7U5(J47) -> 260.1324114 | L47: 0.021 | M47: 0.001 | N47: 0.014 | O47: 0.001 | P47: 1626 | Q47: 88 | R47: 260 | S47: 15 | T47: 135 | U47: 3 | V47: 272 | W47: 12
A48: 12 | B48: 132 | C48: 137 | D48: 4.19 | E48: 0.96 | G48: 0.012 | H48: 0.053 | I48: =[1]!AgePb76($H$48) -> 328.7967883 | J48: 0.153 | K48: =[1]!AgePb7U5(J48) -> 144.5572841 | L48: 0.021 | M48: 0.001 | N48: 0.006 | O48: 0 | P48: 320 | Q48: 235 | R48: 144 | S48: 18 | T48: 134 | U48: 4 | V48: 130 | W48: 7
A49: 13a | B49: 352 | C49: 234 | D49: 13.3 | E49: 1.5 | F49: 24.2 | G49: 0.017 | H49: 0.083 | I49: =[1]!AgePb76($H$49) -> 1269.215828 | J49: 0.226 | K49: =[1]!AgePb7U5(J49) -> 206.8912398 | L49: 0.02 | M49: 0.001 | N49: 0.006 | O49: 0 | P49: 1260 | Q49: 566 | R49: 207 | S49: 48 | T49: 127 | U49: 5 | V49: 119 | W49: 3
A50: 14 | B50: 155 | C50: 160 | D50: 4.79 | E50: 0.97 | G50: 0.004 | H50: 0.045 | I50: =[1]!AgePb76($H$50) -> -55.65511877 | J50: 0.136 | K50: =[1]!AgePb7U5(J50) -> 129.4748645 | L50: 0.022 | M50: 0.001 | N50: 0.006 | O50: 0 | Q50: 221 | R50: 129 | S50: 18 | T50: 139 | U50: 5 | V50: 121 | W50: 7
A51: 15a | B51: 220 | C51: 222 | D51: 17.5 | E51: 0.99 | F51: 40.2 | G51: 0.022 | H51: 0.046 | I51: =[1]!AgePb76($H$51) -> -2.382636093 | J51: 0.117 | K51: =[1]!AgePb7U5(J51) -> 112.3486014 | L51: 0.018 | M51: 0.001 | N51: 0.006 | O51: 0.001 | Q51: 927 | R51: 112 | S51: 59 | T51: 118 | U51: 6 | V51: 125 | W51: 25
A52: 17a | B52: 384 | C52: 1870 | D52: 91.2 | E52: 0.21 | F52: 25.6 | G52: 0.02 | H52: 0.086 | I52: =[1]!AgePb76($H$52) -> 1338.182709 | J52: 0.212 | K52: =[1]!AgePb7U5(J52) -> 195.2296163 | L52: 0.018 | M52: 0.001 | N52: 0.005 | O52: 0.001 | P52: 1329 | Q52: 552 | R52: 195 | S52: 44 | T52: 115 | U52: 5 | V52: 107 | W52: 15
A53: 18 | B53: 113 | C53: 138 | D53: 4.49 | E53: 0.82 | G53: 0.005 | H53: 0.055 | I53: =[1]!AgePb76($H$53) -> 412.2231042 | J53: 0.185 | K53: =[1]!AgePb7U5(J53) -> 172.3539367 | L53: 0.025 | M53: 0.001 | N53: 0.006 | O53: 0 | P53: 397 | Q53: 190 | R53: 173 | S53: 17 | T53: 157 | U53: 4 | V53: 129 | W53: 7
A54: 19 | B54: 110 | C54: 162 | D54: 5.09 | E54: 0.68 | F54: 0.12 | G54: 0.013 | H54: 0.07 | I54: =[1]!AgePb76($H$54) -> 928.3531104 | J54: 0.208 | K54: =[1]!AgePb7U5(J54) -> 191.8729751 | L54: 0.022 | M54: 0.001 | N54: 0.007 | O54: 0 | P54: 918 | Q54: 122 | R54: 192 | S54: 14 | T54: 138 | U54: 3 | V54: 134 | W54: 4
A55: 20a | B55: 171 | C55: 270 | D55: 10.7 | E55: 0.63 | F55: 13.2 | G55: 0.014 | H55: 0.063 | I55: =[1]!AgePb76($H$55) -> 708.2307088 | J55: 0.182 | K55: =[1]!AgePb7U5(J55) -> 169.7800873 | L55: 0.021 | M55: 0.001 | N55: 0.006 | O55: 0 | P55: 711 | Q55: 515 | R55: 170 | S55: 38 | T55: 134 | U55: 5 | V55: 130 | W55: 6
A56: 21a | B56: 120 | C56: 130 | D56: 20.2 | E56: 0.92 | F56: 42 | G56: 0.043 | H56: 0.046 | I56: =[1]!AgePb76($H$56) -> -2.382636093 | J56: 0.111 | K56: =[1]!AgePb7U5(J56) -> 106.8797387 | L56: 0.018 | M56: 0.001 | N56: 0.01 | O56: 0.002 | Q56: 352 | R56: 107 | S56: 21 | T56: 112 | U56: 5 | V56: 195 | W56: 50
A57: 23a | B57: 210 | C57: 186 | D57: 36.8 | E57: 1.13 | F57: 68.7 | G57: 0.037 | H57: 0.078 | I57: =[1]!AgePb76($H$57) -> 1146.873224 | J57: 0.23 | K57: =[1]!AgePb7U5(J57) -> 210.1986794 | L57: 0.021 | M57: 0.002 | N57: 0.006 | O57: 0.002 | P57: 1148 | Q57: 1454 | R57: 210 | S57: 163 | T57: 136 | U57: 12 | V57: 129 | W57: 34
A58: 24a | B58: 173 | C58: 160 | D58: 12.4 | E58: 1.08 | F58: 41.3 | G58: 0.024 | H58: 0.046 | I58: =[1]!AgePb76($H$58) -> -2.382636093 | J58: 0.108 | K58: =[1]!AgePb7U5(J58) -> 104.1342218 | L58: 0.017 | M58: 0.001 | N58: 0.005 | O58: 0.001 | Q58: 986 | R58: 104 | S58: 61 | T58: 109 | U58: 5 | V58: 110 | W58: 21
A59: DMP-315 (SHRIMP)b | K59: =[1]!AgePb7U5(J59) -> 0
A60: 4.1-rim | B60: 325 | C60: 974 | D60: 20.8 | E60: 0.33 | F60: 0.21 | G60: 0 | H60: 0.051 | I60: =[1]!AgePb76($H$60) -> 240.8298814 | J60: 0.167 | K60: =[1]!AgePb7U5(J60) -> 156.812056 | L60: 0.025 | M60: 0.001 | P60: 142 | Q60: 57 | T60: 158 | U60: 4 | V60: 157 | W60: 6
A61: 5.1-rim | B61: 96.5 | C61: 173 | D61: 2.4 | E61: 0.56 | F61: 1.72 | G61: 0.003 | H61: 0.063 | I61: =[1]!AgePb76($H$61) -> 708.2307088 | J61: 0.05 | K61: =[1]!AgePb7U5(J61) -> 49.54070586 | L61: 0.015 | M61: 0.001 | T61: 97 | U61: 4 | V61: 64 | W61: 24
A62: 5.2-core | B62: 599 | C62: 505 | D62: 6.59 | E62: 1.19 | F62: 0.71 | H62: 0.052 | I62: =[1]!AgePb76($H$62) -> 285.409898 | J62: 0.11 | K62: =[1]!AgePb7U5(J62) -> 105.965391 | L62: 0.015 | M62: 0 | P62: 331 | Q62: 87 | T62: 96.6 | U62: 3 | V62: 100 | W62: 3
A63: 7.1-rim | B63: 182 | C63: 254 | D63: 3.84 | E63: 0.72 | F63: 1.71 | G63: 0.001 | H63: 0.053 | I63: =[1]!AgePb76($H$63) -> 328.7967883 | J63: 0.098 | K63: =[1]!AgePb7U5(J63) -> 94.92851001 | L63: 0.017 | M63: 0 | T63: 109 | U63: 3 | V63: 112 | W63: 6
A64: 8.1-rim | B64: 188 | C64: 251 | D64: 3.55 | E64: 0.75 | F64: 0.44 | G64: 0 | H64: 0.051 | I64: =[1]!AgePb76($H$64) -> 240.8298814 | J64: 0.102 | K64: =[1]!AgePb7U5(J64) -> 98.62081609 | L64: 0.016 | M64: 0 | T64: 104 | U64: 3 | V64: 102 | W64: 6
A65: 14.1-rim | B65: 574 | C65: 386 | D65: 6.63 | E65: 1.48 | F65: 1.68 | G65: 0.001 | H65: 0.056 | I65: =[1]!AgePb76($H$65) -> 452.3684523 | J65: 0.124 | K65: =[1]!AgePb7U5(J65) -> 118.6919343 | L65: 0.019 | M65: 0.001 | P65: 21 | Q65: 180 | T65: 124 | U65: 3 | V65: 126 | W65: 4
A66: 15.1-rim | B66: 335 | C66: 278 | D66: 4.81 | E66: 1.21 | F66: 0.36 | G66: 0 | H66: 0.048 | I66: =[1]!AgePb76($H$66) -> 99.26911375 | J66: 0.125 | K66: =[1]!AgePb7U5(J66) -> 119.5948984 | L66: 0.02 | M66: 0.001 | T66: 128 | U66: 4 | V66: 128 | W66: 6
A67: 1.1-core | B67: 82 | C67: 1819 | D67: 56.8 | E67: 0.05 | F67: 0.14 | G67: 0 | H67: 0.052 | I67: =[1]!AgePb76($H$67) -> 285.409898 | J67: 0.25 | K67: =[1]!AgePb7U5(J67) -> 226.5761804 | L67: 0.036 | M67: 0.001 | P67: 202 | Q67: 37 | T67: 229 | U67: 5 | V67: 216 | W67: 23
A68: 6.1-core | B68: 810 | C68: 733 | D68: 22.5 | E68: 1.11 | F68: 0.15 | G68: 0.001 | H68: 0.059 | I68: =[1]!AgePb76($H$68) -> 567.0960442 | J68: 0.224 | K68: =[1]!AgePb7U5(J68) -> 205.2334712 | L68: 0.035 | M68: 0.001 | P68: 3 | Q68: 170 | T68: 223 | U68: 6 | V68: 208 | W68: 8
A69: 11.1-core | B69: 2306 | C69: 1831 | D69: 56.5 | E69: 1.26 | F69: 0.11 | G69: 0 | H69: 0.051 | I69: =[1]!AgePb76($H$69) -> 240.8298814 | J69: 0.239 | K69: =[1]!AgePb7U5(J69) -> 217.6012618 | L69: 0.036 | M69: 0.001 | P69: 123 | Q69: 52 | T69: 226 | U69: 5 | V69: 224 | W69: 6
A70: 12.1-rim | B70: 64.6 | C70: 134 | D70: 4.6 | E70: 0.48 | F70: 1.11 | G70: 0.001 | H70: 0.05 | I70: =[1]!AgePb76($H$70) -> 194.9931303 | J70: 0.185 | K70: =[1]!AgePb7U5(J70) -> 172.3539367 | L70: 0.039 | M70: 0.001 | T70: 244 | U70: 8 | V70: 220 | W70: 15
A71: 13.1-core | B71: 325 | C71: 804 | D71: 24.7 | E71: 0.4 | F71: 0.32 | G71: 0 | H71: 0.054 | I71: =[1]!AgePb76($H$71) -> 371.049572 | J71: 0.242 | K71: =[1]!AgePb7U5(J71) -> 220.0568447 | L71: 0.035 | M71: 0.001 | P71: 176 | Q71: 82 | T71: 225 | U71: 5 | V71: 219 | W71: 9
A72: 2.1-core | B72: 113 | C72: 213 | D72: 12.8 | E72: 0.53 | F72: 2.55 | G72: 0.001 | H72: 0.072 | I72: =[1]!AgePb76($H$72) -> 985.9405279 | J72: 0.51 | K72: =[1]!AgePb7U5(J72) -> 418.4491555 | L72: 0.067 | M72: 0.002 | P72: 422 | Q72: 250 | T72: 418 | U72: 11 | V72: 440 | W72: 41
A73: 10.2-rim | B73: 74.2 | C73: 125 | D73: 7.5 | E73: 0.59 | F73: 0.4 | G73: 0.001 | H73: 0.06 | I73: =[1]!AgePb76($H$73) -> 603.5745894 | J73: 0.481 | K73: =[1]!AgePb7U5(J73) -> 398.75873 | L73: 0.069 | M73: 0.002 | P73: 237 | Q73: 220 | T73: 427 | U73: 11 | V73: 395 | W73: 29
A74: 3.1-rim | B74: 42.4 | C74: 359 | D74: 103 | E74: 0.12 | G74: 0 | H74: 0.113 | I74: =[1]!AgePb76($H$74) -> 1848.213643 | J74: 5.17 | K74: =[1]!AgePb7U5(J74) -> 1847.691362 | L74: 0.333 | M74: 0.008 | P74: 1844 | Q74: 13 | T74: 1851 | U74: 39 | V74: 1699 | W74: 76
A75: 9.1-core | B75: 6.7 | C75: 20.3 | D75: 8.33 | E75: 0.33 | F75: 0.64 | G75: 0.001 | H75: 0.175 | I75: =[1]!AgePb76($H$75) -> 2606.046132 | J75: 10.92 | K75: =[1]!AgePb7U5(J75) -> 2516.340216 | L75: 0.471 | M75: 0.016 | P75: 2541 | Q75: 54 | T75: 2487 | U75: 70 | V75: 2440 | W75: 260
A76: 10.1-core | B76: 436 | C76: 991 | D76: 489 | E76: 0.44 | G76: 0 | H76: 0.241 | I76: =[1]!AgePb76($H$76) -> 3126.585342 | J76: 19.06 | K76: =[1]!AgePb7U5(J76) -> 3044.857372 | L76: 0.575 | M76: 0.017 | P76: 3123 | Q76: 4 | T76: 2927 | U76: 71 | V76: 2778 | W76: 220
H79: 207Pb/206Pb | I79: 207Pb/206Pb | P79: 207Pb/206Pb
A80: DMP-06 (LA-ICP-MS) | H80: Ratio | I80: Age | P80: Age
A81: 17 | B81: 24.3 | C81: 30.9 | D81: 0.66 | E81: 0.79 | G81: 0.018 | H81: 0.044 | I81: =[1]!AgePb76($H$81) -> -110.6941893 | J81: 0.093 | K81: =[1]!AgePb7U5(J81) -> 90.29416581 | L81: 0.015 | M81: 0.001 | N81: 0.005 | O81: 0.001 | R81: 90 | S81: 70 | T81: 98 | U81: 8 | V81: 109 | W81: 24
A82: 23a | B82: 79.3 | C82: 51.3 | D82: 1.45 | E82: 1.55 | F82: 9.25 | G82: 0.014 | H82: 0.052 | I82: =[1]!AgePb76($H$82) -> 285.409898 | J82: 0.102 | K82: =[1]!AgePb7U5(J82) -> 98.62081609 | L82: 0.014 | M82: 0.001 | N82: 0.004 | O82: 0 | P82: 283 | Q82: 877 | R82: 99 | S82: 46 | T82: 91 | U82: 6 | V82: 90 | W82: 8
A83: 14 | B83: 27.3 | C83: 27 | D83: 0.52 | E83: 1.01 | G83: 0.04 | H83: 0.044 | I83: =[1]!AgePb76($H$83) -> -110.6941893 | J83: 0.096 | K83: =[1]!AgePb7U5(J83) -> 93.07730977 | L83: 0.016 | M83: 0.002 | N83: 0.004 | O83: 0.001 | R83: 93 | S83: 69 | T83: 102 | U83: 13 | V83: 89 | W83: 25
A84: 15a | B84: 36.5 | C84: 32.2 | D84: 0.97 | E84: 1.14 | F84: 14.6 | G84: 0.035 | H84: 0.079 | I84: =[1]!AgePb76($H$84) -> 1172.134909 | J84: 0.15 | K84: =[1]!AgePb7U5(J84) -> 141.9119078 | L84: 0.014 | M84: 0.002 | N84: 0.004 | O84: 0.001 | P84: 1160 | Q84: 1310 | R84: 142 | S84: 97 | T84: 89 | U84: 10 | V84: 84 | W84: 16
A85: 11 | B85: 53 | C85: 41.5 | D85: 1.07 | E85: 1.28 | G85: 0.005 | H85: 0.05 | I85: =[1]!AgePb76($H$85) -> 194.9931303 | J85: 0.114 | K85: =[1]!AgePb7U5(J85) -> 109.617852 | L85: 0.017 | M85: 0.001 | N85: 0.006 | O85: 0.001 | P85: 189 | Q85: 696 | R85: 109 | S85: 48 | T85: 106 | U85: 7 | V85: 121 | W85: 13
A86: 13 | B86: 23.4 | C86: 29.7 | D86: 0.75 | E86: 0.79 | G86: 0 | H86: 0.096 | I86: =[1]!AgePb76($H$86) -> 1547.77221 | J86: 0.23 | K86: =[1]!AgePb7U5(J86) -> 210.1986794 | L86: 0.017 | M86: 0.001 | N86: 0.007 | O86: 0.001 | P86: 1554 | Q86: 518 | R86: 210 | S86: 58 | T86: 111 | U86: 9 | V86: 150 | W86: 22
A87: 25 | B87: 48.3 | C87: 34.9 | D87: 0.97 | E87: 1.39 | G87: 0.017 | H87: 0.055 | I87: =[1]!AgePb76($H$87) -> 412.2231042 | J87: 0.132 | K87: =[1]!AgePb7U5(J87) -> 125.8932627 | L87: 0.018 | M87: 0.001 | N87: 0.006 | O87: 0.001 | P87: 403 | Q87: 861 | R87: 126 | S87: 63 | T87: 112 | U87: 9 | V87: 128 | W87: 16
A88: 5 | B88: 42.5 | C88: 35.7 | D88: 1.04 | E88: 1.19 | G88: 0.057 | H88: 0.073 | I88: =[1]!AgePb76($H$88) -> 1013.952731 | J88: 0.193 | K88: =[1]!AgePb7U5(J88) -> 179.1858081 | L88: 0.019 | M88: 0.002 | N88: 0.006 | O88: 0.001 | P88: 1016 | Q88: 658 | R88: 179 | S88: 65 | T88: 122 | U88: 12 | V88: 119 | W88: 19
A89: 12 | B89: 4.95 | C89: 8.55 | D89: 0.37 | E89: 0.58 | G89: 0.034 | H89: 0.066 | I89: =[1]!AgePb76($H$89) -> 806.3757012 | J89: 0.174 | K89: =[1]!AgePb7U5(J89) -> 162.8844204 | L89: 0.019 | M89: 0.003 | N89: 0.013 | O89: 0.004 | P89: 799 | Q89: 1212 | R89: 163 | S89: 137 | T89: 122 | U89: 20 | V89: 259 | W89: 75
A90: 21 | B90: 48.7 | C90: 38.4 | D90: 1.28 | E90: 1.27 | G90: 0.015 | H90: 0.086 | I90: =[1]!AgePb76($H$90) -> 1338.182709 | J90: 0.241 | K90: =[1]!AgePb7U5(J90) -> 219.2389767 | L90: 0.02 | M90: 0.001 | N90: 0.008 | O90: 0.001 | P90: 1339 | Q90: 404 | R90: 219 | S90: 48 | T90: 130 | U90: 8 | V90: 161 | W90: 14
A91: 19a | B91: 37.3 | C91: 31.8 | D91: 1.54 | E91: 1.17 | F91: 27.9 | G91: 0.021 | H91: 0.054 | I91: =[1]!AgePb76($H$91) -> 371.049572 | J91: 0.118 | K91: =[1]!AgePb7U5(J91) -> 113.2572216 | L91: 0.016 | M91: 0.001 | N91: 0.005 | O91: 0.001 | P91: 373 | Q91: 1247 | R91: 113 | S91: 96 | T91: 101 | U91: 9 | V91: 100 | W91: 24
A92: 20a | B92: 6.85 | C92: 9.32 | D92: 0.47 | E92: 0.74 | F92: 28.4 | G92: 0.078 | H92: 0.046 | I92: =[1]!AgePb76($H$92) -> -2.382636093 | J92: 0.1 | K92: =[1]!AgePb7U5(J92) -> 96.77634138 | L92: 0.016 | M92: 0.002 | N92: 0.011 | O92: 0.005 | Q92: 1113 | R92: 96 | S92: 73 | T92: 100 | U92: 10 | V92: 216 | W92: 100
A93: 8 | B93: 35.6 | C93: 44.8 | D93: 1.52 | E93: 0.79 | G93: 0.011 | H93: 0.09 | I93: =[1]!AgePb76($H$93) -> 1425.529711 | J93: 0.279 | K93: =[1]!AgePb7U5(J93) -> 249.8639616 | L93: 0.022 | M93: 0.002 | N93: 0.011 | O93: 0.002 | P93: 1427 | Q93: 555 | R93: 250 | S93: 74 | T93: 143 | U93: 13 | V93: 228 | W93: 33
A94: 24 | B94: 38.1 | C94: 31.9 | D94: 0.97 | E94: 1.2 | G94: 0.028 | H94: 0.054 | I94: =[1]!AgePb76($H$94) -> 371.049572 | J94: 0.169 | K94: =[1]!AgePb7U5(J94) -> 158.550726 | L94: 0.023 | M94: 0.002 | N94: 0.004 | O94: 0.001 | P94: 362 | Q94: 662 | R94: 158 | S94: 64 | T94: 145 | U94: 11 | V94: 84 | W94: 24
A95: 6a | B95: 5.12 | C95: 8.95 | D95: 0.72 | E95: 0.57 | F95: 44.5 | G95: 0.072 | H95: 0.046 | I95: =[1]!AgePb76($H$95) -> -2.382636093 | J95: 0.08 | K95: =[1]!AgePb7U5(J95) -> 78.14493693 | L95: 0.013 | M95: 0.001 | N95: 0.04 | O95: 0.011 | Q95: 357 | R95: 78 | S95: 14 | T95: 81 | U95: 9 | V95: 783 | W95: 207
A96: 26 | B96: 25.5 | C96: 23.9 | D96: 0.85 | E96: 1.07 | G96: 0 | H96: 0.096 | I96: =[1]!AgePb76($H$96) -> 1547.77221 | J96: 0.302 | K96: =[1]!AgePb7U5(J96) -> 267.9611553 | L96: 0.023 | M96: 0.002 | N96: 0.009 | O96: 0.001 | P96: 1551 | Q96: 567 | R96: 268 | S96: 79 | T96: 145 | U96: 12 | V96: 180 | W96: 24
A97: 9 | B97: 3.44 | C97: 5.49 | D97: 0.2 | E97: 0.63 | G97: 0.136 | H97: 0.149 | I97: =[1]!AgePb76($H$97) -> 2334.481346 | J97: 0.469 | K97: =[1]!AgePb7U5(J97) -> 390.497941 | L97: 0.023 | M97: 0.004 | N97: 0.008 | O97: 0.005 | P97: 2333 | Q97: 1062 | R97: 391 | S97: 189 | T97: 146 | U97: 25 | V97: 165 | W97: 106
A98: 7 | B98: 4.29 | C98: 7.39 | D98: 0.28 | E98: 0.58 | G98: 0.097 | H98: 0.075 | I98: =[1]!AgePb76($H$98) -> 1068.501534 | J98: 0.236 | K98: =[1]!AgePb7U5(J98) -> 215.1397259 | L98: 0.023 | M98: 0.003 | N98: 0.016 | O98: 0.004 | P98: 1059 | Q98: 1337 | R98: 215 | S98: 181 | T98: 146 | U98: 20 | V98: 323 | W98: 85
A99: 18 | B99: 12.6 | C99: 21.9 | D99: 0.75 | E99: 0.58 | G99: 0.016 | H99: 0.117 | I99: =[1]!AgePb76($H$99) -> 1910.892174 | J99: 0.371 | K99: =[1]!AgePb7U5(J99) -> 320.3943754 | L99: 0.023 | M99: 0.002 | N99: 0.013 | O99: 0.002 | P99: 1912 | Q99: 489 | R99: 320 | S99: 88 | T99: 146 | U99: 14 | V99: 267 | W99: 47
A100: 27 | B100: 4.1 | C100: 7.13 | D100: 0.2 | E100: 0.58 | G100: 0.039 | K100: =[1]!AgePb7U5(J100) -> 0 | L100: 0.023 | M100: 0.006 | N100: 0.013 | O100: 0.007 | T100: 148 | U100: 35 | V100: 262 | W100: 133
A101: DMP-508 (LA-ICP-MS) | K101: =[1]!AgePb7U5(J101) -> 0
A102: 27c | B102: 52.2 | C102: 49 | D102: 1.1 | E102: 1.07 | G102: 0.015 | H102: 0.067 | I102: =[1]!AgePb76($H$102) -> 837.7735816 | J102: 0.138 | K102: =[1]!AgePb7U5(J102) -> 131.2609389 | L102: 0.015 | M102: 0.001 | N102: 0.005 | O102: 0.001 | P102: 848 | Q102: 631 | R102: 131 | S102: 46 | T102: 95 | U102: 7 | V102: 99 | W102: 12
A103: 28r | B103: 40.9 | C103: 68 | D103: 1.45 | E103: 0.6 | G103: 0 | H103: 0.062 | I103: =[1]!AgePb76($H$103) -> 674.1086782 | J103: 0.113 | K103: =[1]!AgePb7U5(J103) -> 108.7059677 | L103: 0.013 | M103: 0.001 | N103: 0.01 | O103: 0.001 | P103: 664 | Q103: 549 | R103: 109 | S103: 35 | T103: 85 | U103: 6 | V103: 198 | W103: 21
A104: 16rs | B104: 19.7 | C104: 33.7 | D104: 0.7 | E104: 0.58 | G104: 0.008 | H104: 0.069 | I104: =[1]!AgePb76($H$104) -> 898.7401476 | J104: 0.151 | K104: =[1]!AgePb7U5(J104) -> 142.7944659 | L104: 0.016 | M104: 0.002 | N104: 0.004 | O104: 0.001 | P104: 893 | Q104: 790 | R104: 143 | S104: 63 | T104: 102 | U104: 11 | V104: 89 | W104: 29
A105: 15c | B105: 18.1 | C105: 26 | D105: 0.72 | E105: 0.7 | G105: 0 | H105: 0.108 | I105: =[1]!AgePb76($H$105) -> 1765.948446 | J105: 0.268 | K105: =[1]!AgePb7U5(J105) -> 241.0934213 | L105: 0.018 | M105: 0.003 | N105: 0.006 | O105: 0.002 | P105: 1771 | Q105: 893 | R105: 241 | S105: 111 | T105: 114 | U105: 17 | V105: 111 | W105: 38
A106: 16r | B106: 11.1 | C106: 19.4 | D106: 0.52 | E106: 0.57 | G106: 0.066 | H106: 0.075 | I106: =[1]!AgePb76($H$106) -> 1068.501534 | J106: 0.189 | K106: =[1]!AgePb7U5(J106) -> 175.7756183 | L106: 0.018 | M106: 0.003 | N106: 0.008 | O106: 0.003 | P106: 1065 | Q106: 1147 | R106: 176 | S106: 111 | T106: 117 | U106: 19 | V106: 160 | W106: 56
A107: 9 | B107: 4.32 | C107: 21.8 | D107: 1.05 | E107: 0.2 | G107: 0.035 | H107: 0.063 | I107: =[1]!AgePb76($H$107) -> 708.2307088 | J107: 0.161 | K107: =[1]!AgePb7U5(J107) -> 151.5781111 | L107: 0.019 | M107: 0.001 | N107: 0.005 | O107: 0.001 | P107: 697 | Q107: 441 | R107: 151 | S107: 36 | T107: 119 | U107: 7 | V107: 104 | W107: 15
A108: 31a | B108: 24.6 | C108: 36.2 | D108: 1.13 | E108: 0.68 | F108: 4.82 | G108: 0.012 | H108: 0.046 | I108: =[1]!AgePb76($H$108) -> -2.382636093 | J108: 0.12 | K108: =[1]!AgePb7U5(J108) -> 115.0720265 | L108: 0.019 | M108: 0.001 | N108: 0.006 | O108: 0.001 | Q108: 456 | R108: 115 | S108: 30 | T108: 120 | U108: 4 | V108: 126 | W108: 19
A109: 22 | B109: 41 | C109: 43.4 | D109: 1.18 | E109: 0.94 | G109: 0.015 | H109: 0.049 | I109: =[1]!AgePb76($H$109) -> 147.8309691 | J109: 0.133 | K109: =[1]!AgePb7U5(J109) -> 126.7898482 | L109: 0.02 | M109: 0.001 | N109: 0.006 | O109: 0.001 | P109: 127 | Q109: 256 | R109: 127 | S109: 18 | T109: 127 | U109: 4 | V109: 126 | W109: 11
A110: 13 | B110: 52.1 | C110: 49 | D110: 1.41 | E110: 1.06 | G110: 0 | H110: 0.06 | I110: =[1]!AgePb76($H$110) -> 603.5745894 | J110: 0.164 | K110: =[1]!AgePb7U5(J110) -> 154.1984559 | L110: 0.02 | M110: 0.002 | N110: 0.006 | O110: 0.001 | P110: 591 | Q110: 585 | R110: 154 | S110: 53 | T110: 127 | U110: 10 | V110: 116 | W110: 16
A111: 20 | B111: 35.3 | C111: 33.6 | D111: 0.99 | E111: 1.05 | G111: 0.013 | H111: 0.088 | I111: =[1]!AgePb76($H$111) -> 1382.484178 | J111: 0.245 | K111: =[1]!AgePb7U5(J111) -> 222.5065034 | L111: 0.02 | M111: 0.003 | N111: 0.005 | O111: 0.001 | P111: 1372 | Q111: 1012 | R111: 222 | S111: 114 | T111: 129 | U111: 18 | V111: 108 | W111: 28
A112: 26r | B112: 27.8 | C112: 31.1 | D112: 0.91 | E112: 0.89 | G112: 0.033 | H112: 0.063 | I112: =[1]!AgePb76($H$112) -> 708.2307088 | J112: 0.181 | K112: =[1]!AgePb7U5(J112) -> 168.9206856 | L112: 0.021 | M112: 0.002 | N112: 0.006 | O112: 0.001 | P112: 698 | Q112: 453 | R112: 169 | S112: 43 | T112: 133 | U112: 10 | V112: 115 | W112: 23
A113: 29s | B113: 43.3 | C113: 38.7 | D113: 1.26 | E113: 1.12 | G113: 0.014 | H113: 0.049 | I113: =[1]!AgePb76($H$113) -> 147.8309691 | J113: 0.143 | K113: =[1]!AgePb7U5(J113) -> 135.7124281 | L113: 0.021 | M113: 0.002 | N113: 0.008 | O113: 0.001 | P113: 147 | Q113: 691 | R113: 136 | S113: 61 | T113: 135 | U113: 12 | V113: 152 | W113: 20
A114: 15cs | B114: 34.6 | C114: 43.9 | D114: 0.63 | E114: 0.79 | G114: 0.002 | H114: 0.051 | I114: =[1]!AgePb76($H$114) -> 240.8298814 | J114: 0.163 | K114: =[1]!AgePb7U5(J114) -> 153.3257588 | L114: 0.023 | M114: 0.002 | P114: 251 | Q114: 694 | R114: 147 | S114: 11 | T114: 153 | U114: 53
A115: 22s | B115: 58.6 | C115: 54 | D115: 1.83 | E115: 1.09 | G115: 0.008 | H115: 0.062 | I115: =[1]!AgePb76($H$115) -> 674.1086782 | J115: 0.199 | K115: =[1]!AgePb7U5(J115) -> 184.2797137 | L115: 0.023 | M115: 0.001 | N115: 0.007 | O115: 0.001 | P115: 687 | Q115: 449 | R115: 184 | S115: 45 | T115: 147 | U115: 9 | V115: 137 | W115: 14
A116: 30 | B116: 39.3 | C116: 46.8 | D116: 1.49 | E116: 0.84 | G116: 0.004 | H116: 0.053 | I116: =[1]!AgePb76($H$116) -> 328.7967883 | J116: 0.17 | K116: =[1]!AgePb7U5(J116) -> 159.4189458 | L116: 0.023 | M116: 0.002 | N116: 0.007 | O116: 0.001 | P116: 310 | Q116: 530 | R116: 159 | S116: 53 | T116: 149 | U116: 11 | V116: 132 | W116: 20
A117: 12 | B117: 24.8 | C117: 37.3 | D117: 1.2 | E117: 0.66 | G117: 0.023 | H117: 0.054 | I117: =[1]!AgePb76($H$117) -> 371.049572 | J117: 0.174 | K117: =[1]!AgePb7U5(J117) -> 162.8844204 | L117: 0.024 | M117: 0.002 | N117: 0.008 | O117: 0.001 | P117: 353 | Q117: 669 | R117: 163 | S117: 67 | T117: 150 | U117: 13 | V117: 170 | W117: 28
A118: 25ca | B118: 44.4 | C118: 41.1 | D118: 2.21 | E118: 1.08 | F118: 1.97 | G118: 0.002 | H118: 0.077 | I118: =[1]!AgePb76($H$118) -> 1121.189673 | J118: 0.239 | K118: =[1]!AgePb7U5(J118) -> 217.6012618 | L118: 0.022 | M118: 0.001 | N118: 0.008 | O118: 0.001 | P118: 1125 | Q118: 141 | R118: 218 | S118: 18 | T118: 143 | U118: 4 | V118: 154 | W118: 11

Sheet Exc_08
A1: Sample | B1: Pb206/Pb204 | C1: Pb207/Pb204 | D1: Pb207/Pb206 | E1: Pb207/Pb206 | F1: TABLE 3
A2: Number | B2: Ratio | C2: Ratio | D2: Ratio | E2: Age
A3: TL-3 | B3: 19.09 | C3: 15.659 | D3: =(C3/B3) -> 0.8202723939 | E3: =[1]!AgePb76($D$3) -> 4957.349556
A4: TL-8 | D4: 0
A5: Rhyolites | B5: 19.104 | C5: 15.668 | D5: =(C5/B5) -> 0.8201423786 | E5: =[1]!AgePb76($D$5) -> 4957.124149
A6: 74-77 | B6: 15.658 | C6: 38.93 | D6: 2.486269 | E6: =[1]!AgePb76($D$6) -> 6488.877883
A7: A98-3 | D7: 0
A8: Imp-1F | B8: 19.154 | C8: 15.701 | D8: 0.8197243396 | E8: =[1]!AgePb76($D$8) -> 4956.39914
A9: Lower basalts | B9: 18.874 | C9: 15.63 | D9: 0.8281233443 | E9: =[1]!AgePb76($D$9) -> 4970.890753
A10: 84-4 | B10: 19.041 | C10: 15.611 | D10: 0.8198624022 | E10: =[1]!AgePb76($D$10) -> 4956.638627
A11: Ttg -1 | D11: 0
A12: Salmon Creek | B12: 19.01 | C12: 15.613 | D12: 0.8213045765 | E12: =[1]!AgePb76($D$12) -> 4959.137696
A13: SCV 14 | B13: 18.816 | C13: 15.572 | D13: 0.8275935374 | E13: =[1]!AgePb76($D$13) -> 4969.981252
A14: SCV 16 | D14: 0
A15: SCV 17 | B15: 18.917 | C15: 15.604 | D15: 0.8248665222 | E15: =[1]!AgePb76($D$15) -> 4965.29007
A16: SCV 19 | B16: 18.88 | C16: 15.594 | D16: 0.8259533898 | E16: =[1]!AgePb76($D$16) -> 4967.161741
A17: SCV 20 | B17: 18.863 | C17: 15.586 | D17: 0.8262736574 | E17: =[1]!AgePb76($D$17) -> 4967.712768
A18: SCV 22 | B18: 18.819 | C18: 15.597 | D18: 0.8287900526 | E18: =[1]!AgePb76($D$18) -> 4972.034388
A19: SCV 24 | B19: 18.831 | C19: 15.576 | D19: 0.8271467261 | E19: =[1]!AgePb76($D$19) -> 4969.213746
A20: SCV 27 | B20: 18.865 | C20: 15.601 | D20: 0.8269811821 | E20: =[1]!AgePb76($D$20) -> 4968.929273
A21: SCV 28 | B21: 18.892 | C21: 15.616 | D21: 0.826593267 | E21: =[1]!AgePb76($D$21) -> 4968.262435
A22: SCV 33 | B22: 18.896 | C22: 15.595 | D22: 0.8253069433 | E22: =[1]!AgePb76($D$22) -> 4966.048826
A23: SCV 35 | B23: 18.869 | C23: 15.596 | D23: 0.8265408872 | E23: =[1]!AgePb76($D$23) -> 4968.172368
A24: SCV 38 | B24: 18.872 | C24: 15.582 | D24: 0.8256676558 | E24: =[1]!AgePb76($D$24) -> 4966.669939
A25: SCV 47 | B25: 18.855 | C25: 15.604 | D25: 0.8275788915 | E25: =[1]!AgePb76($D$25) -> 4969.956101
A26: SCV 53 | B26: 18.839 | C26: 15.572 | D26: 0.826583152 | E26: =[1]!AgePb76($D$26) -> 4968.245043
A27: SCV 54 | B27: 18.901 | C27: 15.592 | D27: 0.8249298979 | E27: =[1]!AgePb76($D$27) -> 4965.39928
A28: SCV 58 | B28: 18.908 | C28: 15.624 | D28: 0.8263169029 | E28: =[1]!AgePb76($D$28) -> 4967.787155
A29: Challis volcanics | B29: 18.865 | C29: 15.593 | D29: 0.8265571164 | E29: =[1]!AgePb76($D$29) -> 4968.200275
A30: L71-2S | D30: 0
A31: L72-1S | D31: 0
A32: L73-1S | B32: 19.121 | C32: 15.675 | D32: 0.8197793002 | E32: =[1]!AgePb76($D$32) -> 4956.494481
A33: TM 71-2S | B33: 18.869 | C33: 15.671 | D33: 0.8305156606 | E33: =[1]!AgePb76($D$33) -> 4974.989869
A34: TCV-4 | B34: 18.403 | C34: 15.606 | D34: 0.8480139108 | E34: =[1]!AgePb76($D$34) -> 5004.596012
A35: Challis intrusive | B35: 17.657 | C35: 15.577 | D35: 0.8821996942 | E35: =[1]!AgePb76($D$35) -> 5060.609281
A36: L70-14 | B36: 17.633 | C36: 15.6 | D36: 0.8847048148 | E36: =[1]!AgePb76($D$36) -> 5064.622945
A37: Idaho batholith | D37: 0
A38: 84-13 | B38: 19.021 | C38: 15.617 | D38: 0.8210399033 | E38: =[1]!AgePb76($D$38) -> 4958.679407
A39: 84-14 | D39: 0
A40: LC72-1F | B40: 19.224 | C40: 15.658 | D40: 0.814502705 | E40: =[1]!AgePb76($D$40) -> 4947.309944
A41: LC72-4F | B41: 19.567 | C41: 15.749 | D41: 0.8048755558 | E41: =[1]!AgePb76($D$41) -> 4930.38853
A42: L82-9 | B42: 19.349 | C42: 15.695 | D42: 0.8111530312 | E42: =[1]!AgePb76($D$42) -> 4941.446548
B43: - | C43: - | E43: =COUNT(E1:E42) -> 32

Sheet Exc_09
B1: Pb 206/204 | C1: Pb 207/204 | D1: Pb207/Pb206 | E1: Pb207/Pb206 | F1: Table 1
B2: Ratio | C2: Ratio | D2: Ratio | E2: Age
B3: 9.307 | C3: 10.294 | D3: =(C3/B3) -> 1.10604921 | E3: =[1]!AgePb76($D$3) -> 5378.605627
B4: 10.37 | C4: 12.33 | D4: =(C4/B4) -> 1.18900675 | E4: =[1]!AgePb76($D$4) -> 5479.469755
B5: 14.01 | C5: 14.37 | D5: 1.025695931 | E5: =[1]!AgePb76($D$5) -> 5272.997584
B7: 14.01 | C7: 14.37 | D7: 1.025695931 | E7: =[1]!AgePb76($D$7) -> 5272.997584
B8: 10.7 | C8: 12.85 | D8: 1.200934579 | E8: =[1]!AgePb76($D$8) -> 5493.360318
B9: 14.7 | C9: 14.79 | D9: 1.006122449 | E9: =[1]!AgePb76($D$9) -> 5245.947718
B10: 16.14 | C10: 15.38 | D10: 0.9529120198 | E10: =[1]!AgePb76($D$10) -> 5169.50363
B11: 11.45 | C11: 13.66 | D11: 1.1930131 | E11: =[1]!AgePb76($D$11) -> 5484.151641
B12: 18.65 | C12: 15.7 | D12: 0.8418230563 | E12: =[1]!AgePb76($D$12) -> 4994.196217
B13: 17.58 | C13: 15.4 | D13: 0.8759954494 | E13: =[1]!AgePb76($D$13) -> 5050.616656
B14: 11.86 | C14: 13.93 | D14: 1.174536256 | E14: =[1]!AgePb76($D$14) -> 5462.419955
B15: 19.9 | C15: 15.65 | D15: 0.7864321608 | E15: =[1]!AgePb76($D$15) -> 4897.361017
B16: 21.15 | C16: 15.92 | D16: 0.7527186761 | E16: =[1]!AgePb76($D$16) -> 4834.799635

Sheet Exc_10
A1: Sample | B1: 206/204Pb | C1: 207/204Pb | D1: 207/206Pb | E1: 207/206Pb | F1: 238U/204Pb | G1: 206Pb/238U | H1: 206Pb/238U | I1: Table 1
A2: Name | B2: Ratio | C2: Ratio | D2: Ratio | E2: Age | F2: Ratio | G2: Ratio | H2: Age
A3: GS-5
A4: Leachate 1 | B4: 18.71 | C4: 15.67 | D4: =(C4/B4) -> 0.8375200428 | E4: =[1]!AgePb76($D$4) -> 4986.919761 | F4: 8.37 | G4: =(B4/F4) -> 2.235364397 | H4: =[1]!AgePb6U8(G4) -> 7569.002827
A5: Leachate 2 | B5: 18.68 | C5: 15.67 | D5: =(C5/B5) -> 0.8388650964 | E5: =[1]!AgePb76($D$5) -> 4989.198525 | F5: 6.55 | G5: =(B5/F5) -> 2.851908397 | H5: =[1]!AgePb6U8(G5) -> 8693.432477
A6: Leachate 3 | B6: 18.73 | C6: 15.68 | D6: 0.8371596369 | E6: =[1]!AgePb76($D$6) -> 4986.308508 | F6: 7.25 | G6: 2.583448276 | H6: =[1]!AgePb6U8(G6) -> 8227.723077
A7: Leachate 4 | B7: 19.46 | C7: 15.71 | D7: 0.8072970195 | E7: =[1]!AgePb76($D$7) -> 4934.664866 | F7: 25.2 | G7: 0.7722222222 | H7: =[1]!AgePb6U8(G7) -> 3688.858997
A8: Bulk | B8: 19.05 | C8: 15.71 | D8: 0.824671916 | E8: =[1]!AgePb76($D$8) -> 4964.954667 | F8: 13.7 | G8: 1.390510949 | H8: =[1]!AgePb6U8(G8) -> 5618.095918
A9: Whole rock | B9: 18.62 | C9: 15.69 | D9: 0.8426423201 | E9: =[1]!AgePb76($D$9) -> 4995.577125 | F9: 5.28 | G9: 3.526515152 | H9: =[1]!AgePb6U8(G9) -> 9733.778316
A10: Leachate 1 | B10: 18.35 | C10: 15.65 | D10: 0.8528610354 | E10: =[1]!AgePb76($D$10) -> 5012.682393 | F10: 1.25 | G10: 14.68 | H10: =[1]!AgePb6U8(G10) -> 17743.02024
A11: Leachate 2 | B11: 18.47 | C11: 15.65 | D11: 0.8473199783 | E11: =[1]!AgePb76($D$11) -> 5003.43432 | F11: 4.55 | G11: 4.059340659 | H11: =[1]!AgePb6U8(G11) -> 10451.15984
A12: Leachate 3 | B12: 18.86 | C12: 15.69 | D12: 0.8319194062 | E12: =[1]!AgePb76($D$12) -> 4977.38928 | F12: 13.4 | G12: 1.407462687 | H12: =[1]!AgePb6U8(G12) -> 5663.647805
A13: Leachate 4 | B13: 32.05 | C13: 16.39 | D13: 0.5113884555 | E13: =[1]!AgePb76($D$13) -> 4274.375598 | F13: 304 | G13: 0.1054276316 | H13: =[1]!AgePb6U8(G13) -> 646.1386431
A14: Bulk | B14: 19.36 | C14: 15.73 | D14: 0.8125 | E14: =[1]!AgePb76($D$14) -> 4943.807423 | F14: 18.1 | G14: 1.06961326 | H14: =[1]!AgePb6U8(G14) -> 4688.875157
A15: Whole rock | B15: 18.45 | C15: 15.66 | D15: 0.8487804878 | E15: =[1]!AgePb76($D$15) -> 5005.878143 | F15: 5.91 | G15: 3.121827411 | H15: =[1]!AgePb6U8(G15) -> 9130.034562
A16: Leachate 1 | B16: 21.2 | C16: 15.8 | D16: 0.7452830189 | E16: =[1]!AgePb76($D$16) -> 4820.599479 | F16: 59.3 | G16: 0.3575042159 | H16: =[1]!AgePb6U8(G16) -> 1970.332818
A17: Leachate 2 | B17: 25.18 | C17: 16 | D17: 0.6354249404 | E17: =[1]!AgePb76($D$17) -> 4591.169068 | F17: 138 | G17: 0.1824637681 | H17: =[1]!AgePb6U8(G17) -> 1080.420312
A18: Leachate 3 | B18: 32.76 | C18: 16.37 | D18: 0.4996947497 | E18: =[1]!AgePb76($D$18) -> 4240.30901 | F18: 318 | G18: 0.1030188679 | H18: =[1]!AgePb6U8(G18) -> 632.0763651
A19: Leachate 4 | B19: 35.75 | C19: 16.56 | D19: 0.4632167832 | E19: =[1]!AgePb76($D$19) -> 4128.209791 | F19: 389 | G19: 0.09190231362 | H19: =[1]!AgePb6U8(G19) -> 566.777869
A20: Residue | B20: 32.67 | C20: 16.61 | D20: 0.5084175084 | E20: =[1]!AgePb76($D$20) -> 4265.801029 | F20: 271 | G20: 0.1205535055 | H20: =[1]!AgePb6U8(G20) -> 733.748684
A21: Bulk | B21: 26.44 | C21: 16.17 | D21: 0.6115733737 | E21: =[1]!AgePb76($D$21) -> 4535.737715 | F21: 143 | G21: 0.1848951049 | H21: =[1]!AgePb6U8(G21) -> 1093.661574
A22: Whole rock | B22: 18.33 | C22: 15.65 | D22: 0.8537915985 | E22: =[1]!AgePb76($D$22) -> 5014.229252 | F22: 4.48 | G22: 4.091517857 | H22: =[1]!AgePb6U8(G22) -> 10492.02894
A23: Leachate 1 | B23: 20.38 | C23: 15.76 | D23: 0.7733071639 | E23: =[1]!AgePb76($D$23) -> 4873.351218 | F23: 44.2 | G23: 0.4610859729 | H23: =[1]!AgePb6U8(G23) -> 2444.351176
A24: Leachate 2 | B24: 24.03 | C24: 15.96 | D24: 0.6641697878 | E24: =[1]!AgePb76($D$24) -> 4655.079856 | F24: 133 | G24: 0.1806766917 | H24: =[1]!AgePb6U8(G24) -> 1070.670373
A25: Leachate 3 | B25: 30.76 | C25: 16.19 | D25: 0.5263328999 | E25: =[1]!AgePb76($D$25) -> 4316.705583 | F25: 271 | G25: 0.1135055351 | H25: =[1]!AgePb6U8(G25) -> 693.0744791
A26: Leachate 4 | B26: 20.75 | C26: 15.79 | D26: 0.7609638554 | E26: =[1]!AgePb76($D$26) -> 4850.371932 | F26: 60.3 | G26: 0.3441127695 | H26: =[1]!AgePb6U8(G26) -> 1906.424783
A27: Residue | B27: 28.38 | C27: 16.29 | D27: 0.5739957717 | E27: =[1]!AgePb76($D$27) -> 4443.513346 | F27: 195 | G27: 0.1455384615 | H27: =[1]!AgePb6U8(G27) -> 875.9052284
A28: Bulk | B28: 25.26 | C28: 16.1 | D28: 0.6373713381 | E28: =[1]!AgePb76($D$28) -> 4595.593609 | F28: 137 | G28: 0.184379562 | H28: =[1]!AgePb6U8(G28) -> 1090.856156
A29: Whole rock | B29: 18.77 | C29: 15.68 | D29: 0.8353755994 | E29: =[1]!AgePb76($D$29) -> 4983.278632 | F29: 9.67 | G29: 1.941054809 | H29: =[1]!AgePb6U8(G29) -> 6954.187239
A30: Leachate 1 | B30: 25.46 | C30: 16.15 | D30: 0.6343283582 | E30: =[1]!AgePb76($D$30) -> 4588.669917 | F30: 127 | G30: 0.2004724409 | H30: =[1]!AgePb6U8(G30) -> 1177.857728
A31: Leachate 2 | B31: 31.83 | C31: 16.13 | D31: 0.506754634 | E31: =[1]!AgePb76($D$31) -> 4260.978037 | F31: 367 | G31: 0.08673024523 | H31: =[1]!AgePb6U8(G31) -> 536.1702684
A32: Leachate 3 | B32: 35.98 | C32: 16.77 | D32: 0.4660922735 | E32: =[1]!AgePb76($D$32) -> 4137.388811 | F32: 409 | G32: 0.08797066015 | H32: =[1]!AgePb6U8(G32) -> 543.524134
A33: Leachate 4 | B33: 40.15 | C33: 16.82 | D33: 0.4189290162 | E33: =[1]!AgePb76($D$33) -> 3978.446751 | F33: 492 | G33: 0.08160569106 | H33: =[1]!AgePb6U8(G33) -> 505.699842
A34: Bulk | B34: 34.87 | C34: 16.68 | D34: 0.4783481503 | E34: =[1]!AgePb76($D$34) -> 4175.833397 | F34: 355 | G34: 0.09822535211 | H34: =[1]!AgePb6U8(G34) -> 604.0003916
A35: Whole rock | B35: 19.43 | C35: 15.85 | D35: 0.815748842 | E35: =[1]!AgePb76($D$35) -> 4949.484688 | F35: 12.7 | G35: 1.52992126 | H35: =[1]!AgePb6U8(G35) -> 5983.485445

Sheet Exc_11
C1: 206/204Pb | D1: 207/204Pb | E1: 207/206Pb | F1: 207/206Pb | G1: TABLE 2
C2: Ratio | D2: Ratio | E2: Ratio | F2: Age
A3: 97998 | B3: HCl2 | C3: 25.24 | D3: 16.899 | E3: =(D3/C3) -> 0.6695324881 | F3: =[1]!AgePb76($E$3) -> 4666.674774
A4: 97999 | B4: HC13 | C4: 26.307 | D4: 17.11 | E4: =(D4/C4) -> 0.6503972327 | F4: =[1]!AgePb76($E$4) -> 4624.836087
A5: 98000 | B5: HC14 | C5: 23.204 | D5: 16.537 | E5: 0.7126788485 | F5: =[1]!AgePb76($E$5) -> 4756.496627
A6: 98001 | B6: HC15 | C6: 23.384 | D6: 16.584 | E6: 0.7092028738 | F6: =[1]!AgePb76($E$6) -> 4749.478493
A7: 98002 | B7: HC16 | C7: 26.488 | D7: 17.152 | E7: 0.647538508 | F7: =[1]!AgePb76($E$7) -> 4618.472502
A8: 98003 | B8: HC17 | C8: 26.626 | D8: 17.196 | E8: 0.6458348982 | F8: =[1]!AgePb76($E$8) -> 4614.665893
A9: 98004 | B9: HC18 | C9: 26.832 | D9: 17.202 | E9: 0.6411001789 | F9: =[1]!AgePb76($E$9) -> 4604.029662
A10: 98005 | B10: HC19 | C10: 26.336 | D10: 17.094 | E10: 0.6490735115 | F10: =[1]!AgePb76($E$10) -> 4621.893189
B16: 206/204Pb | C16: 207/204Pb | D16: 207/206Pb | E16: 207/206Pb | F16: TABLE 3
B17: Ratio | C17: Ratio | D17: Ratio | E17: Age
B18: 18.045 | C18: 15.646 | D18: =(C18/B18) -> 0.8670545858 | E18: =[1]!AgePb76($D$18) -> 5036.083525
B19: 46.26 | C19: 20.641 | D19: =(C19/B19) -> 0.4461954172 | E19: =[1]!AgePb76($D$19) -> 4072.573743
B20: 42.591 | C20: 20.259 | D20: 0.4756638726 | E20: =[1]!AgePb76($D$20) -> 4167.505474
B21: 16.398 | C21: 15.389 | D21: 0.9384681059 | E21: =[1]!AgePb76($D$21) -> 5147.972129
B22: 18.688 | C22: 15.803 | D22: 0.8456228596 | E22: =[1]!AgePb76($D$22) -> 5000.588959
B23: 58.293 | C23: 22.713 | D23: 0.3896351191 | E23: =[1]!AgePb76($D$23) -> 3869.555352
B24: 55.964 | C24: 22.366 | D24: 0.3996497749 | E24: =[1]!AgePb76($D$24) -> 3907.761345
B25: 17.101 | C25: 15.547 | D25: 0.9091281212 | E25: =[1]!AgePb76($D$25) -> 5103.133467
B26: 18.632 | C26: 15.723 | D26: 0.84387076 | E26: =[1]!AgePb76($D$26) -> 4997.645048
B27: 46.071 | C27: 20.684 | D27: 0.4489592151 | E27: =[1]!AgePb76($D$27) -> 4081.762979
B28: 47.943 | C28: 21.087 | D28: 0.4398348038 | E28: =[1]!AgePb76($D$28) -> 4051.18799
B29: 16.218 | C29: 15.253 | D29: 0.9404982119 | E29: =[1]!AgePb76($D$29) -> 5151.019512
B31: 16.337 | C31: 15.383 | D31: 0.9416049458 | E31: =[1]!AgePb76($D$31) -> 5152.677892
B32: 72.342 | C32: 25.673 | D32: 0.3548837466 | E32: =[1]!AgePb76($D$32) -> 3728.094249
B33: 50.152 | C33: 21.742 | D33: 0.4335220928 | E33: =[1]!AgePb76($D$33) -> 4029.627484
B34: 15.55 | C34: 15.25 | D34: 0.9807073955 | E34: =[1]!AgePb76($D$34) -> 5209.983007
B35: 14.89 | C35: 15.121 | D35: 1.015513768 | E35: =[1]!AgePb76($D$35) -> 5258.994928
B36: 32.983 | C36: 18.477 | D36: 0.5601976776 | E36: =[1]!AgePb76($D$36) -> 4408.007031
B37: 29.19 | C37: 17.788 | D37: 0.6093867763 | E37: =[1]!AgePb76($D$37) -> 4530.54028
B38: 14.453 | C38: 14.991 | D38: 1.037224106 | E38: =[1]!AgePb76($D$38) -> 5288.67515
B39: 15.613 | C39: 15.207 | D39: 0.973996029 | E39: =[1]!AgePb76($D$39) -> 5200.321191
B40: 32.814 | C40: 18.405 | D40: 0.5608886451 | E40: =[1]!AgePb76($D$40) -> 4409.807394
B41: 31.614 | C41: 18.19 | D41: 0.5753779971 | E41: =[1]!AgePb76($D$41) -> 4447.019425
B42: 15.115 | C42: 15.139 | D42: 1.001587827 | E42: =[1]!AgePb76($D$42) -> 5239.60169
B43: 19.996 | C43: 16.035 | D43: 0.8019103821 | E43: =[1]!AgePb76($D$43) -> 4925.133314
B44: 73.675 | C44: 25.993 | D44: 0.3528062436 | E44: =[1]!AgePb76($D$44) -> 3719.159529
B45: 66.615 | C45: 24.968 | D45: 0.3748104781 | E45: =[1]!AgePb76($D$45) -> 3810.976188
B46: 18.262 | C46: 15.765 | D46: 0.8632679882 | E46: =[1]!AgePb76($D$46) -> 5029.8805
D49: 206/204Pb | E49: 207/204Pb | F49: 207/206Pb | G49: 207/206Pb | H49: TABLE 4
D50: Ratio | E50: Ratio | F50: Ratio | G50: Age
B51: Kellys Rock:
C52: HC/4-KF | D52: 18.045 | E52: 15.646 | F52: =(E52/D52) -> 0.8670545858 | G52: =[1]!AgePb76($F$52) -> 5036.083525
C53: HC14-AWKF | D53: 16.398 | E53: 15.389 | F53: =(E53/D53) -> 0.9384681059 | G53: =[1]!AgePb76($F$53) -> 5147.972129
C54: HC16-KF | D54: 18.688 | E54: 15.803 | F54: 0.8456228596 | G54: =[1]!AgePb76($F$54) -> 5000.588959
C55: HC16-AWKF | D55: 17.101 | E55: 15.547 | F55: 0.9091281212 | G55: =[1]!AgePb76($F$55) -> 5103.133467
C56: HC18-KF | D56: 18.632 | E56: 15.723 | F56: 0.84387076 | G56: =[1]!AgePb76($F$56) -> 4997.645048
C57: HC / 8-AWKF | D57: 16.218 | E57: 15.253 | F57: 0.9404982119 | G57: =[1]!AgePb76($F$57) -> 5151.019512
B58: Milky Soak:
C59: HC50-KF | D59: 16.337 | E59: 15.383 | F59: 0.9416049458 | G59: =[1]!AgePb76($F$59) -> 5152.677892
C60: HC50-AWKF | D60: 15.55 | E60: 15.25 | F60: 0.9807073955 | G60: =[1]!AgePb76($F$60) -> 5209.983007
C61: HC52-KF | D61: 14.89 | E61: 15.121 | F61: 1.015513768 | G61: =[1]!AgePb76($F$61) -> 5258.994928
C62: HC52-AWKF | D62: 14.453 | E62: 14.991 | F62: 1.037224106 | G62: =[1]!AgePb76($F$62) -> 5288.67515
C63: HC54-KF | D63: 15.613 | E63: 15.207 | F63: 0.973996029 | G63: =[1]!AgePb76($F$63) -> 5200.321191
C64: HC54-AWKF | D64: 15.115 | E64: 15.139 | F64: 1.001587827 | G64: =[1]!AgePb76($F$64) -> 5239.60169
C65: HC56-KF | D65: 19.996 | E65: 16.035 | F65: 0.8019103821 | G65: =[1]!AgePb76($F$65) -> 4925.133314
C66: HC56-AWKF | D66: 18.262 | E66: 15.765 | F66: 0.8632679882 | G66: =[1]!AgePb76($F$66) -> 5029.8805
E70: 206/204Pb | F70: 207/204Pb | G70: 207/206Pb | H70: 207/206Pb | I70: TABLE 6
B71: UWA No. | C71: Field No. | D71: Sample | E71: Ratio | F71: Ratio | G71: Ratio | H71: Age
A72: Kellys Rock:
B73: 98000 | C73: HC14 | D73: WRW/ | E73: 48.545 | F73: 20.992 | G73: =(F73/E73) -> 0.4324235246 | H73: =[1]!AgePb76($G$73) -> 4025.840473
D74: WRW2 | E74: 52.559 | F74: 21.692 | G74: 0.4127171369 | H74: =[1]!AgePb76($G$74) -> 3956.066754
D75: AWWR | E75: 17.702 | F75: 15.613 | G75: 0.8819907355 | H75: =[1]!AgePb76($G$75) -> 5060.273945
B76: 98002 | C76: HC16 | D76: WRW/ | E76: 51.749 | F76: 21.532 | G76: 0.416085335 | H76: =[1]!AgePb76($G$76) -> 3968.246927
D77: WRW2 | E77: 61.365 | F77: 23.282 | G77: 0.3794019392 | H77: =[1]!AgePb76($G$77) -> 3829.387178
D78: AWWR | E78: 18.354 | F78: 15.656 | G78: 0.8530020704 | H78: =[1]!AgePb76($G$78) -> 5012.916948
B79: 98004 | C79: HC18 | D79: WRW/ | E79: 44.961 | F79: 20.462 | G79: 0.4551055359 | H79: =[1]!AgePb76($G$79) -> 4101.97979
D80: WRW2 | E80: 45.926 | F80: 20.554 | G80: 0.4475460523 | H80: =[1]!AgePb76($G$80) -> 4077.072131
D81: AWWR | E81: 17.074 | F81: 15.475 | G81: 0.9063488345 | H81: =[1]!AgePb76($G$81) -> 5098.806765
A82: Milky Soak:
B83: 87950 | C83: HC50 | D83: WRW/ | E83: 58.953 | F83: 23.176 | G83: 0.3931267281 | H83: =[1]!AgePb76($G$83) -> 3882.996809
D84: WRW2 | E84: 56.558 | F84: 22.738 | G84: 0.4020297747 | H84: =[1]!AgePb76($G$84) -> 3916.686916
D85: AWWR | E85: 15.046 | F85: 15.103 | G85: 1.003788382 | H85: =[1]!AgePb76($G$85) -> 5242.685067
B86: 87952 | C86: HC52 | D86: WRWI | E86: 31.595 | F86: 18.181 | G86: 0.5754391518 | H86: =[1]!AgePb76($G$86) -> 4447.174337
D87: WRW2 | E87: 30.897 | F87: 18.038 | G87: 0.583810726 | H87: =[1]!AgePb76($G$87) -> 4468.214914
D88: AWWR | E88: 14.769 | F88: 15.081 | G88: 1.02112533 | H88: =[1]!AgePb76($G$88) -> 5266.730276
B89: 87954 | C89: HC54 | D89: WRW/ | E89: 30.875 | F89: 18.002 | G89: 0.5830607287 | H89: =[1]!AgePb76($G$89) -> 4466.343205
D90: WRW2 | E90: 24.527 | F90: 16.849 | G90: 0.6869572308 | H90: =[1]!AgePb76($G$90) -> 4703.674551
D91: AWWR | E91: 14.826 | F91: 15.025 | G91: 1.013422366 | H91: =[1]!AgePb76($G$91) -> 5256.100444
B92: 87956 | C92: HC56 | D92: WRW/ | E92: 51.863 | F92: 21.927 | G92: 0.4227869579 | H92: =[1]!AgePb76($G$92) -> 3992.164329
D93: WRW2 | E93: 46.112 | F93: 20.896 | G93: 0.4531575295 | H93: =[1]!AgePb76($G$93) -> 4095.604623
D94: AWWR | E94: 18.337 | F94: 15.731 | G94: 0.8578829689 | H94: =[1]!AgePb76($G$94) -> 5021.00909

Sheet Exc_12
A1: Sample | B1: Rock | C1: 207Pb/204Pb | D1: 207Pb/204Pb | E1: 206Pb/204Pb | F1: 206Pb/204Pb | G1: 207/206Pb | H1: 207/206Pb | I1: 207Pb/204Pb | J1: 206Pb/204Pb | K1: 207/206Pb | L1: 207/206Pb | M1: TABLE 1
C2: Ratio | D2: Error | E2: Ratio | F2: Error | G2: Ratio | H2: Age | I2: Ratio | J2: Ratio | K2: Ratio | L2: Age
A3: L2 | B3: Olivine-nephelinite | C3: 15.624 | D3: 0.012 | E3: 19.061 | F3: 0.014 | G3: =(C3/E3) -> 0.8196841719 | H3: =[1]!AgePb76($G$3) -> 4956.329456 | I3: 15.619 | J3: 18.949 | K3: =(I3/J3) -> 0.8242651327 | L3: =[1]!AgePb76($K$3) -> 4964.253304
C4: 15.59 | D4: 0.013 | E4: 19.146 | F4: 0.012 | G4: =(C4/E4) -> 0.8142692991 | H4: =[1]!AgePb76($G$4) -> 4946.902214 | K4: 0
A5: 334 | B5: Olivine-melilitite | C5: 15.629 | D5: 0.011 | E5: 19.255 | F5: 0.011 | G5: 0.8116852766 | H5: =[1]!AgePb76($G$5) -> 4942.379929 | K5: 0
C6: 15.632 | D6: 0.011 | E6: 19.09 | F6: 0.01 | G6: 0.8188580409 | H6: =[1]!AgePb76($G$6) -> 4954.895458 | I6: 15.627 | J6: 18.983 | K6: =(I6/J6) -> 0.8232102407 | L6: =[1]!AgePb76($K$6) -> 4962.432777
A7: LI | B7: Limburgite | C7: 15.622 | D7: 0.01 | E7: 19.063 | F7: 0.008 | G7: 0.8194932592 | H7: =[1]!AgePb76($G$7) -> 4955.998207 | I7: 15.618 | J7: 18.98 | K7: 0.8228661749 | L7: =[1]!AgePb76($K$7) -> 4961.838454
A8: 426 | B8: Carbonatite | C8: 15.633 | D8: 0.018 | E8: 19.33 | F8: 0.013 | G8: 0.8087428867 | H8: =[1]!AgePb76($G$8) -> 4937.211785 | I8: 15.629 | J8: 19.245 | K8: 0.8121070408 | L8: =[1]!AgePb76($K$8) -> 4943.119101
A9: MF-Ca | B9: Carbonatite | C9: 15.641 | D9: 0.011 | E9: 19.693 | F9: 0.017 | G9: 0.7942416087 | H9: =[1]!AgePb76($G$9) -> 4911.445374 | I9: 15.64 | J9: 19.662 | K9: 0.7954429865 | L9: =[1]!AgePb76($K$9) -> 4913.598973
C10: 15.618 | D10: 0.013 | E10: 19.673 | F10: 0.014 | G10: 0.793879937 | H10: =[1]!AgePb76($G$10) -> 4910.79636 | K10: 0
A11: 229 | B11: Bergalite | C11: 15.629 | D11: 0.014 | E11: 19.707 | F11: 0.013 | G11: 0.7930684528 | H11: =[1]!AgePb76($G$11) -> 4909.339018 | I11: 15.623 | J11: 19.57 | K11: 0.7983137455 | L11: =[1]!AgePb76($K$11) -> 4918.731128
A12: 2171 | B12: Bergalite | C12: 15.664 | D12: 0.012 | E12: 19.58 | F12: 0.017 | G12: 0.8 | H12: =[1]!AgePb76($G$12) -> 4921.736555 | I12: 15.659 | J12: 19.467 | K12: 0.8043869112 | L12: =[1]!AgePb76($K$12) -> 4929.523918
C13: 15.661 | D13: 0.013 | E13: 19.5841 | F13: 0.018 | G13: 0.7996793317 | H13: =[1]!AgePb76($G$13) -> 4921.165545 | K13: 0
A14: 166 | B14: Tinguaite | C14: 15.654 | D14: 0.01 | E14: 19.642 | F14: 0.008 | G14: 0.7969656858 | H14: =[1]!AgePb76($G$14) -> 4916.323605 | I14: 15.65 | J14: 19.558 | K14: 0.8001840679 | L14: =[1]!AgePb76($K$14) -> 4922.064213
C15: 15.644 | D15: 0.012 | E15: 19.614 | F15: 10.012 | G15: 0.7975935556 | H15: =[1]!AgePb76($G$15) -> 4917.445467 | I15: 15.641 | J15: 19.542 | K15: 0.8003786716 | L15: =[1]!AgePb76($K$15) -> 4922.410538
A16: 396 | B16: Hauynophyre | C16: 15.616 | D16: 0.016 | E16: 19.644 | F16: 0.022 | G16: 0.794950112 | H16: =[1]!AgePb76($G$16) -> 4912.715861 | K16: 0
C17: 15.646 | D17: 0.01 | E17: 19.611 | F17: 0.009 | G17: 0.7978175514 | H17: =[1]!AgePb76($G$17) -> 4917.84547 | I17: 15.639 | J17: 19.454 | K17: 0.8038963709 | L17: =[1]!AgePb76($K$17) -> 4928.655389
A18: 156 | B18: Phonolite | C18: 15.612 | D18: 0.01 | E18: 19.128 | F18: 0.008 | G18: 0.8161856964 | H18: =[1]!AgePb76($G$18) -> 4950.246245 | I18: 15.611 | J18: 19.097 | K18: 0.8174582395 | L18: =[1]!AgePb76($K$18) -> 4952.462168
A19: 515 | B19: Phonolite | C19: 15.633 | D19: 0.01 | E19: 19.425 | F19: 0.009 | G19: 0.8047876448 | H19: =[1]!AgePb76($G$19) -> 4930.233021 | K19: 0
C20: 15.639 | D20: 0.01 | E20: 19.412 | F20: 0.009 | G20: 0.8056356893 | H20: =[1]!AgePb76($G$20) -> 4931.732408 | I20: 15.635 | J20: 19.326 | K20: 0.8090137638 | L20: =[1]!AgePb76($K$20) -> 4937.688401
A21: 204 | B21: Essexite | C21: 15.671 | D21: 0.011 | E21: 19.381 | F21: 0.01 | G21: 0.8085754089 | H21: =[1]!AgePb76($G$21) -> 4936.917019 | I21: 15.666 | J21: 19.266 | K21: 0.8131423233 | L21: =[1]!AgePb76($K$21) -> 4944.931779
C22: 15.654 | D22: 0.013 | E22: 19.341 | F22: 0.014 | G22: 0.8093686986 | H22: =[1]!AgePb76($G$22) -> 4938.312662 | I22: 15.651 | J22: 19.261 | K22: 0.8125746327 | L22: =[1]!AgePb76($K$22) -> 4943.938113
A23: 476 | B23: Tephrite | C23: 15.628 | D23: 0.01 | E23: 19.35 | F23: 0.016 | G23: 0.8076485788 | H23: =[1]!AgePb76($G$23) -> 4935.28459 | I23: 15.625 | J23: 19.29 | K23: 0.810005184 | L23: =[1]!AgePb76($K$23) -> 4939.431386
A24: 435 | B24: Tephrite | C24: 15.704 | D24: 0.012 | E24: 19.649 | F24: 0.01 | G24: 0.7992264237 | H24: =[1]!AgePb76($G$24) -> 4920.358641 | I24: 15.693 | J24: 19.417 | K24: 0.8082093011 | L24: =[1]!AgePb76($K$24) -> 4936.27243
A25: 309 | B25: Mondhaldeite | C25: 15.636 | D25: 0.012 | E25: 19.387 | F25: 0.012 | G25: 0.8065198329 | H25: =[1]!AgePb76($G$25) -> 4933.293833 | K25: 0
C26: 15.665 | D26: 0.01 | E26: 19.33 | F26: 0.009 | G26: 0.8103983445 | H26: =[1]!AgePb76($G$26) -> 4940.121961 | I26: 15.662 | J26: 19.276 | K26: 0.8125129695 | L26: =[1]!AgePb76($K$26) -> 4943.830135

Sheet Exc_13
A1: I.D. No. | B1: Sample No. | C1: (ppm) | D1: U/Th gamma | E1: Pb (ppm) | F1: 238u/206 pb | G1: 206Pb/238U | H1: Age | I1: 207pb/ 206pb | J1: Age | K1: 204 pb/ 206 Pb
A2: 1 | B2: 2260 WR | C2: 10.2 | D2: 0.36 | E2: 28.5 | F2: 1.207 | G2: =(1/F2) -> 0.8285004143 | H2: =[1]!AgePb6U8(G2) -> 3890.386367 | I2: 0.81349 | J2: =[1]!AgePb76($I$2) -> 4945.539976 | K2: 0.05198
A3: 2 | B3: 2265 WR | C3: 19.7 | D3: 0.45 | E3: 14.4 | F3: 4.203 | G3: =(1/F3) -> 0.2379252915 | H3: =[1]!AgePb6U8(G3) -> 1375.902184 | I3: 0.69468 | J3: =[1]!AgePb76($I$3) -> 4719.75322 | K3: 0.04388
A4: 3 | B4: 2266 WR | C4: 18.9 | D4: 0.54 | E4: 23.5 | F4: 2.586 | G4: 0.3866976025 | H4: =[1]!AgePb6U8(G4) -> 2107.494568 | I4: 0.75557 | J4: =[1]!AgePb76($I$4) -> 4840.205282 | K4: 0.04791
A5: 4 | B5: 2272 WR | C5: 14.4 | D5: 0.37 | E5: 24.7 | F5: 1.933 | G5: 0.5173305742 | H5: =[1]!AgePb6U8(G5) -> 2687.849088 | I5: 0.78883 | J5: =[1]!AgePb76($I$5) -> 4901.701307 | K5: 0.05031
A6: 5 | B6: 2274 WR | C6: 12.9 | D6: 0.35 | E6: 21.9 | F6: 1.94 | G6: 0.5154639175 | H6: =[1]!AgePb6U8(G6) -> 2679.913671 | I6: 0.7815 | J6: =[1]!AgePb76($I$6) -> 4888.388923 | K6: 0.0498
A7: 6 | B7: 2256 WR | C7: 16.7 | D7: 0.5 | E7: 15.3 | F7: 3.402 | G7: 0.2939447384 | H7: =[1]!AgePb6U8(G7) -> 1661.211856 | I7: 0.71749 | J7: =[1]!AgePb76($I$7) -> 4766.150441 | K7: 0.0454
A8: 7 | B8: 2144 WR | C8: 12.6 | D8: 0.36 | E8: 37.7 | F8: 1.13 | G8: 0.8849557522 | H8: =[1]!AgePb6U8(G8) -> 4086.409973 | I8: 0.81813 | J8: =[1]!AgePb76($I$8) -> 4953.630449 | K8: 0.05224
A9: 8 | B9: 1952 WR | C9: 15.6 | E9: 18.3 | F9: 3.029 | G9: 0.330141961 | H9: =[1]!AgePb6U8(G9) -> 1839.069616 | I9: 0.76635 | J9: =[1]!AgePb76($I$9) -> 4860.447692 | K9: 0.04855
A10: 9 | B10: 2279 WR | C10: 21.7 | D10: 0.56 | E10: 22.6 | F10: 3.046 | G10: 0.3282994091 | H10: =[1]!AgePb6U8(G10) -> 1830.133662 | I10: 0.74177 | J10: =[1]!AgePb76($I$10) -> 4813.837887 | K10: 0.04705
A11: 10 | B11: 2261 WR | C11: 11.9 | D11: 0.33 | E11: 25.5 | F11: 1.562 | G11: 0.6402048656 | H11: =[1]!AgePb6U8(G11) -> 3189.822092 | I11: 0.80297 | J11: =[1]!AgePb76($I$11) -> 4927.013659 | K11: 0.05123
A12: 11 | B12: 2257 Kfs | C12: 0.93 | D12: 0.28 | E12: 18.6 | F12: 0.105 | G12: 9.523809524 | H12: =[1]!AgePb6U8(G12) -> 15172.53998 | I12: 0.85509 | J12: =[1]!AgePb76($I$12) -> 5016.384572 | K12: 0.05473
A13: 12 | B13: 2261 Kfs | C13: 2.053 | D13: 0.28 | E13: 35.7 | F13: 0.199 | G13: 5.025125628 | H13: =[1]!AgePb6U8(G13) -> 11577.36232 | I13: 0.84985 | J13: =[1]!AgePb76($I$13) -> 5007.664892 | K13: 0.0544
A14: 13 | B14: 2274 Kfs | C14: 1.364 | D14: 0.28 | E14: 19.9 | F14: 0.237 | G14: 4.219409283 | H14: =[1]!AgePb6U8(G14) -> 10651.95314 | I14: 0.84828 | J14: =[1]!AgePb76($I$14) -> 5005.041197 | K14: 0.05429
A15: 14 | B15: 2257 Ap f | C15: 139 | E15: 32.2 | F15: 10.35 | G15: 0.09661835749 | H15: =[1]!AgePb6U8(G15) -> 594.5606718 | I15: 0.42347 | J15: =[1]!AgePb76($I$15) -> 3994.578759 | K15: 0.02533
A16: 15 | B16: 2257 Ap g | C16: 408 | E16: 48.9 | F16: 13.81 | G16: 0.07241129616 | H16: =[1]!AgePb6U8(G16) -> 450.6666292 | I16: 0.2642 | J16: =[1]!AgePb76($I$16) -> 3271.926457 | K16: 0.01444
A17: 16 | B17: 2261 Ap f | C17: 105 | E17: 25.9 | F17: 8.7 | G17: 0.1149425287 | H17: =[1]!AgePb6U8(G17) -> 701.3882988 | I17: 0.36826 | J17: =[1]!AgePb76($I$17) -> 3784.276433 | K17: 0.02154
A18: 17 | B18: 2261 Ap g | C18: 317 | E18: 36.8 | F18: 13.18 | G18: 0.07587253414 | H18: =[1]!AgePb6U8(G18) -> 471.4391106 | I18: 0.21735 | J18: =[1]!AgePb76($I$18) -> 2961.162292 | K18: 0.01124
A19: 18 | B19: 2274 Ap f | C19: 114 | E19: 29.7 | F19: 8.59 | G19: 0.1164144354 | H19: =[1]!AgePb6U8(G19) -> 709.8930082 | I19: 0.40209 | J19: =[1]!AgePb76($I$19) -> 3916.912024 | K19: 0.02384
A20: 19 | B20: 2256 Ap f | C20: 138 | E20: 25.4 | F20: 10.57 | G20: 0.09460737938 | H20: =[1]!AgePb6U8(G20) -> 582.7283889 | I20: 0.30397 | J20: =[1]!AgePb76($I$20) -> 3490.572167 | K20: 0.01715
A21: 20 | B21: 2253 Ap f | C21: 106 | E21: 31.2 | F21: 8.17 | G21: 0.1223990208 | H21: =[1]!AgePb6U8(G21) -> 744.3569856 | I21: 0.45699 | J21: =[1]!AgePb76($I$21) -> 4108.118818 | K21: 0.02765
A22: 21 | B22: 2257 Zr f | C22: 2200 | E22: 92.5 | F22: 23.8 | G22: 0.04201680672 | H22: =[1]!AgePb6U8(G22) -> 265.3219822 | I22: 0.06338 | J22: =[1]!AgePb76($I$22) -> 721.0061118 | K22: 0.0006918
A23: 22 | B23: 2257 Zr g | C23: 1645 | E23: 79 | F23: 21.53 | G23: 0.04644681839 | H23: =[1]!AgePb6U8(G23) -> 292.6700601 | I23: 0.06326 | J23: =[1]!AgePb76($I$23) -> 716.9829423 | K23: 0.000633
A24: 23 | B24: 2261 Zr f | C24: 3023 | E24: 96.6 | F24: 31.04 | G24: 0.03221649485 | H24: =[1]!AgePb6U8(G24) -> 204.4056528 | I24: 0.06187 | J24: =[1]!AgePb76($I$24) -> 669.6182021 | K24: 0.0005844
A25: 24 | B25: 2261 Zr g | C25: 1706 | E25: 94.5 | F25: 18.51 | G25: 0.05402485143 | H25: =[1]!AgePb6U8(G25) -> 339.1847094 | I25: 0.06762 | J25: =[1]!AgePb76($I$25) -> 856.9287792 | K25: 0.00099
A26: 25 | B26: 2274 Zr f | C26: 1582 | E26: 74.2 | F26: 21.74 | G26: 0.04599816007 | H26: =[1]!AgePb6U8(G26) -> 289.9056028 | I26: 0.06579 | J26: =[1]!AgePb76($I$26) -> 799.701492 | K26: 0.0008771
A27: 26 | B27: 2256 Zr f | C27: 2114 | E27: 91 | F27: 23.15 | G27: 0.04319654428 | H27: =[1]!AgePb6U8(G27) -> 272.6162744 | I27: 0.06181 | J27: =[1]!AgePb76($I$27) -> 667.5413667 | K27: 0.0005866
A28: 27 | B28: 2253 Zr f | C28: 2425 | E28: 125.7 | F28: 23.43 | G28: 0.04268032437 | H28: =[1]!AgePb6U8(G28) -> 269.4255133 | I28: 0.12935 | J28: =[1]!AgePb76($I$28) -> 2089.153381 | K28: 0.005197
A29: 28 | B29: 2253 Zr p | C29: 2492 | E29: 109.8 | F29: 24.35 | G29: 0.04106776181 | H29: =[1]!AgePb6U8(G29) -> 259.4480613 | I29: 0.08355 | J29: =[1]!AgePb76($I$29) -> 1282.095412 | K29: 0.002055
A30: 29 | B30: 2257 Mu | C30: 6.3 | E30: 2.5 | F30: 7.282 | G30: 0.1373249107 | H30: =[1]!AgePb6U8(G30) -> 829.5177139 | I30: 0.59185 | J30: =[1]!AgePb76($I$30) -> 4488.116903 | K30: 0.03685
A31: 30 | B31: 2257 Bi | C31: 15.6 | E31: 7.5 | F31: 6.977 | G31: 0.143328078 | H31: =[1]!AgePb6U8(G31) -> 863.4544785 | I31: 0.60883 | J31: =[1]!AgePb76($I$31) -> 4529.21365 | K31: 0.03799
A32: 3-1 | B32: 2261 Mu | C32: 6.4 | E32: 3.3 | F32: 5.958 | G32: 0.1678415576 | H32: =[1]!AgePb6U8(G32) -> 1000.207719 | I32: 0.63266 | J32: =[1]!AgePb76($I$32) -> 4584.858763 | K32: 0.03958
A33: 32 | B33: 2261 Bi | C33: 17.6 | E33: 6.2 | F33: 9.351 | G33: 0.1069404342 | H33: =[1]!AgePb6U8(G33) -> 654.9546749 | I33: 0.54519 | J33: =[1]!AgePb76($I$33) -> 4368.301605 | K33: 0.03362
A34: 33 | B34: 2274 Mu | C34: 8.7 | E34: 3.7 | F34: 7.288 | G34: 0.1372118551 | H34: =[1]!AgePb6U8(G34) -> 828.8768771 | I34: 0.62645 | J34: =[1]!AgePb76($I$34) -> 4570.577423 | K34: 0.03919
A35: 34 | B35: 2274 Bi | C35: 13.1 | E35: 6 | F35: 7.318 | G35: 0.1366493577 | H35: =[1]!AgePb6U8(G35) -> 825.6875083 | I35: 0.54341 | J35: =[1]!AgePb76($I$35) -> 4363.514236 | K35: 0.03352
G36: Average | H36: =AVERAGE(H2:H35) -> 2182.375248
G37: Maximum | H37: =MAX(H2:H36) -> 15172.53998
G38: Minimum | H38: =MIN(H2:H37) -> 204.4056528
G39: Difference | H39: =(H37-H38) -> 14968.13432

Sheet Exc_14
A1: TABLE 1 | B1: 206Pb/204Pb | D1: 207Pb/204Pb | F1: 207/206Pb | G1: 207/206Pb
A2: A. Stillwater complex | B2: Ratio | D2: Ratio | F2: Ratio | G2: Age
A3: STILL 16 | B3: 15.616 | C3: ± 0.016 | D3: 15.247 | E3: ± 0.02 | F3: =(D3/B3) -> 0.9763703893 | G3: =[1]!AgePb76($F$3) -> 5203.747394
A4: STILL 17 | B4: 16.704 | C4: ± 0.020 | D4: 15.454 | E4: ± 0.020 | F4: =(D4/B4) -> 0.9251676245 | G4: =[1]!AgePb76($F$4) -> 5127.832502
A5: G unit) | B5: 20.149 | C5: ± 0.030 | D5: 16.085 | E5: ± 0.028 | F5: 0.7983026453 | G5: =[1]!AgePb76($F$5) -> 4918.711322
A6: STILL 19 | B6: 33.95 | C6: ± 0.030 | D6: 18.58 | E6: ± 0.013 | F6: 0.547275405 | G6: =[1]!AgePb76($F$6) -> 4373.888961
A7: G-H sequence | B7: 17.667 | C7: ± 0.017 | D7: 15.607 | E7: ± 0.018 | F7: 0.8833984264 | G7: =[1]!AgePb76($F$7) -> 5062.531377
A8: STILL 21 | B8: 16.422 | C8: ± 0.020 | D8: 15.416 | E8: ± 0.030 | F8: 0.9387407137 | G8: =[1]!AgePb76($F$8) -> 5148.381745
A9: STILL 22 | B9: 17.154 | C9: ± 0.013 | D9: 15.567 | E9: ± 0.015 | F9: 0.9074851347 | G9: =[1]!AgePb76($F$9) -> 5100.577417
A10: STILL 28 | B10: 16.427 | C10: ± 0.015 | D10: 15.293 | E10: ± 0.017 | F10: 0.9309673099 | G10: =[1]!AgePb76($F$10) -> 5136.651862
B11: 15.836 | C11: ± 0.012 | D11: 15.205 | E11: ± 0.014 | F11: 0.9601540793 | G11: =[1]!AgePb76($F$11) -> 5180.16968
A12: STILL 30 | B12: 16.953 | C12: ± 0.013 | D12: 15.402 | E12: ± 0.015 | F12: 0.9085117678 | G12: =[1]!AgePb76($F$12) -> 5102.175159
A13: B. Eltjdrvi Complex | B13: 16.362 | C13: ± 0.021 | D13: 15.328 | E13: ± 0.028 | F13: 0.9368047916 | G13: =[1]!AgePb76($F$13) -> 5145.470129
A14: A 547 peridotite | B14: 16.119 | C14: ± 0.015 | D14: 15.297 | E14: ± 0.017 | F14: 0.9490042807 | G14: =[1]!AgePb76($F$14) -> 5163.712646
A15: A 548 pyroxenite | B15: 14.936 | C15: ± 0.011 | D15: 15.085 | E15: ± 0.015 | F15: 1.009975897 | G15: =[1]!AgePb76($F$15) -> 5251.316758
A16: A 549 peridotite | B16: 14.345 | C16: ± 0.016 | D16: 15.003 | E16: ± 0.018 | F16: 1.045869641 | G16: =[1]!AgePb76($F$16) -> 5300.312251
A17: A 550 dunite | B17: 15.156 | C17: ± 0.018 | D17: 14.955 | E17: ± 0.020 | F17: 0.9867379256 | G17: =[1]!AgePb76($F$17) -> 5218.605217
A18: A 551 serpentinite | B18: 15.306 | C18: ± 0.015 | D18: 15.058 | E18: ± 0.019 | F18: 0.9837972037 | G18: =[1]!AgePb76($F$18) -> 5214.407673
A19: C. Porttivaara Complex | B19: 15.724 | C19: ± 0.020 | D19: 15.089 | E19: ± 0.025 | F19: 0.9596158738 | G19: =[1]!AgePb76($F$19) -> 5179.379949
A20: Por 1 metaperidotite | B20: 15.871 | C20: ± 0.015 | D20: 15.081 | E20: ± 0.018 | F20: 0.9502236784 | G20: =[1]!AgePb76($F$20) -> 5165.52241
A21: Por 2 gabbro | B21: 16.3 | C21: ± 0.03 | D21: 15.4 | E21: ± 0.03 | F21: 0.9447852761 | G21: =[1]!AgePb76($F$21) -> 5157.431982
A22: Por 3 olivine gabbro | B22: 17.42 | C22: ± 0.02 | D22: 15.47 | E22: ± 0.02 | F22: 0.8880597015 | G22: =[1]!AgePb76($F$22) -> 5069.979247
A23: Por 4 gabbro | B23: 18.94 | C23: ± 0.025 | D23: 15.74 | E23: ± 0.03 | F23: 0.8310454065 | G23: =[1]!AgePb76($F$23) -> 4975.895866
A24: Por 5 gabbro | B24: 18.007 | C24: ± 0.011 | D24: 15.457 | E24: ± 0.015 | F24: 0.8583884045 | G24: =[1]!AgePb76($F$24) -> 5021.844268
A25: Por 6 anorthositic gabbro | B25: 17.412 | C25: ± 0.020 | D25: 15.526 | E25: ± 0.020 | F25: 0.8916838962 | G25: =[1]!AgePb76($F$25) -> 5075.741455
A26: D. Bushveld Complex | B26: 17.426 | C26: ± 0.023 | D26: 15.517 | E26: ± 0.026 | F26: 0.8904510502 | G26: =[1]!AgePb76($F$26) -> 5073.784111
A27: anorthosite | B27: 17.621 | C27: ± 0.012 | D27: 15.5 | E27: ± 0.010 | F27: 0.879632257 | G27: =[1]!AgePb76($F$27) -> 5056.483209
A28: chromitite | B28: 17.61 | C28: ± 0.013 | D28: 15.485 | E28: ± 0.015 | F28: 0.8793299262 | G28: =[1]!AgePb76($F$28) -> 5055.9965
A29: B44 gabbro | B29: 18.671 | C29: ± 0.004 | D29: 15.581 | E29: ± 0.007 | F29: 0.8345027047 | G29: =[1]!AgePb76($F$29) -> 4981.793668
A30: E. Duluth gabbro | B30: 18.671 | C30: ± 0.015 | D30: 15.582 | E30: ± 0.017 | F30: 0.8345562637 | G30: =[1]!AgePb76($F$30) -> 4981.884829
A31: North Shore | B31: 18.122 | C31: ± 0.015 | D31: 15.512 | E31: ± 0.019 | F31: 0.8559761616 | G31: =[1]!AgePb76($F$31) -> 5017.853588
A32: CL 1 diabase | B32: 17.655 | C32: ± 0.012 | D32: 15.466 | E32: ± 0.016 | F32: 0.8760124611 | G32: =[1]!AgePb76($F$32) -> 5050.644158
A33: CL 2 anorthosite | B33: 17.408 | C33: ± 0.016 | D33: 15.464 | E33: ± 0.018 | F33: 0.8883272059 | G33: =[1]!AgePb76($F$33) -> 5070.405411
B34: 17.427 | C34: ± 0.018 | D34: 15.49 | E34: ± 0.020 | F34: 0.8888506341 | G34: =[1]!AgePb76($F$34) -> 5071.238898
A35: Duluth Complex | B35: 18.117 | C35: ± 0.027 | D35: 15.544 | E35: ± 0.027 | F35: 0.857978694 | G35: =[1]!AgePb76($F$35) -> 5021.167306
A36: Anorthositic series | B36: 18.113 | C36: ± 0.022 | D36: 18.539 | E36: ± 0.020 | F36: 1.023519019 | G36: =[1]!AgePb76($F$36) -> 5270.016242
A37: 62 10 32 4A | B37: 17.776 | C37: ± 0.012 | D37: 15.496 | E37: ± 0.016 | F37: 0.8717371737 | G37: =[1]!AgePb76($F$37) -> 5043.714675
B38: 18.964 | C38: ± 0.018 | D38: 15.61 | E38: ± 0.016 | F38: 0.8231385784 | G38: =[1]!AgePb76($F$38) -> 4962.309013
A39: 62 11 33 lA | B39: 18.952 | C39: ± 0.018 | D39: 15.595 | E39: ± 0.018 | F39: 0.8228682989 | G39: =[1]!AgePb76($F$39) -> 4961.842123
A41: Troctolitic series | B41: 17.449 | C41: 0.015 | D41: 15.307 | E41: 0.013 | F41: 0.8772422488 | G41: =[1]!AgePb76($F$41) -> 5052.630781
A42: Bald Eagle Intrusion | B42: 17.492 | C42: 0.03 | D42: 15.356 | E42: 0.03 | F42: 0.8778870341 | G42: =[1]!AgePb76($F$42) -> 5053.671199
A43: CL3 gabbro | B43: 17.51 | C43: 0.044 | D43: 15.35 | E43: 0.04 | F43: 0.8766419189 | G43: =[1]!AgePb76($F$43) -> 5051.661366
A44: M 6651 troctolite | B44: 17.302 | C44: 0.012 | D44: 15.223 | E44: 0.022 | F44: 0.8798404809 | G44: =[1]!AgePb76($F$44) -> 5056.818317
A47: TABLE 2A | D47: 206Pb/204Pb | E47: 207Pb/204Pb | F47: 207/206Pb | G47: 207/206Pb
D48: Ratio | E48: Ratio | F48: Ratio | G48: Age
B49: 11 | C49: U.B. | D49: 15.85 | E49: 15.14 | F49: =(E49/D49) -> 0.9552050473 | G49: =[1]!AgePb76($F$49) -> 5172.890039
B50: 13 | C50: U.B. | D50: 15.74 | E50: 15 | F50: =(E50/D50) -> 0.9529860229 | G50: =[1]!AgePb76($F$50) -> 5169.613055
B51: 12 | C51: U.B. | D51: 15.51 | E51: 15.07 | F51: 0.9716312057 | G51: =[1]!AgePb76($F$51) -> 5196.899957
B52: 14 | C52: U.B. | D52: 15.37 | E52: 14.94 | F52: 0.9720234223 | G52: =[1]!AgePb76($F$52) -> 5197.467993
B53: 16 | C53: U.B. | D53: 14.46 | E53: 14.82 | F53: 1.024896266 | G53: =[1]!AgePb76($F$53) -> 5271.903197
B54: 17 | C54: B. | D54: 15.38 | E54: 15.01 | F54: 0.9759427828 | G54: =[1]!AgePb76($F$54) -> 5203.131009
B55: 18 | C55: B. | D55: 14.89 | E55: 14.84 | F55: 0.9966420416 | G55: =[1]!AgePb76($F$55) -> 5232.64554
B56: 19 | C56: U.B. | D56: 15.56 | E56: 14.95 | F56: 0.9607969152 | G56: =[1]!AgePb76($F$56) -> 5181.112327
B57: 25 | C57: U.B. | D57: 14.88 | E57: 14.94 | F57: 1.004032258 | G57: =[1]!AgePb76($F$57) -> 5243.026341
B58: 27 | C58: B. | D58: 21.15 | E58: 15.85 | F58: 0.7494089835 | G58: =[1]!AgePb76($F$58) -> 4828.497548
C61: 206Pb/204Pb | D61: 207Pb/204Pb | E61: 207/206Pb | F61: 207/206Pb | G61: TABLE 2B
C62: Ratio | D62: Ratio | E62: Ratio | F62: Age
A63: 1 | B63: B | C63: 14.7 | D63: 14.88 | E63: =(D63/C63) -> 1.012244898 | F63: =[1]!AgePb76($E$63) -> 5254.468058 | G63: 0.0391 | H63: 0.375 | I63: 6.04 | J63: 0.619 | K63: 1.677
A64: 2 | B64: B | C64: 14.83 | D64: 14.91 | E64: =(D64/C64) -> 1.005394471 | F64: =[1]!AgePb76($E$64) -> 5244.93098 | G64: 0.0318 | H64: 0.928 | I64: 6.11 | J64: 0.203 | K64: 1.697
A65: 3 | B65: B | C65: 14.72 | D65: 14.89 | E65: 1.011548913 | F65: =[1]!AgePb76($E$65) -> 5253.502234 | G65: 0.0038 | H65: 0.1194 | I65: 7.2 | J65: 0.22 | K65: 2
A66: 4 | B66: B | C66: 15.38 | D66: 14.98 | E66: 0.9739921977 | F66: =[1]!AgePb76($E$66) -> 5200.315655 | G66: 0.0413 | H66: 0.299 | I66: 12.2 | J66: 1.68 | K66: 3.38
A67: 5 | B67: B | C67: 15.84 | D67: 15.03 | E67: 0.9488636364 | F67: =[1]!AgePb76($E$67) -> 5163.503751 | G67: 0.0625 | H67: 0.287 | I67: 16.85 | J67: 3.56 | K67: 4.68
A68: 6 | B68: B | C68: 15.12 | D68: 14.95 | E68: 0.9887566138 | F68: =[1]!AgePb76($E$68) -> 5221.479014 | G68: 0 | H68: 1.55 | I68: 9.45 | J68: 0 | K68: 2.48

Sheet Exc_15
C2: 206Pb/204Pb | D2: 207Pb/204Pb | E2: 207/206Pb | F2: 207/206Pb
A3: Sample | B3: Pb | C3: Ratio | D3: Ratio | E3: Ratio | F3: Age
A5: DRL-41 b | B5: 27.3 | C5: 16.778 | D5: 15.516 | E5: =(D5/C5) -> 0.9247824532 | F5: =[1]!AgePb76($E$5) -> 5127.244714
A6: DRL-45 | B6: 14.3 | C6: 17.412 | D6: 15.6 | E6: =(D6/C6) -> 0.8959338387 | F6: =[1]!AgePb76($E$6) -> 5082.467001
A7: DRL-48 | B7: 17.1 | C7: 17.325 | D7: 15.636 | E7: 0.9025108225 | F7: =[1]!AgePb76($E$7) -> 5092.808698
A8: DRL-49 | B8: 15.4 | C8: 16.907 | D8: 15.574 | E8: 0.9211569173 | F8: =[1]!AgePb76($E$8) -> 5121.699249
A9: DRL-50 | B9: 16.6 | C9: 16.89 | D9: 15.565 | E9: 0.9215512137 | F9: =[1]!AgePb76($E$9) -> 5122.303468
A10: DRL-65 b | B10: 22.9 | C10: 17.42 | D10: 15.62 | E10: 0.8966704937 | F10: =[1]!AgePb76($E$10) -> 5083.629319
A11: DRL-93 | B11: 28.5 | C11: 18.77 | D11: 15.86 | E11: 0.8449653703 | F11: =[1]!AgePb76($E$11) -> 4999.484993
A12: DRL-107 | B12: 33.9 | C12: 21.216 | D12: 16.088 | E12: 0.7582956259 | F12: =[1]!AgePb76($E$12) -> 4845.352334
A13: DRL-122 b | B13: 28.6 | C13: 19.903 | D13: 15.94 | E13: 0.8008842888 | F13: =[1]!AgePb76($E$13) -> 4923.309938
A14: DRL-92 | B14: 28.1 | C14: 18.764 | D14: 15.84 | E14: 0.8441696866 | F14: =[1]!AgePb76($E$14) -> 4998.147769
A15: DRL-113 a,b | B15: 27.1 | C15: 17.439 | D15: 15.621 | E15: 0.8957509031 | F15: =[1]!AgePb76($E$15) -> 5082.178203
A16: DRL-121 a | B16: 31.2 | C16: 19.611 | D16: 15.907 | E16: 0.8111264086 | F16: =[1]!AgePb76($E$16) -> 4941.399844

Sheet Exc_16
A1: Sample | B1: Pb206/Pb204 | C1: Pb207/Pb204 | D1: Pb207/Pb206 | E1: Pb207/Pb206 | F1: Pb206/Pb204 | G1: Pb207/Pb204 | H1: Pb207/Pb206 | I1: Pb207/Pb206 | J1: TABLE 2.
A2: Number | B2: Ratio | C2: Ratio | D2: Ratio | E2: Age | F2: Ratio | G2: Ratio | H2: Ratio | I2: Age
A3: TR7-4-I | B3: 19.62 | C3: 15.7 | D3: =(C3/B3) -> 0.8002038736 | E3: =[1]!AgePb76($D$3) -> 4922.099464 | F3: 17.97 | G3: 15.62 | H3: =(G3/F3) -> 0.8692264886 | I3: =[1]!AgePb76($H$3) -> 5039.62847
A4: TR7-8-1 | B4: 21.55 | C4: 15.79 | D4: =(C4/B4) -> 0.7327146172 | E4: =[1]!AgePb76($D$4) -> 4796.250025 | F4: 20.17 | G4: 15.72 | H4: =(G4/F4) -> 0.7793753099 | I4: =[1]!AgePb76($H$4) -> 4884.5053
A5: TR-8-2 | B5: 22.83 | C5: 15.77 | D5: 0.6907577749 | E5: =[1]!AgePb76($D$5) -> 4711.61124 | F5: 19.78 | G5: 15.65 | H5: 0.7912032356 | I5: =[1]!AgePb76($H$5) -> 4905.983255
A6: TR7-1O | B6: 19.44 | C6: 15.64 | D6: 0.804526749 | E6: =[1]!AgePb76($D$6) -> 4929.771405 | F6: 18.39 | G6: 15.62 | H6: 0.8493746601 | I6: =[1]!AgePb76($H$6) -> 5006.871075
A7: HCL-Leaches | F7: 19.08 | G7: 15.65 | H7: 0.820230608 | I7: =[1]!AgePb76($H$7) -> 4957.277116
A9: TABLE 3 | F9: TABLE 3
A10: Pb206/Pb204 | B10: Pb207/Pb204 | C10: Pb207/Pb206 | D10: Pb207/Pb206 | F10: Pb206/Pb204 | G10: Pb207/Pb204 | H10: Pb207/Pb206 | I10: Pb207/Pb206
A11: Ratio | B11: Ratio | C11: Ratio | D11: Age | F11: Ratio | G11: Ratio | H11: Ratio | I11: Age
A12: 20.59 | B12: 15.73 | C12: =(B12/A12) -> 0.7639630889 | D12: =[1]!AgePb76($C$12) -> 4855.991884 | F12: 19.44 | G12: 15.67 | H12: =(G12/F12) -> 0.8060699588 | I12: =[1]!AgePb76($H$12) -> 4932.499569
A13: 22.23 | B13: 15.84 | C13: =(B13/A13) -> 0.7125506073 | D13: =[1]!AgePb76($C$13) -> 4756.238353 | F13: 19.3 | G13: 15.7 | H13: 0.8134715026 | I13: =[1]!AgePb76($H$13) -> 4945.507625
A14: 20.17 | B14: 15.74 | C14: =(B14/A14) -> 0.7803668815 | D14: =[1]!AgePb76($C$14) -> 4886.319149 | F14: 19.02 | G14: 15.69 | H14: 0.8249211356 | I14: =[1]!AgePb76($H$14) -> 4965.384182
A15: 19.65 | B15: 15.74 | C15: =(B15/A15) -> 0.8010178117 | D15: =[1]!AgePb76($C$15) -> 4923.54735 | F15: 19.65 | G15: 15.74 | H15: 0.8010178117 | I15: =[1]!AgePb76($H$15) -> 4923.54735
A16: 19.25 | B16: 15.66 | C16: =(B16/A16) -> 0.8135064935 | D16: =[1]!AgePb76($C$16) -> 4945.568821 | F16: 18.96 | G16: 15.65 | H16: 0.8254219409 | I16: =[1]!AgePb76($H$16) -> 4966.246872
F17: 19.27 | G17: 15.69 | H17: 0.8142189933 | I17: =[1]!AgePb76($H$17) -> 4946.81432

Sheet Exc_17
A1: Table 2
A2: 206Pb/204 | B2: 18.387 | C2: 18.483 | D2: 20.333 | E2: 20.256 | F2: 20.872 | G2: 18.636 | H2: 20.459 | I2: 20.43 | J2: 19.842 | K2: 18.952 | L2: 19.452 | M2: 18.784 | N2: 18.219 | O2: 18.173 | P2: 18.101 | Q2: 18.084 | R2: 17.589 | S2: 20.168 | T2: 19.835 | U2: 17.991 | V2: 20.27 | W2: 19.082 | X2: 18.782
A3: 207Pb/204 | B3: 15.531 | C3: 15.531 | D3: 15.658 | E3: 15.652 | F3: 15.749 | G3: 15.534 | H3: 15.708 | I3: 15.705 | J3: 15.604 | K3: 15.617 | L3: 15.608 | M3: 15.574 | N3: 15.477 | O3: 15.485 | P3: 15.465 | Q3: 15.473 | R3: 15.476 | S3: 15.725 | T3: 15.618 | U3: 15.49 | V3: 15.662 | W3: 15.58 | X3: 15.542
A4: 207Pb/206 | B4: =(B3/B2) -> 0.8446728667 | C4: =(C3/C2) -> 0.8402856679 | D4: 0.770078198 | E4: 0.7727093207 | F4: 0.7545515523 | G4: 0.8335479717 | H4: 0.7677794614 | I4: 0.768722467 | J4: 0.78641266 | K4: 0.8240291262 | L4: 0.8023853588 | M4: 0.8291098807 | N4: 0.849497777 | O4: 0.8520882628 | P4: 0.8543726866 | Q4: 0.8556182261 | R4: 0.8798680994 | S4: 0.7797005157 | T4: 0.7873960171 | U4: 0.8609860486 | V4: 0.7726689689 | W4: 0.8164762604 | X4: 0.8274944095
A5: Age | B5: =[1]!AgePb76(B4) -> 4998.993568 | C5: =[1]!AgePb76(C4) -> 4991.601018 | D5: =[1]!AgePb76(D4) -> 4867.377867 | E5: =[1]!AgePb76(E4) -> 4872.247258 | F5: =[1]!AgePb76(F4) -> 4838.276971 | G5: =[1]!AgePb76(G4) -> 4980.167588 | H5: =[1]!AgePb76(H4) -> 4863.10909 | I5: =[1]!AgePb76(I4) -> 4864.861906 | J5: =[1]!AgePb76(J4) -> 4897.325661 | K5: =[1]!AgePb76(K4) -> 4963.84622 | L5: =[1]!AgePb76(L4) -> 4925.97651 | M5: =[1]!AgePb76(M4) -> 4972.582658 | N5: =[1]!AgePb76(N4) -> 5007.076725 | O5: =[1]!AgePb76(O4) -> 5011.396464 | P5: =[1]!AgePb76(P4) -> 5015.194276 | Q5: =[1]!AgePb76(Q4) -> 5017.260422 | R5: =[1]!AgePb76(R4) -> 5056.862759 | S5: =[1]!AgePb76(S4) -> 4885.100459 | T5: =[1]!AgePb76(T4) -> 4899.107369 | U5: =[1]!AgePb76(U4) -> 5026.128371 | V5: =[1]!AgePb76(V4) -> 4872.172713 | W5: =[1]!AgePb76(W4) -> 4950.752538 | X5: =[1]!AgePb76(X4) -> 4969.811014

Sheet Exc_18
D1: 206Pb/204Pb | F1: 206Pb/238U | H1: Pb207/U235 | I1: Age | K1: 208Pb/232Th
A2: 493026-05 | B2: 134 | C2: 93 | D2: 8745 | E2: 0.66 | F2: 0.5622 | G2: 1.3 | H2: 181.623 | I2: =[1]!AgePb7U5(H2) -> 5287.529998 | J2: 0.94 | K2: 0.1413 | L2: =[1]!AgePb8Th2(K2) -> 2671.409067 | M2: 0.64 | N2: 0.2343 | O2: 0.5 | P2: 2876 | Q2: 76 | R2: 3082 | S2: 15 | T2: 4.1
A3: 493026-07 | B3: 116 | C3: 75 | D3: 12159 | E3: 0.59 | F3: 0.523 | G3: 1.8 | H3: 160.389 | I3: =[1]!AgePb7U5(H3) -> 5162.022237 | J3: 0.95 | K3: 0.152 | L3: =[1]!AgePb8Th2(K3) -> 2860.021471 | M3: 1.9 | N3: 0.2224 | O3: 0.6 | P3: 2712 | Q3: 100 | R3: 2998 | S3: 19 | T3: 5.8
A4: 493026-08 | B4: 60 | C4: 44 | D4: 14205 | E4: 0.8 | F4: 0.5816 | G4: 1.5 | H4: 183.701 | I4: =[1]!AgePb7U5(H4) -> 5299.018431 | J4: 0.87 | K4: 0.1365 | L4: =[1]!AgePb8Th2(K4) -> 2586.222624 | M4: 0.62 | N4: 0.2291 | O4: 0.9 | P4: 2955 | Q4: 88 | R4: 3046 | S4: 27 | T4: 1.8
A5: 493026-10 | B5: 52 | C5: 41 | D5: 21922 | E5: 0.83 | F5: 0.6414 | G5: 1.9 | H5: 204.339 | I5: =[1]!AgePb7U5(H5) -> 5406.571835 | J5: 0.96 | K5: 0.1208 | L5: =[1]!AgePb8Th2(K5) -> 2305.057424 | M5: 2 | N5: 0.231 | O5: 0.5 | P5: 3195 | Q5: 120 | R5: 3059 | S5: 16 | T5: −2.7
A6: 493026-11 | B6: 202 | C6: 135 | D6: 0.42 | E6: 0.5754 | F6: 1.4 | G6: 184.165 | H6: 184.165 | I6: =[1]!AgePb7U5(H6) -> 5301.566045 | J6: 0.1444 | K6: 0.1444 | L6: =[1]!AgePb8Th2(K6) -> 2726.235113 | M6: 0.2321 | N6: 0.5 | O6: 2930 | P6: 2930 | Q6: 80 | R6: 3067 | S6: 17 | T6: 2.7
H13: 207Pb/235U | I13: 208Pb/232Th | J13: 206Pb/238U | K13: 207Pb/206Pb
H14: Age | I14: Age | J14: Age | K14: Age
H15: 5287.529998 | I15: 2671.409067 | J15: 2876 | K15: 3082
H16: 5162.022237 | I16: 2860.021471 | J16: 2712 | K16: 2998
H17: 5299.018431 | I17: 2586.222624 | J17: 2955 | K17: 3046
H18: 5406.571835 | I18: 2305.057424 | J18: 3195 | K18: 3059
H19: 5301.566045 | I19: 2726 | J19: 2930 | K19: 3067

Sheet Exc_19
A1: Sample | B1: 206Pb/204Pb | C1: 207Pb/204Pb | D1: 207Pb/206Pb | E1: 207Pb/206Pb
A2: Name | B2: Ratio | C2: Ratio | D2: Ratio | E2: Age
A3: Morro Agudo
A4: MA-N-7 | B4: 17.63 | C4: 15.66 | D4: =(C4/B4) -> 0.88825865 | E4: =[1]!AgePb76($D$4) -> 5070.296207
A5: MA-N-8 | B5: 17.65 | C5: 15.64 | D5: =(C5/B5) -> 0.8861189802 | E5: =[1]!AgePb76($D$5) -> 5066.883377
A6: MA-IC-11 | B6: 17.65 | C6: 15.64 | D6: 0.8861189802 | E6: =[1]!AgePb76($D$6) -> 5066.883377
A7: MA-IC-24 | B7: 17.69 | C7: 15.68 | D7: 0.8863764839 | E7: =[1]!AgePb76($D$7) -> 5067.294565
A8: MA-IC-25 | B8: 17.59 | C8: 15.64 | D8: 0.8891415577 | E8: =[1]!AgePb76($D$8) -> 5071.701928
A9: MA-IC-39 | B9: 17.62 | C9: 15.61 | D9: 0.8859250851 | E9: =[1]!AgePb76($D$9) -> 5066.573677
A10: MA-IC-40 | B10: 17.66 | C10: 15.64 | D10: 0.885617214 | E10: =[1]!AgePb76($D$10) -> 5066.081781
A11: MA-IC-46 | B11: 17.63 | C11: 15.65 | D11: 0.8876914351 | E11: =[1]!AgePb76($D$11) -> 5069.392334
A12: MA-N-4a | B12: 17.79 | C12: 15.79 | D12: 0.8875772906 | E12: =[1]!AgePb76($D$12) -> 5069.210368
A13: MA-N-4c | B13: 17.85 | C13: 15.77 | D13: 0.8834733894 | E13: =[1]!AgePb76($D$13) -> 5062.651483
A14: MA-IC-9 | B14: 17.75 | C14: 15.68 | D14: 0.8833802817 | E14: =[1]!AgePb76($D$14) -> 5062.502303
A15: MA-IC-10 | B15: 17.79 | C15: 15.74 | D15: 0.8847667229 | E15: =[1]!AgePb76($D$15) -> 5064.72198
A16: MA-IC-34 | B16: 17.77 | C16: 15.7 | D16: 0.8835115363 | E16: =[1]!AgePb76($D$16) -> 5062.712599
A17: MA-IC-37 | B17: 17.82 | C17: 15.79 | D17: 0.8860830527 | E17: =[1]!AgePb76($D$17) -> 5066.825997
A18: MA-IC-47 | B18: 17.82 | C18: 15.77 | D18: 0.8849607183 | E18: =[1]!AgePb76($D$18) -> 5065.03227
A19: MA-IC-48 | B19: 17.84 | C19: 15.79 | D19: 0.8850896861 | E19: =[1]!AgePb76($D$19) -> 5065.23851
A20: MA-IC-4 | B20: 17.68 | C20: 15.61 | D20: 0.882918552 | E20: =[1]!AgePb76($D$20) -> 5061.762259
A21: MA-IC-12 | B21: 17.76 | C21: 15.72 | D21: 0.8851351351 | E21: =[1]!AgePb76($D$21) -> 5065.311183
A22: MA-IC-14 | B22: 17.72 | C22: 15.65 | D22: 0.8831828442 | E22: =[1]!AgePb76($D$22) -> 5062.185908
A23: MA-IC-16 | B23: 17.76 | C23: 15.7 | D23: 0.884009009 | E23: =[1]!AgePb76($D$23) -> 5063.509346
A24: MA-IC-19A | B24: 17.71 | C24: 15.63 | D24: 0.8825522304 | E24: =[1]!AgePb76($D$24) -> 5061.174839
A25: MA-IC-19B | B25: 17.74 | C25: 15.63 | D25: 0.881059752 | E25: =[1]!AgePb76($D$25) -> 5058.77888
A26: MA-IC-33 | B26: 17.7 | C26: 15.65 | D26: 0.884180791 | E26: =[1]!AgePb76($D$26) -> 5063.78436
A27: MA-IC-33B | B27: 17.73 | C27: 15.66 | D27: 0.883248731 | E27: =[1]!AgePb76($D$27) -> 5062.2915
A28: MA-IC-41 | B28: 17.77 | C28: 15.76 | D28: 0.8868880135 | E28: =[1]!AgePb76($D$28) -> 5068.111011
A29: JK 1a | B29: 18 | C29: 15.94 | D29: 0.8855555556 | E29: =[1]!AgePb76($D$29) -> 5065.983246
A30: JK 2a | B30: 17.87 | C30: 15.77 | D30: 0.8824846111 | E30: =[1]!AgePb76($D$30) -> 5061.066379
A31: MA-IC-44 | B31: 17.73 | C31: 15.66 | D31: 0.883248731 | E31: =[1]!AgePb76($D$31) -> 5062.2915
A32: MA-IC-45 | B32: 17.79 | C32: 15.75 | D32: 0.8853288364 | E32: =[1]!AgePb76($D$32) -> 5065.620866
A33: MA-IC-50 | B33: 17.81 | C33: 15.76 | D33: 0.8848961258 | E33: =[1]!AgePb76($D$33) -> 5064.928964
A34: MA-IC-51 | B34: 17.75 | C34: 15.68 | D34: 0.8833802817 | E34: =[1]!AgePb76($D$34) -> 5062.502303
A35: MA-IC-53 | B35: 17.68 | C35: 15.66 | D35: 0.8857466063 | E35: =[1]!AgePb76($D$35) -> 5066.288538
A36: MA-IC-52 | B36: 17.74 | C36: 15.66 | D36: 0.8827508455 | E36: =[1]!AgePb76($D$36) -> 5061.493363
A37: GHI 1b | B37: 17.85 | C37: 15.79 | D37: 0.8845938375 | E37: =[1]!AgePb76($D$37) -> 5064.445394
A38: Vazante
A39: VZ-IC-F797 | B39: 17.72 | C39: 15.67 | D39: 0.8843115124 | E39: =[1]!AgePb76($D$39) -> 5063.9936
A40: VZ-IC-F1106 | B40: 17.73 | C40: 15.67 | D40: 0.8838127468 | E40: =[1]!AgePb76($D$40) -> 5063.195071
A41: VZ-IC-F1136 | B41: 17.76 | C41: 15.71 | D41: 0.8845720721 | E41: =[1]!AgePb76($D$41) -> 5064.410569
A42: VZ 01 | B42: 17.7 | C42: 15.65 | D42: 0.884180791 | E42: =[1]!AgePb76($D$42) -> 5063.78436
A43: Fagundes
A44: FG-64-14A | B44: 17.82 | C44: 15.7 | D44: 0.8810325477 | E44: =[1]!AgePb76($D$44) -> 5058.735167
A45: FG-76-15 | B45: 17.83 | C45: 15.68 | D45: 0.8794167134 | E45: =[1]!AgePb76($D$45) -> 5056.136233
A46: FG-76-42 | B46: 17.76 | C46: 15.66 | D46: 0.8817567568 | E46: =[1]!AgePb76($D$46) -> 5059.898356
A47: FG-79-2 | B47: 17.83 | C47: 15.71 | D47: 0.8810992709 | E47: =[1]!AgePb76($D$47) -> 5058.842377
A48: FG-IC-F64 | B48: 17.81 | C48: 15.67 | D48: 0.879842785 | E48: =[1]!AgePb76($D$48) -> 5056.822025
A49: FG-IC-F76 | B49: 17.77 | C49: 15.65 | D49: 0.8806978053 | E49: =[1]!AgePb76($D$49) -> 5058.197177
A50: Ambrósia
A51: AM-IC-F104 | B51: 17.74 | C51: 15.69 | D51: 0.8844419391 | E51: =[1]!AgePb76($D$51) -> 5064.202336
A52: AM-IC-F98 | B52: 17.74 | C52: 15.63 | D52: 0.881059752 | E52: =[1]!AgePb76($D$52) -> 5058.77888
A53: AM-73-15 | B53: 17.85 | C53: 15.67 | D53: 0.8778711485 | E53: =[1]!AgePb76($D$53) -> 5053.645576

Sheet Exc_20
B1: 206/204 | D1: 207/204 | E1: Pb207/Pb206 | F1: Pb207/Pb206 | J1: Table 5
B2: Ratio | D2: Ratio | E2: Ratio | F2: Age
A3: O6-19M-step1 | B3: 20.715 | C3: 0.028 | D3: 16.297 | E3: =(D3/B3) -> 0.7867245957 | F3: =[1]!AgePb76($E$3) -> 4897.891103 | G3: 0.023 | H3: 39.426 | I3: 0.058
A4: O6-19M-step2 | B4: 22.643 | C4: 0.031 | D4: 16.686 | E4: =(D4/B4) -> 0.7369164863 | F4: =[1]!AgePb76($E$4) -> 4804.439798 | G4: 0.023 | H4: 45.551 | I4: 0.065
A5: O6-19M-step3 | B5: 53.998 | C5: 0.07 | D5: 20.827 | E5: 0.3856994704 | F5: =[1]!AgePb76($E$5) -> 3854.245279 | G5: 0.027 | H5: 103.462 | I5: 0.14
A6: O6-19M-step4 | B6: 331.646 | C6: 0.151 | D6: 61.872 | E6: 0.1865603686 | F6: =[1]!AgePb76($E$6) -> 2712.073654 | G6: 0.028 | H6: 628.888 | I6: 0.29
A7: O6-19M-residue | B7: 78.876 | C7: 0.101 | D7: 24.307 | E7: 0.3081672499 | F7: =[1]!AgePb76($E$7) -> 3511.76679 | G7: 0.031 | H7: 42.247 | I7: 0.055
A8: Intrafolial
A9: O6-19L-step1 | B9: 21.909 | C9: 0.031 | D9: 16.644 | E9: 0.7596877995 | F9: =[1]!AgePb76($E$9) -> 4847.973701 | G9: 0.024 | H9: 38.735 | I9: 0.058
A10: O6-19L-step2 | B10: 23.34 | C10: 0.033 | D10: 16.885 | E10: 0.7234361611 | F10: =[1]!AgePb76($E$10) -> 4777.986631 | G10: 0.024 | H10: 38.821 | I10: 0.06
A11: O6-19L-step3 | B11: 24.548 | C11: 0.034 | D11: 17.074 | E11: 0.6955352778 | F11: =[1]!AgePb76($E$11) -> 4721.522127 | G11: 0.024 | H11: 43.289 | I11: 0.065
A12: O6-19L-step4 | B12: 40.432 | C12: 0.068 | D12: 19.077 | E12: 0.4718292442 | F12: =[1]!AgePb76($E$12) -> 4155.519681 | G12: 0.034 | H12: 63.621 | I12: 0.121
A13: O6-19L-residue | B13: 29.144 | C13: 0.037 | D13: 17.073 | E13: 0.5858152621 | F13: =[1]!AgePb76($E$13) -> 4473.204806 | G13: 0.022 | H13: 38.777 | I13: 0.05
A14: Quartzo-feldspathic
A15: RB24-step1 | B15: 23.746 | C15: 0.035 | D15: 16.489 | E15: 0.6943906342 | F15: =[1]!AgePb76($E$15) -> 4719.15422 | G15: 0.024 | H15: 44.184 | I15: 0.067
A16: RB24-step2 | B16: 25.402 | C16: 0.034 | D16: 16.854 | E16: 0.6634910637 | F16: =[1]!AgePb76($E$16) -> 4653.605215 | G16: 0.023 | H16: 49.026 | I16: 0.071
A17: RB24-step3 | B17: 33.188 | C17: 0.179 | D17: 18.135 | E17: 0.5464324455 | F17: =[1]!AgePb76($E$17) -> 4371.633219 | G17: 0.104 | H17: 81.455 | I17: 0.544
A18: RB24-step4 | B18: 63.349 | C18: 0.096 | D18: 23.406 | E18: 0.3694770241 | F18: =[1]!AgePb76($E$18) -> 3789.276313 | G18: 0.037 | H18: 187.08 | I18: 0.319
A19: RB24-residue | B19: 26.053 | C19: 0.032 | D19: 16.826 | E19: 0.6458373316 | F19: =[1]!AgePb76($E$19) -> 4614.671338 | G19: 0.021 | H19: 41.45 | I19: 0.052
A20: Metapelite
A21: TOV13-step1 | B21: 70.344 | C21: 0.097 | D21: 23.614 | E21: 0.335693165 | F21: =[1]!AgePb76($E$21) -> 3643.277239 | G21: 0.033 | H21: 55.656 | I21: 0.08
A22: TOV13-step2 | B22: 34.253 | C22: 0.05 | D22: 18.77 | E22: 0.5479811987 | F22: =[1]!AgePb76($E$22) -> 4375.774768 | G22: 0.029 | H22: 52.846 | I22: 0.085
A23: TOV13-step3 | B23: 236.328 | C23: 0.332 | D23: 43.563 | E23: 0.1843327917 | F23: =[1]!AgePb76($E$23) -> 2692.244577 | G23: 0.063 | H23: 510.933 | I23: 0.769
A24: TOV13-step4 | B24: 261.78 | C24: 0.338 | D24: 46.021 | E24: 0.1758002903 | F24: =[1]!AgePb76($E$24) -> 2613.644242 | G24: 0.06 | H24: 638.372 | I24: 0.837
A25: TOV13-residue | B25: 144.738 | C25: 0.247 | D25: 32.982 | E25: 0.2278738134 | F25: =[1]!AgePb76($E$25) -> 3037.174462 | G25: 0.058 | H25: 67.161 | I25: 0.119

Sheet Exc_21
C1: Pb206/Pb204 | D1: Pb207/Pb204 | E1: Pb207/Pb206 | F1: Pb207/Pb206 | G1: Pb206/Pb204 | H1: Pb207/Pb204 | I1: Pb207/Pb206 | J1: Pb207/Pb206 | K1: Table 3.
C2: Ratio | D2: Ratio | E2: Ratio | F2: Age | G2: Ratio | H2: Ratio | I2: Ratio | J2: Age
A3: TYO | B3: 101 | C3: 18.355 | D3: 15.562 | E3: =(D3/C3) -> 0.8478343776 | F3: =[1]!AgePb76($E$3) -> 5004.295558 | G3: 18.32 | H3: 15.56 | I3: =(H3/G3) -> 0.8493449782 | J3: =[1]!AgePb76($I$3) -> 5006.82149
A4: TYO | B4: 102 | C4: 18.41 | D4: 15.577 | E4: =(D4/C4) -> 0.8461162412 | F4: =[1]!AgePb76($E$4) -> 5001.416779 | G4: 18.38 | H4: 15.58 | I4: 0.8476605005 | J4: =[1]!AgePb76($I$4) -> 5004.004504
A5: TYO | B5: 103 | C5: 18.411 | D5: 15.578 | E5: 0.8461245994 | F5: =[1]!AgePb76($E$5) -> 5001.430799 | G5: 18.38 | H5: 15.58 | I5: 0.8476605005 | J5: =[1]!AgePb76($I$5) -> 5004.004504
A6: TYO | B6: 104 | C6: 18.407 | D6: 15.573 | E6: 0.8460368338 | F6: =[1]!AgePb76($E$6) -> 5001.28358 | G6: 18.37 | H6: 15.57 | I6: 0.8475775721 | J6: =[1]!AgePb76($I$6) -> 5003.865668
A7: Ryozen
A8: RZ-1 | B8: 0.704546 | C8: 18.302 | D8: 15.548 | E8: 0.8495246421 | F8: =[1]!AgePb76($E$8) -> 5007.121596 | G8: 18.29 | H8: 15.55 | I8: 0.8501913614 | J8: =[1]!AgePb76($I$8) -> 5008.234675
A9: RZ-4 | B9: 0.704605 | C9: 18.333 | D9: 15.556 | E9: 0.8485245186 | F9: =[1]!AgePb76($E$9) -> 5005.450161 | G9: 18.33 | H9: 15.56 | I9: 0.8488816148 | J9: =[1]!AgePb76($I$9) -> 5006.047191
A10: RZ-5 | B10: 0.704852 | C10: 18.387 | D10: 15.564 | E10: 0.846467613 | F10: =[1]!AgePb76($E$10) -> 5002.006016 | G10: 18.38 | H10: 15.56 | I10: 0.8465723613 | J10: =[1]!AgePb76($I$10) -> 5002.181624
A11: RZ-6 | B11: 0.704877 | C11: 18.401 | D11: 15.577 | E11: 0.8465300799 | F11: =[1]!AgePb76($E$11) -> 5002.110743 | G11: 18.39 | H11: 15.58 | I11: 0.847199565 | J11: =[1]!AgePb76($I$11) -> 5003.232636
A12: RZ-13 | B12: 0.704385 | C12: 18.276 | D12: 15.542 | E12: 0.8504049026 | F12: =[1]!AgePb76($E$12) -> 5008.590983 | G12: 18.27 | H12: 15.54 | I12: 0.8505747126 | J12: =[1]!AgePb76($I$12) -> 5008.874255
A13: RZ-16 | B13: 0.704857 | C13: 18.425 | D13: 15.578 | E13: 0.8454816825 | F13: =[1]!AgePb76($E$13) -> 5000.351991 | G13: 18.41 | H13: 15.58 | I13: 0.8462791961 | J13: =[1]!AgePb76($I$13) -> 5001.690081
A14: Takadate
A15: 1908 | B15: 0.283102
A16: 1909 | B16: 0.704393 | C16: 18.41 | D16: 15.583 | E16: 0.846442151 | F16: =[1]!AgePb76($E$16) -> 5001.963326 | G16: 18.4 | H16: 15.58 | I16: 0.8467391304 | J16: =[1]!AgePb76($I$16) -> 5002.461162
A17: 1910 | B17: 0.704222 | C17: 18.374 | D17: 15.594 | E17: 0.8486992489 | F17: =[1]!AgePb76($E$17) -> 5005.742326 | G17: 18.37 | H17: 15.59 | I17: 0.8486663038 | J17: =[1]!AgePb76($I$17) -> 5005.687244
A18: 1911 | B18: 0.28315
A19: 1912 | B19: 0.704211 | C19: 18.396 | D19: 15.581 | E19: 0.8469776038 | F19: =[1]!AgePb76($E$19) -> 5002.860788 | G19: 18.38 | H19: 15.58 | I19: 0.8476605005 | J19: =[1]!AgePb76($I$19) -> 5004.004504
A20: Tomari
A21: TM-0 | B21: 0.704763 | C21: 18.436 | D21: 15.581 | E21: 0.8451399436 | F21: =[1]!AgePb76($E$21) -> 4999.778202 | G21: 18.42 | H21: 15.58 | I21: 0.8458197611 | J21: =[1]!AgePb76($I$21) -> 5000.919392
A22: TM-1 | B22: 0.704336 | C22: 18.402 | D22: 15.565 | E22: 0.8458319748 | F22: =[1]!AgePb76($E$22) -> 5000.939886 | G22: 18.39 | H22: 15.56 | I22: 0.8461120174 | J22: =[1]!AgePb76($I$22) -> 5001.409695
A23: TM-2 | B23: 0.704301 | C23: 18.408 | D23: 15.573 | E23: 0.8459908735 | F23: =[1]!AgePb76($E$23) -> 5001.20648 | G23: 18.4 | H23: 15.57 | I23: 0.8461956522 | J23: =[1]!AgePb76($I$23) -> 5001.549971
A24: TM-3 | B24: 0.283139
A25: SKD-1 | B25: 0.28313
A26: Mitaki
A27: 1903 | B27: 0.283162
A28: 1904 | B28: 0.704399 | C28: 18.452 | D28: 15.586 | E28: 0.8446780837 | F28: =[1]!AgePb76($E$28) -> 4999.002334 | G28: 18.45 | H28: 15.59 | I28: 0.8449864499 | J28: =[1]!AgePb76($I$28) -> 4999.520401
A29: 1905 | B29: 0.704409 | C29: 18.451 | D29: 15.584 | E29: 0.844615468 | F29: =[1]!AgePb76($E$29) -> 4998.897113 | G29: 18.45 | H29: 15.58 | I29: 0.8444444444 | J29: =[1]!AgePb76($I$29) -> 4998.609678
A30: 1906 | B30: 0.704499 | C30: 18.455 | D30: 15.587 | E30: 0.8445949607 | F30: =[1]!AgePb76($E$30) -> 4998.86265 | G30: 18.45 | H30: 15.59 | I30: 0.8449864499 | J30: =[1]!AgePb76($I$30) -> 4999.520401
A31: 1907 | B31: 0.283143
A32: Iwate
A33: 95072606 | B33: 0.704329 | C33: 18.557 | D33: 15.596 | E33: 0.8404375707 | F33: =[1]!AgePb76($E$33) -> 4991.857663 | G33: 18.56 | H33: 15.6 | I33: 0.8405172414 | J33: =[1]!AgePb76($I$33) -> 4991.99225
A34: 95073105 | B34: 0.704244 | C34: 18.554 | D34: 15.6 | E34: 0.8407890482 | F34: =[1]!AgePb76($E$34) -> 4992.451308 | G34: 18.55 | H34: 15.6 | I34: 0.8409703504 | J34: =[1]!AgePb76($I$34) -> 4992.757423
A35: 2082708 | B35: 0.70427 | C35: 18.546 | D35: 15.585 | E35: 0.8403429311 | F35: =[1]!AgePb76($E$35) -> 4991.697772 | G35: 18.55 | H35: 15.59 | I35: 0.8404312668 | J35: =[1]!AgePb76($I$35) -> 4991.847014

Sheet Exc_22
A1: Sample | B1: 206Pb/204Pb | C1: 207Pb/204Pb | D1: 207Pb/206Pb | E1: 207Pb/206Pb | F1: 208Pb/204Pb | G1: 238U/204Pb | H1: 206Pb/238U | I1: 206Pb/238U | P1: 5004
A2: Name | B2: Ratio | C2: Ratio | D2: Ratio | E2: Age | F2: Ratio | G2: Ratio | H2: Ratio | I2: Age | J2: 206Pb/204Pb | K2: 207Pb/204Pb | L2: 208Pb/204Pb | M2: _7/4 | N2: _8/4 | P2: 5034
A3: JN2 | B3: 16.626 | C3: 15.226 | D3: =(C3/B3) -> 0.9157945387 | E3: =[1]!AgePb76($D$3) -> 5113.454643 | F3: 36.456 | G3: 3.6685 | H3: =(B3/G3) -> 4.532097588 | I3: =[1]!AgePb6U8(H3) -> 11027.02372 | J3: 16.56 | K3: 15.223 | L3: 36.369 | M3: −6.3 | N3: 72.2 | P3: 5045
A4: JN4 | B4: 16.91 | C4: 15.22 | D4: =(C4/B4) -> 0.9000591366 | E4: =[1]!AgePb76($D$4) -> 5088.963019 | F4: 36.587 | G4: 4.6363 | H4: =(B4/G4) -> 3.647304963 | I4: =[1]!AgePb6U8(H4) -> 9903.545358 | J4: 16.827 | K4: 15.216 | L4: 36.477 | M4: −9.9 | N4: 50.7 | P4: 5051
A5: JN14 | B5: 16.827 | C5: 15.266 | D5: 0.9072324241 | E5: =[1]!AgePb76($D$5) -> 5100.183831 | F5: 36.734 | G5: 0.4644 | H5: 36.23385013 | I5: =[1]!AgePb6U8(H5) -> 23318.08733 | J5: 16.819 | K5: 15.266 | L5: 36.724 | M5: −4.8 | N5: 76.3 | P5: 5062
A6: JN6 | B6: 16.939 | C6: 15.288 | D6: 0.902532617 | E6: =[1]!AgePb76($D$6) -> 5092.842835 | F6: 36.692 | G6: 5.6669 | H6: 2.989112213 | I6: =[1]!AgePb6U8(H6) -> 8919.05691 | J6: 16.837 | K6: 15.283 | L6: 36.586 | M6: −3.3 | N6: 60.4 | P6: 5065
A7: JN7 | B7: 16.735 | C7: 15.269 | D7: 0.9123991634 | E7: =[1]!AgePb76($D$7) -> 5108.207793 | F7: 36.408 | G7: 5.0007 | H7: 3.346531486 | I7: =[1]!AgePb6U8(H7) -> 9472.220257 | J7: 16.645 | K7: 15.265 | L7: 36.29 | M7: −3.0 | N7: 54 | P7: 5068
A8: JN8-1 | B8: 16.743 | C8: 15.269 | D8: 0.9119632085 | E8: =[1]!AgePb76($D$8) -> 5107.532616 | F8: 36.518 | G8: 2.7323 | H8: 6.127804414 | I8: =[1]!AgePb6U8(H8) -> 12660.77841 | J8: 16.694 | K8: 15.266 | L8: 36.379 | M8: −3.4 | N8: 56.9 | P8: 5074
A9: JN9 | B9: 16.828 | C9: 15.272 | D9: 0.9075350606 | E9: =[1]!AgePb76($D$9) -> 5100.65516 | F9: 36.599 | G9: 3.2051 | H9: 5.250382203 | I9: =[1]!AgePb6U8(H9) -> 11813.97334 | J9: 16.771 | K9: 15.269 | L9: 36.505 | M9: −4.0 | N9: 60.2 | P9: 5079
A10: JN10 | B10: 16.744 | C10: 15.264 | D10: 0.911610129 | E10: =[1]!AgePb76($D$10) -> 5106.98554 | F10: 36.472 | G10: 4.1713 | H10: 4.014096325 | I10: =[1]!AgePb6U8(H10) -> 10393.25196 | J10: 16.669 | K10: 15.26 | L10: 36.378 | M10: −3.9 | N10: 59.9 | P10: 5082
A11: JN13 | B11: 16.701 | C11: 15.248 | D11: 0.9129992216 | E11: =[1]!AgePb76($D$11) -> 5109.136562 | F11: 36.454 | G11: 3.3802 | H11: 4.940831903 | I11: =[1]!AgePb6U8(H11) -> 11486.53779 | J11: 16.64 | K11: 15.245 | L11: 36.374 | M11: −5.0 | N11: 62.9 | P11: 5083
A12: Taihangshan | B12: region: | C12: Guyi | D12: 0 | F12: and | G12: Fushan | H12: 0 | I12: 0 | J12: gabbro | K12: (t=155 | L12: Ma) | P12: 5085
A13: FS10 | B13: 16.968 | C13: 15.21 | D13: 0.8963932107 | E13: =[1]!AgePb76($D$13) -> 5083.191932 | F13: 37.039 | G13: 6.249 | H13: 2.71531445 | I13: =[1]!AgePb6U8(H13) -> 8460.682147 | J13: 16.816 | K13: 15.203 | L13: 36.791 | M13: −11.1 | N13: 83.4 | P13: 5089
A14: HXY3 | B14: 17.416 | C14: 15.257 | D14: 0.8760335324 | E14: =[1]!AgePb76($D$14) -> 5050.678221 | F14: 38.007 | G14: 1.1529 | H14: 15.10625379 | I14: =[1]!AgePb6U8(H14) -> 17915.92349 | J14: 17.388 | K14: 15.256 | L14: 37.964 | M14: −12.0 | N14: 131.5 | P14: 5092
A15: HXY6 | B15: 17.193 | C15: 15.18 | D15: 0.8829174664 | E15: =[1]!AgePb76($D$15) -> 5061.760518 | F15: 37.731 | G15: 1.0245 | H15: 16.7818448 | I15: =[1]!AgePb6U8(H15) -> 18553.92736 | J15: 17.168 | K15: 15.179 | L15: 37.691 | M15: −17.3 | N15: 130.6 | P15: 5092
A16: HXY7 | B16: 17.16 | C16: 15.223 | D16: 0.8871212121 | E16: =[1]!AgePb76($D$16) -> 5068.483051 | F16: 37.661 | G16: 0.585 | H16: 29.33333333 | I16: =[1]!AgePb6U8(H16) -> 21996.75886 | J16: 17.146 | K16: 15.223 | L16: 37.632 | M16: −12.7 | N16: 127.6 | P16: 5093
A17: Taihangshan | B17: region: | C17: Donggang | D17: 0 | F17: gabbro | G17: (t=155 | H17: 0 | I17: 0 | J17: Ma) | P17: 5096
A18: GY1 | B18: 17.474 | C18: 15.25 | D18: 0.8727251917 | E18: =[1]!AgePb76($D$18) -> 5045.319276 | F18: 37.614 | G18: 11.5638 | H18: 1.511094969 | I18: =[1]!AgePb6U8(H18) -> 5935.335378 | J18: 17.192 | K18: 15.237 | L18: 37.246 | M18: −11.8 | N18: 83.4 | P18: 5096
A19: GY2 | B19: 18.063 | C19: 15.308 | D19: 0.8474782705 | E19: =[1]!AgePb76($D$19) -> 5003.699401 | F19: 39.18 | G19: 12.1116 | H19: 1.491380164 | I19: =[1]!AgePb6U8(H19) -> 5884.52435 | J19: 17.768 | K19: 15.293 | L19: 38.072 | M19: −12.4 | N19: 96.3 | P19: 5099
A20: GY3 | B20: 17.605 | C20: 15.243 | D20: 0.86583357 | E20: =[1]!AgePb76($D$20) -> 5034.086461 | F20: 38.058 | G20: 6.9072 | H20: 2.548789669 | I20: =[1]!AgePb6U8(H20) -> 8165.070794 | J20: 17.437 | K20: 15.235 | L20: 37.262 | M20: −14.6 | N20: 55.3 | P20: 5099
A21: DG1 | B21: 17.236 | C21: 15.257 | D21: 0.8851821768 | E21: =[1]!AgePb76($D$21) -> 5065.386399 | F21: 37.529 | G21: 6.9183 | H21: 2.491363485 | I21: =[1]!AgePb6U8(H21) -> 8059.902294 | J21: 17.068 | K21: 15.249 | L21: 37.336 | M21: −9.3 | N21: 107.4 | P21: 5100
A22: DG2 | B22: 17.022 | C22: 15.273 | D22: 0.8972506168 | E22: =[1]!AgePb76($D$22) -> 5084.543943 | F22: 36.934 | G22: 6.5121 | H22: 2.613903349 | I22: =[1]!AgePb6U8(H22) -> 8282.278474 | J22: 16.863 | K22: 15.265 | L22: 36.709 | M22: −5.4 | N22: 69.5 | P22: 5101
A23: DG3 | B23: 17.154 | C23: 15.273 | D23: 0.8903462749 | E23: =[1]!AgePb76($D$23) -> 5073.617631 | F23: 37.379 | G23: 3.9239 | H23: 4.371671042 | I23: =[1]!AgePb6U8(H23) -> 10837.31856 | J23: 17.058 | K23: 15.268 | L23: 37.236 | M23: −7.2 | N23: 98.5 | P23: 5102
A24: DG4 | B24: 17.083 | C24: 15.295 | D24: 0.8953345431 | E24: =[1]!AgePb76($D$24) -> 5081.520666 | F24: 37.261 | G24: 3.8168 | H24: 4.475738839 | I24: =[1]!AgePb6U8(H24) -> 10961.01347 | J24: 16.99 | K24: 15.29 | L24: 37.17 | M24: −4.3 | N24: 100.2 | P24: 5104
A25: Taihangshan | B25: region: | C25: Laiyuan | D25: 0 | F25: gabbro | G25: (t=140 | H25: 0 | I25: 0 | J25: Ma) | P25: 5106
A26: WLG-01 | B26: 16.928 | C26: 15.265 | D26: 0.901760397 | E26: =[1]!AgePb76($D$26) -> 5091.632769 | F26: 36.982 | G26: 6.023 | H26: 2.810559522 | I26: =[1]!AgePb6U8(H26) -> 8623.858401 | J26: 16.795 | K26: 15.259 | L26: 36.839 | M26: −5.3 | N26: 90.7 | P26: 5106
A27: WLG-02 | B27: 16.635 | C27: 15.182 | D27: 0.9126540427 | E27: =[1]!AgePb76($D$27) -> 5108.602374 | F27: 36.493 | G27: 2.602 | H27: 6.393159108 | I27: =[1]!AgePb6U8(H27) -> 12896.40695 | J27: 16.578 | K27: 15.179 | L27: 36.454 | M27: −10.9 | N27: 78.4 | P27: 5106
A28: WLG-03 | B28: 16.743 | C28: 15.283 | D28: 0.9127993788 | E28: =[1]!AgePb76($D$28) -> 5108.827318 | F28: 36.846 | G28: 3.046 | H28: 5.496717006 | I28: =[1]!AgePb6U8(H28) -> 12063.15535 | J28: 16.676 | K28: 15.28 | L28: 36.765 | M28: −1.9 | N28: 97.8 | P28: 5107
A29: WLG-04 | B29: 16.729 | C29: 15.249 | D29: 0.9115308745 | E29: =[1]!AgePb76($D$29) -> 5106.862709 | F29: 36.745 | G29: 1.512 | H29: 11.06415344 | I29: =[1]!AgePb6U8(H29) -> 16053.10898 | J29: 16.695 | K29: 15.247 | L29: 36.716 | M29: −5.3 | N29: 90.4 | P29: 5107
A30: WLG-06 | B30: 16.719 | C30: 15.233 | D30: 0.9111190861 | E30: =[1]!AgePb76($D$30) -> 5106.224325 | F30: 36.743 | G30: 5.442 | H30: 3.072216097 | I30: =[1]!AgePb6U8(H30) -> 9051.973227 | J30: 16.6 | K30: 15.228 | L30: 36.611 | M30: −6.3 | N30: 91.5 | P30: 5108
A31: WLG-08 | B31: 16.867 | C31: 15.219 | D31: 0.9022944211 | E31: =[1]!AgePb76($D$31) -> 5092.4697 | F31: 36.726 | G31: 6.778 | H31: 2.488492181 | I31: =[1]!AgePb6U8(H31) -> 8054.598568 | J31: 16.719 | K31: 15.212 | L31: 36.53 | M31: −9.1 | N31: 69 | P31: 5108
A32: WLG-09 | B32: 16.678 | C32: 15.254 | D32: 0.9146180597 | E32: =[1]!AgePb76($D$32) -> 5111.638976 | F32: 36.643 | G32: 1.116 | H32: 14.94444444 | I32: =[1]!AgePb6U8(H32) -> 17850.83293 | J32: 16.653 | K32: 15.253 | L32: 36.624 | M32: −4.3 | N32: 86.3 | P32: 5109
A33: LMG-01 | B33: 16.693 | C33: 15.203 | D33: 0.9107410292 | E33: =[1]!AgePb76($D$33) -> 5105.637964 | F33: 36.866 | G33: 4.347 | H33: 3.840119623 | I33: =[1]!AgePb6U8(H33) -> 10165.60474 | J33: 16.598 | K33: 15.199 | L33: 36.706 | M33: −9.1 | N33: 101.2 | P33: 5109
A34: LMG-02 | B34: 16.802 | C34: 15.2 | D34: 0.9046542078 | E34: =[1]!AgePb76($D$34) -> 5096.161719 | F34: 36.748 | G34: 7.735 | H34: 2.172204266 | I34: =[1]!AgePb6U8(H34) -> 7441.912641 | J34: 16.632 | K34: 15.192 | L34: 36.426 | M34: −10.2 | N34: 69.1 | P34: 5109
A35: LMG-03 | B35: 16.681 | C35: 15.089 | D35: 0.9045620766 | E35: =[1]!AgePb76($D$35) -> 5096.017766 | F35: 36.444 | G35: 2.013 | H35: 8.28663686 | I35: =[1]!AgePb6U8(H35) -> 14366.32696 | J35: 16.636 | K35: 15.087 | L35: 36.361 | M35: −20.8 | N35: 62 | P35: 5109
A36: LMG-04 | B36: 16.786 | C36: 15.219 | D36: 0.9066483975 | E36: =[1]!AgePb76($D$36) -> 5099.273791 | F36: 36.666 | G36: 2.725 | H36: 6.16 | I36: =[1]!AgePb6U8(H36) -> 12689.83066 | J36: 16.726 | K36: 15.216 | L36: 36.579 | M36: −8.8 | N36: 73 | P36: 5112
A37: LMG-06 | B37: 16.641 | C37: 15.194 | D37: 0.913046091 | E37: =[1]!AgePb76($D$37) -> 5109.20908 | F37: 36.689 | G37: 1.682 | H37: 9.893579073 | I37: =[1]!AgePb6U8(H37) -> 15395.15578 | J37: 16.604 | K37: 15.192 | L37: 36.635 | M37: −9.9 | N37: 93.4 | P37: 5113
A38: LMG-07 | B38: 16.659 | C38: 15.173 | D38: 0.9107989675 | E38: =[1]!AgePb76($D$38) -> 5105.727843 | F38: 36.918 | G38: 2.511 | H38: 6.634408602 | I38: =[1]!AgePb6U8(H38) -> 13103.40356 | J38: 16.604 | K38: 15.17 | L38: 36.848 | M38: −12.1 | N38: 114.7 | P38: 5118
A39: LMG-10 | B39: 16.863 | C39: 15.284 | D39: 0.9063630433 | E39: =[1]!AgePb76($D$39) -> 5098.828921 | F39: 36.973 | G39: 6.039 | H39: 2.792349727 | I39: =[1]!AgePb6U8(H39) -> 8592.978615 | J39: 16.73 | K39: 15.277 | L39: 36.802 | M39: −2.7 | N39: 94.8 | P39: 5885
A40: LMG-11 | B40: 16.774 | C40: 15.26 | D40: 0.9097412662 | E40: =[1]!AgePb76($D$40) -> 5104.086103 | F40: 36.808 | G40: 6.907 | H40: 2.428550746 | I40: =[1]!AgePb6U8(H40) -> 7942.869613 | J40: 16.623 | K40: 15.253 | L40: 36.627 | M40: −4.0 | N40: 90.3 | P40: 5935
A41: LMG-12 | B41: 17.031 | C41: 15.218 | D41: 0.8935470612 | E41: =[1]!AgePb76($D$41) -> 5078.694095 | F41: 37.511 | G41: 4.328 | H41: 3.935073937 | I41: =[1]!AgePb6U8(H41) -> 10290.84709 | J41: 16.936 | K41: 15.213 | L41: 37.388 | M41: −11.4 | N41: 128.5 | P41: 7442
A42: LMG-13 | B42: 16.825 | C42: 15.282 | D42: 0.9082912333 | E42: =[1]!AgePb76($D$42) -> 5101.832104 | F42: 36.921 | G42: 6.776 | H42: 2.483028335 | I42: =[1]!AgePb6U8(H42) -> 8044.493967 | J42: 16.676 | K42: 15.275 | L42: 36.713 | M42: −2.4 | N42: 92.4 | P42: 7943
A43: LMG-14 | B43: 16.579 | C43: 15.228 | D43: 0.9185113698 | E43: =[1]!AgePb76($D$43) -> 5117.638119 | F43: 37.106 | G43: 3.103 | H43: 5.342893974 | I43: =[1]!AgePb6U8(H43) -> 11908.68736 | J43: 16.51 | K43: 15.225 | L43: 36.91 | M43: −5.6 | N43: 132.2 | P43: 8044
P44: 8055
P45: 8060
P46: 8165
P47: 8282
P48: 8461
P49: 8593
P50: 8624
P51: 8919
P52: 9052
P53: 9472
P54: 9904
P55: 10166
P56: 10291
P57: 10393
P58: 10837
P59: 10961
P60: 11027
P61: 11487
P62: 11814
P63: 11909
P64: 12063
P65: 12661
P66: 12690
P67: 12896
P68: 13103
P69: 14366
P70: 15395
P71: 16053
P72: 17851
P73: 17916
P74: 18554
P75: 21997
P76: 23318

Sheet Exc_23
B1: 206Pb/204Pb | C1: 207Pb/204Pb | D1: 207Pb/206Pb | E1: 207Pb/206Pb | F1: TABLE 1. | H1: 4840
B2: Ratio | C2: Ratio | D2: Ratio | E2: Age | H2: 4841
A3: AmphD-1 | B3: 18.193 | C3: 15.478 | D3: =(C3/B3) -> 0.8507667784 | E3: =[1]!AgePb76($D$3) -> 5009.194582 | H3: 4844
A4: AmphD-3 | B4: 18.16 | C4: 15.459 | D4: =(C4/B4) -> 0.8512665198 | E4: =[1]!AgePb76($D$4) -> 5010.027687 | H4: 4845
A5: AmphD-4 | B5: 18.588 | C5: 15.534 | D5: 0.8357004519 | E5: =[1]!AgePb76($D$5) -> 4983.830849 | H5: 4846
A6: V21-40 | B6: 18.348 | C6: 15.5 | D6: 0.8447787225 | E6: =[1]!AgePb76($D$6) -> 4999.171434 | H6: 4846
A7: KD-11 | B7: 18.404 | C7: 15.505 | D7: 0.8424798957 | E7: =[1]!AgePb76($D$7) -> 4995.303464 | H7: 4846
A8: 1154 | B8: 18.333 | C8: 15.464 | D8: 0.8435062456 | E8: =[1]!AgePb76($D$8) -> 4997.031768 | H8: 4846
A9: 112373 | B9: 18.395 | C9: 15.465 | D9: 0.8407175863 | E9: =[1]!AgePb76($D$9) -> 4992.33063 | H9: 4849
A10: (Ca | D10: 0 | H10: 4850
A11: Mid-Atlantic | D11: 0 | H11: 4853
A12: V25-1-103 | B12: 18.311 | C12: 15.466 | D12: 0.8446289116 | E12: =[1]!AgePb76($D$12) -> 4998.919705 | H12: 4853
A13: V25-1-97 | B13: 18.323 | C13: 15.482 | D13: 0.8449489712 | E13: =[1]!AgePb76($D$13) -> 4999.457447 | H13: 4867
A14: V25-1-3 | B14: 18.315 | C14: 15.471 | D14: 0.8447174447 | E14: =[1]!AgePb76($D$14) -> 4999.068474 | H14: 4874
A15: V25-1-9 | B15: 18.318 | C15: 15.485 | D15: 0.8453433781 | E15: =[1]!AgePb76($D$15) -> 5000.119804 | H15: 4881
A16: V25-1-6 | B16: 18.362 | C16: 15.507 | D16: 0.8445158479 | E16: =[1]!AgePb76($D$16) -> 4998.729692 | H16: 4885
A17: V25-1-10 | B17: 18.342 | C17: 15.493 | D17: 0.8446734271 | E17: =[1]!AgePb76($D$17) -> 4998.99451 | H17: 4888
A18: A150-7-1 | B18: 18.173 | C18: 15.461 | D18: 0.8507676223 | E18: =[1]!AgePb76($D$18) -> 5009.195989 | H18: 4890
A19: Indian | D19: 0 | H19: 4890
A20: DP | B20: 18.122 | C20: 15.5 | D20: 0.855313983 | E20: =[1]!AgePb76($D$20) -> 5016.756028 | H20: 4892
A21: TP13/29 | B21: 18.179 | C21: 15.53 | D21: 0.8542824138 | E21: =[1]!AgePb76($D$21) -> 5015.044404 | H21: 4892
A22: DP | B22: 18.243 | C22: 15.5 | D22: 0.8496409582 | E22: =[1]!AgePb76($D$22) -> 5007.315851 | H22: 4899
A23: DP | B23: 18.1 | C23: 15.492 | D23: 0.8559116022 | E23: =[1]!AgePb76($D$23) -> 5017.746621 | H23: 4899
H24: 4902
H25: 4904
H26: 4905
H27: 4906
B28: 206Pb/204Pb | C28: 207Pb/204Pb | D28: 207Pb/206Pb | E28: 207Pb/206Pb | F28: TABLE 2. | H28: 4907
B29: Ratio | C29: Ratio | D29: Ratio | E29: Age | H29: 4907
A30: GCUl | B30: 19.59 | C30: 15.619 | D30: =(C30/B30) -> 0.797294538 | E30: =[1]!AgePb76($D$3) -> 5009.194582 | H30: 4909
A31: GCU21 | B31: 19.54 | C31: 15.591 | D31: =(C31/B31) -> 0.79790174 | E31: =[1]!AgePb76($D$31) -> 4917.99578 | H31: 4909
A32: GCU23A | B32: 19.429 | C32: 15.599 | D32: 0.8028719955 | E32: =[1]!AgePb76($D$32) -> 4926.839856 | H32: 4910
A33: GCU29A | B33: 19.225 | C33: 15.556 | D33: 0.8091547464 | E33: =[1]!AgePb76($D$33) -> 4937.936397 | H33: 4911
A34: GCU64 | B34: 19.746 | C34: 15.635 | D34: 0.7918059354 | E34: =[1]!AgePb76($D$34) -> 4907.068509 | H34: 4912
A35: GC53 | B35: 20.045 | C35: 15.663 | D35: 0.7813918683 | E35: =[1]!AgePb76($D$35) -> 4888.191546 | H35: 4913
A36: GCU32 | B36: 19.735 | C36: 15.62 | D36: 0.7914872055 | E36: =[1]!AgePb76($D$36) -> 4906.494696 | H36: 4914
A37: CL13 | B37: 19.498 | C37: 15.616 | D37: 0.8009026567 | E37: =[1]!AgePb76($D$37) -> 4923.3426 | H37: 4915
A38: GCU14 | B38: 19.5 | C38: 15.61 | D38: 0.8005128205 | E38: =[1]!AgePb76($D$38) -> 4922.649224 | H38: 4915
A39: GCU15 | B39: 19.548 | C39: 15.632 | D39: 0.7996726008 | E39: =[1]!AgePb76($D$39) -> 4921.153556 | H39: 4915
A40: GCU6 | B40: 19.594 | C40: 15.63 | D40: 0.7976931714 | E40: =[1]!AgePb76($D$40) -> 4917.623372 | H40: 4917
A41: Lanzarote | D41: 0 | H41: 4917
A42: LZ137 | B42: 19.23 | C42: 15.576 | D42: 0.8099843994 | E42: =[1]!AgePb76($D$42) -> 4939.394868 | H42: 4918
A43: LZ139 | B43: 19.254 | C43: 15.57 | D43: 0.8086631349 | E43: =[1]!AgePb76($D$43) -> 4937.071427 | H43: 4918
A44: LZ17260(a)f | B44: 19.109 | C44: 15.559 | D44: 0.8142236642 | E44: =[1]!AgePb76($D$44) -> 4946.822481 | H44: 4918
A45: LZ17260(6) | B45: 19.115 | C45: 15.573 | D45: 0.814700497 | E45: =[1]!AgePb76($D$45) -> 4947.655365 | H45: 4918
A46: LZ110 | B46: 19.243 | C46: 15.577 | D46: 0.8094891649 | E46: =[1]!AgePb76($D$46) -> 4938.524472 | H46: 4918
A47: LZU8 | B47: 19.199 | C47: 15.565 | D47: 0.8107193083 | E47: =[1]!AgePb76($D$47) -> 4940.68546 | H47: 4919
A48: LZ105 | B48: 19.573 | C48: 15.601 | D48: 0.7970673887 | E48: =[1]!AgePb76($D$48) -> 4916.505389 | H48: 4921
A49: LZ3 | B49: 19.447 | C49: 15.61 | D49: 0.802694503 | E49: =[1]!AgePb76($D$49) -> 4926.52503 | H49: 4921
A50: LZ106 | B50: 19.204 | C50: 15.565 | D50: 0.8105082275 | E50: =[1]!AgePb76($D$50) -> 4940.314903 | H50: 4922
A51: Fuerteventura | D51: 0 | H51: 4923
A52: FV18 | B52: 19.339 | C52: 15.597 | D52: 0.8065049899 | E52: =[1]!AgePb76($D$52) -> 4933.267635 | H52: 4923
A53: FV4 | B53: 19.761 | C53: 15.62 | D53: 0.7904458276 | E53: =[1]!AgePb76($D$53) -> 4904.618177 | H53: 4924
A54: FV23 | B54: 19.607 | C54: 15.616 | D54: 0.7964502474 | E54: =[1]!AgePb76($D$54) -> 4915.401929 | H54: 4925
A55: Tenerife | D55: 0 | H55: 4927
A56: TF67 | B56: 19.81 | C56: 15.632 | D56: 0.789096416 | E56: =[1]!AgePb76($D$56) -> 4902.182675 | H56: 4927
A57: TF104 | B57: 19.752 | C57: 15.641 | D57: 0.7918691778 | E57: =[1]!AgePb76($D$57) -> 4907.182335 | H57: 4932
A58: TFAR | B58: 19.673 | C58: 15.62 | D58: 0.7939815991 | E58: =[1]!AgePb76($D$58) -> 4910.978823 | H58: 4932
A59: TF86 | B59: 20.022 | C59: 15.661 | D59: 0.7821895914 | E59: =[1]!AgePb76($D$59) -> 4889.646979 | H59: 4933
A60: TF96 | B60: 19.684 | C60: 15.605 | D60: 0.7927758586 | E60: =[1]!AgePb76($D$60) -> 4908.81316 | H60: 4935
A61: TF85 | B61: 19.86 | C61: 15.641 | D61: 0.7875629406 | E61: =[1]!AgePb76($D$61) -> 4899.409576 | H61: 4937
A62: Hierro | D62: 0 | H62: 4938
A63: H7 | B63: 19.46 | C63: 15.603 | D63: 0.8017985612 | E63: =[1]!AgePb76($D$63) -> 4924.934728 | H63: 4939
A64: H16 | B64: 19.602 | C64: 15.604 | D64: 0.7960412203 | E64: =[1]!AgePb76($D$64) -> 4914.67008 | H64: 4939
A65: La | B65: Palma | D65: 0 | H65: 4940
A66: LP26 | B66: 19.874 | C66: 15.644 | D66: 0.7871591023 | E66: =[1]!AgePb76($D$66) -> 4898.678329 | H66: 4940
A67: LP19A | B67: 19.616 | C67: 15.588 | D67: 0.7946574225 | E67: =[1]!AgePb76($D$67) -> 4912.191157 | H67: 4941
A68: LP9A | B68: 19.616 | C68: 15.598 | D68: 0.7951672104 | E68: =[1]!AgePb76($D$68) -> 4913.104921 | H68: 4943
A69: LP15 | B69: 19.583 | C69: 15.62 | D69: 0.797630598 | E69: =[1]!AgePb76($D$69) -> 4917.511624 | H69: 4945
A70: La | B70: Gomera | D70: 0 | H70: 4947
A71: LG150 | B71: 19.987 | C71: 15.641 | D71: 0.7825586631 | E71: =[1]!AgePb76($D$71) -> 4890.319809 | H71: 4948
A72: LG58 | B72: 19.766 | C72: 15.612 | D72: 0.7898411414 | E72: =[1]!AgePb76($D$72) -> 4903.52735 | H72: 4955
A73: LZ137t | B73: 19.203 | C73: 15.556 | D73: 0.8100817581 | E73: =[1]!AgePb76($D$73) -> 4939.565914 | H73: 4958
A74: TFAR | B74: 19.645 | C74: 15.59 | D74: 0.7935861542 | E74: =[1]!AgePb76($D$74) -> 4910.26894 | H74: 4962
A75: FV231: | B75: 19.585 | C75: 15.597 | D75: 0.7963747766 | E75: =[1]!AgePb76($D$75) -> 4915.266924 | H75: 4963
H76: 4963
H77: 4964
B78: 206Pb/204Pb | C78: 207Pb/204Pb | D78: 207Pb/206Pb | E78: 207Pb/206Pb | F78: TABLE 4. | H78: 4965
B79: Ratio | C79: Ratio | D79: Ratio | E79: Age | H79: 4967
A80: V22-170 | B80: 19.011 | C80: 15.716 | D80: =(C80/B80) -> 0.8266792909 | E80: =[1]!AgePb76($D$80) -> 4968.410342 | H80: 4968
A81: V22-171 | B81: 18.995 | C81: 15.705 | D81: 0.8267965254 | E81: =[1]!AgePb76($D$81) -> 4968.611884 | H81: 4969
A82: V23-96 | B82: 18.837 | C82: 15.67 | D82: 0.8318734406 | E82: =[1]!AgePb76($D$82) -> 4977.31078 | H82: 4969
A83: V23-97 | B83: 18.879 | C83: 15.7 | D83: 0.8316118438 | E83: =[1]!AgePb76($D$83) -> 4976.863935 | H83: 4971
A84: V23-95 | B84: 18.989 | C84: 15.708 | D84: 0.8272157565 | E84: =[1]!AgePb76($D$84) -> 4969.332351 | H84: 4972
A85: V27-143 | B85: 19.072 | C85: 15.707 | D85: 0.8235633389 | E85: =[1]!AgePb76($D$85) -> 4963.042428 | H85: 4973
A86: V27-159 | B86: 18.865 | C86: 15.681 | D86: 0.8312218394 | E86: =[1]!AgePb76($D$86) -> 4976.197473 | H86: 4974
A87: V27-142 | B87: 19.112 | C87: 15.689 | D87: 0.8208978652 | E87: =[1]!AgePb76($D$87) -> 4958.4334 | H87: 4976
A88: V27-166 | B88: 18.934 | C88: 15.691 | D88: 0.8287208197 | E88: =[1]!AgePb76($D$88) -> 4971.915676 | H88: 4976
A89: V27-176 | B89: 18.89 | C89: 15.712 | D89: 0.8317628375 | E89: =[1]!AgePb76($D$89) -> 4977.121872 | H89: 4977
A90: V22-93 | B90: 18.872 | C90: 15.723 | D90: 0.833139042 | E90: =[1]!AgePb76($D$90) -> 4979.470503 | H90: 4977
A91: V25-72 | B91: 19.02 | C91: 15.704 | D91: 0.8256572029 | E91: =[1]!AgePb76($D$91) -> 4966.651944 | H91: 4977
A92: V24-258 | B92: 18.966 | C92: 15.73 | D92: 0.8293788885 | E92: =[1]!AgePb76($D$92) -> 4973.043633 | H92: 4979
A93: V25-58 | B93: 18.884 | C93: 15.691 | D93: 0.8309150604 | E93: =[1]!AgePb76($D$93) -> 4975.672999 | H93: 4981
H94: 4981
H95: 4982
H96: 4983
B97: 206Pb/204Pb | C97: 207Pb/204Pb | D97: 207Pb/206Pb | E97: 207Pb/206Pb | F97: TABLE 5. | H97: 4984
B98: Ratio | C98: Ratio | D98: Ratio | E98: Age | H98: 4984
A99: Faial 373 | B99: 19.561 | C99: 15.641 | D99: =(C99/B99) -> 0.7996012474 | E99: =[1]!AgePb76($D$99) -> 4921.026464 | H99: 4985
A100: Flores 3F/196 | B100: 19.954 | C100: 15.638 | D100: 0.7837025158 | E100: =[1]!AgePb76($D$100) -> 4892.402949 | H100: 4985
A101: San forges | B101: 19.964 | C101: 15.637 | D101: 0.7832598678 | E101: =[1]!AgePb76($D$101) -> 4891.5972 | H101: 4985
A102: Terceira | B102: 19.617 | C102: 15.606 | D102: 0.7955344854 | E102: =[1]!AgePb76($D$102) -> 4913.762852 | H102: 4986
A103: Santa | B103: 19.561 | C103: 15.606 | D103: 0.7978119728 | E103: =[1]!AgePb76($D$103) -> 4917.835509 | H103: 4986
A104: Ascension | D104: 0 | H104: 4986
A105: 2716 | B105: 19.716 | C105: 15.63 | D105: 0.7927571516 | E105: =[1]!AgePb76($D$105) -> 4908.779532 | H105: 4987
A106: 2740 | B106: 19.566 | C106: 15.626 | D106: 0.798630277 | E106: =[1]!AgePb76($D$106) -> 4919.2958 | H106: 4987
A107: 2765 | B107: 19.503 | C107: 15.625 | D107: 0.8011587961 | E107: =[1]!AgePb76($D$107) -> 4923.797983 | H107: 4988
A108: 2775 | B108: 19.486 | C108: 15.59 | D108: 0.8000615827 | E108: =[1]!AgePb76($D$108) -> 4921.846187 | H108: 4989
A109: St | D109: 0 | H109: 4992
A110: 2882 | B110: 20.896 | C110: 15.791 | D110: 0.7556948698 | E110: =[1]!AgePb76($D$110) -> 4840.441518 | H110: 4992
A111: 2928 | B111: 20.908 | C111: 15.81 | D111: 0.7561698871 | E111: =[1]!AgePb76($D$111) -> 4841.339801 | H111: 4992
A112: 2935 | B112: 20.822 | C112: 15.79 | D112: 0.7583325329 | E112: =[1]!AgePb76($D$112) -> 4845.421893 | H112: 4993
A113: 2933 | B113: 20.827 | C113: 15.778 | D113: 0.7575743026 | E113: =[1]!AgePb76($D$113) -> 4843.992114 | H113: 4994
A114: 2894 | B114: 20.83 | C114: 15.797 | D114: 0.7583773404 | E114: =[1]!AgePb76($D$114) -> 4845.506338 | H114: 4995
A115: 2878 | B115: 20.739 | C115: 15.782 | D115: 0.7609817253 | E115: =[1]!AgePb76($D$115) -> 4850.405486 | H115: 4997
A116: 237/5t | B116: 20.709 | C116: 15.786 | D116: 0.7622772708 | E116: =[1]!AgePb76($D$116) -> 4852.835905 | H116: 4997
A117: 167 | B117: 20.797 | C117: 15.806 | D117: 0.7600134635 | E117: =[1]!AgePb76($D$117) -> 4848.586164 | H117: 4997
A118: 662 | B118: 20.701 | C118: 15.786 | D118: 0.7625718564 | E118: =[1]!AgePb76($D$118) -> 4853.387928 | H118: 4997
A119: 11 | B119: 20.814 | C119: 15.787 | D119: 0.7584798693 | E119: =[1]!AgePb76($D$119) -> 4845.699546 | H119: 4998
A120: 145 | B120: 20.801 | C120: 15.783 | D120: 0.758761598 | E120: =[1]!AgePb76($D$120) -> 4846.230298 | H120: 4999
A121: 2894§ | B121: 20.8 | C121: 15.776 | D121: 0.7584615385 | E121: =[1]!AgePb76($D$121) -> 4845.665005 | H121: 4999
A122: Gough | D122: 0 | H122: 4999
A123: G95 | B123: 18.323 | C123: 15.598 | D123: 0.8512798123 | E123: =[1]!AgePb76($D$123) -> 5010.049839 | H123: 4999
A124: G111 | B124: 18.552 | C124: 15.606 | D124: 0.8412031048 | E124: =[1]!AgePb76($D$124) -> 4993.15031 | H124: 4999
A125: G8 | B125: 18.295 | C125: 15.61 | D125: 0.8532385898 | E125: =[1]!AgePb76($D$125) -> 5013.310211 | H125: 4999
A126: G18 | B126: 18.622 | C126: 15.602 | D126: 0.837826227 | E126: =[1]!AgePb76($D$126) -> 4987.438834 | H126: 4999
A127: G15 | B127: 18.28 | C127: 15.585 | D127: 0.852571116 | E127: =[1]!AgePb76($D$127) -> 5012.200099 | H127: 4999
A128: G1321: | B128: 18.3 | C128: 15.59 | D128: 0.8519125683 | E128: =[1]!AgePb76($D$128) -> 5011.103928 | H128: 5000
A129: G19D.1: | B129: 18.47 | C129: 15.6 | D129: 0.8446128858 | E129: =[1]!AgePb76($D$129) -> 4998.892774 | H129: 5000
A130: G3t. | B130: 18.64 | C130: 15.6 | D130: 0.8369098712 | E130: =[1]!AgePb76($D$130) -> 4985.884738 | H130: 5001
A131: Discovery | D131: 0 | H131: 5001
A132: BM1954, | B132: 18.246 | C132: 15.609 | D132: 0.8554751726 | E132: =[1]!AgePb76($D$132) -> 5017.023282 | H132: 5001
A133: Tristan | D133: 0 | H133: 5001
A134: TR230 | B134: 18.547 | C134: 15.529 | D134: 0.837278266 | E134: =[1]!AgePb76($D$134) -> 4986.509735 | H134: 5002
A135: TR2.2 | B135: 18.587 | C135: 15.546 | D135: 0.836391026 | E135: =[1]!AgePb76($D$135) -> 4985.003999 | H135: 5002
A136: TR1 | B136: 18.537 | C136: 15.519 | D136: 0.8371904839 | E136: =[1]!AgePb76($D$136) -> 4986.360836 | H136: 5002
A137: TR3 | B137: 18.567 | C137: 15.53 | D137: 0.8364302257 | E137: =[1]!AgePb76($D$137) -> 4985.07056 | H137: 5003
A138: TR4 | B138: 18.504 | C138: 15.515 | D138: 0.8384673584 | E138: =[1]!AgePb76($D$138) -> 4988.525089 | H138: 5006
A139: TR6 | B139: 18.566 | C139: 15.523 | D139: 0.8360982441 | E139: =[1]!AgePb76($D$139) -> 4984.506746 | H139: 5006
A140: Bouvet | D140: 0 | H140: 5007
A141: 148(1) | B141: 19.428 | C141: 15.652 | D141: 0.8056413424 | E141: =[1]!AgePb76($D$141) -> 4931.742397 | H141: 5007
A142: 149(1) | B142: 19.245 | C142: 15.633 | D142: 0.812314887 | E142: =[1]!AgePb76($D$142) -> 4943.483217 | H142: 5008
A143: 149(4) | B143: 19.661 | C143: 15.672 | D143: 0.797111032 | E143: =[1]!AgePb76($D$143) -> 4916.58339 | H143: 5008
A144: aospb/204pb | D144: 0 | H144: 5008
A145: 202 | B145: 18.996 | C145: 15.552 | D145: 0.8186986734 | E145: =[1]!AgePb76($D$145) -> 4954.618651 | H145: 5008
A146: 779 | B146: 19.144 | C146: 15.57 | D146: 0.8133096532 | E146: =[1]!AgePb76($D$146) -> 4945.224526 | H146: 5009
A147: Fernando | D147: 0 | H147: 5009
A148: 64646 | B148: 19.393 | C148: 15.622 | D148: 0.8055483938 | E148: =[1]!AgePb76($D$148) -> 4931.578142 | H148: 5009
A149: 67166 | B149: 19.609 | C149: 15.641 | D149: 0.797643939 | E149: =[1]!AgePb76($D$149) -> 4917.53545 | H149: 5009
A150: Oahu | D150: 0 | H150: 5010
A151: 23 | B151: 18.16 | C151: 15.466 | D151: 0.8516519824 | E151: =[1]!AgePb76($D$151) -> 5010.669927 | H151: 5010
A152: 35 | B152: 18.166 | C152: 15.465 | D152: 0.8513156446 | E152: =[1]!AgePb76($D$152) -> 5010.109554 | H152: 5010
A153: 21 | B153: 18.158 | C153: 15.469 | D153: 0.8519110034 | E153: =[1]!AgePb76($D$153) -> 5011.101322 | H153: 5010
A154: 43 | B154: 18.143 | C154: 15.464 | D154: 0.8523397454 | E154: =[1]!AgePb76($D$154) -> 5011.815079 | H154: 5010
A155: 24 | B155: 18.164 | C155: 15.465 | D155: 0.8514093812 | E155: =[1]!AgePb76($D$155) -> 5010.265752 | H155: 5010
A156: 4 | B156: 18.166 | C156: 15.466 | D156: 0.8513706925 | E156: =[1]!AgePb76($D$156) -> 5010.201285 | H156: 5011
A157: Kauai | D157: 0 | H157: 5011
A158: K22 | B158: 18.114 | C158: 15.46 | D158: 0.8534834934 | E158: =[1]!AgePb76($D$158) -> 5013.717292 | H158: 5011
A159: K16 | B159: 18.157 | C159: 15.446 | D159: 0.8506911935 | E159: =[1]!AgePb76($D$159) -> 5009.068531 | H159: 5011
A160: K17 | B160: 18.136 | C160: 15.45 | D160: 0.8518967799 | E160: =[1]!AgePb76($D$160) -> 5011.077637 | H160: 5012
A161: K23 | B161: 18.362 | C161: 15.46 | D161: 0.8419562139 | E161: =[1]!AgePb76($D$161) -> 4994.420757 | H161: 5012
A162: K24 | B162: 18.247 | C162: 15.45 | D162: 0.8467145284 | E162: =[1]!AgePb76($D$162) -> 5002.419928 | H162: 5013
A163: Easter | D163: 0 | H163: 5014
A164: 26 | B164: 18.789 | C164: 15.56 | D164: =(C164/B164) -> 0.8281441269 | E164: =[1]!AgePb76($D$164) -> 4970.926417 | H164: 5015
A165: 13 | B165: 19.29 | C165: 15.573 | D165: 0.8073094868 | E165: =[1]!AgePb76($D$165) -> 4934.686848 | H165: 5017
A166: Guadalupe | D166: 0 | H166: 5017
A167: GU22 | B167: 20.038 | C167: 15.619 | D167: 0.7794690089 | E167: =[1]!AgePb76($D$167) -> 4884.676806 | H167: 5018
A168: GU44 | B168: 20.088 | C168: 15.615 | D168: 0.7773297491 | E168: =[1]!AgePb76($D$168) -> 4880.755646 | H168: 5018
A169: GU52 | B169: 20.176 | C169: 15.612 | D169: 0.7737906423 | E169: =[1]!AgePb76($D$169) -> 4874.24333 | H169: 5021
A170: GU77 | B170: 20.303 | C170: 15.635 | D170: 0.7700832389 | E170: =[1]!AgePb76($D$170) -> 4867.387214 | H170: 5022
H171: 5026
H172: 5239
H173: 207Pb/206Pb
H174: 207Pb/206Pb
B175: 206Pb/204Pb | C175: 207Pb/204Pb | D175: 207Pb/206Pb | E175: 207Pb/206Pb | F175: TABLE 6. | H175: 207Pb/206Pb
B176: Ratio | C176: Ratio | D176: Ratio | E176: Age | H176: 207Pb/206Pb
A177: K8A1a | B177: 17.952 | C177: 15.457 | D177: =(C177/B177) -> 0.8610182709 | E177: =[1]!AgePb76($D$177) -> 5026.181427 | H177: 207Pb/206Pb
A178: K10A2b | B178: 18.06 | C178: 15.461 | D178: 0.8560908084 | E178: =[1]!AgePb76($D$178) -> 5018.043523 | H178: Age
A179: K11A1b | B179: 18.015 | C179: 15.468 | D179: 0.8586178185 | E179: =[1]!AgePb76($D$179) -> 5022.223177 | H179: Age
A180: TPY6458 | B180: 18.005 | C180: 15.45 | D180: 0.8580949736 | E180: =[1]!AgePb76($D$180) -> 5021.359468 | H180: Age
A181: Shiukuran | B181: River | C181: area | D181: 0 | H181: Age
A182: D-1 | B182: 18.323 | C182: 15.571 | D182: 0.8498062544 | E182: =[1]!AgePb76($D$182) -> 5007.591857 | H182: Age
A183: S16A2b | B183: 18.346 | C183: 15.598 | D183: 0.8502125804 | E183: =[1]!AgePb76($D$183) -> 5008.270085
A184: S3A2c | B184: 18.303 | C184: 15.56 | D184: 0.8501338578 | E184: =[1]!AgePb76($D$184) -> 5008.13871
A185: Lanhsu | D185: 0
A186: WLY005 | B186: 18.315 | C186: 15.591 | D186: 0.8512694513 | E186: =[1]!AgePb76($D$186) -> 5010.032572
A187: WLY009 | B187: 18.35 | C187: 15.603 | D187: 0.8502997275 | E187: =[1]!AgePb76($D$187) -> 5008.415503
A188: LPT2 | B188: 18.398 | C188: 15.62 | D188: 0.8490053267 | E188: =[1]!AgePb76($D$188) -> 5006.253962
A189: Tatun | B189: Volcano | C189: Group | D189: 0
A190: Al | B190: 18.478 | C190: 15.627 | D190: 0.84570841 | E190: =[1]!AgePb76($D$190) -> 5000.732537
A191: A99 | B191: 18.46 | C191: 15.629 | D191: 0.8466413868 | E191: =[1]!AgePb76($D$191) -> 5002.297332
A192: A87 | B192: 18.483 | C192: 15.631 | D192: 0.845696045 | E192: =[1]!AgePb76($D$192) -> 5000.711786
A193: A17 | B193: 18.483 | C193: 15.633 | D193: 0.8458042526 | E193: =[1]!AgePb76($D$193) -> 5000.893369
A194: A24 | B194: 18.47 | C194: 15.612 | D194: 0.845262588 | E194: =[1]!AgePb76($D$194) -> 4999.984153
A195: A41 | B195: 18.617 | C195: 18.64 | D195: 1.00123543 | E195: =[1]!AgePb76($D$195) -> 5239.107254
A196: B1 | B196: 18.523 | C196: 15.623 | D196: 0.843437888 | E196: =[1]!AgePb76($D$196) -> 4996.916728
A197: B5 | B197: 18.45 | C197: 15.607 | D197: 0.8459078591 | E197: =[1]!AgePb76($D$197) -> 5001.067208
A198: B7 | B198: 18.44 | C198: 15.613 | D198: 0.846691974 | E198: =[1]!AgePb76($D$198) -> 5002.382124
A199: Chiaopanshan | B199: area | D199: 0
A200: TPYb71-11 | B200: 18.375 | C200: 15.612 | D200: 0.8496326531 | E200: =[1]!AgePb76($D$200) -> 5007.301982
... 31 more rows

Sheet Exc_24
A1: 206Pb/204Pb | B1: 18.026 | C1: 17.735 | D1: 17.483 | E1: 18.001 | F1: 17.367 | G1: 17.176 | H1: 17.3 | I1: 17.281 | J1: 17.063 | K1: 17.439
A2: 207Pb/204Pb | B2: 15.531 | C2: 15.3 | D2: 15.444 | E2: 15.372 | F2: 15.534 | G2: 15.443 | H2: 15.489 | I2: 15.472 | J2: 15.287 | K2: 15.496
A3: 207Pb/206Pb | B3: =(B1/B2) -> 1.160646449 | C3: 1.159150327 | D3: 1.132025382 | E3: 1.171025241 | F3: 1.117999228 | G3: 1.112219128 | H3: 1.116921686 | I3: 1.116920889 | J3: 1.116177144 | K3: 1.125387197
A4: Age | B4: =[1]!AgePb76(B3) -> 5445.845099 | C4: =[1]!AgePb76(C3) -> 5444.047315 | D4: =[1]!AgePb76(D3) -> 5411.022626 | E4: =[1]!AgePb76(E3) -> 5458.249784 | F4: =[1]!AgePb76(F3) -> 5393.617223 | G4: =[1]!AgePb76(G3) -> 5386.377499 | H4: =[1]!AgePb76(H3) -> 5392.270571 | I4: =[1]!AgePb76(I3) -> 5392.269574 | J4: =[1]!AgePb76(J3) -> 5391.339282 | K4: =[1]!AgePb76(K3) -> 5402.81363
A5: Table 2
A8: 206Pb/204Pb | B8: 17.117 | C8: 17.208 | D8: 17.129 | E8: 17.093 | F8: 16.987 | G8: 16.811 | H8: 16.745 | I8: 16.94 | J8: 16.968
A9: 207Pb/204Pb | B9: 15.414 | C9: 15.415 | D9: 15.405 | E9: 15.376 | F9: 15.437 | G9: 15.298 | H9: 15.243 | I9: 15.383 | J9: 15.424
A10: 207Pb/206Pb | B10: =(B8/B9) -> 1.110483976 | C10: 1.116315277 | D10: 1.111911717 | E10: 1.111667534 | F10: 1.10040811 | G10: 1.098901817 | H10: 1.098537033 | I10: 1.101215628 | J10: 1.100103734
A11: Age | B11: =[1]!AgePb76(B10) -> 5384.196434 | C11: =[1]!AgePb76(C10) -> 5391.512112 | D11: =[1]!AgePb76(D10) -> 5385.991348 | E11: =[1]!AgePb76(E10) -> 5385.68454 | F11: =[1]!AgePb76(F10) -> 5371.459778 | G11: =[1]!AgePb76(G10) -> 5369.545152 | H11: =[1]!AgePb76(H10) -> 5369.081064 | I11: =[1]!AgePb76(I10) -> 5372.485064 | J11: =[1]!AgePb76(J10) -> 5371.073113
A13: Table 2

Sheet Exc_25
C2: 206Pb/204Pb | D2: 207Pb/204Pb | E2: 207Pb/206Pb | F2: 207Pb/206Pb
A3: Pare | B3: Mts | C3: Ratio | D3: Ratio | E3: Ratio | F3: Age
A4: 1 | B4: A16G | C4: 17.362 | D4: 15.452 | E4: =(D4/C4) -> 0.8899896325 | F4: =[1]!AgePb76($E$4) -> 5073.050796
A5: 2 | B5: A26-2 | C5: 17.962 | D5: 15.555 | E5: 0.8659948781 | F5: =[1]!AgePb76($E$5) -> 5034.350464
A6: Usambara | B6: Mts | E6: 0
A7: 3 | B7: T121G | C7: 17.994 | D7: 15.555 | E7: 0.8644548183 | F7: =[1]!AgePb76($E$7) -> 5031.827811
A8: 4 | B8: T135G | C8: 17.539 | D8: 15.466 | E8: 0.8818062603 | F8: =[1]!AgePb76($E$8) -> 5059.977829
A9: 5 | B9: T139G | C9: 17.677 | D9: 15.483 | E9: 0.875883917 | F9: =[1]!AgePb76($E$9) -> 5050.436334
A10: 6 | B10: T137-1 | C10: 17.385 | D10: 15.508 | E10: 0.8920333621 | F10: =[1]!AgePb76($E$10) -> 5076.295768
A11: 7 | B11: A108G | C11: 17.359 | D11: 15.479 | E11: 0.8916988306 | F11: =[1]!AgePb76($E$11) -> 5075.765149
A12: 8 | B12: A114-1 | C12: 17.244 | D12: 15.461 | E12: 0.8966017165 | F12: =[1]!AgePb76($E$12) -> 5083.520843
A13: Umba | B13: Steppe | E13: 0
A14: 9 | B14: A125G | C14: 18.153 | D14: 15.583 | E14: 0.8584256046 | F14: =[1]!AgePb76($E$14) -> 5021.905716
A15: 10 | B15: A144-1 | C15: 17.97 | D15: 15.52 | E15: 0.8636616583 | F15: =[1]!AgePb76($E$15) -> 5030.526736
A16: Wami | B16: River | E16: 0
A17: 11 | B17: T144-2 | C17: 17.051 | D17: 15.425 | E17: 0.9046390241 | F17: =[1]!AgePb76($E$17) -> 5096.137996
A18: Uluguru | B18: Mts | E18: 0
A19: 12 | B19: P1 | C19: 17.746 | D19: 15.713 | E19: 0.8854389722 | F19: =[1]!AgePb76($E$19) -> 5065.796915
A20: 13 | B20: P9-2 | C20: 18.175 | D20: 15.562 | E20: 0.8562310867 | F20: =[1]!AgePb76($E$20) -> 5018.275886
A21: 14 | B21: T28-1 | C21: 16.496 | D21: 15.281 | E21: 0.9263457808 | F21: =[1]!AgePb76($E$21) -> 5129.62881
A22: 15 | B22: T25-1 | C22: 16.781 | D22: 15.399 | E22: 0.9176449556 | F22: =[1]!AgePb76($E$22) -> 5116.305408
A23: 16 | B23: P8-7 | C23: 17.594 | D23: 15.646 | E23: 0.8892804365 | F23: =[1]!AgePb76($E$23) -> 5071.922909
A24: 17 | B24: P88-5 | C24: 17.33 | D24: 15.497 | E24: 0.8942296595 | F24: =[1]!AgePb76($E$24) -> 5079.774204
A25: 18 | B25: T9 | C25: 17.439 | D25: 15.637 | E25: 0.8966683869 | F25: =[1]!AgePb76($E$25) -> 5083.625996
A26: T9 | B26: b | C26: 17.291 | D26: 15.59 | E26: 0.9016251229 | F26: =[1]!AgePb76($E$26) -> 5091.420682
A27: 19 | B27: P20-1 | C27: 17.811 | D27: 15.514 | E27: 0.8710347538 | F27: =[1]!AgePb76($E$27) -> 5042.572728
A28: 20 | B28: T46G | C28: 15.652 | D28: 15.293 | E28: 0.977063634 | F28: =[1]!AgePb76($E$28) -> 5204.746085
A29: 21 | B29: P94G | C29: 17.282 | D29: 15.583 | E29: 0.9016896193 | F29: =[1]!AgePb76($E$29) -> 5091.521806
A30: Usagaran | B30: belt | E30: 0
A31: 22 | B31: T73-3 | C31: 16.209 | D31: 15.56 | E31: 0.9599605158 | F31: =[1]!AgePb76($E$31) -> 5179.88571
A32: 27 | B32: T70G | C32: 15.947 | D32: 15.579 | E32: 0.9769235593 | F32: =[1]!AgePb76($E$32) -> 5204.544353
A33: 28 | B33: A167-9 | C33: 16.04 | D33: 15.436 | E33: 0.9623441397 | F33: =[1]!AgePb76($E$33) -> 5183.378425
A34: 29 | B34: A167-16 | C34: 16.539 | D34: 15.664 | E34: 0.9470947458 | F34: =[1]!AgePb76($E$34) -> 5160.873667
A35: Lowland | B35: migmatites | E35: 0
A36: 30 | B36: P6-3 | C36: 14.806 | D36: 14.972 | E36: 1.011211671 | F36: =[1]!AgePb76($E$36) -> 5253.033988
A37: 31 | B37: A154G | C37: 14.402 | D37: 15.107 | E37: 1.048951535 | F37: =[1]!AgePb76($E$37) -> 5304.436018
A38: 32 | B38: A156-5 | C38: 14.262 | D38: 14.949 | E38: 1.048169962 | F38: =[1]!AgePb76($E$38) -> 5303.391437
A39: Craton | E39: 0
A40: 33 | B40: T71-1 | C40: 14.123 | D40: 15.058 | E40: 1.066204064 | F40: =[1]!AgePb76($E$40) -> 5327.287333
A41: 34 | B41: A159-1 | C41: 14.084 | D41: 15.002 | E41: 1.065180346 | F41: =[1]!AgePb76($E$41) -> 5325.942325
A42: 35 | B42: A164-1 | C42: 15.294 | D42: 15.144 | E42: 0.9901922322 | F42: =[1]!AgePb76($E$42) -> 5223.518982
A43: 36 | B43: A183-1 | C43: 13.946 | D43: 14.932 | E43: 1.070701276 | F43: =[1]!AgePb76($E$43) -> 5333.179887

Sheet Exc_26
B1: 206Pb/204Pb | C1: 207Pb/204Pb | D1: 207Pb/206Pb | E1: 207Pb/206Pb
B2: Ratio | C2: Ratio | D2: Ratio | E2: Age
A3: Feldspar A | B3: 18.47 | C3: 15.56 | D3: =(C3/B3) -> 0.8424472117 | E3: =[1]!AgePb76($D$3) -> 4995.24839
A4: Feldspar B | B4: 18.44 | C4: 15.57 | D4: 0.8443600868 | E4: =[1]!AgePb76($D$4) -> 4998.467877
A5: Ds28K | B5: 18.38 | C5: 15.5 | D5: 0.8433079434 | E5: =[1]!AgePb76($D$5) -> 4996.698015
A6: S293 | B6: 18.42 | C6: 15.54 | D6: 0.8436482085 | E6: =[1]!AgePb76($D$6) -> 4997.270648
A7: Stacey-Kramers | B7: 18.66 | C7: 15.63 | D7: 0.8376205788 | E7: =[1]!AgePb76($D$7) -> 4987.090222

Sheet Exc_27
D1: Ratio | E1: Age | G1: Ratio | H1: Age | I1: Table 3
A2: 208Pb/204Pb | B2: 207Pb/204Pb | C2: 206Pb/204Pb | D2: 207Pb/206Pb | E2: 207Pb/206Pb | F2: 208Pb/206Pb | G2: 207Pb/206Pb | H2: 207Pb/206Pb
A3: 0.11 | B3: 0.11 | C3: 0.1 | D3: =(B3/C3) -> 1.1 | E3: =[1]!AgePb76($D$3) -> 5370.941308 | F3: 0.041 | G3: 0.047 | H3: =[1]!AgePb76($G$3) -> 49.22705603
A4: 0.054 | B4: 0.055 | C4: 0.055 | D4: =(B4/C4) -> 1 | E4: =[1]!AgePb76($D$4) -> 5237.372407 | F4: 0.015 | G4: 0.016 | H4: =[1]!AgePb76($G$4) -> 
A5: 0.1 | B5: 0.11 | C5: 0.11 | D5: 1 | E5: =[1]!AgePb76($D$5) -> 5237.372407 | F5: 0.046 | G5: 0.048 | H5: =[1]!AgePb76($G$5) -> 99.26911375
A6: 0.049 | B6: 0.05 | C6: 0.05 | D6: 1 | E6: =[1]!AgePb76($D$6) -> 5237.372407 | F6: 0.014 | G6: 0.015 | H6: =[1]!AgePb76($G$6) -> 
A7: 35.52 | B7: 15.353 | C7: 15.985 | D7: 0.960462934 | E7: =[1]!AgePb76($D$7) -> 5180.622664 | F7: 2.222 | G7: 0.961 | H7: =[1]!AgePb76($G$7) -> 5181.409989
A8: 35.599 | B8: 15.37 | C8: 15.994 | D8: 0.9609853695 | E8: =[1]!AgePb76($D$8) -> 5181.388548 | F8: 2.226 | G8: 0.961 | H8: =[1]!AgePb76($G$8) -> 5181.409989
A9: −0.22 | B9: -0.11 | C9: -0.06 | D9: 1.833333333 | E9: =[1]!AgePb76($D$9) -> 6075.90577 | F9: −0.18 | G9: 0
A10: 0.13 | B10: 0.1 | C10: 0.11 | D10: 0.9090909091 | E10: =[1]!AgePb76($D$10) -> 5103.075629 | F10: 0.043 | G10: 0.044 | H10: =[1]!AgePb76($G$10) -> -110.6941893
A11: 0.052 | B11: 0.053 | C11: 0.053 | D11: 1 | E11: =[1]!AgePb76($D$11) -> 5237.372407 | F11: 0.015 | G11: 0.016 | H11: =[1]!AgePb76($G$11) -> 
A15: Table 4
A17: Sample | B17: Ratio | C17: Age | D17: Ratio | E17: Age
A18: Number | B18: 207Pb/206Pb | C18: 207Pb/206Pb | D18: 207Pb/206Pb | E18: 207Pb/206Pb
A19: Z5199 | B19: 0.8519 | C19: =[1]!AgePb76($B$19) -> 5011.082999 | D19: 0.8537 | E19: =[1]!AgePb76($D$19) -> 5014.077068
A20: Z5221 | B20: 0.8458 | C20: =[1]!AgePb76($B$20) -> 5000.886233 | D20: 0.843 | E20: =[1]!AgePb76($D$20) -> 4996.179564
A21: Z5232 | B21: 0.855 | C21: =[1]!AgePb76($B$21) -> 5016.235286 | D21: 0.8511 | E21: =[1]!AgePb76($D$21) -> 5009.750144
A22: Z5237 | B22: 0.8439 | C22: =[1]!AgePb76($B$22) -> 4997.694231 | D22: 0.8418 | E22: =[1]!AgePb76($D$22) -> 4994.157334
A23: Z5277 | B23: 0.8502 | C23: =[1]!AgePb76($B$23) -> 5008.249091 | D23: 0.8478 | E23: =[1]!AgePb76($D$23) -> 5004.238018
A24: H15 | B24: 0.8502 | C24: =[1]!AgePb76($B$24) -> 5008.249091 | D24: 0.8503 | E24: =[1]!AgePb76($D$24) -> 5008.415958
A25: EB1007 | B25: 0.8609 | C25: =[1]!AgePb76($B$25) -> 5025.986678 | D25: 0.8599 | E25: =[1]!AgePb76($D$25) -> 5024.338903
A26: EB72086 | B26: 0.8627 | C26: =[1]!AgePb76($B$26) -> 5028.947558 | D26: 0.862 | E26: =[1]!AgePb76($D$26) -> 5027.796885
A27: EB72087 | B27: 0.8613 | C27: =[1]!AgePb76($B$27) -> 5026.645219 | D27: 0.8603 | E27: =[1]!AgePb76($D$27) -> 5024.998257
A28: EB72096 | B28: 0.8588 | C28: =[1]!AgePb76($B$28) -> 5022.523999 | D28: 0.8578 | E28: =[1]!AgePb76($D$28) -> 5020.871943
A29: BH2 | B29: 0.9613 | C29: =[1]!AgePb76($B$29) -> 5181.849579 | D29: 0.961 | E29: =[1]!AgePb76($D$29) -> 5181.409989

Sheet Exc_28
A1: Sample | B1: Model | C1: 206Pb/204Pb | D1: 207Pb/204Pb | E1: 207Pb/206Pb | F1: 207Pb/206Pb | H1: 208Pb/204Pb | J1: 238U/204Pb | K1: 206Pb/238U | L1: 206Pb/238U | M1: 232Th/204Pb | N1: 208Pb/232Th | O1: 208Pb/232Th
A2: Number | B2: Age | C2: Ratio | D2: Ratio | E2: Ratio | F2: Age | H2: Ratio | J2: Ratio | K2: Ratio | L2: Age | M2: Ratio | N2: Ratio | O2: Age
A3: TE118/93 | B3: 18 | C3: 18.6034 | D3: 15.7231 | E3: =(D3/C3) -> 0.8451734629 | F3: =[1]!AgePb76($E$3) -> 4999.834493 | G3: 0.0062 | H3: 39.582 | I3: 0.0017 | J3: 36.65 | K3: =(C3/J3) -> 0.5075961801 | L3: =[1]!AgePb6U8(K3) -> 2646.359056 | M3: 1.3933 | N3: =(H3/M3) -> 28.40881361 | O3: =[1]!AgePb8Th2(N3) -> 68343.49494 | P3: 18.5009 | Q3: 15.7184 | R3: 39.5807 | S3: 2.128
A4: TE126/93 | B4: 23 | C4: 18.563 | D4: 15.6986 | E4: =(D4/C4) -> 0.8456930453 | F4: =[1]!AgePb76($E$4) -> 5000.706752 | G4: 0.008 | H4: 39.4228 | I4: 0.0205 | J4: 15.78 | K4: 1.176362484 | L4: =[1]!AgePb6U8(K4) -> 5013.085563 | M4: 1.4339 | N4: =(H4/M4) -> 27.49340958 | O4: =[1]!AgePb8Th2(N4) -> 67704.35205 | P4: 18.5066 | Q4: 15.696 | R4: 39.4212 | S4: 2.124
A5: TE137/93 | B5: 18 | C5: 18.5211 | D5: 15.7332 | E5: 0.8494743833 | F5: =[1]!AgePb76($E$5) -> 5007.037652 | G5: 0.0042 | H5: 39.7556 | I5: 0.0114 | J5: 23.51 | K5: 0.7877966823 | L5: =[1]!AgePb6U8(K5) -> 3745.263226 | M5: 1.2677 | N5: 31.3604165 | O5: =[1]!AgePb8Th2(N5) -> 70276.62381 | P5: 18.4554 | Q5: 15.7301 | R5: 39.7544 | S5: 2.147
A6: TE138/93 | B6: 18 | C6: 18.4571 | D6: 15.6795 | E6: 0.8495104865 | F6: =[1]!AgePb76($E$6) -> 5007.097953 | G6: 0.0056 | H6: 39.5534 | I6: 0.0144 | J6: 17.12 | K6: 1.078101636 | L6: =[1]!AgePb6U8(K6) -> 4715.260607 | M6: 1.1726 | N6: 33.73136619 | O6: =[1]!AgePb8Th2(N6) -> 71705.77471 | P6: 18.4092 | Q6: 15.6773 | R6: 39.5524 | S6: 2.143
A7: TE025/93 | B7: 23 | C7: 18.7968 | D7: 15.7579 | E7: 0.8383288645 | F7: =[1]!AgePb76($E$7) -> 4988.290517 | G7: 0.0021 | H7: 39.4821 | I7: 0.0053 | J7: 13.73 | K7: 1.369031318 | L7: =[1]!AgePb6U8(K7) -> 5559.910686 | M7: 0.3527 | N7: 111.942444 | O7: =[1]!AgePb8Th2(N7) -> 95540.7447 | P7: 18.7477 | Q7: 15.7556 | R7: 39.4817 | S7: 2.1
A8: TE150/93 | B8: 25 | C8: 18.5892 | D8: 15.6761 | E8: 0.8432907279 | F8: =[1]!AgePb76($E$8) -> 4996.669036 | G8: 0.0137 | H8: 39.1361 | I8: 0.0352 | J8: 9.6 | K8: 1.936375 | L8: =[1]!AgePb6U8(K8) -> 6943.92153 | M8: 0.2902 | N8: 134.8590627 | O8: =[1]!AgePb8Th2(N8) -> 99274.74573 | P8: 18.5519 | Q8: 15.6744 | R8: 39.1357 | S8: 2.105
A10: Table 9
H27: h

Sheet Exc_29
D1: 206Pb/204Pb | E1: 207Pb/204Pb | F1: 207Pb/206Pb | G1: 207Pb/206Pb | H1: Table 3A.
D2: Ratio | E2: Ratio | F2: Ratio | G2: Age
A3: 85.6 | B3: (Kh) | C3: 3.67 | D3: 18.52 | E3: 15.554 | F3: =(E3/D3) -> 0.8398488121 | G3: =[1]!AgePb76($F$3) -> 4990.86266
A4: 557 | B4: (Mk) | C4: 1.68 | D4: 18.701 | E4: 15.564 | F4: =(E4/D4) -> 0.8322549596 | G4: =[1]!AgePb76($F$4) -> 4977.962202
A5: 819 | B5: (Mr2) | C5: 1.99 | D5: 18.431 | E5: 15.568 | F5: 0.8446638815 | G5: =[1]!AgePb76($F$5) -> 4998.978469
A6: 1151 | B6: (Mrl) | C6: 0.14 | D6: 18.416 | E6: 15.554 | F6: 0.8445916594 | G6: =[1]!AgePb76($F$6) -> 4998.857102
A7: 1337 | B7: (Nd2) | C7: 7.39 | D7: 17.89 | E7: 15.507 | F7: 0.8667970933 | G7: =[1]!AgePb76($F$7) -> 5035.662625
A8: 1373 | B8: (Nd2) | C8: 7.81 | D8: 18.247 | E8: 15.549 | F8: 0.8521400778 | G8: =[1]!AgePb76($F$8) -> 5011.482726
A9: 1591 | B9: (Ndl) | C9: 7.62 | D9: 18.397 | E9: 15.571 | F9: 0.846387998 | G9: =[1]!AgePb76($F$9) -> 5001.872528
A10: 1709 | B10: (Ndl) | C10: 6.91 | D10: 18.681 | E10: 15.57 | F10: 0.8334671591 | G10: =[1]!AgePb76($F$10) -> 4980.029859
A11: 1761 | B11: (GPBU) | C11: 4.63 | D11: 19.508 | E11: 15.692 | F11: 0.8043879434 | G11: =[1]!AgePb76($F$11) -> 4929.525745
A12: 1862 | B12: (Gd) | C12: 2.29 | D12: 18.298 | E12: 15.564 | F12: 0.8505847634 | G12: =[1]!AgePb76($F$12) -> 5008.89102
A13: 2200 | B13: (Yg) | C13: 0.66 | D13: 19.117 | E13: 15.821 | F13: 0.8275880107 | G13: =[1]!AgePb76($F$13) -> 4969.971761
A17: -2 | B17: 128 | C17: 3.52 | D17: 17.816 | E17: 15.408 | F17: 0.8648405927 | G17: =[1]!AgePb76($F$17) -> 5032.460166 | H17: Table 3B.
A18: 7 | B18: 197 | C18: 2.31 | D18: 17.899 | E18: 15.435 | F18: 0.8623386781 | G18: =[1]!AgePb76($F$18) -> 5028.353734
A19: -11 | B19: 249 | C19: 1.4 | D19: 17.945 | E19: 15.401 | F19: 0.8582334912 | G19: =[1]!AgePb76($F$19) -> 5021.588346
A20: -16 | B20: 308 | C20: 1.67 | D20: 17.999 | E20: 15.428 | F20: 0.857158731 | G20: =[1]!AgePb76($F$20) -> 5019.811455
A21: -25 | B21: 454 | C21: 4.59 | D21: 17.577 | E21: 15.365 | F21: 0.8741537236 | G21: =[1]!AgePb76($F$21) -> 5047.635893
A22: -28 | B22: 484 | C22: 3.75 | D22: 17.439 | E22: 15.384 | F22: 0.8821606744 | G22: =[1]!AgePb76($F$22) -> 5060.546668
A23: -33 | B23: 525 | C23: 2.57 | D23: 17.646 | E23: 15.382 | F23: 0.8716989686 | G23: =[1]!AgePb76($F$23) -> 5043.652588
A24: -34 | B24: 565 | C24: 7.64 | D24: 17.965 | E24: 15.429 | F24: 0.8588366268 | G24: =[1]!AgePb76($F$24) -> 5022.584469
A25: -38 | B25: 666 | C25: 8.37 | D25: 18.301 | E25: 15.489 | F25: 0.8463471941 | G25: =[1]!AgePb76($F$25) -> 5001.804108
A26: -41 | B26: 751 | C26: 7.99 | D26: 18.064 | E26: 15.445 | F26: 0.8550155004 | G26: =[1]!AgePb76($F$26) -> 5016.260998
A27: -44 | B27: 820 | C27: 2.01 | D27: 18.423 | E27: 15.456 | F27: 0.8389513109 | G27: =[1]!AgePb76($F$27) -> 4989.344455

Sheet Exc_30
A1: Sample | B1: 206Pb/204Pb | C1: 207Pb/204Pb | D1: 207Pb/206Pb | E1: 207Pb/206Pb
A2: Name | B2: Ratio | C2: Ratio | D2: Ratio | E2: Age
A3: 87-03-01 | B3: 18.869 | C3: 15.557 | D3: =(C3/B3) -> 0.824474005 | E3: =[1]!AgePb76($D$3) -> 4964.613481
A4: 87-06-01 | B4: 18.884 | C4: 15.578 | D4: =(C4/B4) -> 0.8249311587 | E4: =[1]!AgePb76($D$4) -> 4965.401453
A5: 87-08-02 | B5: 18.872 | C5: 15.562 | D5: 0.8246078847 | E5: =[1]!AgePb76($D$5) -> 4964.84429
A6: 87-08-09 | B6: 18.874 | C6: 15.566 | D6: 0.8247324362 | E6: =[1]!AgePb76($D$6) -> 4965.058982
A7: 87-17-02 | B7: 18.871 | C7: 15.564 | D7: 0.8247575645 | E7: =[1]!AgePb76($D$7) -> 4965.102292
A8: Qaf70 | B8: 18.861 | C8: 15.557 | D8: 0.8248237103 | E8: =[1]!AgePb76($D$8) -> 4965.216291
A9: Qcb1 | B9: 18.893 | C9: 15.565 | D9: 0.8238501032 | E9: =[1]!AgePb76($D$9) -> 4963.537344
A10: Qcb7 | B10: 18.867 | C10: 15.564 | D10: 0.8249324217 | E10: =[1]!AgePb76($D$10) -> 4965.403629
A11: Qcb12 | B11: 18.886 | C11: 15.564 | D11: 0.8241025098 | E11: =[1]!AgePb76($D$11) -> 4963.972812
A12: Qcb16 | B12: 18.878 | C12: 15.569 | D12: 0.8247166013 | E12: =[1]!AgePb76($D$12) -> 4965.031689
A13: Qcf3 | B13: 0 | C13: 0 | D13: 0
A14: Qdf1 | B14: 18.899 | C14: 15.56 | D14: 0.8233239854 | E14: =[1]!AgePb76($D$14) -> 4962.629196
A15: Qef1 | B15: 18.854 | C15: 15.557 | D15: 0.8251299459 | E15: =[1]!AgePb76($D$15) -> 4965.743947
A16: Recheshnoi | D16: 0
A17: LUM16 | B17: 18.941 | C17: 15.574 | D17: 0.8222374743 | E17: =[1]!AgePb76($D$17) -> 4960.751783
A18: LUM17 | B18: 18.984 | C18: 15.597 | D18: 0.8215865992 | E18: =[1]!AgePb76($D$18) -> 4959.625853
A19: LUM18 | B19: 18.973 | C19: 15.591 | D19: 0.8217466927 | E19: =[1]!AgePb76($D$19) -> 4959.902882
A20: LUM19 | B20: 18.73 | C20: 15.535 | D20: 0.8294180459 | E20: =[1]!AgePb76($D$20) -> 4973.110721
A21: LUM20 | B21: 18.992 | C21: 15.602 | D21: 0.8215037911 | E21: =[1]!AgePb76($D$21) -> 4959.482538
A22: LUM21 | B22: 18.678 | C22: 15.524 | D22: 0.8311382375 | E22: =[1]!AgePb76($D$22) -> 4976.054566
A23: LUM22 | B23: 18.928 | C23: 15.585 | D23: 0.8233833474 | E23: =[1]!AgePb76($D$23) -> 4962.731694
A24: LUM33 | B24: 18.977 | C24: 15.589 | D24: 0.821468093 | E24: =[1]!AgePb76($D$24) -> 4959.420751
A25: LUM37 | B25: 18.961 | C25: 15.58 | D25: 0.8216866199 | E25: =[1]!AgePb76($D$25) -> 4959.798938
A26: LUM42 | B26: 18.992 | C26: 15.607 | D26: 0.8217670598 | E26: =[1]!AgePb76($D$26) -> 4959.938122
A27: ABy9(23)t | B27: 18.981 | C27: 15.588 | D27: 0.8212422949 | E27: =[1]!AgePb76($D$27) -> 4959.029868

Sheet Exc_31
A1: Sample | B1: 207Pb/206Pb | C1: 207Pb/206Pb | D1: TABLE 2A
A2: Name | B2: Ratio | C2: Age
A3: 1 | B3: 0.754 | C3: =[1]!AgePb76($B$3) -> 4837.231513
A4: 2 | B4: 0.743 | C4: =[1]!AgePb76($B$4) -> 4816.209176
A5: 5 | B5: 0.765 | C5: =[1]!AgePb76($B$5) -> 4857.929376
A6: 6 | B6: 0.731 | C6: =[1]!AgePb76($B$6) -> 4792.893692
A7: 8 | B7: 0.728 | C7: =[1]!AgePb76($B$7) -> 4787.000984
A8: 8 | B8: 0.745 | C8: =[1]!AgePb76($B$8) -> 4820.056006
A9: 9 | B9: 0.768 | C9: =[1]!AgePb76($B$9) -> 4863.519222
A10: 10 | B10: 0.793 | C10: =[1]!AgePb76($B$10) -> 4909.216011
A11: 11 | B11: 0.793 | C11: =[1]!AgePb76($B$11) -> 4909.216011
A12: 12 | B12: 0.804 | C12: =[1]!AgePb76($B$12) -> 4928.838917
A13: 13 | B13: 0.729 | C13: =[1]!AgePb76($B$13) -> 4788.968095
A14: 16 | B14: 0.735 | C14: =[1]!AgePb76($B$14) -> 4800.710613
A15: 19 | B15: 0.812 | C15: =[1]!AgePb76($B$15) -> 4942.931543
A16: 23 | B16: 0.738 | C16: =[1]!AgePb76($B$16) -> 4806.543571
A17: 25 | B17: 0.745 | C17: =[1]!AgePb76($B$17) -> 4820.056006
A18: 33A | B18: 0.727 | C18: =[1]!AgePb76($B$18) -> 4785.030986
A19: 36 | B19: 0.813 | C19: =[1]!AgePb76($B$19) -> 4944.68273
A20: 39 | B20: 0.792 | C20: =[1]!AgePb76($B$20) -> 4907.417765
A21: 42 | B21: 0.744 | C21: =[1]!AgePb76($B$21) -> 4818.13397
A22: 43 | B22: 0.727 | C22: =[1]!AgePb76($B$22) -> 4785.030986
A23: 44 | B23: 0.735 | C23: =[1]!AgePb76($B$23) -> 4800.710613
A24: 45A | B24: 0.721 | C24: =[1]!AgePb76($B$24) -> 4773.149913
A25: 46 | B25: 0.806 | C25: =[1]!AgePb76($B$25) -> 4932.376013
A26: 48 | B26: 0.805 | C26: =[1]!AgePb76($B$26) -> 4930.608633
A27: 49 | B27: 0.793 | C27: =[1]!AgePb76($B$27) -> 4909.216011
A28: 50 | B28: 0.748 | C28: =[1]!AgePb76($B$28) -> 4825.805647
A29: 52 | B29: 0.706 | C29: =[1]!AgePb76($B$29) -> 4742.979152
A30: 55 | B30: 0.776 | C30: =[1]!AgePb76($B$30) -> 4878.312483
A31: 56 | B31: 0.753 | C31: =[1]!AgePb76($B$31) -> 4835.333949
A32: 57 | B32: 0.803 | C32: =[1]!AgePb76($B$32) -> 4927.066857
A33: 57B | B33: 0.8 | C33: =[1]!AgePb76($B$33) -> 4921.736555
A34: 58 | B34: 0.783 | C34: =[1]!AgePb76($B$34) -> 4891.123939
A35: 60 | B35: 0.747 | C35: =[1]!AgePb76($B$35) -> 4823.891837
A36: 61 | B36: 0.813 | C36: =[1]!AgePb76($B$36) -> 4944.68273
A37: 62 | B37: 0.796 | C37: =[1]!AgePb76($B$37) -> 4914.596305
A38: 67 | B38: 0.727 | C38: =[1]!AgePb76($B$38) -> 4785.030986
A40: Sample | B40: 207Pb/206Pb | C40: 207Pb/206Pb
A41: Name | B41: Ratio | C41: Age
A42: 1 | B42: 0.731 | C42: =[1]!AgePb76($B$42) -> 4792.893692 | D42: 1.866 | E42: 0.019 | F42: TABLE 2B
A43: 2 | B43: 0.75 | C43: =[1]!AgePb76($B$43) -> 4829.625094 | D43: 1.916 | E43: 0.022
A44: 12 | B44: 0.748 | C44: =[1]!AgePb76($B$44) -> 4825.805647 | D44: 1.899 | E44: 0.025
A45: 24 | B45: 0.76 | C45: =[1]!AgePb76($B$45) -> 4848.56085 | D45: 1.923 | E45: 0.012
A46: 25 | B46: 0.737 | C46: =[1]!AgePb76($B$46) -> 4804.602067 | D46: 1.871 | E46: 0.027
A47: 25 | B47: 0.731 | C47: =[1]!AgePb76($B$47) -> 4792.893692 | D47: 1.866 | E47: 0.005
A48: 28 | B48: 0.732 | C48: =[1]!AgePb76($B$48) -> 4794.852194 | D48: 1.865 | E48: 0.013
A49: 31E | B49: 0.74 | C49: =[1]!AgePb76($B$49) -> 4810.418172 | D49: 1.891 | E49: 0.009
A50: 32 | B50: 0.727 | C50: =[1]!AgePb76($B$50) -> 4785.030986 | D50: 1.865 | E50: 0.007
A51: 35 | B51: 0.808 | C51: =[1]!AgePb76($B$51) -> 4935.903784 | D51: 2.003 | E51: 0.022
A52: 44 | B52: 0.75 | C52: =[1]!AgePb76($B$52) -> 4829.625094 | D52: 1.909 | E52: 0.012
A53: 48 | B53: 0.736 | C53: =[1]!AgePb76($B$53) -> 4802.657751 | D53: 1.884 | E53: 0.017
A54: 54 | B54: 0.739 | C54: =[1]!AgePb76($B$54) -> 4808.48227 | D54: 1.885 | E54: 0.009
A55: 1 | B55: 0.814 | C55: =[1]!AgePb76($B$55) -> 4946.431628 | D55: 2.027 | E55: 0.007
A56: E1 | B56: 0.819 | C56: =[1]!AgePb76($B$56) -> 4955.14198 | D56: 2.045 | E56: 0.014
A57: E2 | B57: 0.815 | C57: =[1]!AgePb76($B$57) -> 4948.178242 | D57: 2.033 | E57: 0.01
A58: 3 | B58: 0.821 | C58: =[1]!AgePb76($B$58) -> 4958.6103 | D58: 2.043 | E58: 0.016
A59: 4 | B59: 0.822 | C59: =[1]!AgePb76($B$59) -> 4960.341093 | D59: 2.039 | E59: 0.012
A60: 4 | B60: 0.814 | C60: =[1]!AgePb76($B$60) -> 4946.431628 | D60: 2.028 | E60: 0.004
A61: 6 | B61: 0.819 | C61: =[1]!AgePb76($B$61) -> 4955.14198 | D61: 2.032 | E61: 0.011
A62: 7 | B62: 0.823 | C62: =[1]!AgePb76($B$62) -> 4962.069648 | D62: 2.036 | E62: 0.011
A63: 14 | B63: 0.823 | C63: =[1]!AgePb76($B$63) -> 4962.069648 | D63: 2.044 | E63: 0.015
A64: 20 | B64: 0.816 | C64: =[1]!AgePb76($B$64) -> 4949.922578 | D64: 2.022 | E64: 0.008
A65: 21 | B65: 0.81 | C65: =[1]!AgePb76($B$65) -> 4939.422278 | D65: 2.024 | E65: 0.007
A66: 21b | B66: 0.818 | C66: =[1]!AgePb76($B$66) -> 4953.404442 | D66: 2.028 | E66: 0.009
A67: 22 | B67: 0.814 | C67: =[1]!AgePb76($B$67) -> 4946.431628 | D67: 2.015 | E67: 0.009
A68: 24 | B68: 0.817 | C68: =[1]!AgePb76($B$68) -> 4951.664643 | D68: 2.021 | E68: 0.011
A69: 28 | B69: 0.809 | C69: =[1]!AgePb76($B$69) -> 4937.664187 | D69: 2.023 | E69: 0.007
A70: 35 | B70: 0.817 | C70: =[1]!AgePb76($B$70) -> 4951.664643 | D70: 2.035 | E70: 0.008
A71: 38 | B71: 0.816 | C71: =[1]!AgePb76($B$71) -> 4949.922578 | D71: 2.04 | E71: 0.023
A72: 39 | B72: 0.814 | C72: =[1]!AgePb76($B$72) -> 4946.431628 | D72: 2.034 | E72: 0.011
A73: 40 | B73: 0.816 | C73: =[1]!AgePb76($B$73) -> 4949.922578 | D73: 2.033 | E73: 0.013
A74: 50 | B74: 0.824 | C74: =[1]!AgePb76($B$74) -> 4963.795973 | D74: 2.041 | E74: 0.013
A75: 51 | B75: 0.809 | C75: =[1]!AgePb76($B$75) -> 4937.664187 | D75: 2.048 | E75: 0.02
A76: 52 | B76: 0.816 | C76: =[1]!AgePb76($B$76) -> 4949.922578 | D76: 2.028 | E76: 0.006
A77: 54 | B77: 0.811 | C77: =[1]!AgePb76($B$77) -> 4941.178061 | D77: 2.027 | E77: 0.022
A78: 59 | B78: 0.816 | C78: =[1]!AgePb76($B$78) -> 4949.922578 | D78: 2.026 | E78: 0.008
A79: 60 | B79: 0.817 | C79: =[1]!AgePb76($B$79) -> 4951.664643 | D79: 2.033 | E79: 0.008
A80: 61 | B80: 0.81 | C80: =[1]!AgePb76($B$80) -> 4939.422278 | D80: 2.013 | E80: 0.009
A81: 62E | B81: 0.815 | C81: =[1]!AgePb76($B$81) -> 4948.178242 | D81: 2.03 | E81: 0.007
A82: 62 | B82: 0.82 | C82: =[1]!AgePb76($B$82) -> 4956.877265 | D82: 2.036 | E82: 0.014
A83: 63 | B83: 0.818 | C83: =[1]!AgePb76($B$83) -> 4953.404442 | D83: 2.032 | E83: 0.008
A84: 65 | B84: 0.812 | C84: =[1]!AgePb76($B$84) -> 4942.931543 | D84: 2.009 | E84: 0.013
A85: 68 | B85: 0.814 | C85: =[1]!AgePb76($B$85) -> 4946.431628 | D85: 2.023 | E85: 0.009
A86: 69 | B86: 0.815 | C86: =[1]!AgePb76($B$86) -> 4948.178242 | D86: 2.023 | E86: 0.017

Sheet Exc_32
A1: Sample | B1: 206Pb/204Pb | C1: 207Pb/204Pb | D1: 207Pb/206Pb | E1: 207Pb/206Pb
A2: Name | B2: Ratio | C2: Ratio | D2: Ratio | E2: Age
A3: 29.8 | B3: 17.648 | C3: 15.472 | D3: =(C3/B3) -> 0.8766999093 | E3: =[1]!AgePb76($D$3) -> 5051.755039
A4: 31.1 | B4: 17.641 | C4: 15.477 | D4: =(C4/B4) -> 0.8773312171 | E4: =[1]!AgePb76($D$4) -> 5052.774387
A5: 32.5 | D5: 0
A6: 44.9 | B6: 17.65 | C6: 15.483 | D6: 0.877223796 | E6: =[1]!AgePb76($D$6) -> 5052.600994
A7: 45.7 | B7: 17.535 | C7: 15.471 | D7: 0.8822925577 | E7: =[1]!AgePb76($D$7) -> 5060.758281
A8: 33.8 | B8: 18.029 | C8: 15.491 | D8: 0.8592268013 | E8: =[1]!AgePb76($D$8) -> 5023.228476
A9: 9.23 | B9: 18.18 | C9: 15.508 | D9: 0.8530253025 | E9: =[1]!AgePb76($D$9) -> 5012.955582
A10: 24.1 | B10: 18.07 | C10: 15.494 | D10: 0.8574432761 | E10: =[1]!AgePb76($D$10) -> 5020.282121
A11: 9.4 | B11: 18.315 | C11: 15.524 | D11: 0.8476112476 | E11: =[1]!AgePb76($D$11) -> 5003.922048
A12: 0.176 | D12: 0
A13: 28.3 | B13: 18.16 | C13: 15.507 | D13: 0.8539096916 | E13: =[1]!AgePb76($D$13) -> 5014.425428
D14: 0

Sheet Exc_33
A1: Table 2
A2: Ratio
A3: 206Pb/204Pb | B3: 17.573 | C3: 17.384
A4: 207Pb/204Pb | B4: 15.753 | C4: 15.714
A5: 207Pb/206Pb | B5: =(B4/B3) -> 0.8964320264 | C5: =(C4/C3) -> 0.9039346526
A6: Age | B6: =[1]!AgePb76(B5) -> 5083.253169 | C6: =[1]!AgePb76(C5) -> 5095.037017
A8: Ratio
A9: 206Pb/204Pb | B9: 17.228 | C9: 17.575 | D9: 17.293 | E9: 17.274
A10: 207Pb/204Pb | B10: 15.76 | C10: 15.737 | D10: 15.736 | E10: 15.728
A11: 207Pb/206Pb | B11: =(B10/B9) -> 0.9147898769 | C11: =(C10/C9) -> 0.8954196302 | D11: =(D10/D9) -> 0.9099635691 | E11: =(E10/E9) -> 0.9105013315
A12: Age | B12: =[1]!AgePb76(B11) -> 5111.904297 | C12: =[1]!AgePb76(C11) -> 5081.655066 | D12: =[1]!AgePb76(D11) -> 5104.431324 | E12: =[1]!AgePb76(E11) -> 5105.266063
A14: Ratio
A15: 206Pb/204Pb | B15: 16.145 | C15: 16.469 | D15: 16.146 | E15: 16.037 | F15: 16.025 | G15: 16.643
A16: 207Pb/204Pb | B16: 15.193 | C16: 15.527 | D16: 15.218 | E16: 15.209 | F16: 15.19 | G16: 15.277
A17: 207Pb/206Pb | B17: =(B16/B15) -> 0.941034376 | C17: 0.9428016273 | D17: 0.9425244643 | E17: 0.9483693958 | F17: 0.9478939158 | G17: 0.9179234513
A18: Age | B18: =[1]!AgePb76(B17) -> 5151.823182 | C18: =[1]!AgePb76(C17) -> 5154.468734 | D18: =[1]!AgePb76(D17) -> 5154.054172 | E18: =[1]!AgePb76(E17) -> 5162.76941 | F18: =[1]!AgePb76(F17) -> 5162.06256 | G18: =[1]!AgePb76(G17) -> 5116.733933
A20: Ratio
A21: 206Pb/204Pb | B21: 17.739 | C21: 17.869 | D21: 17.909 | E21: 18.245 | F21: 17.796 | G21: 17.889 | H21: 17.994
A22: 207Pb/204Pb | B22: 15.482 | C22: 15.545 | D22: 15.518 | E22: 15.574 | F22: 15.524 | G22: 15.57 | H22: 15.534
A23: 207Pb/206Pb | B23: =(B22/B21) -> 0.8727662213 | C23: 0.8699423583 | D23: 0.8664917081 | E23: 0.853603727 | F23: 0.8723308609 | G23: 0.8703672648 | H23: 0.8632877626
A24: Age | B24: =[1]!AgePb76(B23) -> 5045.385869 | C24: =[1]!AgePb76(C23) -> 5040.794842 | D24: =[1]!AgePb76(D23) -> 5035.163267 | E24: =[1]!AgePb76(E23) -> 5013.9171 | F24: =[1]!AgePb76(F23) -> 5044.67909 | G24: =[1]!AgePb76(G23) -> 5041.486663 | H24: =[1]!AgePb76(H23) -> 5029.912969

Sheet Exc_34
A1: Sample | B1: 206Pb/204Pb | C1: 207Pb/204Pb | D1: 207Pb/206Pb | E1: 207Pb/206Pb | F1: 206Pb/204Pb | G1: 207Pb/204Pb | H1: 207Pb/206Pb | I1: 207Pb/206Pb | J1: Table 2
A2: Name | B2: Ratio | C2: Ratio | D2: Ratio | E2: Age | F2: Ratio | G2: Ratio | H2: Ratio | I2: Age
A3: Site I183A | B3: 18.4 | C3: 15.556 | D3: =(C3/B3) -> 0.8454347826 | E3: =[1]!AgePb76($D$3) -> 5000.273259 | F3: 18.915 | G3: 15.581 | H3: =(G3/F3) -> 0.8237377743 | I3: =[1]!AgePb76($H$3) -> 4963.343501
A4: 54-3 (28-34) tuff | D4: 0 | H4: 0
A5: 54 1 (2-6) Unit 2B | B5: 18.517 | C5: 15.528 | D5: =(C5/B5) -> 0.8385807636 | E5: =[1]!AgePb76($D$5) -> 4988.717137 | F5: 18.829 | G5: 15.543 | H5: =(G5/F5) -> 0.8254819693 | I5: =[1]!AgePb76($H$5) -> 4966.35024
A6: 55-1 (77-78) Unit 3B | B6: 18.495 | C6: 15.514 | D6: 0.8388213031 | E6: =[1]!AgePb76($D$6) -> 4989.124392 | F6: 18.634 | G6: 15.521 | H6: 0.8329397875 | I6: =[1]!AgePb76($H$6) -> 4979.130711
A7: 55-3 (120-122) Unit 4B | B7: 18.429 | C7: 15.509 | D7: 0.8415540724 | E7: =[1]!AgePb76($D$7) -> 4993.74252 | F7: 18.759 | G7: 15.525 | H7: 0.8276027507 | I7: =[1]!AgePb76($H$7) -> 4969.997074
A8: 61-2 (6-7) Unit 6 | B8: 18.369 | C8: 15.511 | D8: 0.8444117807 | E8: =[1]!AgePb76($D$8) -> 4998.554774 | F8: 18.7 | G8: 15.528 | H8: 0.8303743316 | I8: =[1]!AgePb76($H$8) -> 4974.748058
A9: 67-3 (93-95) Unit 8 | B9: 18.51 | C9: 15.525 | D9: 0.8387358185 | E9: =[1]!AgePb76($D$9) -> 4988.979673 | F9: 18.651 | G9: 15.532 | H9: 0.8327703608 | I9: =[1]!AgePb76($H$9) -> 4978.841716
A10: Site 1185B | B10: 18.32 | C10: 15.518 | D10: 0.8470524017 | E10: =[1]!AgePb76($D$10) -> 5002.986108 | F10: 18.456 | G10: 15.525 | H10: 0.841189857 | I10: =[1]!AgePb76($H$10) -> 4993.127951
A11: 5-5 (142-143) Unit 2 | D11: 0 | H11: 0
A12: 6-4 (95-96) Unit 5 | B12: 18.317 | C12: 15.514 | D12: 0.8469727575 | E12: =[1]!AgePb76($D$12) -> 5002.852668 | F12: 18.823 | G12: 15.539 | H12: 0.8255325931 | I12: =[1]!AgePb76($H$12) -> 4966.437407
A13: 15-2 (113-114) Unit 9 | B13: 18.36 | C13: 15.515 | D13: 0.845043573 | E13: =[1]!AgePb76($D$13) -> 4999.616348 | F13: 18.574 | G13: 15.537 | H13: 0.8364918704 | I13: =[1]!AgePb76($H$13) -> 4985.175227
A14: 17-3 (33-34) Unit 10 | B14: 18.398 | C14: 15.516 | D14: 0.8433525383 | E14: =[1]!AgePb76($D$14) -> 4996.773077 | F14: 18.59 | G14: 15.525 | H14: 0.835126412 | I14: =[1]!AgePb76($H$14) -> 4982.854884
A15: 28-1 (56-57) Unit 12 | B15: 18.39 | C15: 15.515 | D15: 0.8436650353 | E15: =[1]!AgePb76($D$15) -> 4997.298959 | F15: 18.879 | G15: 15.539 | H15: 0.8230838498 | I15: =[1]!AgePb76($H$15) -> 4962.214486
A16: Site 1186A | D16: 0 | H16: 0
A17: 32-2 (100-101) Unit 1 | B17: 18.279 | C17: 15.512 | D17: 0.8486241042 | E17: =[1]!AgePb76($D$17) -> 5005.616685 | F17: 19.173 | G17: 15.556 | H17: 0.8113492933 | I17: =[1]!AgePb76($H$17) -> 4941.790802
A18: 34-1 (84-86) Unit 2B | B18: 18.465 | C18: 15.509 | D18: 0.8399133496 | E18: =[1]!AgePb76($D$18) -> 4990.971765 | F18: 18.663 | G18: 15.519 | H18: 0.8315383379 | I18: =[1]!AgePb76($H$18) -> 4976.738349
A19: 38-1 (38-40) Unit 4 | B19: 18.427 | C19: 15.521 | D19: 0.8422966299 | E19: =[1]!AgePb76($D$19) -> 4994.994622 | F19: 18.554 | G19: 15.528 | H19: 0.8369084833 | I19: =[1]!AgePb76($H$19) -> 4985.882383
A20: GRS-39-1 Unit 4 | B20: 18.376 | C20: 15.518 | D20: 0.8444710492 | E20: =[1]!AgePb76($D$20) -> 4998.654396 | F20: 18.792 | G20: 15.538 | H20: 0.826841209 | I20: =[1]!AgePb76($H$20) -> 4968.688693
A21: Site I187A | D21: 0 | H21: 0
A22: 3-4 (93-95) Unit 3 G | B22: 18.336 | C22: 15.521 | D22: 0.8464768761 | E22: =[1]!AgePb76($D$22) -> 5002.021546 | F22: 18.573 | G22: 15.533 | H22: 0.836321542 | I22: =[1]!AgePb76($H$22) -> 4984.886006
A23: 7-7 (97-98) Unit 4 | B23: 18.357 | C23: 15.514 | D23: 0.8451271994 | E23: =[1]!AgePb76($D$23) -> 4999.756799 | F23: 18.567 | G23: 15.524 | H23: 0.8361070717 | I23: =[1]!AgePb76($H$23) -> 4984.521741
A24: 10-1 (124-126) Unit 6 G | B24: 18.32 | C24: 15.522 | D24: 0.8472707424 | E24: =[1]!AgePb76($D$24) -> 5003.351857 | F24: 18.595 | G24: 15.54 | H24: 0.8357085238 | I24: =[1]!AgePb76($H$24) -> 4983.844568
A25: 14-2 (4-6) Unit 9 G | B25: 18.333 | C25: 15.517 | D25: 0.8463972072 | E25: =[1]!AgePb76($D$25) -> 5001.887969 | F25: 18.573 | G25: 15.529 | H25: 0.8361061756 | I25: =[1]!AgePb76($H$25) -> 4984.520219
A26: 16-2 (87-89) Unit 12 G | B26: 18.34 | C26: 15.517 | D26: 0.8460741549 | E26: =[1]!AgePb76($D$26) -> 5001.346185 | F26: 18.574 | G26: 15.528 | H26: 0.8360073221 | I26: =[1]!AgePb76($H$26) -> 4984.352288
A29: Table 3
A30: 238U/204pb | B30: 9 | C30: 9.5 | D30: 9.5
A31: 232Th/204Pb | B31: 36 | C31: 36.575 | D31: 36.575
A32: OJP source 206Pb/204Pb | B32: 9.311 | C32: 12.792 | D32: 18.361
A33: OW source 207Pb/204Pb | B33: 10.301 | C33: 14.21 | D33: 15.522
A34: OW source 208Pb/204Pb | B34: 29.476 | C34: 32.478 | D34: 38.218
A35: OW source 207Pb/206Pb | B35: =(B33/B32) -> 1.106325851 | C35: =(C33/C32) -> 1.110850532 | D35: =(D33/D32) -> 0.845378792
A36: OW source Pb/Pb Age | B36: =[1]!AgePb76(B35) -> 5378.955073 | C36: =[1]!AgePb76(C35) -> 5384.657489 | D36: =[1]!AgePb76(D35) -> 5000.179261
A37: OW source 208Pb/232Th | B37: =(B34/B31) -> 0.8187777778 | C37: =(C34/C31) -> 0.8879835954 | D37: =(D34/D31) -> 1.044921394
A38: OW source Pb/Th Age | B38: =[1]!AgePb8Th2(B37) -> 12090.24204 | C38: =[1]!AgePb8Th2(C37) -> 12845.06071 | D38: =[1]!AgePb8Th2(D37) -> 14459.00659
A39: OJP source 206Pb/238U | B39: =(B32/B30) -> 1.034555556 | C39: =(C32/C30) -> 1.346526316 | D39: =(D32/D30) -> 1.932736842
A40: OJP source Pb/U Age | B40: =[1]!AgePb6U8(B39) -> 4578.742271 | C40: =[1]!AgePb6U8(C39) -> 5498.379185 | D40: =[1]!AgePb6U8(D39) -> 6935.929495
A44: 207Pb/206Pb Age | B44: 5378.955073 | C44: 5384.657489 | D44: 5000.179261
A45: 208Pb/232Th Age | B45: 12090.24204 | C45: 12845.06071 | D45: 14459.00659
A46: 206Pb/238U Age | B46: 4578.742271 | C46: 5498.379185 | D46: 6935.929495

Sheet Exc_35
A1: Sample | B1: 207Pb/204Pb | C1: 207Pb/204Pb | D1: 206Pb/204Pb | E1: 206Pb/204Pb | F1: 207Pb/206Pb | G1: 207Pb/206Pb | H1: 207Pb/206Pb | I1: 207Pb/206Pb
A2: Number | B2: Ratio A | C2: Ratio B | D2: Ratio A | E2: Ratio B | F2: Ratio A | G2: Age A | H2: Ratio B | I2: Age B
A3: O’Brien
A4: OBB1 | B4: 15.539 | C4: 15.682 | D4: 18.412 | E4: 18.572 | F4: =(B4/D4) -> 0.8439604606 | G4: =[1]!AgePb76($F$4) -> 4997.795922 | H4: =(C4/E4) -> 0.8443894034 | I4: =[1]!AgePb76($H$4) -> 4998.517158
A5: Sparkes
A6: S1P2 | B6: 15.54 | D6: 18.613 | F6: =(B6/D6) -> 0.8349003385 | G6: =[1]!AgePb76($F$6) -> 4982.470325
A7: S2P2 | B7: 15.734 | C7: 15.694 | D7: 18.858 | E7: 18.76 | F7: =(B7/D7) -> 0.8343408633 | G7: =[1]!AgePb76($F$7) -> 4981.518162 | H7: =(C7/E7) -> 0.8365671642 | I7: =[1]!AgePb76($H$7) -> 4985.303058
A8: Outer
A9: A068 | B9: 15.551 | C9: 15.541 | D9: 17.054 | E9: 17.08 | F9: =(B9/D9) -> 0.9118681834 | G9: =[1]!AgePb76($F$9) -> 5107.385402 | H9: =(C9/E9) -> 0.9098946136 | I9: =[1]!AgePb76($H$9) -> 5104.32425
A10: A072 | B10: 15.558 | D10: 17.263 | F10: =(B10/D10) -> 0.9012338527 | G10: =[1]!AgePb76($F$10) -> 5090.807046
A11: A050 | B11: 15.533 | C11: 15.547 | D11: 17.218 | E11: 17.278 | F11: =(B11/D11) -> 0.9021372982 | G11: =[1]!AgePb76($F$11) -> 5092.223509 | H11: =(C11/E11) -> 0.8998147934 | I11: =[1]!AgePb76($H$11) -> 5088.579137
A12: Middle
A13: A034 | B13: 15.428 | C13: 15.448 | D13: 16.48 | E13: 16.495 | F13: =(B13/D13) -> 0.9361650485 | G13: =[1]!AgePb76($F$13) -> 5144.506559 | H13: =(C13/E13) -> 0.9365262201 | I13: =[1]!AgePb76($H$13) -> 5145.050635
A14: A036 | B14: 15.429 | C14: 15.422 | D14: 16.503 | E14: 16.505 | F14: =(B14/D14) -> 0.9349209235 | G14: =[1]!AgePb76($F$14) -> 5142.630679 | H14: =(C14/E14) -> 0.9343835201 | I14: =[1]!AgePb76($H$14) -> 5141.81957
A15: A038 | B15: 15.486 | C15: 16.672
A16: A057 | B16: 15.499 | C16: 15.545 | D16: 17.105 | E16: 17.171 | F16: =(B16/D16) -> 0.9061093248 | G16: =[1]!AgePb76($F$16) -> 5098.433246 | H16: =(C16/E16) -> 0.9053054569 | I16: =[1]!AgePb76($H$16) -> 5097.178837
A17: Inner
A18: A096 | B18: 15.436 | C18: 15.414 | D18: 16.461 | E18: 16.447 | F18: =(B18/D18) -> 0.937731608 | G18: =[1]!AgePb76($F$18) -> 5146.86485 | H18: =(C18/E18) -> 0.9371921931 | I18: =[1]!AgePb76($H$18) -> 5146.053289
A19: A093 | B19: 15.376 | D19: 16.449 | F19: =(B19/D19) -> 0.934768071 | G19: =[1]!AgePb76($F$19) -> 5142.400027
A20: A074 | B20: 15.468 | C20: 15.42 | D20: 16.442 | E20: 16.412 | F20: =(B20/D20) -> 0.9407614645 | G20: =[1]!AgePb76($F$20) -> 5151.414169 | H20: =(C20/E20) -> 0.9395564221 | I20: =[1]!AgePb76($H$20) -> 5149.606663
A21: Inner
A22: A100 | B22: 15.442 | D22: 16.388 | F22: =(B22/D22) -> 0.9422748352 | G22: =[1]!AgePb76($F$22) -> 5153.680683
A23: A084 | B23: 15.477 | C23: 15.418 | D23: 16.473 | E23: 16.432 | F23: =(B23/D23) -> 0.9395374249 | G23: =[1]!AgePb76($F$23) -> 5149.578148 | H23: =(C23/E23) -> 0.9382911392 | I23: =[1]!AgePb76($H$23) -> 5147.706155
A24: Battery
A25: 1 | B25: 15.427 | D25: 16.047 | F25: =(B25/D25) -> 0.9613634947 | G25: =[1]!AgePb76($F$25) -> 5181.942599
A26: 2 | B26: 15.379 | D26: 16.017 | F26: =(B26/D26) -> 0.9601673222 | G26: =[1]!AgePb76($F$26) -> 5180.189106

Sheet Exc_36
A1: Sample | B1: 206Pb/204Pb | C1: 207Pb/204Pb | D1: 207Pb/206Pb | E1: 207Pb/206Pb
A2: Name | B2: Ratio | C2: Ratio | D2: Ratio | E2: Age
A3: S7-05 | B3: 19.32 | C3: 15.622 | D3: =(C3/B3) -> 0.8085921325 | E3: =[1]!AgePb76($D$3) -> 4936.946456
A4: S10-05 | D4: 0
A5: S59-05 | B5: 18.815 | C5: 15.551 | D5: =(C5/B5) -> 0.8265213925 | E5: =[1]!AgePb76($D$5) -> 4968.138845
A6: S68-05 | D6: 0
A7: S76-05 | B7: 19.586 | C7: 15.648 | D7: 0.798938017 | E7: =[1]!AgePb76($D$7) -> 4919.84456
A8: S92-05 | B8: 18.83 | C8: 15.565 | D8: 0.826606479 | E8: =[1]!AgePb76($D$8) -> 4968.285153
A9: S101-05 | B9: 18.981 | C9: 15.582 | D9: 0.8209261893 | E9: =[1]!AgePb76($D$9) -> 4958.48246
A10: S103-05 | D10: 0
A11: S105-05 | D11: 0

Sheet Exc_37
A1: Sample | B1: 206Pb/204Pb | C1: 207Pb/204Pb | D1: 207Pb/206Pb | E1: 207Pb/206Pb
A2: Name | B2: Ratio | C2: Ratio | D2: Ratio | E2: Age
A3: 95-AMD-001 | B3: 18.145 | C3: 15.546 | D3: =(C3/B3) -> 0.856764949 | E3: =[1]!AgePb76($D$3) -> 5019.159826
A4: 95-AMD-002 | B4: 19.159 | C4: 15.8 | D4: =(C4/B4) -> 0.8246776972 | E4: =[1]!AgePb76($D$4) -> 4964.964632
A5: 95-BHUJ-016 | B5: 18.868 | C5: 15.586 | D5: 0.8260546958 | E5: =[1]!AgePb76($D$5) -> 4967.336065
A6: 95-BHUJ-017 | B6: 18.479 | C6: 15.491 | D6: 0.8383029385 | E6: =[1]!AgePb76($D$6) -> 4988.2466
A7: 95-BHUJ-018 | B7: 18.642 | C7: 15.497 | D7: 0.8312949254 | E7: =[1]!AgePb76($D$7) -> 4976.322392
A8: 95-BHUJ-019 | B8: 18.653 | C8: 15.542 | D8: 0.8332171769 | E8: =[1]!AgePb76($D$8) -> 4979.603725
A9: 95-BMR-037 | B9: 19.582 | C9: 15.669 | D9: 0.8001736288 | E9: =[1]!AgePb76($D$9) -> 4922.045633
A10: 95-BMR-038 | B10: 21.265 | C10: 15.701 | D10: 0.7383494004 | E10: =[1]!AgePb76($D$10) -> 4807.221272
A11: 95-BMR-039 | B11: 19.547 | C11: 15.598 | D11: 0.7979741137 | E11: =[1]!AgePb76($D$11) -> 4918.124982
A12: 95-BMR-054 | B12: 18.983 | C12: 15.636 | D12: 0.8236843492 | E12: =[1]!AgePb76($D$12) -> 4963.251298
A13: 95-BMR-055 | B13: 19.028 | C13: 15.613 | D13: 0.8205276435 | E13: =[1]!AgePb76($D$13) -> 4957.791969
A14: 95-BMR-056 | B14: 19.021 | C14: 15.635 | D14: 0.8219862258 | E14: =[1]!AgePb76($D$14) -> 4960.317268
A15: 95-MUN-030 | B15: 19.262 | C15: 15.631 | D15: 0.8114941335 | E15: =[1]!AgePb76($D$15) -> 4942.044803
A16: 95-MUN-031 | B16: 19.14 | C16: 15.658 | D16: 0.818077325 | E16: =[1]!AgePb76($D$16) -> 4953.538877
A17: 95-MUN-034 | B17: 19.273 | C17: 15.611 | D17: 0.8099932548 | E17: =[1]!AgePb76($D$17) -> 4939.410427

Sheet Exc_38
F1: Table 3
A2: Sample | B2: Mineral | C2: 206Pb/204Pb | D2: 207Pb/204Pb | E2: 207Pb/206Pb | F2: 207Pb/206Pb
A3: Name | B3: Type | C3: Ratio | D3: Ratio | E3: Ratio | F3: Age
A4: BTW1 | B4: Galena | C4: 18.444 | D4: 15.625 | E4: =(D4/C4) -> 0.8471589677 | F4: =[1]!AgePb76($E$4) -> 5003.164632
A5: BTW | B5: Sphalerite | C5: 18.566 | D5: 15.627 | E5: =(D5/C5) -> 0.8416998815 | F5: =[1]!AgePb76($E$5) -> 4993.988476
A6: BTW2 | B6: Galena | C6: 18.394 | D6: 15.583 | E6: 0.8471784277 | F6: =[1]!AgePb76($E$6) -> 5003.19723
A7: BTW2 | B7: Sphalerite | C7: 18.543 | D7: 15.676 | E7: 0.8453863992 | F7: =[1]!AgePb76($E$7) -> 5000.192032
A8: BTW3 | B8: Pyrite | C8: 18.413 | D8: 15.597 | E8: 0.8470645739 | F8: =[1]!AgePb76($E$8) -> 5003.0065
A9: BTW4 | B9: Galena | C9: 18.405 | D9: 15.598 | E9: 0.8474870959 | F9: =[1]!AgePb76($E$9) -> 5003.714179
A10: BTW5 | B10: Galena | C10: 18.374 | D10: 15.504 | E10: 0.8438010232 | F10: =[1]!AgePb76($E$10) -> 4997.52774
A11: BTW5 | B11: Sphalerite | C11: 18.426 | D11: 15.684 | E11: 0.8511885379 | F11: =[1]!AgePb76($E$11) -> 5009.89772
A12: BTW7 | B12: Galena | C12: 18.443 | D12: 15.628 | E12: 0.8473675649 | F12: =[1]!AgePb76($E$12) -> 5003.514015
A13: BTW8 | B13: Galena | C13: 18.405 | D13: 15.552 | E13: 0.8449877751 | F13: =[1]!AgePb76($E$13) -> 4999.522627
A14: Yn16 | B14: Galena | C14: 18.267 | D14: 15.465 | E14: 0.8466086385 | F14: =[1]!AgePb76($E$14) -> 5002.242437
A15: Yn23 | B15: Galena | C15: 18.266 | D15: 15.436 | E15: 0.8450673382 | F15: =[1]!AgePb76($E$15) -> 4999.656264
A16: Yn25 | B16: Galena | C16: 18.238 | D16: 15.404 | E16: 0.8446101546 | F16: =[1]!AgePb76($E$16) -> 4998.888184
A17: Yn30 | B17: Galena | C17: 18.321 | D17: 15.496 | E17: 0.84580536 | F17: =[1]!AgePb76($E$17) -> 5000.895227
A18: Yn31 | B18: Galena | C18: 18.347 | D18: 15.521 | E18: 0.8459693683 | F18: =[1]!AgePb76($E$18) -> 5001.170402
A19: Yn38 | B19: Galena | C19: 18.371 | D19: 15.54 | E19: 0.8458984269 | F19: =[1]!AgePb76($E$19) -> 5001.051383
A20: Yn41 | B20: Galena | C20: 18.289 | D20: 15.45 | E20: 0.8447700804 | F20: =[1]!AgePb76($E$20) -> 4999.156913
A21: Yn42 | B21: Galena | C21: 18.35 | D21: 15.532 | E21: 0.8464305177 | F21: =[1]!AgePb76($E$21) -> 5001.943821
A22: Yn45 | B22: Galena | C22: 18.351 | D22: 15.516 | E22: 0.8455125061 | F22: =[1]!AgePb76($E$22) -> 5000.403733
A23: Yn46 | B23: Galena | C23: 18.31 | D23: 15.483 | E23: 0.8456034954 | F23: =[1]!AgePb76($E$23) -> 5000.556459
A24: Yn55 | B24: Galena | C24: 18.345 | D24: 15.513 | E24: 0.845625511 | F24: =[1]!AgePb76($E$24) -> 5000.593409
A25: Yn59 | B25: Galena | C25: 18.187 | D25: 15.39 | E25: 0.8462088305 | F25: =[1]!AgePb76($E$25) -> 5001.572073
A26: Yn61 | B26: Galena | C26: 18.324 | D26: 15.495 | E26: 0.8456123117 | F26: =[1]!AgePb76($E$26) -> 5000.571256
A27: Yn87 | B27: Galena | C27: 18.332 | D27: 15.488 | E27: 0.8448614445 | F27: =[1]!AgePb76($E$27) -> 4999.310412
A28: Yn93 | B28: Galena | C28: 18.32 | D28: 15.43 | E28: 0.8422489083 | F28: =[1]!AgePb76($E$28) -> 4994.914189
A29: Yn13-1 | B29: Galena | C29: 18.312 | D29: 15.473 | E29: 0.8449650502 | F29: =[1]!AgePb76($E$29) -> 4999.484456
A30: Yn16-1 | B30: Galena | C30: 18.292 | D30: 15.498 | E30: 0.8472556309 | F30: =[1]!AgePb76($E$30) -> 5003.326546
A31: Yn16-2 | B31: Galena | C31: 18.213 | D31: 15.373 | E31: 0.8440674244 | F31: =[1]!AgePb76($E$31) -> 4997.97581
A32: Yn30-1 | B32: Galena | C32: 18.374 | D32: 15.267 | E32: 0.830902362 | F32: =[1]!AgePb76($E$32) -> 4975.651285
A33: Yn30-2 | B33: Gelena | C33: 18.169 | D33: 15.351 | E33: 0.844900655 | F33: =[1]!AgePb76($E$33) -> 4999.376283
A34: Yn31-1 | B34: Galena | C34: 18.282 | D34: 15.452 | E34: 0.8452029318 | F34: =[1]!AgePb76($E$34) -> 4999.883979
A35: Yn41-1 | B35: Galena | C35: 18.401 | D35: 15.548 | E35: 0.8449540786 | F35: =[1]!AgePb76($E$35) -> 4999.466026
A36: Yn42-1 | B36: Galena | C36: 18.346 | D36: 15.526 | E36: 0.8462880192 | F36: =[1]!AgePb76($E$36) -> 5001.704877
A37: Yn46-2 | B37: Galena | C37: 18.313 | D37: 15.482 | E37: 0.8454103642 | F37: =[1]!AgePb76($E$37) -> 5000.232266
A38: After | B38: Zhou | C38: and | D38: Zhou
A39: TY37 | B39: Galena | C39: 18.283 | D39: 15.462 | E39: 0.8457036591 | F39: =[1]!AgePb76($E$39) -> 5000.724564
A40: TY38 | B40: Galena | C40: 18.221 | D40: 15.422 | E40: 0.8463860381 | F40: =[1]!AgePb76($E$40) -> 5001.869241
A41: TY39 | B41: Galena | C41: 18.207 | D41: 15.377 | E41: 0.8445652771 | F41: =[1]!AgePb76($E$41) -> 4998.812765
A42: TY40 | B42: Galena | C42: 18.214 | D42: 15.399 | E42: 0.8454485561 | F42: =[1]!AgePb76($E$42) -> 5000.296381
A43: TY41 | B43: Galena | C43: 18.138 | D43: 15.352 | E43: 0.8463998236 | F43: =[1]!AgePb76($E$43) -> 5001.892356
A44: TY42 | B44: Galena | C44: 18.16 | D44: 15.361 | E44: 0.8458700441 | F44: =[1]!AgePb76($E$44) -> 5001.003762
A45: TY43 | B45: Galena | C45: 18.246 | D45: 15.41 | E45: 0.8445686726 | F45: =[1]!AgePb76($E$45) -> 4998.818471
A46: TY44 | B46: Galena | C46: 18.288 | D46: 15.421 | E46: 0.8432305337 | F46: =[1]!AgePb76($E$46) -> 4996.567707
A47: TY45 | B47: Galena | C47: 18.286 | D47: 15.452 | E47: 0.8450180466 | F47: =[1]!AgePb76($E$47) -> 4999.573474
A48: TY46 | B48: Galena | C48: 18.22 | D48: 15.406 | E48: 0.8455543359 | F48: =[1]!AgePb76($E$48) -> 5000.473946
A49: Ding1 | B49: Galena | C49: 18.194 | D49: 15.395 | E49: 0.8461580741 | F49: =[1]!AgePb76($E$49) -> 5001.486945
A50: Ding2 | B50: Galena | C50: 18.15 | D50: 15.33 | E50: 0.8446280992 | F50: =[1]!AgePb76($E$50) -> 4998.91834
A51: Ding3 | B51: Galena | C51: 18.522 | D51: 15.634 | E51: 0.8440773135 | F51: =[1]!AgePb76($E$51) -> 4997.99244
A52: Ding4 | B52: Galena | C52: 18.416 | D52: 15.637 | E52: 0.8490986099 | F52: =[1]!AgePb76($E$52) -> 5006.409854
A56: After | B56: Zhou | C56: and | D56: Zhou
A57: Yn-9 | B57: Galena | C57: 18.39 | D57: 15.6 | E57: 0.8482871126 | F57: =[1]!AgePb76($E$57) -> 5005.053094
A58: Yn-10 | B58: Galena | C58: 18.17 | D58: 15.341 | E58: 0.8443037975 | F58: =[1]!AgePb76($E$58) -> 4998.373249
A59: Yn-13 | B59: Galena | C59: 18.311 | D59: 15.47 | E59: 0.8448473595 | F59: =[1]!AgePb76($E$59) -> 4999.286749
A60: Yn-26 | B60: Galena | C60: 18.36 | D60: 15.58 | E60: 0.848583878 | F60: =[1]!AgePb76($E$60) -> 5005.549423
A61: Yn-26-1 | B61: Galena | C61: 18.41 | D61: 15.62 | E61: 0.8484519283 | F61: =[1]!AgePb76($E$61) -> 5005.328765
A62: Yn38-2 | B62: Galena | C62: 18.28 | D62: 15.45 | E62: 0.8451859956 | F62: =[1]!AgePb76($E$62) -> 4999.855539
A63: Yn41-2 | B63: Galena | C63: 18.4 | D63: 15.55 | E63: 0.8451086957 | F63: =[1]!AgePb76($E$63) -> 4999.725723
A64: Yn42-2 | B64: Galena | C64: 18.35 | D64: 15.53 | E64: 0.8463215259 | F64: =[1]!AgePb76($E$64) -> 5001.761065
A65: After | B65: Ye | C65: et | D65: al.
A66: J26 | B66: Galena | C66: 18.196 | D66: 15.398 | E66: 0.8462299406 | F66: =[1]!AgePb76($E$66) -> 5001.607477
A67: J27 | B67: Galena | C67: 18.299 | D67: 15.469 | E67: 0.8453467403 | F67: =[1]!AgePb76($E$67) -> 5000.125449
A68: J28 | B68: Galena | C68: 18.223 | D68: 15.425 | E68: 0.8464577731 | F68: =[1]!AgePb76($E$68) -> 5001.989518
A69: J61 | B69: Galena | C69: 18.161 | D69: 15.362 | E69: =(D69/C69) -> 0.8458785309 | F69: =[1]!AgePb76($E$69) -> 5001.018001
A70: J65 | B70: Galena | C70: 18.205 | D70: 15.376 | E70: 0.844603131 | F70: =[1]!AgePb76($E$70) -> 4998.876381
A71: J66 | B71: Galena | C71: 18.235 | D71: 15.401 | E71: 0.8445845901 | F71: =[1]!AgePb76($E$71) -> 4998.845222
A72: J69 | B72: Galena | C72: 18.286 | D72: 15.42 | E72: 0.8432680739 | F72: =[1]!AgePb76($E$72) -> 4996.630902
A73: J72 | B73: Galena | C73: 18.184 | D73: 15.39 | E73: 0.8463484382 | F73: =[1]!AgePb76($E$73) -> 5001.806194
A74: J27 | B74: Sphalerite | C74: 18.326 | D74: 15.489 | E74: 0.8451926225 | F74: =[1]!AgePb76($E$74) -> 4999.866667
A75: J28 | B75: Sphalerite | C75: 18.285 | D75: 15.47 | E75: 0.8460486738 | F75: =[1]!AgePb76($E$75) -> 5001.303442
A76: J60 | B76: Sphalerite | C76: 18.232 | D76: 15.435 | E76: 0.846588416 | F76: =[1]!AgePb76($E$76) -> 5002.208538
A77: J61 | B77: Sphalerite | C77: 18.217 | D77: 15.374 | E77: 0.8439369819 | F77: =[1]!AgePb76($E$77) -> 4997.756433
A78: J65 | B78: Sphalerite | C78: 18.4 | D78: 15.607 | E78: 0.8482065217 | F78: =[1]!AgePb76($E$78) -> 5004.918277
A79: J70 | B79: Sphalerite | C79: 18.315 | D79: 15.461 | E79: 0.8441714442 | F79: =[1]!AgePb76($E$79) -> 4998.150724
A80: J27 | B80: Pyrite | C80: 18.351 | D80: 15.499 | E80: 0.8445861261 | F80: =[1]!AgePb76($E$80) -> 4998.847803
A81: J29 | B81: Pyrite | C81: 18.345 | D81: 15.524 | E81: 0.8462251295 | F81: =[1]!AgePb76($E$81) -> 5001.599409
A82: J60 | B82: Pyrite | C82: 18.402 | D82: 15.542 | E82: 0.8445821106 | F82: =[1]!AgePb76($E$82) -> 4998.841055
A83: J62 | B83: Pyrite | C83: 18.262 | D83: 15.468 | E83: 0.8470047092 | F83: =[1]!AgePb76($E$83) -> 5002.906203
A84: J69 | B84: Pyrite | C84: 18.354 | D84: 15.521 | E84: 0.8456467255 | F84: =[1]!AgePb76($E$84) -> 5000.629014
A85: After | B85: Zhang | C85: -1993
A86: 82j-2 | B86: Galena | C86: 18.4 | D86: 15.612 | E86: 0.8484782609 | F86: =[1]!AgePb76($E$86) -> 5005.372803
A87: 82j-5 | B87: Galena | C87: 18.441 | D87: 15.632 | E87: 0.8476763733 | F87: =[1]!AgePb76($E$87) -> 5004.031077
A88: 82j-7 | B88: Galena | C88: 18.285 | D88: 15.491 | E88: 0.8471971561 | F88: =[1]!AgePb76($E$88) -> 5003.228602
A89: 82j-9 | B89: Galena | C89: 18.303 | D89: 15.501 | E89: 0.8469103426 | F89: =[1]!AgePb76($E$89) -> 5002.748086
A90: 82j-11 | B90: Galena | C90: 18.42 | D90: 15.628 | E90: 0.8484256243 | F90: =[1]!AgePb76($E$90) -> 5005.284773
A91: 82j-18 | B91: Galena | C91: 18.232 | D91: 15.476 | E91: 0.8488372093 | F91: =[1]!AgePb76($E$91) -> 5005.972963
A92: 82j-19 | B92: Galena | C92: 18.283 | D92: 15.493 | E92: 0.8473992233 | F92: =[1]!AgePb76($E$92) -> 5003.567033
A93: 82j-26 | B93: Galena | C93: 18.321 | D93: 15.45 | E93: 0.84329458 | F93: =[1]!AgePb76($E$93) -> 4996.67552
A94: 82j-27 | B94: Galena | C94: 18.506 | D94: 15.64 | E94: 0.8451313088 | F94: =[1]!AgePb76($E$94) -> 4999.7637
A95: 82j-31 | B95: Pyrite | C95: 18.558 | D95: 15.617 | E95: 0.8415238711 | F95: =[1]!AgePb76($E$95) -> 4993.69157
A96: 83j-33 | B96: Pyrite | C96: 18.6 | D96: 15.622 | E96: 0.8398924731 | F96: =[1]!AgePb76($E$96) -> 4990.936473
A97: 82j-35 | B97: Galena | C97: 18.493 | D97: 15.619 | E97: 0.8445898448 | F97: =[1]!AgePb76($E$97) -> 4998.854053
A98: Lan38 | B98: Galena | C98: 18.22 | D98: 15.43 | E98: 0.8468715697 | F98: =[1]!AgePb76($E$98) -> 5002.683114
A99: Lan39 | B99: Galena | C99: 18.21 | D99: 15.38 | E99: 0.8445908841 | F99: =[1]!AgePb76($E$99) -> 4998.855799
A100: Lan40 | B100: Galena | C100: 18.21 | D100: 15.4 | E100: 0.8456891818 | F100: =[1]!AgePb76($E$100) -> 5000.700268
A101: Lan42 | B101: Galena | C101: 18.17 | D101: 15.36 | E101: 0.8453494772 | F101: =[1]!AgePb76($E$101) -> 5000.130044
A102: Lan43 | B102: Galena | C102: 18.27 | D102: 15.41 | E102: 0.8434592228 | F102: =[1]!AgePb76($E$102) -> 4996.952633
A103: Lan44 | B103: Galena | C103: 18.29 | D103: 15.42 | E103: 0.8430836523 | F103: =[1]!AgePb76($E$103) -> 4996.32042
A104: Lan46 | B104: Galena | C104: 18.22 | D104: 15.41 | E104: 0.8457738749 | F104: =[1]!AgePb76($E$104) -> 5000.842395
E107: Table 4
A108: Sample | B108: 206Pb/204Pb | C108: 207Pb/204Pb | D108: 207Pb/206Pb | E108: 207Pb/206Pb
A109: Name | B109: Ratio | C109: Ratio | D109: Ratio | E109: Age
A110: JB308 | B110: 18.592 | C110: 15.742 | D110: =(C110/B110) -> 0.8467082616 | E110: =[1]!AgePb76($D$110) -> 5002.409424
A111: JB439 | B111: 18.488 | C111: 15.636 | D111: 0.8457377759 | E111: =[1]!AgePb76($D$111) -> 5000.781817
A112: JB453-1 | B112: 18.549 | C112: 15.693 | D112: 0.8460294355 | E112: =[1]!AgePb76($D$112) -> 5001.27117
A113: No. 1 | B113: 18.517 | C113: 15.705 | D113: 0.8481395474 | E113: =[1]!AgePb76($D$113) -> 5004.806229
A114: No. 2 | B114: 18.707 | C114: 15.891 | D114: 0.8494681135 | E114: =[1]!AgePb76($D$114) -> 5007.027179
A115: No. 3 | B115: 18.544 | C115: 15.765 | D115: 0.8501402071 | E115: =[1]!AgePb76($D$115) -> 5008.149306
A116: No. 5 | B116: 18.888 | C116: 15.988 | D116: 0.846463363 | E116: =[1]!AgePb76($D$116) -> 5001.99889

Sheet Exc_39
A1: Sample | B1: 206Pb/204Pb | C1: 207Pb/204Pb | D1: 207Pb/206Pb | E1: 207Pb/206Pb | F1: 208Pb/204Pb | G1: 206Pb/238U | H1: 206Pb/238U | I1: 238U/204Pb | J1: 232Th/204Pb | K1: 208Pb/232Th | L1: 208Pb/232Th | M1: 206Pb/204Pb | N1: 207Pb/204Pb | O1: 207Pb/206Pb | P1: 207Pb/206Pb | S1: 4881
A2: Name | B2: Ratio | C2: Ratio | D2: Ratio | E2: Age | F2: Ratio | G2: Ratio | H2: Age | I2: Ratio | J2: Ratio | K2: Ratio | L2: Age | M2: Ratio | N2: Ratio | O2: Ratio | P2: Age | S2: 4886
A3: 79-1g | B3: 19.729 | C3: 15.64 | D3: =(C3/B3) -> 0.7927416493 | E3: =[1]!AgePb76($D$3) -> 4908.751665 | F3: 39.529 | G3: =(B3/I3) -> 0.655448505 | H3: =[1]!AgePb6U8(G3) -> 3249.45671 | I3: 30.1 | J3: 117.8 | K3: =(F3/J3) -> 0.3355602716 | L3: =[1]!AgePb8Th2(K3) -> 5848.426133 | M3: 19.589 | N3: 15.633 | O3: =(N3/M3) -> 0.798049926 | P3: =[1]!AgePb76($D$3) -> 4908.751665 | S3: 4896
A4: 84-1wr | B4: 19.466 | C4: 15.617 | D4: 0.8022706257 | E4: =[1]!AgePb76($D$4) -> 4925.77288 | F4: 39.277 | G4: =(B4/I4) -> 0.6815826331 | H4: =[1]!AgePb6U8(G4) -> 3350.429611 | I4: 28.56 | J4: 93.3 | K4: =(F4/J4) -> 0.4209753483 | L4: =[1]!AgePb8Th2(K4) -> 7101.435086 | M4: 19.446 | N4: 15.616 | O4: 0.8030443279 | P4: =[1]!AgePb76($D$4) -> 4925.77288 | S4: 4897
A5: 85-1g | B5: 19.764 | C5: 15.643 | D5: 0.791489577 | E5: =[1]!AgePb76($D$5) -> 4906.498966 | F5: 39.56 | G5: 0.5840425532 | H5: =[1]!AgePb6U8(G5) -> 2965.22261 | I5: 33.84 | J5: 108.2 | K5: 0.3656192237 | L5: =[1]!AgePb8Th2(K5) -> 6298.29145 | M5: 19.738 | N5: 15.642 | O5: 0.7924815078 | P5: =[1]!AgePb76($D$5) -> 4906.498966 | S5: 4899
A6: 86-1g | B6: 19.827 | C6: 15.616 | D6: 0.7876128512 | E6: =[1]!AgePb76($D$6) -> 4899.499924 | F6: 39.523 | G6: 0.7033345158 | H6: =[1]!AgePb6U8(G6) -> 3433.28161 | I6: 28.19 | J6: 86.6 | K6: 0.4563856813 | L6: =[1]!AgePb8Th2(K6) -> 7598.945037 | M6: 19.707 | N6: 15.61 | O6: 0.7921043284 | P6: =[1]!AgePb76($D$6) -> 4899.499924 | S6: 4906
A7: 91-1g | B7: 20.148 | C7: 15.661 | D7: 0.7772979948 | E7: =[1]!AgePb76($D$7) -> 4880.697356 | F7: 39.982 | G7: 0.550642252 | H7: =[1]!AgePb6U8(G7) -> 2827.84336 | I7: 36.59 | J7: 121.4 | K7: 0.3293410214 | L7: =[1]!AgePb8Th2(K7) -> 5754.084827 | M7: 20.012 | N7: 15.655 | O7: 0.7822806316 | P7: =[1]!AgePb76($D$7) -> 4880.697356 | S7: 4907
A8: 101-2g | B8: 18.742 | C8: 15.522 | D8: 0.8281933625 | E8: =[1]!AgePb76($D$8) -> 4971.010904 | F8: 38.322 | G8: 3.464325323 | H8: =[1]!AgePb6U8(G8) -> 9644.596935 | I8: 5.41 | J8: 17 | K8: 2.254235294 | L8: =[1]!AgePb8Th2(K8) -> 23849.56676 | M8: 18.719 | N8: 15.521 | O8: 0.8291575405 | P8: =[1]!AgePb76($D$8) -> 4971.010904 | S8: 4907
A9: 103-3g | B9: 19.722 | C9: 15.626 | D9: 0.7923131528 | E9: =[1]!AgePb76($D$9) -> 4907.981151 | F9: 39.461 | G9: 0.544205298 | H9: =[1]!AgePb6U8(G9) -> 2801.027609 | I9: 36.24 | J9: 116.5 | K9: 0.33872103 | L9: =[1]!AgePb8Th2(K9) -> 5896.204204 | M9: 19.582 | N9: 15.619 | O9: 0.7976202635 | P9: =[1]!AgePb76($D$9) -> 4907.981151 | S9: 4908
A10: 104-1g | B10: 19.502 | C10: 15.607 | D10: 0.8002768947 | E10: =[1]!AgePb76($D$10) -> 4922.229423 | F10: 39.225 | G10: 0.723904974 | H10: =[1]!AgePb6U8(G10) -> 3510.665923 | I10: 26.94 | J10: 85.2 | K10: 0.4603873239 | L10: =[1]!AgePb8Th2(K10) -> 7654.405071 | M10: 19.401 | N10: 15.602 | O10: 0.8041853513 | P10: =[1]!AgePb76($D$10) -> 4922.229423 | S10: 4908
A11: 112-1wr | B11: 19.143 | C11: 15.654 | D11: 0.8177401661 | E11: =[1]!AgePb76($D$11) -> 4952.952601 | F11: 38.824 | G11: 0.6834344877 | H11: =[1]!AgePb6U8(G11) -> 3357.524864 | I11: 28.01 | J11: 43 | K11: 0.9028837209 | L11: =[1]!AgePb8Th2(K11) -> 13003.95116 | M11: 19.041 | N11: 15.649 | O11: 0.8218580957 | P11: =[1]!AgePb76($D$11) -> 4952.952601 | S11: 4909
A12: 115-1wr | B12: 20.066 | C12: 15.651 | D12: 0.7799760789 | E12: =[1]!AgePb76($D$12) -> 4885.60456 | F12: 39.941 | G12: 0.8081353202 | H12: =[1]!AgePb6U8(G12) -> 3818.186007 | I12: 24.83 | J12: 161.7 | K12: 0.2470068027 | L12: =[1]!AgePb8Th2(K12) -> 4461.771035 | M12: 20.003 | N12: 15.648 | O12: 0.7822826576 | P12: =[1]!AgePb76($D$12) -> 4885.60456 | S12: 4910
A13: 121-1wr | B13: 19.514 | C13: 15.628 | D13: 0.8008609204 | E13: =[1]!AgePb76($D$13) -> 4923.268383 | F13: 39.398 | G13: 0.7814977974 | H13: =[1]!AgePb6U8(G13) -> 3722.510683 | I13: 24.97 | J13: 101.9 | K13: 0.3866339549 | L13: =[1]!AgePb8Th2(K13) -> 6606.95695 | M13: 19.44 | N13: 15.625 | O13: 0.803755144 | P13: =[1]!AgePb76($D$13) -> 4923.268383 | S13: 4918
A14: 122-1wr | B14: 19.403 | C14: 15.617 | D14: 0.8048755347 | E14: =[1]!AgePb76($D$14) -> 4930.388493 | F14: 39.172 | G14: 0.699963925 | H14: =[1]!AgePb6U8(G14) -> 3420.512685 | I14: 27.72 | J14: 76.1 | K14: 0.5147437582 | L14: =[1]!AgePb8Th2(K14) -> 8393.052818 | M14: 19.327 | N14: 15.613 | O14: 0.8078336007 | P14: =[1]!AgePb76($D$14) -> 4930.388493 | S14: 4922
A15: 126-1g | B15: 19.446 | C15: 15.617 | D15: 0.8030957523 | E15: =[1]!AgePb76($D$15) -> 4927.236637 | F15: 39.172 | G15: 0.6365302782 | H15: =[1]!AgePb6U8(G15) -> 3175.363846 | I15: 30.55 | J15: 93.8 | K15: 0.4176119403 | L15: =[1]!AgePb8Th2(K15) -> 7053.536609 | M15: 19.371 | N15: 15.614 | O15: 0.8060502813 | P15: =[1]!AgePb76($D$15) -> 4927.236637 | S15: 4922
A16: 127-4g | B16: 19.746 | C16: 15.637 | D16: 0.7919072217 | E16: =[1]!AgePb76($D$16) -> 4907.250804 | F16: 39.532 | G16: 0.5716850029 | H16: =[1]!AgePb6U8(G16) -> 2914.735175 | I16: 34.54 | J16: 109.2 | K16: 0.362014652 | L16: =[1]!AgePb8Th2(K16) -> 6244.870447 | M16: 19.681 | N16: 15.634 | O16: 0.7943702048 | P16: =[1]!AgePb76($D$16) -> 4907.250804 | S16: 4923
A17: 129-1g | B17: 19.908 | C17: 15.646 | D17: 0.78591521 | E17: =[1]!AgePb76($D$17) -> 4896.423447 | F17: 39.734 | G17: 0.6352265475 | H17: =[1]!AgePb6U8(G17) -> 3170.226307 | I17: 31.34 | J17: 128.3 | K17: 0.3096960249 | L17: =[1]!AgePb8Th2(K17) -> 5453.15954 | M17: 19.862 | N17: 15.644 | O17: 0.7876346793 | P17: =[1]!AgePb76($D$17) -> 4896.423447 | S17: 4926
A18: 130-4g | B18: 18.728 | C18: 15.508 | D18: 0.8280649295 | E18: =[1]!AgePb76($D$18) -> 4970.790505 | F18: 38.184 | G18: 1.663232682 | H18: =[1]!AgePb6U8(G18) -> 6314.524925 | I18: 11.26 | J18: 29.1 | K18: 1.312164948 | L18: =[1]!AgePb8Th2(K18) -> 16941.57236 | M18: 18.709 | N18: 15.507 | O18: 0.828852424 | P18: =[1]!AgePb76($D$18) -> 4970.790505 | S18: 4927
A19: 131-1wr | B19: 18.951 | C19: 15.62 | D19: 0.8242309113 | E19: =[1]!AgePb76($D$19) -> 4964.194284 | F19: 38.597 | G19: 2.02684492 | H19: =[1]!AgePb6U8(G19) -> 7139.537769 | I19: 9.35 | J19: 33.9 | K19: 1.138554572 | L19: =[1]!AgePb8Th2(K19) -> 15363.92455 | M19: 18.936 | N19: 15.619 | O19: 0.8248310097 | P19: =[1]!AgePb76($D$19) -> 4964.194284 | S19: 4930
A20: 137-2g | B20: 19.891 | C20: 15.634 | D20: 0.7859836107 | E20: =[1]!AgePb76($D$20) -> 4896.54754 | F20: 39.675 | G20: 0.6082874618 | H20: =[1]!AgePb6U8(G20) -> 3063.14214 | I20: 32.7 | J20: 106.1 | K20: 0.3739396795 | L20: =[1]!AgePb8Th2(K20) -> 6421.067034 | M20: 19.871 | N20: 15.633 | O20: 0.7867243722 | P20: =[1]!AgePb76($D$20) -> 4896.54754 | S20: 4953
A21: 138-1g | B21: 19.727 | C21: 15.627 | D21: 0.7921630253 | E21: =[1]!AgePb76($D$21) -> 4907.711089 | F21: 39.528 | G21: 0.661535882 | H21: =[1]!AgePb6U8(G21) -> 3273.117839 | I21: 29.82 | J21: 106.2 | K21: 0.3722033898 | L21: =[1]!AgePb8Th2(K21) -> 6395.508067 | M21: 19.707 | N21: 15.626 | O21: 0.7929162227 | P21: =[1]!AgePb76($D$21) -> 4907.711089 | S21: 4964
A22: 139-1g | B22: 19.751 | C22: 15.636 | D22: 0.7916561187 | E22: =[1]!AgePb76($D$22) -> 4906.798823 | F22: 39.626 | G22: 0.5915244085 | H22: =[1]!AgePb6U8(G22) -> 2995.599061 | I22: 33.39 | J22: 104.5 | K22: 0.3791961722 | L22: =[1]!AgePb8Th2(K22) -> 6498.248521 | M22: 19.737 | N22: 15.635 | O22: 0.792166996 | P22: =[1]!AgePb76($D$22) -> 4906.798823 | S22: 4971
A23: D-58wr | B23: 19.688 | C23: 15.622 | D23: 0.7934782609 | E23: =[1]!AgePb76($D$23) -> 4910.075189 | F23: 39.197 | G23: 0.1981880411 | H23: =[1]!AgePb6U8(G23) -> 1165.579048 | I23: 99.34 | J23: 69.3 | K23: 0.5656132756 | L23: =[1]!AgePb8Th2(K23) -> 9060.689573 | M23: 19.355 | N23: 15.607 | O23: 0.806354947 | P23: =[1]!AgePb76($D$23) -> 4910.075189 | S23: 4971
A24: D-62wr | B24: 19.559 | C24: 15.609 | D24: 0.7980469349 | E24: =[1]!AgePb76($D$24) -> 4918.25497 | F24: 39.304 | G24: 0.6596627319 | H24: =[1]!AgePb6U8(G24) -> 3265.846306 | I24: 29.65 | J24: 127.1 | K24: 0.3092368214 | L24: =[1]!AgePb8Th2(K24) -> 5446.071518 | M24: 19.436 | N24: 15.603 | O24: 0.8027886396 | P24: =[1]!AgePb76($D$24) -> 4918.25497 | S24: 5446
A25: D-72wr | B25: 19.511 | C25: 15.611 | D25: 0.8001127569 | E25: =[1]!AgePb76($D$25) -> 4921.937282 | F25: 39.213 | G25: 0.4465781643 | H25: =[1]!AgePb6U8(G25) -> 2380.021794 | I25: 43.69 | J25: 173 | K25: 0.2266647399 | L25: =[1]!AgePb8Th2(K25) -> 4129.335882 | M25: 19.502 | N25: 15.611 | O25: 0.8004820018 | P25: =[1]!AgePb76($D$25) -> 4921.937282 | S25: 5453
D26: Average | E26: =AVERAGE(E3:E25) -> 4919.212038 | H26: =AVERAGE(H3:H25) -> 3693.867514 | L26: =AVERAGE(L3:L25) -> 8325.003245 | P26: =AVERAGE(P3:P25) -> 4919.212038 | S26: 5754
D27: Maximum | E27: =MAX(E3:E26) -> 4971.010904 | H27: =MAX(H3:H26) -> 9644.596935 | L27: =MAX(L3:L26) -> 23849.56676 | P27: =MAX(P3:P26) -> 4971.010904 | S27: 5848
D28: Minimum | E28: =MIN(E3:E27) -> 4880.697356 | H28: =MIN(H3:H27) -> 1165.579048 | L28: =MIN(L3:L27) -> 4129.335882 | P28: =MIN(P3:P27) -> 4880.697356 | S28: 5896
D29: Difference | E29: =(E27-E28) -> 90.31354862 | H29: =(H27-H28) -> 8479.017887 | L29: =(L27-L28) -> 19720.23088 | P29: =(P27-P28) -> 90.31354862 | S29: 6245
B30: Age | C30: Age | S30: 6298
B31: 23849.56676 | C31: 6498.248521 | S31: 6315
B32: 16941.57236 | C32: 6421.067034 | E32: Chronology | F32: 207Pb/206Pb | G32: 206Pb/238U | H32: 208Pb/232Th | S32: 6396
B33: 15363.92455 | C33: 6395.508067 | E33: Summary | F33: Age | G33: Age | H33: Age | S33: 6421
B34: 13003.95116 | C34: 6298.29145 | E34: Average | F34: 4919.212038 | G34: 3693.867514 | H34: 8325.003245 | S34: 6498
B35: 9060.689573 | C35: 6244.870447 | E35: Maximum | F35: 4971.010904 | G35: 9644.596935 | H35: 23849.56676 | S35: 6607
B36: 8393.052818 | C36: 5896.204204 | E36: Minimum | F36: 4880.697356 | G36: 1165.579048 | H36: 4129.335882 | S36: 7054
B37: 7654.405071 | C37: 5848.426133 | E37: Difference | F37: 90.31354862 | G37: 8479.017887 | H37: 19720.23088 | S37: 7101
B38: 7598.945037 | C38: 5754.084827 | S38: 7140
B39: 7101.435086 | C39: 5453.15954 | S39: 7599
B40: 7053.536609 | C40: 5446.071518 | S40: 7654
B41: 6606.95695 | S41: 8393
S42: 9061
S43: 9645
S44: 13004
S45: 15364
S46: 16942
S47: 23850
A68: 4881
A69: 4886
A70: 4896
A71: 4897
A72: 4899
A73: 4906
A74: 4907
A75: 4907
A76: 4908
A77: 4908
A78: 4909
A79: 4910
A80: 4918
A81: 4922
A82: 4922
A83: 4923
A84: 4926
A85: 4927
A86: 4930
A87: 4953
A88: 4964
A89: 4971
A90: 4971
A91: 5446
A92: 5453
A93: 5754
A94: 5848
A95: 5896
A96: 6245
A97: 6298
A98: 6315
A99: 6396
A100: 6421
A101: 6498
A102: 6607
A103: 7054
A104: 7101
A105: 7140
A106: 7599
A107: 7654
A108: 8393
A109: 9061
A110: 9645
A111: 13004
A112: 15364
A113: 16942
A114: 23850
A115: =cou -> 

Sheet Exc_40
A1: Sample | B1: Ratio | C1: Ratio | D1: Ratio | E1: Age
A2: Name | B2: 206Pb/204Pb | C2: 207Pb/204Pb | D2: 207Pb/206Pb | E2: 207Pb/206Pb
A3: Xuevo Laredo, Mexico | B3: 50.28 | C3: 34.86 | D3: =(C3/B3) -> 0.6933174224 | E3: =[1]!AgePb76($D$3) -> 4716.930288
A4: Forest City, Iowa | B4: 19.27 | C4: 15.95 | D4: =(C4/B4) -> 0.8277114686 | E4: =[1]!AgePb76($D$4) -> 4970.183754
A5: Modoc, Kansas | B5: 19.48 | C5: 15.76 | D5: 0.8090349076 | E5: =[1]!AgePb76($D$5) -> 4937.725597
A6: Henbury, Australia | B6: 9.55 | C6: 10.38 | D6: 1.086910995 | E6: =[1]!AgePb76($D$6) -> 5354.204382
A7: Canyon Diablo, Arizona | B7: 9.46 | C7: 10.34 | D7: 1.093023256 | E7: =[1]!AgePb76($D$7) -> 5362.046436

Sheet Exc_41
A1: Sample | B1: Pb-206/204 | C1: Pb-207/204 | D1: Pb-207/206 | E1: Age
A2: NAL20 | B2: 18.054 | C2: 15.427 | D2: =(C2/B2) -> 0.8544920793 | E2: =[1]!AgePb76($D$2) -> 5015.392468
A4: NAL36 | B4: 18.387 | C4: 15.47 | D4: =(C4/B4) -> 0.8413553054 | E4: =[1]!AgePb76($D$4) -> 4993.40716
A5: NAL36 | B5: 18.389 | C5: 15.475 | D5: 0.8415357007 | E5: =[1]!AgePb76($D$5) -> 4993.711527
A6: NAL71 | B6: 18.484 | C6: 15.483 | D6: 0.8376433672 | E6: =[1]!AgePb76($D$6) -> 4987.128857
A7: SAL56 | B7: 18.586 | C7: 15.577 | D7: 0.8381039492 | E7: =[1]!AgePb76($D$7) -> 4987.909481
A8: SAL9 | B8: 18.514 | C8: 15.529 | D8: 0.83877066 | E8: =[1]!AgePb76($D$8) -> 4989.038659
A10: MIL10 | B10: 18.603 | C10: 15.463 | D10: 0.8312100199 | E10: =[1]!AgePb76($D$10) -> 4976.17727
A11: MIL10 | B11: 18.607 | C11: 15.452 | D11: 0.8304401569 | E11: =[1]!AgePb76($D$11) -> 4974.860689
A12: MIL10
A13: MIL15 | B13: 18.513 | C13: 15.474 | D13: 0.8358450818 | E13: =[1]!AgePb76($D$13) -> 4984.076632
A14: MIL15
A15: MIL15
A16: MIL27 | B16: 18.623 | C16: 15.481 | D16: 0.8312838963 | E16: =[1]!AgePb76($D$16) -> 4976.303542
A17: MIL27
A18: MIL 51 | B18: 18.281 | C18: 15.455 | D18: 0.8454132706 | E18: =[1]!AgePb76($D$18) -> 5000.237145
A19: MIL 51 | B19: 18.276 | C19: 15.432 | D19: 0.8443860801 | E19: =[1]!AgePb76($D$19) -> 4998.511572
A20: MIL52 | B20: 18.443 | C20: 15.454 | D20: 0.8379330911 | E20: =[1]!AgePb76($D$20) -> 4987.619953
A21: MIL54 | B21: 18.394 | C21: 15.436 | D21: 0.8391866913 | E21: =[1]!AgePb76($D$21) -> 4989.74279
A22: MIL62 | B22: 18.179 | C22: 15.418 | D22: 0.8481214588 | E22: =[1]!AgePb76($D$22) -> 5004.775965
A23: MIL62
A24: MIL83 | B24: 18.155 | C24: 15.466 | D24: 0.8518865326 | E24: =[1]!AgePb76($D$24) -> 5011.060572
A25: MIL83
A27: SAL109 | B27: 19.164 | C27: 15.647 | D27: 0.8164788144 | E27: =[1]!AgePb76($D$27) -> 4950.756987
A28: SAL109
A29: VMG41 | B29: 19.14 | C29: 15.636 | D29: 0.8169278997 | E29: =[1]!AgePb76($D$29) -> 4951.539115
A31: D8B-1 | B31: 18.553 | C31: 15.51 | D31: 0.8359833989 | E31: =[1]!AgePb76($D$31) -> 4984.311645
A32: D8B-1
A33: HEN5 | B33: 18.323 | C33: 15.554 | D33: 0.8488784588 | E33: =[1]!AgePb76($D$33) -> 5006.041915

Sheet Exc_42
A1: Sample | B1: Ratio | C1: Ratio | D1: Ratio | E1: Age | F1: Model Age | G1: Age | H1: Age
A2: Number | B2: 206Pb/204Pb | C2: 207Pb/204Pb | D2: 207Pb/206Pb | E2: 207Pb/206Pb | F2: 187-Re/188-Os | G2: Difference | H2: Ratio
A3: B-208 | B3: 18.328 | C3: 15.635 | D3: =(C3/B3) -> 0.8530663466 | E3: =[1]!AgePb76($D$3) -> 5013.023832 | F3: 139 | G3: =(E3-F3) -> 4874.023832 | H3: =(E3/F3) -> 36.06491966
A4: B-448 | B4: 18.413 | C4: 15.617 | D4: =(C4/B4) -> 0.848150763 | E4: =[1]!AgePb76($D$4) -> 5004.824993 | F4: 135 | G4: =(E4-F4) -> 4869.824993 | H4: =(E4/F4) -> 37.07277773
A5: B-3064 | B5: 18.379 | C5: 15.613 | D5: 0.8495021492 | E5: =[1]!AgePb76($D$5) -> 5007.084028 | F5: 139 | G5: 4868.084028 | H5: 36.02218725
A6: B-3006 | B6: 18.442 | C6: 15.625 | D6: 0.8472508405 | E6: =[1]!AgePb76($D$6) -> 5003.318523 | F6: 138 | G6: 4865.318523 | H6: 36.25593132
A7: B-418 | B7: 18.387 | C7: 15.609 | D7: 0.8489149943 | E7: =[1]!AgePb76($D$7) -> 5006.102984 | F7: 133 | G7: 4873.102984 | H7: 37.63987206
A8: B-509 | B8: 18.367 | C8: 15.636 | D8: 0.8513094136 | E8: =[1]!AgePb76($D$8) -> 5010.09917 | F8: 142 | G8: 4868.09917 | H8: 35.28238852
A10: KS-624 | B10: 17.889 | C10: 15.546 | D10: =(C10/B10) -> 0.8690256582 | E10: =[1]!AgePb76($D$10) -> 5039.301073 | F10: 136 | G10: 4903.301073 | H10: 37.05368436
A11: KS-660 | B11: 17.887 | C11: 15.513 | D11: 0.8672779113 | E11: =[1]!AgePb76($D$11) -> 5036.448468 | F11: 139 | G11: 4897.448468 | H11: 36.23344221
A12: KS-685 | B12: 17.907 | C12: 15.537 | D12: 0.8676495225 | E12: =[1]!AgePb76($D$12) -> 5037.055508 | F12: 140 | G12: 4897.055508 | H12: 35.97896791
A13: KS-700 | B13: 17.882 | C13: 15.532 | D13: 0.8685829326 | E13: =[1]!AgePb76($D$13) -> 5038.579049 | F13: 138 | G13: 4900.579049 | H13: 36.51144239
A14: FL-98 | B14: 17.909 | C14: 15.536 | D14: 0.8674967893 | E14: =[1]!AgePb76($D$14) -> 5036.806046 | F14: 133 | G14: 4903.806046 | H14: 37.87072215
A16: TR-7 | B16: 18.541 | C16: 15.533 | D16: =(C16/B16) -> 0.8377649533 | E16: =[1]!AgePb76($D$16) -> 4987.334973 | F16: 9.7 | G16: 4977.634973 | H16: 514.1582447
A17: TR-6 | B17: 18.534 | C17: 15.546 | D17: 0.8387827776 | E17: =[1]!AgePb76($D$17) -> 4989.059173 | F17: 9.4 | G17: 4979.659173 | H17: 530.7509759
A18: TR-1 | B18: 18.534 | C18: 15.546 | D18: 0.8387827776 | E18: =[1]!AgePb76($D$18) -> 4989.059173 | F18: 5 | G18: 4984.059173 | H18: 997.8118347

Sheet Exc_43
A1: Sample | B1: Ratio | C1: Ratio | D1: Ratio | E1: Age
A2: Number | B2: 206Pb/204Pb | C2: 207Pb/204Pb | D2: 207Pb/206Pb | E2: 207Pb/206Pb
A3: A168 | B3: 18.94 | C3: 15.595 | D3: =(C3/B3) -> 0.8233896515 | E3: =[1]!AgePb76($D$3) -> 4962.742578
A4: A169 | B4: 18.77 | C4: 15.596 | D4: =(C4/B4) -> 0.8309003729 | E4: =[1]!AgePb76($D$4) -> 4975.647884
A5: A215 | B5: 19.024 | C5: 15.609 | D5: 0.8204899075 | E5: =[1]!AgePb76($D$5) -> 4957.726572
A6: B5 | B6: 19.004 | C6: 15.598 | D6: 0.8207745738 | E6: =[1]!AgePb76($D$6) -> 4958.219825
A7: B18 | B7: 18.974 | C7: 15.595 | D7: 0.8219141984 | E7: =[1]!AgePb76($D$7) -> 4960.192676
A8: B33 | B8: na | C8: na | D8: 0
A9: B34 | B9: 18.634 | C9: 15.569 | D9: 0.8355157239 | E9: =[1]!AgePb76($D$9) -> 4983.516858
A10: C20 | B10: 18.688 | C10: 15.569 | D10: 0.8331014555 | E10: =[1]!AgePb76($D$10) -> 4979.406413
A11: C29 | B11: 18.617 | C11: 15.58 | D11: 0.8368695279 | E11: =[1]!AgePb76($D$11) -> 4985.816276
A12: C52 | B12: 18.608 | C12: 15.571 | D12: 0.8367906277 | E12: =[1]!AgePb76($D$12) -> 4985.682373

Sheet Exc_44
A1: Sample | B1: AL/B1b-03 | C1: AL/B7-03 | D1: AL/B9-03 | E1: AL/B16-98 | F1: AL/WM1e-98 | G1: 117-KHG-91 | H1: JSH/B006 | I1: AL/B7-98 | J1: 5-mk-91 | K1: P4-KHG-90 | L1: AL/307 | M1: sk221-AVL | N1: sk229-AVL
A2: 232Th/204Pb | B2: 33 | C2: 28.1 | D2: 22.3 | E2: 31 | F2: 24.8 | G2: 50.2 | H2: 48.5 | I2: 58.3 | J2: 19.5 | K2: 17.8 | L2: 23.1 | M2: 12 | N2: 10.7
A3: 208Pb/232Th | B3: =(B9/B2) -> 1.143636364 | C3: =(C9/C2) -> 1.342704626 | D3: 1.690134529 | E3: 1.218709677 | F3: 1.512903226 | G3: 0.7527888446 | H3: 0.7888659794 | I3: 0.6566037736 | J3: 1.964615385 | K3: 2.110674157 | L3: 1.641991342 | M3: 3.0975 | N3: 3.472897196
A4: Age | B4: =[1]!AgePb8Th2(B3) -> 15411.89737 | C4: =[1]!AgePb8Th2(C3) -> 17206.79303 | D4: =[1]!AgePb8Th2(D3) -> 20001.84342 | E4: =[1]!AgePb8Th2(E3) -> 16107.6463 | F4: =[1]!AgePb8Th2(F3) -> 18624.33044 | G4: =[1]!AgePb8Th2(G3) -> 11343.2672 | H4: =[1]!AgePb8Th2(H3) -> 11755.06595 | I4: =[1]!AgePb8Th2(I3) -> 10202.51818 | J4: =[1]!AgePb8Th2(J3) -> 21965.58475 | K4: =[1]!AgePb8Th2(K3) -> 22937.63463 | L4: =[1]!AgePb8Th2(L3) -> 19636.84546 | M4: =[1]!AgePb8Th2(M3) -> 28506.86269 | N4: =[1]!AgePb8Th2(N3) -> 30278.65267
A5: 206Pb/204Pb | B5: 18.111 | C5: 18.122 | D5: 17.961 | E5: 18.103 | F5: 17.825 | G5: 17.701 | H5: 18.256 | I5: 18.26 | J5: 18.351 | K5: 17.809 | L5: 17.203 | M5: 17.38 | N5: 17.374
A6: 207Pb/204Pb | B6: 15.491 | C6: 15.504 | D6: 15.473 | E6: 15.489 | F6: 15.492 | G6: 15.437 | H6: 15.543 | I6: 15.598 | J6: 15.597 | K6: 15.523 | L6: 15.44 | M6: 15.535 | N6: 15.541
A7: 207Pb/206Pb | B7: =(B6/B5) -> 0.8553365358 | C7: =(C6/C5) -> 0.8555347092 | D7: 0.861477646 | E7: 0.8556040435 | F7: 0.8691164095 | G7: 0.8720976216 | H7: 0.8513913234 | I7: 0.8542168675 | J7: 0.8499264345 | K7: 0.8716379359 | L7: 0.8975178748 | M7: 0.8938434983 | N7: 0.894497525
A8: Age | B8: =[1]!AgePb76(B7) -> 5016.793424 | C8: =[1]!AgePb76(C7) -> 5017.121981 | D8: =[1]!AgePb76(D7) -> 5026.937582 | E8: =[1]!AgePb76(E7) -> 5017.236914 | F8: =[1]!AgePb76(F7) -> 5039.449027 | G8: =[1]!AgePb76(G7) -> 5044.300287 | H8: =[1]!AgePb76(H7) -> 5010.235663 | I8: =[1]!AgePb76(I7) -> 5014.935573 | J8: =[1]!AgePb76(J7) -> 5007.792494 | K8: =[1]!AgePb76(K7) -> 5043.5534 | L8: =[1]!AgePb76(L7) -> 5084.965092 | M8: =[1]!AgePb76(M7) -> 5079.16327 | N8: =[1]!AgePb76(N7) -> 5080.197823
A9: 208Pb/204Pb | B9: 37.74 | C9: 37.73 | D9: 37.69 | E9: 37.78 | F9: 37.52 | G9: 37.79 | H9: 38.26 | I9: 38.28 | J9: 38.31 | K9: 37.57 | L9: 37.93 | M9: 37.17 | N9: 37.16

Sheet Exc_45
A1: Location | B1: Asunción | C1: Misiones | D1: Belén | E1: Las-Conchas | F1: Finca | G1: Betanzos | H1: Ayopaya
A2: (206Pb/204Pb) | B2: 18.89 | C2: 18.31 | D2: 19.29 | E2: 18.63 | F2: 19.13 | G2: 19.39 | H2: 19.2
A3: (207Pb/204Pb) | B3: 15.67 | C3: 15.68 | D3: 15.57 | E3: 15.56 | F3: 15.58 | G3: 15.59 | H3: 15.64
A4: (207Pb/206Pb) | B4: =(B3/B2) -> 0.8295394389 | C4: =(C3/C2) -> 0.8563626434 | D4: 0.8071539658 | E4: 0.8352120236 | F4: 0.8144276006 | G4: 0.8040226921 | H4: 0.8145833333
A5: Age | B5: =[1]!AgePb76(B4) -> 4973.318679 | C5: =[1]!AgePb76(C4) -> 5018.493765 | D5: =[1]!AgePb76(D4) -> 4934.412611 | E5: =[1]!AgePb76(E4) -> 4983.000484 | F5: =[1]!AgePb76(F4) -> 4947.17876 | G5: =[1]!AgePb76(G4) -> 4928.879101 | H5: =[1]!AgePb76(H4) -> 4947.450763
F53: 207/206 | K53: Table 1.
F54: Ratio
A55: 1.1 | B55: 2626 | C55: 0.23 | D55: 4.4e-05 | E55: 55.891 | F55: 0.0501 | G55: 0.0179 | H55: 114.1 | I55: 1.2 | J55: =(#REF!/H55) -> 
A56: 2.1 | B56: 1887 | C56: 0.04 | D56: 0 | E56: 5.892 | F56: 0.0757 | G56: 0.1691 | H56: 1007.3 | I56: 11.2 | J56: =(#REF!/H56) -> 
A57: 3.1 | B57: 1001 | C57: 0.21 | D57: 0.000239 | E57: 57.981 | F57: 0.0544 | G57: 0.0171 | H57: 109.4 | I57: 1.2 | J57: =(#REF!/H57) -> 
A58: 4.1 | B58: 2039 | C58: 0.14 | D58: 1.8e-05 | E58: 10.349 | F58: 0.1034 | G58: 0.0913 | H58: 563.5 | I58: 8.7 | J58: =(#REF!/H58) -> 
A59: 5.1 | B59: 1225 | C59: 0.19 | D59: 7.2e-05 | E59: 55.23 | F59: 0.0507 | G59: 0.0181 | H59: 115.3 | I59: 1.2 | J59: =(#REF!/H59) -> 
A60: 8.1 | B60: 2542 | C60: 0.19 | D60: 1.3e-05 | E60: 56.465 | F60: 0.0501 | G60: 0.0177 | H60: 112.9 | I60: 1.2 | J60: =(#REF!/H60) -> 
A61: 9.1 | B61: 954 | C61: 0.01 | D61: 6.8e-05 | E61: 55.865 | F61: 0.0513 | G61: 0.0178 | H61: 113.9 | I61: 1.4 | J61: =(#REF!/H61) -> 
A62: 10.1 | B62: 1375 | C62: 0.09 | D62: 2.8e-05 | E62: 17.714 | F62: 0.0559 | G62: 0.0563 | H62: 353 | I62: 4.2 | J62: =(#REF!/H62) -> 
A63: 11.1 | B63: 1864 | C63: 0.26 | D63: 4e-05 | E63: 55.27 | F63: 0.051 | G63: 0.018 | H63: 115.2 | I63: 1.2 | J63: =(#REF!/H63) -> 
A64: 12.1 | B64: 1769 | C64: 0 | D64: 3.7e-05 | E64: 54.346 | F64: 0.0496 | G64: 0.0184 | H64: 117.4 | I64: 1.2 | J64: =(#REF!/H64) -> 
A65: 14.1 | B65: 2448 | C65: 0.07 | D65: 0.000181 | E65: 57.572 | F65: 0.0527 | G65: 0.0173 | H65: 110.4 | I65: 1.1 | J65: =(#REF!/H65) -> 
A66: 15.1 | B66: 1504 | C66: 0.2 | D66: 0.000265 | E66: 54.975 | F66: 0.0496 | G66: 0.0182 | H66: 116 | I66: 1.2 | J66: =(#REF!/H66) -> 
A67: 16.1 | B67: 2859 | C67: 0.19 | D67: 4.9e-05 | E67: 53.701 | F67: 0.048 | G67: 0.0186 | H67: 119 | I67: 1.2 | J67: =(#REF!/H67) -> 
A68: 17.1 | B68: 772 | C68: 0.13 | D68: 0.000193 | E68: 56.642 | F68: 0.0498 | G68: 0.0176 | H68: 112.6 | I68: 1.2 | J68: =(#REF!/H68) -> 
A69: 18.1 | B69: 957 | C69: 0.39 | D69: 1.1e-05 | E69: 52.368 | F69: 0.0491 | G69: 0.0191 | H69: 121.8 | I69: 1.4 | J69: =(#REF!/H69) -> 
A70: 19.1 | B70: 300 | C70: 0.89 | D70: ‐ | E70: 59.163 | F70: 0.0524 | G70: 0.0168 | H70: 107.5 | I70: 1.3 | J70: =(#REF!/H70) -> 
A71: 20.1 | B71: 2426 | C71: 0.1 | D71: 0.000603 | E71: 54.685 | F71: 0.0574 | G71: 0.0181 | H71: 115.5 | I71: 1.2 | J71: =(#REF!/H71) -> 
A72: 21.1 | B72: 376 | C72: 0.06 | D72: 4e-05 | E72: 8.52 | F72: 0.0793 | G72: 0.115 | H72: 701.8 | I72: 20.3 | J72: =(#REF!/H72) -> 
A73: Cores
A74: 6.1 | B74: 2732 | C74: 0.1 | D74: 3.3e-05 | E74: 56.37 | F74: 0.0498 | G74: 0.0177 | H74: 113.1 | I74: 1.3 | J74: =(#REF!/H74) -> 
A75: 7.1 | B75: 932 | C75: 0.23 | D75: 4.9e-05 | E75: 54.718 | F75: 0.0504 | G75: 0.0182 | H75: 116.4 | I75: 1.3 | J75: =(#REF!/H75) -> 
A76: 9.2 | B76: 129 | C76: 0.2 | D76: 0.000235 | E76: 11.476 | F76: 0.0621 | G76: 0.0867 | H76: 536.1 | I76: 8 | J76: =(#REF!/H76) -> 
A77: 13.1 | B77: 1962 | C77: 0.18 | D77: 2e-05 | E77: 52.954 | F77: 0.0503 | G77: 0.0188 | H77: 120.3 | I77: 1.4 | J77: =(#REF!/H77) -> 
A78: 14.2 | B78: 275 | C78: 0.41 | D78: 0.000135 | E78: 10.225 | F78: 0.0604 | G78: 0.0977 | H78: 601.2 | I78: 6.9 | J78: =(#REF!/H78) -> 
A79: 20.2 | B79: 1845 | C79: 0.18 | D79: ‐ | E79: 9.617 | F79: 0.0599 | G79: 0.1041 | H79: 638.5 | I79: 7.4 | J79: =(#REF!/H79) -> 
A80: Sample | B80: M5‐F57B | C80: S | D80: 29.734, | E80: 145°
A81: Rims
A82: 2.1 | B82: 2291 | C82: 0.029 | D82: 0.000424 | E82: 58.901 | F82: 0.0532 | G82: 0.0169 | H82: 107.8 | I82: 1.1 | J82: =(#REF!/H82) -> 
A83: 3.1 | B83: 1178 | C83: 0.02 | D83: 0.001507 | E83: 60.112 | F83: 0.0699 | G83: 0.0162 | H83: 103.5 | I83: 1.2 | J83: =(#REF!/H83) -> 
A84: 4.1 | B84: 1570 | C84: 0.023 | D84: 0.001265 | E84: 59.438 | F84: 0.0632 | G84: 0.0165 | H84: 105.5 | I84: 1.1 | J84: =(#REF!/H84) -> 
A85: 5.1 | B85: 1572 | C85: 0.01 | D85: 0.00091 | E85: 56.421 | F85: 0.0622 | G85: 0.0174 | H85: 111.3 | I85: 1.2 | J85: =(#REF!/H85) -> 
A86: 6.1 | B86: 1094 | C86: 0.016 | D86: 0.000713 | E86: 61.018 | F86: 0.0591 | G86: 0.0162 | H86: 103.4 | I86: 1.2 | J86: =(#REF!/H86) -> 
A87: 7.1 | B87: 1564 | C87: 0.024 | D87: 0.001028 | E87: 61.294 | F87: 0.0612 | G87: 0.016 | H87: 102.6 | I87: 1.1 | J87: =(#REF!/H87) -> 
A88: 8.1 | B88: 1258 | C88: 0.015 | D88: 0.00035 | E88: 60.91 | F88: 0.0555 | G88: 0.0163 | H88: 104 | I88: 1.2 | J88: =(#REF!/H88) -> 
A89: 9.1 | B89: 1419 | C89: 0.025 | D89: 0.000362 | E89: 60.667 | F89: 0.0518 | G89: 0.0164 | H89: 104.9 | I89: 1.1 | J89: =(#REF!/H89) -> 
A90: 10.1 | B90: 1401 | C90: 0.02 | D90: 0.000696 | E90: 59.68 | F90: 0.0561 | G90: 0.0166 | H90: 106.1 | I90: 1.2 | J90: =(#REF!/H90) -> 
A91: 11.1 | B91: 1457 | C91: 0.005 | D91: 0.000432 | E91: 58.58 | F91: 0.0551 | G91: 0.0169 | H91: 108.2 | I91: 1.2 | J91: =(#REF!/H91) -> 
A92: 12.1 | B92: 1215 | C92: 0.015 | D92: 0.002257 | E92: 58.436 | F92: 0.0775 | G92: 0.0165 | H92: 105.4 | I92: 1.2 | J92: =(#REF!/H92) -> 
A93: 13.1 | B93: 1109 | C93: 0.008 | D93: 0.000579 | E93: 59.137 | F93: 0.0548 | G93: 0.0168 | H93: 107.2 | I93: 1.2 | J93: =(#REF!/H93) -> 
A94: 14.1 | B94: 1629 | C94: 0.027 | D94: 0.000409 | E94: 60.967 | F94: 0.0526 | G94: 0.0163 | H94: 104.3 | I94: 1.1 | J94: =(#REF!/H94) -> 
A95: 15.1 | B95: 1277 | C95: 0.02 | D95: 0.000569 | E95: 60.064 | F95: 0.0567 | G95: 0.0165 | H95: 105.3 | I95: 1.2 | J95: =(#REF!/H95) -> 
A96: Cores
A97: 1.1 | B97: 1280 | C97: 0.006 | D97: 0.001104 | E97: 52.921 | F97: 0.069 | G97: 0.0184 | H97: 117.6 | I97: 3 | J97: =(#REF!/H97) -> 
A98: Sample | B98: M5‐R136A | C98: S | D98: 32.877, | E98: 144°
A99: Rims
A100: 1.1 | B100: 3143 | C100: 0.069 | D100: 0.000167 | E100: 58.495 | F100: 0.051 | G100: 0.017 | H100: 108.9 | I100: 1.1 | J100: =(#REF!/H100) -> 
A101: 2.1 | B101: 3082 | C101: 0.031 | D101: 0.00036 | E101: 58.279 | F101: 0.0552 | G101: 0.017 | H101: 108.7 | I101: 1.1 | J101: =(#REF!/H101) -> 
A102: 3.1 | B102: 692 | C102: 0.496 | D102: 0.000648 | E102: 57.545 | F102: 0.0554 | G102: 0.0172 | H102: 110.1 | I102: 1.2 | J102: =(#REF!/H102) -> 
A103: 5.1 | B103: 1500 | C103: 0.033 | D103: 4.7e-05 | E103: 17.105 | F103: 0.0554 | G103: 0.0584 | H103: 365.6 | I103: 4.1 | J103: =(#REF!/H103) -> 
A104: 6.1 | B104: 1307 | C104: 0.023 | D104: 0.000408 | E104: 58.35 | F104: 0.053 | G104: 0.017 | H104: 108.9 | I104: 1.2 | J104: =(#REF!/H104) -> 
A105: 7.1 | B105: 1646 | C105: 0.011 | D105: 7.5e-05 | E105: 62.314 | F105: 0.05 | G105: 0.016 | H105: 102.4 | I105: 1.1 | J105: =(#REF!/H105) -> 
A106: 9.1 | B106: 163 | C106: 0.364 | D106: 0.000998 | E106: 56.981 | F106: 0.0723 | G106: 0.017 | H106: 108.8 | I106: 1.8 | J106: =(#REF!/H106) -> 
A107: 10.1 | B107: 658 | C107: 0.045 | D107: 0.001136 | E107: 57.958 | F107: 0.0537 | G107: 0.0171 | H107: 109.5 | I107: 1.3 | J107: =(#REF!/H107) -> 
A108: 11.1 | B108: 2484 | C108: 0.006 | D108: 0.000191 | E108: 61.456 | F108: 0.0511 | G108: 0.0162 | H108: 103.7 | I108: 1.1 | J108: =(#REF!/H108) -> 
A109: 12.1 | B109: 1407 | C109: 0.296 | D109: 0.000143 | E109: 59.519 | F109: 0.0509 | G109: 0.0167 | H109: 107 | I109: 1.2 | J109: =(#REF!/H109) -> 
A110: 13.1 | B110: 1341 | C110: 0.037 | D110: 0.000343 | E110: 61.079 | F110: 0.0526 | G110: 0.0163 | H110: 104.1 | I110: 1.1 | J110: =(#REF!/H110) -> 
A111: 15.1 | B111: 1380 | C111: 0.014 | D111: 0.000405 | E111: 62.163 | F111: 0.0539 | G111: 0.016 | H111: 102.1 | I111: 1.1 | J111: =(#REF!/H111) -> 
A112: 16.1 | B112: 3099 | C112: 0.015 | D112: 0.000183 | E112: 57.378 | F112: 0.0506 | G112: 0.0174 | H112: 111.1 | I112: 1.2 | J112: =(#REF!/H112) -> 
A113: 17.1 | B113: 2219 | C113: 0.017 | D113: 0.000177 | E113: 60.445 | F113: 0.0513 | G113: 0.0165 | H113: 105.4 | I113: 1.2 | J113: =(#REF!/H113) -> 
A114: 18.1 | B114: 2813 | C114: 0.158 | D114: 0.000173 | E114: 59.93 | F114: 0.0525 | G114: 0.0166 | H114: 106.1 | I114: 1.1 | J114: =(#REF!/H114) -> 
A115: 19.1 | B115: 1517 | C115: 0.015 | D115: 0.000137 | E115: 60.214 | F115: 0.0529 | G115: 0.0165 | H115: 105.5 | I115: 1.2 | J115: =(#REF!/H115) -> 
A116: 20.1 | B116: 2624 | C116: 0.228 | D116: 0.000123 | E116: 59.688 | F116: 0.0502 | G116: 0.0167 | H116: 106.8 | I116: 1.1 | J116: =(#REF!/H116) -> 
A117: 21.1 | B117: 1372 | C117: 0.014 | D117: 0.000166 | E117: 59.935 | F117: 0.0503 | G117: 0.0166 | H117: 106.4 | I117: 1.2 | J117: =(#REF!/H117) -> 
A118: 22.1 | B118: 1732 | C118: 0.016 | D118: 0.000391 | E118: 58.841 | F118: 0.056 | G118: 0.0168 | H118: 107.6 | I118: 1.2 | J118: =(#REF!/H118) -> 
A120: Cores
A121: 1.2 | B121: 895 | C121: 0.194 | D121: 0.000262 | E121: 57.355 | F121: 0.052 | G121: 0.0174 | H121: 110.9 | I121: 1.2 | J121: =(#REF!/H121) -> 
A122: 2.2 | B122: 384 | C122: 0.247 | D122: 0.000234 | E122: 19.1 | F122: 0.0554 | G122: 0.0522 | H122: 328 | I122: 3.8 | J122: =(#REF!/H122) -> 
A123: 4.1 | B123: 446 | C123: 0.307 | D123: 0.000276 | E123: 16.879 | F123: 0.059 | G123: 0.0589 | H123: 368.8 | I123: 3.9 | J123: =(#REF!/H123) -> 
A124: 4.2 | B124: 122 | C124: 0.01 | D124: 0.000752 | E124: 10.631 | F124: 0.0717 | G124: 0.0926 | H124: 571 | I124: 7.4 | J124: =(#REF!/H124) -> 
A125: 7.2 | B125: 414 | C125: 0.419 | D125: 0.001588 | E125: 58.175 | F125: 0.0562 | G125: 0.017 | H125: 108.8 | I125: 1.5 | J125: =(#REF!/H125) -> 
A126: 8.1 | B126: 470 | C126: 0.092 | D126: 0.000179 | E126: 23.304 | F126: 0.0569 | G126: 0.0426 | H126: 269.1 | I126: 3.1 | J126: =(#REF!/H126) -> 
A127: 14.1 | B127: 271 | C127: 0.36 | D127: 0.000395 | E127: 17.355 | F127: 0.0627 | G127: 0.057 | H127: 357.2 | I127: 4.3 | J127: =(#REF!/H127) -> 
A128: 17.2 | B128: 2418 | C128: 0.725 | D128: 0.001532 | E128: 58.952 | F128: 0.0687 | G128: 0.0165 | H128: 105.7 | I128: 1.2 | J128: =(#REF!/H128) -> 
A129: 23.1 | B129: 1304 | C129: 0.542 | D129: 0.061008 | E129: 25.784 | F129: 0.3307
A130: 24.1 | B130: 393 | C130: 0.11 | D130: 0.0007 | E130: 26.105 | F130: 0.0574 | G130: 0.038 | H130: 240.4 | I130: 3 | J130: =(#REF!/H130) -> 
A131: 25.1 | B131: 198 | C131: 0.91 | D131: 0.000434 | E131: 17.166 | F131: 0.0612 | G131: 0.0577 | H131: 361.7 | I131: 4.8 | J131: =(#REF!/H131) -> 
A132: 26.1 | B132: 990 | C132: 0.739 | D132: 5.6e-05 | E132: 17.016 | F132: 0.0546 | G132: 0.0587 | H132: 367.8 | I132: 3.9 | J132: =(#REF!/H132) -> 
A133: Sample | B133: M5‐R136C | C133: S | D133: 32.877, | E133: 144°
A134: Rims
A135: 1.1 | B135: 889 | C135: 0.051 | D135: 7e-06 | E135: 17.187 | F135: 0.0552 | G135: 0.0581 | H135: 364 | I135: 4.2 | J135: =(#REF!/H135) -> 
A136: 3.1 | B136: 2376 | C136: 0.009 | D136: ‐ | E136: 62.365 | F136: 0.0488 | G136: 0.016 | H136: 102.5 | I136: 1.1 | J136: =(#REF!/H136) -> 
A137: 4.1 | B137: 536 | C137: 0.363 | D137: 0.000249 | E137: 59.453 | F137: 0.0486 | G137: 0.0168 | H137: 107.5 | I137: 1.3 | J137: =(#REF!/H137) -> 
A138: 5.1 | B138: 2748 | C138: 0.026 | D138: ‐ | E138: 59.329 | F138: 0.0489 | G138: 0.0168 | H138: 107.7 | I138: 1.1 | J138: =(#REF!/H138) -> 
A139: 6.1 | B139: 3372 | C139: 0.014 | D139: 0.001594 | E139: 58.811 | F139: 0.0684 | G139: 0.0166 | H139: 105.9 | I139: 1.1 | J139: =(#REF!/H139) -> 
A140: 7.1 | B140: 1342 | C140: 0.018 | D140: 0.000164 | E140: 61.343 | F140: 0.0507 | G140: 0.0162 | H140: 103.9 | I140: 1.1 | J140: =(#REF!/H140) -> 
A141: 8.2 | B141: 2066 | C141: 0.026 | D141: ‐ | E141: 16.535 | F141: 0.0541 | G141: 0.0605 | H141: 378.6 | I141: 3.9 | J141: =(#REF!/H141) -> 
A142: 9.1 | B142: 1001 | C142: 0.023 | D142: 0.000179 | E142: 60.172 | F142: 0.048 | G142: 0.0166 | H142: 106.3 | I142: 1.2 | J142: =(#REF!/H142) -> 
A143: 10.1 | B143: 2804 | C143: 0.004 | D143: ‐ | E143: 59.764 | F143: 0.0481 | G143: 0.0167 | H143: 107 | I143: 1.1 | J143: =(#REF!/H143) -> 
A144: 11.1 | B144: 2254 | C144: 0.008 | D144: ‐ | E144: 59.995 | F144: 0.0482 | G144: 0.0167 | H144: 106.6 | I144: 1.1 | J144: =(#REF!/H144) -> 
A145: 12.1 | B145: 1524 | C145: 0.323 | D145: ‐ | E145: 21.427 | F145: 0.0532 | G145: 0.0466 | H145: 293.7 | I145: 3 | J145: =(#REF!/H145) -> 
A146: Cores
A147: 1.2 | B147: 785 | C147: 0.293 | D147: 4.6e-05 | E147: 18.713 | F147: 0.0549 | G147: 0.0533 | H147: 334.9 | I147: 3.6 | J147: =(#REF!/H147) -> 
A148: 2.1 | B148: 1305 | C148: 0.026 | D148: ‐ | E148: 16.624 | F148: 0.053 | G148: 0.0602 | H148: 377.1 | I148: 6.1 | J148: =(#REF!/H148) -> 
A149: 3.2 | B149: 628 | C149: 0.52 | D149: 0.00035 | E149: 59.652 | F149: 0.0515 | G149: 0.0167 | H149: 106.7 | I149: 1.4 | J149: =(#REF!/H149) -> 
A150: 6.2 | B150: 953 | C150: 0.616 | D150: 3.1e-05 | E150: 16.901 | F150: 0.0543 | G150: 0.0591 | H150: 370.5 | I150: 4 | J150: =(#REF!/H150) -> 
A151: 8.1 | B151: 188 | C151: 0.402 | D151: ‐ | E151: 17.15 | F151: 0.0576 | G151: 0.058 | H151: 363.7 | I151: 4.8 | J151: =(#REF!/H151) -> 
A152: 9.2 | B152: 611 | C152: 0.556 | D152: 0.000321 | E152: 58.604 | F152: 0.0488 | G152: 0.0171 | H152: 109 | I152: 1.3 | J152: =(#REF!/H152) -> 
A153: 10.2 | B153: 395 | C153: 0.499 | D153: ‐ | E153: 58.949 | F153: 0.0496 | G153: 0.0169 | H153: 108.3 | I153: 1.4 | J153: =(#REF!/H153) -> 
A154: 13.1 | B154: 568 | C154: 0.159 | D154: 2.2e-05 | E154: 48.17 | F154: 0.0503 | G154: 0.0207 | H154: 132.2 | I154: 1.6 | J154: =(#REF!/H154) -> 
A155: 14.1 | B155: 450 | C155: 0.321 | D155: 0.000259 | E155: 17.498 | F155: 0.0539 | G155: 0.0571 | H155: 358.2 | I155: 4.1 | J155: =(#REF!/H155) -> 
A156: 15.1 | B156: 1331 | C156: 0.314 | D156: 0.000171 | E156: 58 | F156: 0.049 | G156: 0.0172 | H156: 110.1 | I156: 1.2 | J156: =(#REF!/H156) -> 
A157: 16.1 | B157: 750 | C157: 0.457 | D157: ‐ | E157: 58.784 | F157: 0.0471 | G157: 0.017 | H157: 108.9 | I157: 1.3 | J157: =(#REF!/H157) -> 
A158: 17.1 | B158: 607 | C158: 0.414 | D158: 0.000202 | E158: 59.472 | F158: 0.0491 | G158: 0.0168 | H158: 107.4 | I158: 1.4 | J158: =(#REF!/H158) -> 
A159: 18.1 | B159: 1300 | C159: 0.533 | D159: ‐ | E159: 58.875 | F159: 0.0484 | G159: 0.017 | H159: 108.5 | I159: 1.2 | J159: =(#REF!/H159) -> 
A160: 19.1 | B160: 1059 | C160: 0.615 | D160: 6.9e-05 | E160: 17.059 | F160: 0.0546 | G160: 0.0586 | H160: 366.9 | I160: 3.9 | J160: =(#REF!/H160) -> 
A161: Sample | B161: M5‐R136B | C161: S | D161: 32.877, | E161: 144°
A162: Rims
A163: 1.1 | B163: 3773 | C163: 0.053 | D163: 0.003071 | E163: 57.796 | F163: 0.0913 | G163: 0.0164 | H163: 104.6 | I163: 1.1 | J163: =(#REF!/H163) -> 
A164: 2.1 | B164: 1958 | C164: 0.012 | D164: ‐ | E164: 57.275 | F164: 0.0485 | G164: 0.0175 | H164: 111.5 | I164: 1.2 | J164: =(#REF!/H164) -> 
A165: 3.1 | B165: 1743 | C165: 0.025 | D165: 0.00025 | E165: 59.479 | F165: 0.0501 | G165: 0.0168 | H165: 107.2 | I165: 1.2 | J165: =(#REF!/H165) -> 
A166: 4.1 | B166: 1676 | C166: 0.027 | D166: ‐ | E166: 59.793 | F166: 0.0494 | G166: 0.0167 | H166: 106.8 | I166: 1.2 | J166: =(#REF!/H166) -> 
A167: Cores
A168: 1.2 | B168: 1043 | C168: 0.455 | D168: ‐ | E168: 59.139 | F168: 0.0492 | G168: 0.0169 | H168: 108 | I168: 1.2 | J168: =(#REF!/H168) -> 
A169: 4.2 | B169: 1739 | C169: 0.614 | D169: 0.000305 | E169: 59.688 | F169: 0.0544 | G169: 0.0166 | H169: 106.3 | I169: 1.2 | J169: =(#REF!/H169) -> 
A170: 5.1 | B170: 1730 | C170: 0.652 | D170: ‐ | E170: 59.008 | F170: 0.049 | G170: 0.0169 | H170: 108.2 | I170: 1.2 | J170: =(#REF!/H170) -> 
A171: 6.1 | B171: 355 | C171: 0.843 | D171: ‐ | E171: 59.995 | F171: 0.0483 | G171: 0.0167 | H171: 106.5 | I171: 1.5 | J171: =(#REF!/H171) -> 
A172: 7.1 | B172: 645 | C172: 0.32 | D172: 2.4e-05 | E172: 7.708 | F172: 0.0698 | G172: 0.129 | H172: 782 | I172: 15 | J172: =(#REF!/H172) -> 
A173: 8.1 | B173: 553 | C173: 0.355 | D173: ‐ | E173: 54.102 | F173: 0.0492 | G173: 0.0185 | H173: 118 | I173: 2.1 | J173: =(#REF!/H173) -> 
A174: 9.1 | B174: 2072 | C174: 0.719 | D174: 7.2e-05 | E174: 56.942 | F174: 0.0489 | G174: 0.0175 | H174: 112.1 | I174: 1.2 | J174: =(#REF!/H174) -> 
A175: 10.1 | B175: 345 | C175: 0.478 | D175: ‐ | E175: 58.847 | F175: 0.0503 | G175: 0.0169 | H175: 108.3 | I175: 1.5 | J175: =(#REF!/H175) -> 
A176: 11.1 | B176: 588 | C176: 0.619 | D176: 0.000301 | E176: 59.873 | F176: 0.0477 | G176: 0.0167 | H176: 106.8 | I176: 1.4 | J176: =(#REF!/H176) -> 
A177: 12.1 | B177: 854 | C177: 0.598 | D177: 0.000219 | E177: 59.898 | F177: 0.0504 | G177: 0.0166 | H177: 106.4 | I177: 1.3 | J177: =(#REF!/H177) -> 
A178: 13.1 | B178: 726 | C178: 0.425 | D178: 0.00037 | E178: 59.896 | F178: 0.049 | G178: 0.0167 | H178: 106.6 | I178: 1.3 | J178: =(#REF!/H178) -> 
A179: 14.1 | B179: 551 | C179: 0.602 | D179: ‐ | E179: 58.039 | F179: 0.0523 | G179: 0.0171 | H179: 109.6 | I179: 1.4 | J179: =(#REF!/H179) -> 
A180: Sample | B180: C5‐R60B | C180: S | D180: 32.877, | E180: 144°
A181: Rims
A182: 3.1 | B182: 137 | C182: 0.47 | D182: ‐ | E182: 65.652 | F182: 0.0564 | G182: 0.0151 | H182: 96.4 | I182: 1.5 | J182: =(#REF!/H182) -> 
A183: 4.1 | B183: 124 | C183: 0.6 | D183: 0.000351 | E183: 64.837 | F183: 0.0527 | G183: 0.0153 | H183: 98.1 | I183: 1.4 | J183: =(#REF!/H183) -> 
A184: 7.1 | B184: 2615 | C184: 0.2 | D184: 1.4e-05 | E184: 18.212 | F184: 0.0553 | G184: 0.0548 | H184: 343.8 | I184: 3.5 | J184: =(#REF!/H184) -> 
A186: 9.1 | B186: 449 | C186: 0.09 | D186: 0.000336 | E186: 66.763 | F186: 0.0525 | G186: 0.0149 | H186: 95.3 | I186: 1.6 | J186: =(#REF!/H186) -> 
A187: 10.1 | B187: 143 | C187: 0.87 | D187: 0.00031 | E187: 60.418 | F187: 0.0543 | G187: 0.0164 | H187: 105 | I187: 1.6 | J187: =(#REF!/H187) -> 
A188: 11.1 | B188: 766 | C188: 0.45 | D188: 0.00044 | E188: 63.533 | F188: 0.0505 | G188: 0.0157 | H188: 100.4 | I188: 1.1 | J188: =(#REF!/H188) -> 
A189: 12.1 | B189: 1379 | C189: 0.49 | D189: 0.000112 | E189: 62.738 | F189: 0.0482 | G189: 0.0159 | H189: 101.9 | I189: 1.1 | J189: =(#REF!/H189) -> 
A190: 13.1 | B190: 909 | C190: 0.45 | D190: 0.000133 | E190: 61.662 | F190: 0.0497 | G190: 0.0162 | H190: 103.5 | I190: 1.3 | J190: =(#REF!/H190) -> 
A191: 14.1 | B191: 933 | C191: 0.03 | D191: 0.000146 | E191: 63.129 | F191: 0.049 | G191: 0.0158 | H191: 101.2 | I191: 1.1 | J191: =(#REF!/H191) -> 
A192: 18.1 | B192: 463 | C192: 0.23 | D192: ‐ | E192: 10.201 | F192: 0.0605 | G192: 0.098 | H192: 602.5 | I192: 6.5 | J192: =(#REF!/H192) -> 
A193: 19.1 | B193: 736 | C193: 0.48 | D193: 0.000189 | E193: 62.256 | F193: 0.0483 | G193: 0.0161 | H193: 102.7 | I193: 1.2 | J193: =(#REF!/H193) -> 
A194: 21.1 | B194: 1185 | C194: 0.02 | D194: 0.000116 | E194: 62.38 | F194: 0.0485 | G194: 0.016 | H194: 102.5 | I194: 1.1 | J194: =(#REF!/H194) -> 
A195: Cores
A196: 1.1 | B196: 118 | C196: 0.65 | D196: ‐ | E196: 64.159 | F196: 0.052 | G196: 0.0155 | H196: 99.2 | I196: 2.7 | J196: =(#REF!/H196) -> 
A197: 2.1 | B197: 1710 | C197: 0.63 | D197: 5.1e-05 | E197: 63.175 | F197: 0.0507 | G197: 0.0158 | H197: 100.9 | I197: 1.2 | J197: =(#REF!/H197) -> 
A198: 5.1 | B198: 1353 | C198: 0.81 | D198: ‐ | E198: 60.912 | F198: 0.0515 | G198: 0.0163 | H198: 104.5 | I198: 1.4 | J198: =(#REF!/H198) -> 
A199: 6.1 | B199: 58 | C199: 0.68 | D199: 0.003232 | E199: 63.322 | F199: 0.0681 | G199: 0.0154 | H199: 98.5 | I199: 1.8 | J199: =(#REF!/H199) -> 
A200: 8.1 | B200: 2720 | C200: 1.22 | D200: 1.7e-05 | E200: 61.793 | F200: 0.0511 | G200: 0.0161 | H200: 103.1 | I200: 1.1 | J200: =(#REF!/H200) -> 
A201: 15.1 | B201: 605 | C201: 0.71 | D201: 2.4e-05 | E201: 61.924 | F201: 0.0505 | G201: 0.0161 | H201: 103 | I201: 1.2 | J201: =(#REF!/H201) -> 
A202: 16.1 | B202: 208 | C202: 1.07 | D202: 0.000296 | E202: 61.495 | F202: 0.0517 | G202: 0.0162 | H202: 103.5 | I202: 1.5 | J202: =(#REF!/H202) -> 
A203: 17.1 | B203: 569 | C203: 0.74 | D203: 3.1e-05 | E203: 17.965 | F203: 0.0548 | G203: 0.0556 | H203: 348.6 | I203: 3.8 | J203: =(#REF!/H203) -> 
A204: 20.1 | B204: 114 | C204: 0.69 | D204: 0.002421 | E204: 59.392 | F204: 0.0563 | G204: 0.0167 | H204: 106.5 | I204: 1.8 | J204: =(#REF!/H204) -> 
A205: 22.1 | B205: 939 | C205: 0.58 | D205: 6e-06 | E205: 62.908 | F205: 0.0476 | G205: 0.0159 | H205: 101.7 | I205: 1.2 | J205: =(#REF!/H205) -> 
A206: Sample | B206: M5‐G174 | C206: S | D206: 33.237, | E206: 145°
A207: Rims
A208: 1.1 | B208: 125 | C208: 0.31 | D208: 1.3e-05 | E208: 7.338 | F208: 0.0734 | G208: 0.1351 | H208: 816.9 | I208: 42.1 | J208: =(#REF!/H208) -> 
A209: 3.1 | B209: 331 | C209: 0.28 | D209: 7.5e-05 | E209: 10.76 | F209: 0.0585 | G209: 0.093 | H209: 573.3 | I209: 7.1 | J209: =(#REF!/H209) -> 
A210: 4.1 | B210: 936 | C210: 0.06 | D210: 3.9e-05 | E210: 15.592 | F210: 0.0552 | G210: 0.0641 | H210: 400.5 | I210: 4.7 | J210: =(#REF!/H210) -> 
A211: 5.1 | B211: 420 | C211: 0.53 | D211: 8e-05 | E211: 9.946 | F211: 0.0611 | G211: 0.1004 | H211: 617 | I211: 6.5 | J211: =(#REF!/H211) -> 
A212: 8.1 | B212: 387 | C212: 0.85 | D212: 0.000153 | E212: 16.907 | F212: 0.0563 | G212: 0.059 | H212: 369.4 | I212: 4 | J212: =(#REF!/H212) -> 
A213: 9.1 | B213: 72 | C213: 1.38 | D213: 0.00068 | E213: 66.255 | F213: 0.0586 | G213: 0.0149 | H213: 95.3 | I213: 1.7 | J213: =(#REF!/H213) -> 
A214: 12.1 | B214: 577 | C214: 0.44 | D214: 9.2e-05 | E214: 18.435 | F214: 0.0542 | G214: 0.0542 | H214: 340.2 | I214: 3.6 | J214: =(#REF!/H214) -> 
A215: 14.1 | B215: 353 | C215: 0.23 | D215: 5.9e-05 | E215: 11.389 | F215: 0.0581 | G215: 0.0878 | H215: 542.7 | I215: 16.5 | J215: =(#REF!/H215) -> 
A216: 15.1 | B216: 1334 | C216: 0.19 | D216: 0.000105 | E216: 59.645 | F216: 0.049 | G216: 0.0167 | H216: 107.1 | I216: 1.2 | J216: =(#REF!/H216) -> 
A217: 26.1 | B217: 399 | C217: 1.44 | D217: 3.6e-05 | E217: 63.395 | F217: 0.053 | G217: 0.0157 | H217: 100.3 | I217: 1.3 | J217: =(#REF!/H217) -> 
A218: Cores
A219: 2.1 | B219: 608 | C219: 0.18 | D219: ‐ | E219: 9.862 | F219: 0.0607 | G219: 0.1014 | H219: 622.4 | I219: 7 | J219: =(#REF!/H219) -> 
A220: 6.1 | B220: 538 | C220: 0.39 | D220: 0.000239 | E220: 63.425 | F220: 0.0486 | G220: 0.0158 | H220: 100.8 | I220: 1.2 | J220: =(#REF!/H220) -> 
A221: 7.1 | B221: 1365 | C221: 0.05 | D221: 7.4e-05 | E221: 60.269 | F221: 0.0481 | G221: 0.0166 | H221: 106.1 | I221: 1.3 | J221: =(#REF!/H221) -> 
A222: 10.1 | B222: 114 | C222: 0.85 | D222: 0.000199 | E222: 58.299 | F222: 0.057 | G222: 0.017 | H222: 108.4 | I222: 1.8 | J222: =(#REF!/H222) -> 
A223: 11.1 | B223: 477 | C223: 0.83 | D223: 9.1e-05 | E223: 8.257 | F223: 0.069 | G223: 0.1203 | H223: 732.4 | I223: 7.7 | J223: =(#REF!/H223) -> 
A224: 13.1 | B224: 563 | C224: 0.33 | D224: 3.3e-05 | E224: 6.023 | F224: 0.0714 | G224: 0.1662 | H224: 991 | I224: 10.2 | J224: =(#REF!/H224) -> 
A225: 16.1 | B225: 454 | C225: 2.7 | D225: 0.000751 | E225: 62.863 | F225: 0.0571 | G225: 0.0157 | H225: 100.6 | I225: 1.2 | J225: =(#REF!/H225) -> 
A226: 17.1 | B226: 247 | C226: 0.12 | D226: 4.5e-05 | E226: 5.111 | F226: 0.079 | G226: 0.1955 | H226: 1150.9 | I226: 12.3 | J226: =(#REF!/H226) -> 
A227: 18.1 | B227: 64 | C227: 1.05 | D227: 0.002715 | E227: 64.857 | F227: 0.0797 | G227: 0.0148 | H227: 94.7 | I227: 1.9 | J227: =(#REF!/H227) -> 
A228: 19.1 | B228: 301 | C228: 0.39 | D228: 0.000131 | E228: 9.621 | F228: 0.0714 | G228: 0.1026 | H228: 629.6 | I228: 7 | J228: =(#REF!/H228) -> 
A229: 22.1 | B229: 474 | C229: 0.18 | D229: 0.00016 | E229: 18.22 | F229: 0.0538 | G229: 0.0549 | H229: 344.3 | I229: 3.9 | J229: =(#REF!/H229) -> 
A230: 23.1 | B230: 346 | C230: 0.56 | D230: 0.000109 | E230: 12.45 | F230: 0.057 | G230: 0.0803 | H230: 498.1 | I230: 5.5 | J230: =(#REF!/H230) -> 
A231: 24.1 | B231: 265 | C231: 1.75 | D231: 0.002798 | E231: 62.546 | F231: 0.0893 | G231: 0.0152 | H231: 97 | I231: 1.5 | J231: =(#REF!/H231) -> 
A232: 25.1 | B232: 174 | C232: 0.77 | D232: 0.001514 | E232: 66.099 | F232: 0.0589 | G232: 0.0149 | H232: 95.5 | I232: 1.5 | J232: =(#REF!/H232) -> 
A233: 27.1 | B233: 181 | C233: 1.35 | D233: 0.002606 | E233: 64.288 | F233: 0.0644 | G233: 0.0152 | H233: 97.5 | I233: 1.5 | J233: =(#REF!/H233) -> 

Sheet Exc_46
A1: Sample Number | B1: 206Pb/204Pb | C1: 207Pb/204Pb | D1: 207Pb/206Pb | E1: Age
A2: PAC2DR38-1 | B2: 18.671 | C2: 15.533 | D2: =(C2/B2) -> 0.831931873 | E2: =[1]!AgePb76($D$2) -> 4977.41057
A3: PAC2DR37-1 | B3: 18.722 | C3: 15.54 | D3: =(C3/B3) -> 0.8300395257 | E3: =[1]!AgePb76($D$3) -> 4974.175037
A4: PAC2DR36-1 | B4: 18.724 | C4: 15.538 | D4: 0.8298440504 | E4: =[1]!AgePb76($D$4) -> 4973.840367
A5: PAC2DR35-2 | B5: 18.736 | C5: 15.55 | D5: 0.8299530316 | E5: =[1]!AgePb76($D$5) -> 4974.026962
A6: PAC2DR34-1 | B6: 18.798 | C6: 15.549 | D6: 0.8271624641 | E6: =[1]!AgePb76($D$6) -> 4969.240787
A7: PAC2DR33-1 | B7: 18.817 | C7: 15.562 | D7: 0.8270181219 | E7: =[1]!AgePb76($D$7) -> 4968.992756
A8: PAC2DR32-1 | B8: 18.809 | C8: 15.539 | D8: 0.8261470573 | E8: =[1]!AgePb76($D$8) -> 4967.494977
A9: PAC2DR31-3 | B9: 18.833 | C9: 15.554 | D9: 0.8258907237 | E9: =[1]!AgePb76($D$9) -> 4967.053896
A10: PAC2DR30-1 | B10: 18.887 | C10: 15.565 | D10: 0.8241118229 | E10: =[1]!AgePb76($D$10) -> 4963.988877
A11: PAC2DR29-1 | B11: 18.798 | C11: 15.538 | D11: 0.8265772955 | E11: =[1]!AgePb76($D$11) -> 4968.234973
A12: PAC2DR28-2 | B12: 18.725 | C12: 15.539 | D12: 0.8298531375 | E12: =[1]!AgePb76($D$12) -> 4973.855926
A13: PAC2DR27-1 | B13: 19.168 | C13: 15.581 | D13: 0.812865192 | E13: =[1]!AgePb76($D$13) -> 4944.44679
A14: PAC2DR22-1 | B14: 18.726 | C14: 15.539 | D14: 0.829808822 | E14: =[1]!AgePb76($D$14) -> 4973.780044
A15: PAC2DR22-3 | B15: 18.761 | C15: 15.54 | D15: 0.8283140558 | E15: =[1]!AgePb76($D$15) -> 4971.217989
A16: PAC2DR21-2 | B16: 18.768 | C16: 15.544 | D16: 0.8282182438 | E16: =[1]!AgePb76($D$16) -> 4971.053598
A17: PAC2DR9-1 | B17: 18.768 | C17: 15.54 | D17: 0.8280051151 | E17: =[1]!AgePb76($D$17) -> 4970.687847
A18: PAC2DR9-2 | B18: 18.798 | C18: 15.552 | D18: 0.8273220555 | E18: =[1]!AgePb76($D$18) -> 4969.514969
A19: PAC2DR20-1 | B19: 18.749 | C19: 15.54 | D19: 0.828844205 | E19: =[1]!AgePb76($D$19) -> 4972.127236
A20: PAC2DR8-1 | B20: 18.796 | C20: 15.55 | D20: 0.8273036816 | E20: =[1]!AgePb76($D$20) -> 4969.483405
A21: PAC2DR8-2 | B21: 18.67 | C21: 15.535 | D21: 0.8320835565 | E21: =[1]!AgePb76($D$21) -> 4977.66958
A22: PAC2DR7-4 | B22: 18.741 | C22: 15.528 | D22: 0.8285577077 | E22: =[1]!AgePb76($D$22) -> 4971.635948
A23: PAC2DR6-1 | B23: 18.792 | C23: 15.543 | D23: 0.8271072797 | E23: =[1]!AgePb76($D$23) -> 4969.145966
A24: PAC2DR6-6 | B24: 18.696 | C24: 15.537 | D24: 0.8310333761 | E24: =[1]!AgePb76($D$24) -> 4975.875298
A25: PAC2DR5-2g | B25: 18.674 | C25: 15.537 | D25: 0.8320124237 | E25: =[1]!AgePb76($D$25) -> 4977.548122
A26: PAC2DR4-2 | B26: 18.531 | C26: 15.513 | D26: 0.8371377691 | E26: =[1]!AgePb76($D$26) -> 4986.271411
A27: PAC2DR3-3 | B27: 18.701 | C27: 15.526 | D27: 0.8302229827 | E27: =[1]!AgePb76($D$27) -> 4974.489054
A28: PAC2DR2 | B28: 18.724 | C28: 15.53 | D28: 0.8294167913 | E28: =[1]!AgePb76($D$28) -> 4973.108571
A29: PAC2DR1-1 | B29: 18.822 | C29: 15.547 | D29: 0.8260014876 | E29: =[1]!AgePb76($D$29) -> 4967.244509
A30: PACANTARCTIC
A31: PAC1DR14-2 | B31: 18.494 | C31: 15.489 | D31: 0.8375148697 | E31: =[1]!AgePb76($D$31) -> 4986.910989
A32: PAC1DR14-3 | B32: 18.776 | C32: 15.524 | D32: 0.8268001704 | E32: =[1]!AgePb76($D$32) -> 4968.61815
A33: PAC1DR14-4 | B33: 18.769 | C33: 15.523 | D33: 0.8270552507 | E33: =[1]!AgePb76($D$33) -> 4969.056561
A34: PAC1DR13-2g | B34: 18.508 | C34: 15.503 | D34: 0.8376377783 | E34: =[1]!AgePb76($D$34) -> 4987.119381
A35: PAC1DR13-3 | B35: 18.508 | C35: 15.505 | D35: 0.8377458396 | E35: =[1]!AgePb76($D$35) -> 4987.302573
A36: PAC1DR12-1g | B36: 18.064 | C36: 15.467 | D36: 0.8562333924 | E36: =[1]!AgePb76($D$36) -> 5018.279705
A37: PAC1DR12-3g | B37: 18.194 | C37: 15.473 | D37: 0.8504452017 | E37: =[1]!AgePb76($D$37) -> 5008.658215
A38: PAC1DR12-3r | B38: 18.192 | C38: 15.47 | D38: 0.8503737907 | E38: =[1]!AgePb76($D$38) -> 5008.539077
A39: PAC1DR11-1g | B39: 18.42 | C39: 15.491 | D39: 0.8409880565 | E39: =[1]!AgePb76($D$39) -> 4992.787315
A40: PAC1DR11-3 | B40: 18.397 | C40: 15.491 | D40: 0.842039463 | E40: =[1]!AgePb76($D$40) -> 4994.561119
A41: PAC1DR10-1g | B41: 18.426 | C41: 15.492 | D41: 0.8407684793 | E41: =[1]!AgePb76($D$41) -> 4992.416574
A42: PAC1DR10-3 | B42: 18.4 | C42: 15.483 | D42: 0.8414673913 | E42: =[1]!AgePb76($D$42) -> 4993.596282
A43: PAC1DR09-g | B43: 18.638 | C43: 15.511 | D43: 0.8322244876 | E43: =[1]!AgePb76($D$43) -> 4977.910184
A44: PAC1DR09-1 | B44: 18.376 | C44: 15.47 | D44: 0.8418589465 | E44: =[1]!AgePb76($D$44) -> 4994.256741
A45: PAC1DR08-2 | B45: 18.406 | C45: 15.48 | D45: 0.8410300989 | E45: =[1]!AgePb76($D$45) -> 4992.858289
A46: PAC1DR08-3 | B46: 18.398 | C46: 15.475 | D46: 0.8411240352 | E46: =[1]!AgePb76($D$46) -> 4993.016854
A47: PAC1DR07-1g | B47: 18.609 | C47: 15.505 | D47: 0.8331989897 | E47: =[1]!AgePb76($D$47) -> 4979.572716
A48: PAC1DR07-2g | B48: 18.62 | C48: 15.509 | D48: 0.8329215897 | E48: =[1]!AgePb76($D$48) -> 4979.099673
A49: PAC1DR07-3 | B49: 18.631 | C49: 15.501 | D49: 0.8320004294 | E49: =[1]!AgePb76($D$49) -> 4977.527641
A50: PAC1DR06-g | B50: 18.498 | C50: 15.491 | D50: 0.8374418856 | E50: =[1]!AgePb76($D$50) -> 4986.787229
A51: PAC1DR06-2 | B51: 18.491 | C51: 15.493 | D51: 0.8378670705 | E51: =[1]!AgePb76($D$51) -> 4987.508061
A52: PAC1DR05-1g | B52: 18.489 | C52: 15.495 | D52: 0.838065877 | E52: =[1]!AgePb76($D$52) -> 4987.844971
A53: PAC1DR05-3 | B53: 18.49 | C53: 15.496 | D53: 0.8380746349 | E53: =[1]!AgePb76($D$53) -> 4987.859811
A54: PAC1DR05-r | B54: 18.482 | C54: 15.488 | D54: 0.838004545 | E54: =[1]!AgePb76($D$54) -> 4987.741043
A55: PAC1DR03-1 | B55: 18.505 | C55: 15.498 | D55: 0.8375033775 | E55: =[1]!AgePb76($D$55) -> 4986.891503
A56: PAC1DR03-2 | B56: 18.498 | C56: 15.494 | D56: 0.8376040653 | E56: =[1]!AgePb76($D$56) -> 4987.062224
A57: PAC1DR02-g | B57: 18.272 | C57: 15.511 | D57: 0.8488944834 | E57: =[1]!AgePb76($D$57) -> 5006.0687
A58: PAC1DR02-1 | B58: 18.369 | C58: 15.498 | D58: 0.8437040666 | E58: =[1]!AgePb76($D$58) -> 4997.364628
A59: PAC1CV09 | B59: 18.236 | C59: 15.588 | D59: 0.8547927177 | E59: =[1]!AgePb76($D$59) -> 5015.891396
A60: PAC1CV08 | B60: 18.487 | C60: 15.503 | D60: 0.838589279 | E60: =[1]!AgePb76($D$60) -> 4988.731557
A61: PAC1CV06-r | B61: 18.344 | C61: 15.475 | D61: 0.8436000872 | E61: =[1]!AgePb76($D$61) -> 4997.189679
A62: PAC1CV06-g | B62: 18.35 | C62: 15.476 | D62: 0.8433787466 | E62: =[1]!AgePb76($D$62) -> 4996.81719
A63: PAC1CV04-g | B63: 18.157 | C63: 15.462 | D63: 0.8515723963 | E63: =[1]!AgePb76($D$63) -> 5010.537349
A64: PAC1CV03-r | B64: 18.475 | C64: 15.501 | D64: 0.8390257104 | E64: =[1]!AgePb76($D$64) -> 4989.470374
A65: PAC1CV03-g | B65: 18.492 | C65: 15.486 | D65: 0.8374432187 | E65: =[1]!AgePb76($D$65) -> 4986.78949
A66: PAC1CV02-g | B66: 18.391 | C66: 15.485 | D66: 0.8419879289 | E66: =[1]!AgePb76($D$66) -> 4994.474232
A67: PAC1CV01-r | B67: 18.447 | C67: 15.557 | D67: =(C67/B67) -> 0.8433349596 | E67: =[1]!AgePb76($D$67) -> 4996.743489
A68: PAC1CV01-g | B68: 18.761 | C68: 15.591 | D68: 0.831032461 | E68: =[1]!AgePb76($D$68) -> 4975.873733

Sheet Exc_47
A1: Sample | B1: 206Pb/204Pb | C1: 207Pb/204Pb | D1: 207Pb/206Pb | E1: Age
A2: ED-DR1-1-1 | B2: 18.1419 | C2: 15.4664 | D2: =(C2/B2) -> 0.8525237158 | E2: =[1]!AgePb76($D$2) -> 5012.12123
A3: ED-DR1-1-1 | B3: 18.1426 | C3: 15.4674 | D3: =(C3/B3) -> 0.8525459416 | E3: =[1]!AgePb76($D$3) -> 5012.158212
A4: ED-DR1-1-1 | B4: 18.1441 | C4: 15.4691 | D4: 0.8525691547 | E4: =[1]!AgePb76($D$4) -> 5012.196836
A5: ED-DR2 | B5: 17.9841 | C5: 15.4557 | D5: 0.8594091447 | E5: =[1]!AgePb76($D$5) -> 5023.529339
A6: ED-DR2-1-1 | B6: 17.9881 | C6: 15.4594 | D6: 0.8594237301 | E6: =[1]!AgePb76($D$6) -> 5023.553402
A7: ED-DR3-2-1 | B7: 17.9716 | C7: 15.458 | D7: 0.8601348795 | E7: =[1]!AgePb76($D$7) -> 5024.726114
A8: ED-DR3-2-1 | B8: 17.9731 | C8: 15.4583 | D8: 0.8600797859 | E8: =[1]!AgePb76($D$8) -> 5024.635299
A9: Glass
A10: ED-DR6-4-1 | B10: 17.8906 | C10: 15.4585 | D10: 0.8640571026 | E10: =[1]!AgePb76($D$10) -> 5031.175569
A11: ED-DR7-2-5 | B11: 18.0735 | C11: 15.4831 | D11: 0.8566741362 | E11: =[1]!AgePb76($D$11) -> 5019.009505
A12: ED-DR8-2 | B12: 17.7783 | C12: 15.441 | D12: 0.8685307369 | E12: =[1]!AgePb76($D$12) -> 5038.4939
A13: ED-DR8-2 | B13: 17.7814 | C13: 15.4444 | D13: 0.8685705288 | E13: =[1]!AgePb76($D$13) -> 5038.558815
A14: ED-DR8-2 | B14: 17.7742 | C14: 15.4341 | D14: 0.868342879 | E14: =[1]!AgePb76($D$14) -> 5038.187392
A15: ED-DR9-3-1 | B15: 17.9184 | C15: 15.4583 | D15: 0.8627053755 | E15: =[1]!AgePb76($D$15) -> 5028.956391
A16: ED-DR9-3-1 | B16: 17.9121 | C16: 15.4551 | D16: 0.8628301539 | E16: =[1]!AgePb76($D$16) -> 5029.161398
A17: ED-DR10-1-4 | B17: 17.8274 | C17: 15.4469 | D17: 0.8664695918 | E17: =[1]!AgePb76($D$17) -> 5035.127095
A18: ED-DR11-1-9 | B18: 18.0417 | C18: 15.4971 | D18: 0.8589600758 | E18: =[1]!AgePb76($D$18) -> 5022.788263
A19: ED-DR11-1-9 | B19: 18.0385 | C19: 15.4936 | D19: 0.8589184245 | E19: =[1]!AgePb76($D$19) -> 5022.719507
A20: ED-DR11-1-9 | B20: 18.0404 | C20: 15.5019 | D20: 0.8592880424 | E20: =[1]!AgePb76($D$20) -> 5023.32953
A21: ED-DR11-1-2 | B21: 18.0428 | C21: 15.4991 | D21: 0.8590185559 | E21: =[1]!AgePb76($D$21) -> 5022.884793
A22: ED-DR12-1-2 | B22: 17.8909 | C22: 15.4538 | D22: 0.8637799105 | E22: =[1]!AgePb76($D$22) -> 5030.720793
A23: ED-DR12-1-2 | B23: 17.8859 | C23: 15.4488 | D23: 0.8637418302 | E23: =[1]!AgePb76($D$23) -> 5030.658305
A24: ED-DR12-1-2 | B24: 17.8881 | C24: 15.4515 | D24: 0.8637865397 | E24: =[1]!AgePb76($D$24) -> 5030.731671
A25: ED-DR12-1-2 | B25: 17.887 | C25: 15.4529 | D25: 0.8639179292 | E25: =[1]!AgePb76($D$25) -> 5030.947253
A26: ED-DR12-3-2 | B26: 17.8856 | C26: 15.448 | D26: 0.8637115892 | E26: =[1]!AgePb76($D$26) -> 5030.608678
A27: ED-DR12-3-2 | B27: 17.8841 | C27: 15.446 | D27: 0.8636722004 | E27: =[1]!AgePb76($D$27) -> 5030.544037
A28: ED-DR13 | B28: 17.8093 | C28: 15.4487 | D28: 0.8674512755 | E28: =[1]!AgePb76($D$28) -> 5036.731698
A29: ED-DR13 | B29: 17.8109 | C29: 15.4486 | D29: 0.8673677355 | E29: =[1]!AgePb76($D$29) -> 5036.595224
A30: ED-DR16 | B30: 17.7976 | C30: 15.4343 | D30: 0.8672124331 | E30: =[1]!AgePb76($D$30) -> 5036.341478
A31: ED-DR19-1-3 | B31: 17.8003 | C31: 15.4348 | D31: 0.8671089813 | E31: =[1]!AgePb76($D$31) -> 5036.172423
A32: ED-DR19-1-3 | B32: 17.7962 | C32: 15.4289 | D32: 0.8669772199 | E32: =[1]!AgePb76($D$32) -> 5035.957076
A33: ED-DR20-1-1 | B33: 18.028 | C33: 15.4664 | D33: 0.8579099179 | E33: =[1]!AgePb76($D$33) -> 5021.053634
A34: ED-DR20-1-1 | B34: 18.0283 | C34: 15.4642 | D34: 0.8577736115 | E34: =[1]!AgePb76($D$34) -> 5020.82832
A35: ED-DR26-1 | B35: 17.9929 | C35: 15.4874 | D35: 0.8607506294 | E35: =[1]!AgePb76($D$35) -> 5025.740678
A36: ED-DR27 | B36: 17.9282 | C36: 15.4535 | D36: 0.8619660646 | E36: =[1]!AgePb76($D$36) -> 5027.741076
A37: ED-DR28-2-5 | B37: 17.7461 | C37: 15.4337 | D37: 0.8696953133 | E37: =[1]!AgePb76($D$37) -> 5040.392445
A38: ED-DR29-1-1 | B38: 17.6819 | C38: 15.4307 | D38: 0.8726833655 | E38: =[1]!AgePb76($D$38) -> 5045.251387
A39: ED-DR29-1-1 | B39: 17.679 | C39: 15.428 | D39: 0.8726737938 | E39: =[1]!AgePb76($D$39) -> 5045.23585
A40: ED-DR29-1-2 | B40: 17.6775 | C40: 15.4279 | D40: 0.8727421864 | E40: =[1]!AgePb76($D$40) -> 5045.346859
A41: ED-DR32-4-4 | B41: 17.4498 | C41: 15.4023 | D41: 0.8826634116 | E41: =[1]!AgePb76($D$41) -> 5061.353153
A42: ED-DR34-1-3 | B42: 17.4023 | C42: 15.3962 | D42: 0.8847221344 | E42: =[1]!AgePb76($D$42) -> 5064.650652
A43: ED-DR34-1-3 | B43: 17.4052 | C43: 15.3976 | D43: 0.8846551605 | E43: =[1]!AgePb76($D$43) -> 5064.543506
A44: ED-DR35 | B44: 17.4018 | C44: 15.4006 | D44: 0.8850004023 | E44: =[1]!AgePb76($D$44) -> 5065.095735
A45: ED-DR36 | B45: 17.4323 | C45: 15.4014 | D45: 0.8834978746 | E45: =[1]!AgePb76($D$45) -> 5062.690712
A46: ED-DR36 | B46: 17.432 | C46: 15.4005 | D46: 0.8834614502 | E46: =[1]!AgePb76($D$46) -> 5062.632355
A47: ED-DR38-1-1 | B47: 17.4224 | C47: 15.4013 | D47: 0.8839941684 | E47: =[1]!AgePb76($D$47) -> 5063.485585
A48: ED-DR41-1-1 | B48: 17.3631 | C48: 15.3923 | D48: 0.8864949231 | E48: =[1]!AgePb76($D$48) -> 5067.483649
A49: ED-DR42 | B49: 17.404 | C49: 15.398 | D49: 0.8847391404 | E49: =[1]!AgePb76($D$49) -> 5064.677857
A50: ED-DR42 | B50: 17.4032 | C50: 15.3966 | D50: 0.8846993656 | E50: =[1]!AgePb76($D$50) -> 5064.614227
A51: ED-DR46-1-6 | B51: 17.429 | C51: 15.3963 | D51: 0.88337254 | E51: =[1]!AgePb76($D$51) -> 5062.489899
A52: ED-DR48 | B52: 17.5354 | C52: 15.4181 | D52: 0.8792556771 | E52: =[1]!AgePb76($D$52) -> 5055.876942
A53: ED-DR48 | B53: 17.5312 | C53: 15.4134 | D53: 0.8791982294 | E53: =[1]!AgePb76($D$53) -> 5055.784431
A54: ED-DR49 | B54: 17.496 | C54: 15.4134 | D54: 0.8809670782 | E54: =[1]!AgePb76($D$54) -> 5058.629963
A55: ED-DR51-1-1 | B55: 17.9864 | C55: 15.473 | D55: 0.8602610862 | E55: =[1]!AgePb76($D$55) -> 5024.934126
A56: ED-DR51-1-1 | B56: 17.9835 | C56: 15.4698 | D56: 0.86022187 | E56: =[1]!AgePb76($D$56) -> 5024.869494
A57: ED-DR | B57: 18.1278 | C57: 15.4867 | D57: 0.854306645 | E57: =[1]!AgePb76($D$57) -> 5015.084635
A58: ED-DR | B58: 18.1315 | C58: 15.4885 | D58: 0.8542315859 | E58: =[1]!AgePb76($D$58) -> 5014.960011
A59: ED-DR53-2-3 | B59: 18.0786 | C59: 15.4773 | D59: 0.8561116458 | E59: =[1]!AgePb76($D$59) -> 5018.078042
A60: ED-DR55-2-1 | B60: 17.8978 | C60: 15.4733 | D60: 0.8645364235 | E60: =[1]!AgePb76($D$60) -> 5031.961602
A61: ED-DR55-2-1 | B61: 17.8969 | C61: 15.472 | D61: 0.864507261 | E61: =[1]!AgePb76($D$61) -> 5031.913792
A62: ED-DR55-2-1 | B62: 17.8968 | C62: 15.4727 | D62: 0.8645512047 | E62: =[1]!AgePb76($D$62) -> 5031.985834
A63: ED-DR57-1-1 | B63: 18.1598 | C63: 15.4969 | D63: 0.8533629225 | E63: =[1]!AgePb76($D$63) -> 5013.516894
A64: ED-DR57-1-1 | B64: 18.1586 | C64: 15.4967 | D64: 0.8534083024 | E64: =[1]!AgePb76($D$64) -> 5013.592322
A65: ED-DR60 | B65: 17.8398 | C65: 15.4596 | D65: 0.8665792217 | E65: =[1]!AgePb76($D$65) -> 5035.306386
A66: ED-DR61-2-4 | B66: 17.8931 | C66: 15.4613 | D66: 0.8640928626 | E66: =[1]!AgePb76($D$66) -> 5031.234227
A67: ED-DR63-1 | B67: 17.7754 | C67: 15.4535 | D67: =(C67/B67) -> 0.869375654 | E67: =[1]!AgePb76($D$67) -> 5039.871591
A68: ED-DR63-1 | B68: 17.7731 | C68: 15.4508 | D68: 0.8693362441 | E68: =[1]!AgePb76($D$68) -> 5039.807362
A69: ED-DR66 | B69: 18.1221 | C69: 15.4854 | D69: 0.8545036171 | E69: =[1]!AgePb76($D$69) -> 5015.411619
A70: ED-DR68 | B70: 17.6015 | C70: 15.4278 | D70: 0.8765048433 | E70: =[1]!AgePb76($D$70) -> 5051.439917
A71: ED-DR68 | B71: 17.6044 | C71: 15.4286 | D71: 0.8764058985 | E71: =[1]!AgePb76($D$71) -> 5051.280046
A72: ED-DR68-1 | B72: 17.6024 | C72: 15.4273 | D72: 0.876431623 | E72: =[1]!AgePb76($D$72) -> 5051.321612
A73: ED-DR70-1-1 | B73: 18.1003 | C73: 15.4952 | D73: 0.8560742087 | E73: =[1]!AgePb76($D$73) -> 5018.016024
A74: ED-DR71 | B74: 18.2224 | C74: 15.5073 | D74: 0.8510020634 | E74: =[1]!AgePb76($D$74) -> 5009.586884
A75: ED-DR72 | B75: 18.2028 | C75: 15.5012 | D75: 0.8515832729 | E75: =[1]!AgePb76($D$75) -> 5010.555469
A76: ED-DR72 | B76: 18.2019 | C76: 15.5009 | D76: 0.851608898 | E76: =[1]!AgePb76($D$76) -> 5010.598157
A77: ED-DR73-2 | B77: 18.226 | C77: 15.4904 | D77: 0.8499067267 | E77: =[1]!AgePb76($D$77) -> 5007.759594
A78: ED-DR75-1-1 | B78: 18.1444 | C78: 15.4871 | D78: 0.8535470999 | E78: =[1]!AgePb76($D$78) -> 5013.822999
A79: SW-DR32-1-1 | B79: 18.1611 | C79: 15.4888 | D79: 0.8528558292 | E79: =[1]!AgePb76($D$79) -> 5012.673734
A80: SW-DR32-1-3 | B80: 18.1656 | C80: 15.4922 | D80: 0.8528317259 | E80: =[1]!AgePb76($D$80) -> 5012.633643
A81: SW-DR30-1-4 | B81: 18.1438 | C81: 15.4948 | D81: 0.8539997134 | E81: =[1]!AgePb76($D$81) -> 5014.574952
A82: SW-DR20-1-1 | B82: 18.4067 | C82: 15.5268 | D82: 0.8435406673 | E82: =[1]!AgePb76($D$82) -> 4997.089693
A83: SW-DR20-1-1 | B83: 18.4048 | C83: 15.5249 | D83: 0.8435245153 | E83: =[1]!AgePb76($D$83) -> 4997.062513
A84: SW-DR20-1-1 | B84: 18.4061 | C84: 15.5262 | D84: 0.843535567 | E84: =[1]!AgePb76($D$84) -> 4997.08111
A85: SW-DR19-1-6 | B85: 18.4122 | C85: 15.5253 | D85: 0.8432072213 | E85: =[1]!AgePb76($D$85) -> 4996.528462
A86: SW-DR17-1-3 | B86: 18.4256 | C86: 15.525 | D86: 0.842577718 | E86: =[1]!AgePb76($D$86) -> 4995.468287
A87: SW-DR17-1-3 | B87: 18.4263 | C87: 15.5262 | D87: 0.8426108334 | E87: =[1]!AgePb76($D$87) -> 4995.524079
A88: SW-DR15-2-5 | B88: 17.1577 | C88: 15.4302 | D88: 0.8993163419 | E88: =[1]!AgePb76($D$88) -> 5087.79569
A89: SW-DR14-1-4 | B89: 17.2726 | C89: 15.4409 | D89: 0.8939534291 | E89: =[1]!AgePb76($D$89) -> 5079.337217
A90: SW-DR14-1-4 | B90: 17.2738 | C90: 15.4427 | D90: 0.8939955308 | E90: =[1]!AgePb76($D$90) -> 5079.403829
A91: SW-DR13-1-2 | B91: 16.585 | C91: 15.3599 | D91: 0.926132047 | E91: =[1]!AgePb76($D$91) -> 5129.303115
A92: SW-DR13-1-2 | B92: 16.585 | C92: 15.3599 | D92: 0.926132047 | E92: =[1]!AgePb76($D$92) -> 5129.303115
A93: SW-DR13-1-19 | B93: 16.5826 | C93: 15.3558 | D93: 0.926018839 | E93: =[1]!AgePb76($D$93) -> 5129.130572
A94: SW-DR10 | B94: 17.2434 | C94: 15.4496 | D94: 0.8959717921 | E94: =[1]!AgePb76($D$94) -> 5082.52691
A95: SW-DR16-3-3 | B95: 17.2033 | C95: 15.4382 | D95: 0.8973975923 | E95: =[1]!AgePb76($D$95) -> 5084.775566
A96: SW-DR9-1-3 | B96: 18.2269 | C96: 15.4992 | D96: 0.8503475632 | E96: =[1]!AgePb76($D$96) -> 5008.495318
A97: SW-DR8-2-1 | B97: 18.3562 | C97: 15.5229 | D97: 0.8456488816 | E97: =[1]!AgePb76($D$97) -> 5000.632633
A98: SW-DR8-2-3 | B98: 18.3469 | C98: 15.5066 | D98: 0.8451891055 | E98: =[1]!AgePb76($D$98) -> 4999.860761
A99: SW-DR6-2-2 | B99: 18.289 | C99: 15.5095 | D99: 0.848023402 | E99: =[1]!AgePb76($D$99) -> 5004.611894
A100: SW-DR5-1-2 | B100: 18.3663 | C100: 15.5162 | D100: 0.8448190436 | E100: =[1]!AgePb76($D$100) -> 4999.239177
A101: SWR-DR4-1-2 | B101: 18.2423 | C101: 15.5023 | D101: 0.8497996415 | E101: =[1]!AgePb76($D$101) -> 5007.580816
A102: SWR-DR4-1-2 | B102: 18.2423 | C102: 15.5023 | D102: 0.8497996415 | E102: =[1]!AgePb76($D$102) -> 5007.580816
A103: SW-DR32-1-1 | B103: 18.1611 | C103: 15.4888 | D103: 0.8528558292 | E103: =[1]!AgePb76($D$103) -> 5012.673734
A104: SW-DR32-1-3 | B104: 18.1656 | C104: 15.4922 | D104: 0.8528317259 | E104: =[1]!AgePb76($D$104) -> 5012.633643
A105: SW-DR30-1-4 | B105: 18.1438 | C105: 15.4948 | D105: 0.8539997134 | E105: =[1]!AgePb76($D$105) -> 5014.574952
A106: SW-DR20-1-1 | B106: 18.4067 | C106: 15.5268 | D106: 0.8435406673 | E106: =[1]!AgePb76($D$106) -> 4997.089693
A107: SW-DR20-1-1 | B107: 18.4048 | C107: 15.5249 | D107: 0.8435245153 | E107: =[1]!AgePb76($D$107) -> 4997.062513
A108: SW-DR20-1-1 | B108: 18.4061 | C108: 15.5262 | D108: 0.843535567 | E108: =[1]!AgePb76($D$108) -> 4997.08111
A109: SW-DR19-1-6 | B109: 18.4122 | C109: 15.5253 | D109: 0.8432072213 | E109: =[1]!AgePb76($D$109) -> 4996.528462
A110: SW-DR17-1-3 | B110: 18.4256 | C110: 15.525 | D110: 0.842577718 | E110: =[1]!AgePb76($D$110) -> 4995.468287
A111: SW-DR17-1-3 | B111: 18.4263 | C111: 15.5262 | D111: 0.8426108334 | E111: =[1]!AgePb76($D$111) -> 4995.524079
A112: SW-DR15-2-5 | B112: 17.1577 | C112: 15.4302 | D112: 0.8993163419 | E112: =[1]!AgePb76($D$112) -> 5087.79569
A113: SW-DR14-1-4 | B113: 17.2726 | C113: 15.4409 | D113: 0.8939534291 | E113: =[1]!AgePb76($D$113) -> 5079.337217
A114: SW-DR14-1-4 | B114: 17.2738 | C114: 15.4427 | D114: 0.8939955308 | E114: =[1]!AgePb76($D$114) -> 5079.403829
A115: SW-DR13-1-2 | B115: 16.585 | C115: 15.3599 | D115: 0.926132047 | E115: =[1]!AgePb76($D$115) -> 5129.303115
A116: SW-DR13-1-2 | B116: 16.585 | C116: 15.3599 | D116: 0.926132047 | E116: =[1]!AgePb76($D$116) -> 5129.303115
A117: SW-DR13-1-19 | B117: 15.3558 | C117: 36.8665 | D117: 2.400819234 | E117: =[1]!AgePb76($D$117) -> 6441.716012
A118: SW-DR10 | B118: 15.4496 | C118: 37.4273 | D118: 2.422541684 | E118: =[1]!AgePb76($D$118) -> 6453.868267
A119: SW-DR16-3-3 | B119: 17.2033 | C119: 15.4382 | D119: 0.8973975923 | E119: =[1]!AgePb76($D$119) -> 5084.775566
A120: SW-DR9-1-3 | B120: 18.2269 | C120: 15.4992 | D120: 0.8503475632 | E120: =[1]!AgePb76($D$120) -> 5008.495318
A121: SW-DR8-2-1 | B121: 18.3562 | C121: 15.5229 | D121: 0.8456488816 | E121: =[1]!AgePb76($D$121) -> 5000.632633
A122: SW-DR8-2-3 | B122: 18.3469 | C122: 15.5066 | D122: 0.8451891055 | E122: =[1]!AgePb76($D$122) -> 4999.860761
A123: SW-DR6-2-2 | B123: 18.289 | C123: 15.5095 | D123: 0.848023402 | E123: =[1]!AgePb76($D$123) -> 5004.611894
A124: SW-DR5-1-2 | B124: 18.3663 | C124: 15.5162 | D124: 0.8448190436 | E124: =[1]!AgePb76($D$124) -> 4999.239177
A125: SWR-DR4-1-2 | B125: 18.2423 | C125: 15.5023 | D125: 0.8497996415 | E125: =[1]!AgePb76($D$125) -> 5007.580816

Sheet Exc_48
A1: Sample | B1: 206Pb/204Pb | C1: 207Pb/204Pb | D1: 207Pb/206Pb | E1: Age
A2: 242670 | B2: 13.317 | C2: 14.175 | D2: =(C2/B2) -> 1.064428925 | E2: =[1]!AgePb76($D$2) -> 5324.954204
A3: 242671B | B3: 13.521 | C3: 14.284 | D3: =(C3/B3) -> 1.056430737 | E3: =[1]!AgePb76($D$3) -> 5314.390715
A4: 242718 | B4: 13.039 | C4: 14.017 | D4: 1.075005752 | E4: =[1]!AgePb76($D$4) -> 5338.795497
A5: 242725 | B5: 12.988 | C5: 14.002 | D5: 1.078072067 | E5: =[1]!AgePb76($D$5) -> 5342.781356
A6: 242733 | B6: 14.427 | C6: 14.38 | D6: 0.9967422194 | E6: =[1]!AgePb76($D$6) -> 5232.7868
A7: 242742 | B7: 17.631 | C7: 15.39 | D7: 0.8728943338 | E7: =[1]!AgePb76($D$7) -> 5045.59378
A8: 242744 | B8: 16.422 | C8: 14.863 | D8: 0.9050663744 | E8: =[1]!AgePb76($D$8) -> 5096.805529
A9: 462901 | B9: 12.349 | C9: 13.754 | D9: 1.113774395 | E9: =[1]!AgePb76($D$9) -> 5388.329403
A10: 462902 | B10: 12.159 | C10: 13.679 | D10: 1.12501028 | E10: =[1]!AgePb76($D$10) -> 5402.345994
A11: 462903 | B11: 12.572 | C11: 13.756 | D11: 1.094177537 | E11: =[1]!AgePb76($D$11) -> 5363.522192
A12: 462904 | B12: 12.709 | C12: 13.801 | D12: 1.085923361 | E12: =[1]!AgePb76($D$12) -> 5352.932881
A13: 462945 | B13: 12.372 | C13: 13.686 | D13: 1.106207565 | E13: =[1]!AgePb76($D$13) -> 5378.805669
A14: 462946 | B14: 14.937 | C14: 14.172 | D14: 0.9487848966 | E14: =[1]!AgePb76($D$14) -> 5163.386787
A15: 462947 | B15: 14.998 | C15: 14.157 | D15: 0.9439258568 | E15: =[1]!AgePb76($D$15) -> 5156.148959
A16: 462948 | B16: 13.514 | C16: 13.864 | D16: 1.025899068 | E16: =[1]!AgePb76($D$16) -> 5273.275444
A17: 462949 | B17: 14.975 | C17: 14.133 | D17: 0.9437729549 | E17: =[1]!AgePb76($D$17) -> 5155.920563
A18: 462965 | B18: 12.964 | C18: 13.927 | D18: 1.074282629 | E18: =[1]!AgePb76($D$18) -> 5337.853771
A19: 462966 | D19: 0
A20: 462967 | B20: 12.355 | C20: 13.777 | D20: 1.115095103 | E20: =[1]!AgePb76($D$20) -> 5389.984676
A21: 242717a | D21: 0
A22: 242719C | B22: 12.307 | C22: 13.771 | D22: 1.118956691 | E22: =[1]!AgePb76($D$22) -> 5394.812663
A23: 242790a | B23: 11.789 | C23: 13.439 | D23: 1.139960981 | E23: =[1]!AgePb76($D$23) -> 5420.769752
A24: 242729 | B24: 12.545 | C24: 13.834 | D24: 1.1027501 | E24: =[1]!AgePb76($D$24) -> 5374.431165
A25: 242737 | B25: 15.588 | C25: 14.896 | D25: 0.9556068771 | E25: =[1]!AgePb76($D$25) -> 5173.482586
A26: 242743 | B26: 15.413 | C26: 14.696 | D26: 0.9534808279 | E26: =[1]!AgePb76($D$26) -> 5170.344466
A27: 243689 | B27: 13.164 | C27: 14.183 | D27: 1.077408083 | E27: =[1]!AgePb76($D$27) -> 5341.919268
A28: 462906 | B28: 12.392 | C28: 13.808 | D28: 1.114267269 | E28: =[1]!AgePb76($D$28) -> 5388.947375
A29: 242673B | B29: 13.07 | C29: 14.245 | D29: 1.089900536 | E29: =[1]!AgePb76($D$29) -> 5358.045768
A30: 242727H | B30: 13.275 | C30: 14.106 | D30: 1.06259887 | E30: =[1]!AgePb76($D$30) -> 5322.544593
A31: Residues | D31: 0
A32: 242670 | B32: 12.459 | C32: 13.848 | D32: 1.111485673 | E32: =[1]!AgePb76($D$32) -> 5385.455993
A33: 242671B | B33: 15.792 | C33: 14.889 | D33: 0.9428191489 | E33: =[1]!AgePb76($D$33) -> 5154.494937
A34: 242718 | B34: 12.678 | C34: 13.879 | D34: 1.09473103 | E34: =[1]!AgePb76($D$34) -> 5364.229254
A35: 242725 | B35: 12.475 | C35: 13.868 | D35: 1.111663327 | E35: =[1]!AgePb76($D$35) -> 5385.679254
A36: 242733 | B36: 13.283 | C36: 14.06 | D36: 1.058495822 | E36: =[1]!AgePb76($D$36) -> 5317.126207
A37: 242742 | B37: 20.276 | C37: 16.163 | D37: 0.7971493391 | E37: =[1]!AgePb76($D$37) -> 4916.65185
A38: 242744 | B38: 13.711 | C38: 14.155 | D38: 1.032382758 | E38: =[1]!AgePb76($D$38) -> 5282.113758
A39: 462901 | B39: 12.369 | C39: 13.781 | D39: 1.114156359 | E39: =[1]!AgePb76($D$39) -> 5388.808339
A40: 462902 | B40: 12.604 | C40: 13.817 | D40: 1.096239289 | E40: =[1]!AgePb76($D$40) -> 5366.154074
A41: 462903 | B41: 12.257 | C41: 13.708 | D41: 1.118381333 | E41: =[1]!AgePb76($D$41) -> 5394.09443
A42: 462904 | B42: 13.246 | C42: 13.925 | D42: 1.051260758 | E42: =[1]!AgePb76($D$42) -> 5307.517531
A43: 462945 | B43: 12.436 | C43: 13.768 | D43: 1.107108395 | E43: =[1]!AgePb76($D$43) -> 5379.943062
A44: 462946 | B44: 12.295 | C44: 13.722 | D44: 1.11606344 | E44: =[1]!AgePb76($D$44) -> 5391.197002
A45: 462947 | B45: 12.199 | C45: 13.698 | D45: 1.122878925 | E45: =[1]!AgePb76($D$45) -> 5399.698531
A46: 462948 | B46: 12.181 | C46: 13.651 | D46: 1.120679747 | E46: =[1]!AgePb76($D$46) -> 5396.961267
A47: 462949 | B47: 12.239 | C47: 13.668 | D47: 1.116757905 | E47: =[1]!AgePb76($D$47) -> 5392.065766
A48: 462965 | B48: 12.418 | C48: 13.763 | D48: 1.108310517 | E48: =[1]!AgePb76($D$48) -> 5381.459351
A49: 462966 | B49: 12.449 | C49: 13.73 | D49: 1.102899831 | E49: =[1]!AgePb76($D$49) -> 5374.62091
A50: 462967 | D50: 0
A51: 242717a | B51: 12.375 | C51: 13.824 | D51: 1.117090909 | E51: =[1]!AgePb76($D$51) -> 5392.482147
A52: 242719C | B52: 12.466 | C52: 13.815 | D52: 1.108214343 | E52: =[1]!AgePb76($D$52) -> 5381.338107
A53: 242790a | B53: 13.704 | C53: 14.087 | D53: 1.027948044 | E53: =[1]!AgePb76($D$53) -> 5276.07489
A54: 242729 | B54: 12.803 | C54: 13.889 | D54: 1.084823869 | E54: =[1]!AgePb76($D$54) -> 5351.515936
A55: 242737 | B55: 15.733 | C55: 14.892 | D55: 0.9465454777 | E55: =[1]!AgePb76($D$55) -> 5160.055927
A56: 242743 | B56: 15.959 | C56: 14.808 | D56: 0.9278776866 | E56: =[1]!AgePb76($D$56) -> 5131.960857
A57: 243689 | B57: 14.69 | C57: 14.564 | D57: 0.9914227366 | E57: =[1]!AgePb76($D$57) -> 5225.265003
A58: 462906 | B58: 12.33 | C58: 13.812 | D58: 1.120194647 | E58: =[1]!AgePb76($D$58) -> 5396.356713
A59: 242673B | B59: 14.038 | C59: 14.483 | D59: 1.031699672 | E59: =[1]!AgePb76($D$59) -> 5281.185368
A60: 242727H | B60: 14.144 | C60: 14.303 | D60: 1.011241516 | E60: =[1]!AgePb76($D$60) -> 5253.075433

Sheet GD_03_B
B1: 207Pb/206Pb | C1: 206Pb/238U | D1: 207Pb/235U | E1: 208Pb/232Th | F1: 206Pb/238U | G1: 207Pb/235U | H1: 208Pb/232Th
B2: Age | C2: Age | D2: Age | E2: Age | F2: Percent | G2: Percent | H2: Percent
A3: 1 | B3: -375 | C3: 14.2 | D3: 12.2 | E3: 13.9 | F3: =(ABS(B3/C3))*100 -> 2640.84507 | G3: =(ABS(B3/D3) * 100) -> 3073.770492 | H3: =(ABS(B3/E3)) * 100 -> 2697.841727
A4: 2 | B4: -352 | C4: 14.5 | D4: 12.5 | E4: 14.4 | F4: =(ABS(B4/C4))*100 -> 2427.586207 | G4: =(ABS(B4/D4) * 100) -> 2816 | H4: =(ABS(B4/E4)) * 100 -> 2444.444444
A5: 3 | B5: -195.5 | C5: 14.5 | D5: 13.3 | E5: 14.2 | F5: 1348.275862 | G5: 1469.924812 | H5: 1376.760563
A6: 4 | B6: 107.1 | C6: 14.5 | D6: 15.1 | E6: 14.2 | F6: 738.6206897 | G6: 709.2715232 | H6: 754.2253521
A7: 5 | B7: 216 | C7: 14.6 | D7: 15.8 | E7: 13.6 | F7: 1479.452055 | G7: 1367.088608 | H7: 1588.235294
A8: 6 | B8: 128.5 | C8: 14.6 | D8: 15.3 | E8: 14.6 | F8: 880.1369863 | G8: 839.869281 | H8: 880.1369863
A9: 7 | B9: -462.4 | C9: 14.8 | D9: 12.3 | E9: 13.5 | F9: 3124.324324 | G9: 3759.349593 | H9: 3425.185185
A10: 8 | B10: -68.1 | C10: 14.9 | D10: 14.4 | E10: 15.6 | F10: 457.0469799 | G10: 472.9166667 | H10: 436.5384615
A11: 9 | B11: -752.6 | C11: 14.9 | D11: 11.1 | E11: 13.4 | F11: 5051.006711 | G11: 6780.18018 | H11: 5616.41791
A12: 10 | B12: -799.5 | C12: 15 | D12: 11 | E12: 13.4 | F12: 5330 | G12: 7268.181818 | H12: 5966.41791
A13: 11 | B13: -443.9 | C13: 15 | D13: 12.5 | E13: 13.9 | F13: 2959.333333 | G13: 3551.2 | H13: 3193.52518
A14: 12 | B14: -96.2 | C14: 15.1 | D14: 14.4 | E14: 16.3 | F14: 637.0860927 | G14: 668.0555556 | H14: 590.1840491
A15: 13 | B15: -365.8 | C15: 15.1 | D15: 13 | E15: 13.5 | F15: 2422.516556 | G15: 2813.846154 | H15: 2709.62963
A16: 14 | B16: -479.3 | C16: 15.3 | D16: 12.6 | E16: 13.9 | F16: 3132.679739 | G16: 3803.968254 | H16: 3448.201439
A17: 15 | B17: -562.3 | C17: 16.6 | D17: 13.2 | E17: 15.5 | F17: 3387.349398 | G17: 4259.848485 | H17: 3627.741935
A18: 16 | B18: 518 | C18: 13.6 | D18: 16.9 | E18: 15.2 | F18: 3808.823529 | G18: 3065.088757 | H18: 3407.894737
A19: 17 | B19: 581.6 | C19: 13.9 | D19: 17.7 | E19: 13.3 | F19: 4184.172662 | G19: 3285.875706 | H19: 4372.932331
A20: 18 | B20: 1053 | C20: 13.9 | D20: 22.2 | E20: 20.4 | F20: 7575.539568 | G20: 4743.243243 | H20: 5161.764706
A21: 19 | B21: 503.6 | C21: 13.9 | D21: 17.2 | E21: 13.2 | F21: 3623.021583 | G21: 2927.906977 | H21: 3815.151515
A22: 20 | B22: 636.3 | C22: 14 | D22: 18.3 | E22: 13.8 | F22: 4545 | G22: 3477.04918 | H22: 4610.869565
A23: 21 | B23: 312.3 | C23: 14 | D23: 15.9 | E23: 10.5 | F23: 2230.714286 | G23: 1964.150943 | H23: 2974.285714
A24: 22 | B24: 288.6 | C24: 14.2 | D24: 15.9 | E24: 13.5 | F24: 2032.394366 | G24: 1815.09434 | H24: 2137.777778
A25: 23 | B25: 403 | C25: 14.2 | D25: 16.8 | E25: 13.9 | F25: 2838.028169 | G25: 2398.809524 | H25: 2899.280576
A26: 24 | B26: 421.7 | C26: 14.4 | D26: 17.1 | E26: 13.4 | F26: 2928.472222 | G26: 2466.081871 | H26: 3147.014925
A27: 25 | B27: 1118.7 | C27: 14.4 | D27: 23.8 | E27: 16.3 | F27: 7768.75 | G27: 4700.420168 | H27: 6863.190184
A28: 26 | B28: 993.1 | C28: 14.4 | D28: 22.4 | E28: 13.6 | F28: 6896.527778 | G28: 4433.482143 | H28: 7302.205882
A29: 27 | B29: 643.6 | C29: 14.5 | D29: 19.1 | E29: 13.3 | F29: 4438.62069 | G29: 3369.633508 | H29: 4839.097744
A30: 28 | B30: 735.6 | C30: 14.5 | D30: 20 | E30: 13.6 | F30: 5073.103448 | G30: 3678 | H30: 5408.823529
A31: 29 | B31: 1156.8 | C31: 14.6 | D31: 24.5 | E31: 13.3 | F31: 7923.287671 | G31: 4721.632653 | H31: 8697.744361
A32: 30 | B32: 1061.6 | C32: 15.1 | D32: 24.3 | E32: 15.4 | F32: 7030.463576 | G32: 4368.72428 | H32: 6893.506494
A33: 31 | B33: 1468.6 | C33: 15.4 | D33: 30.4 | E33: 14.6 | F33: 9536.363636 | G33: 4830.921053 | H33: 10058.90411
A34: 32 | B34: 1616.3 | C34: 15.7 | D34: 33.4 | E34: 15.7 | F34: 10294.90446 | G34: 4839.221557 | H34: 10294.90446
A35: 33 | B35: 1965.2 | C35: 16.1 | D35: 41.4 | E35: 15.4 | F35: 12206.21118 | G35: 4746.859903 | H35: 12761.03896
A36: 34 | B36: 2343.4 | C36: 16.1 | D36: 51.1 | E36: 16 | F36: 14555.2795 | G36: 4585.90998 | H36: 14646.25
A37: 37 | B37: 2370.5 | C37: 18.7 | D37: 60 | E37: 13.2 | F37: 12676.47059 | G37: 3950.833333 | H37: 17958.33333
A38: 40 | B38: 1595.8 | C38: 44.9 | D38: 92.1 | E38: 18.3 | F38: 3554.120267 | G38: 1732.681868 | H38: 8720.218579
A39: 43 | B39: 1407.1 | C39: 104.4 | D39: 185.7 | E39: 79.6 | F39: 1347.796935 | G39: 757.7275175 | H39: 1767.713568
A40: 46 | B40: 1197.5 | C40: 210.5 | D40: 316.8 | E40: 446.4 | F40: 568.8836105 | G40: 377.9987374 | H40: 268.2571685
A41: 49 | B41: 666.8 | C41: 239 | D41: 283.2 | E41: 75.6 | F41: 278.9958159 | G41: 235.4519774 | H41: 882.010582
A42: 52 | B42: 567 | C42: 358.5 | D42: 387.8 | E42: 431.2 | F42: 158.1589958 | G42: 146.2093863 | H42: 131.4935065
A43: 55 | B43: 791.5 | C43: 372.8 | D43: 437.1 | E43: 224.7 | F43: 212.3122318 | G43: 181.0798444 | H43: 352.247441
A44: 58 | B44: 549.9 | C44: 445.1 | D44: 462.5 | E44: 504.4 | F44: 123.5452707 | G44: 118.8972973 | H44: 109.0206186
A45: 61 | B45: 616.1 | C45: 454.3 | D45: 482 | E45: 433.5 | F45: 135.6152322 | G45: 127.8215768 | H45: 142.1222607
A46: 64 | B46: 654.5 | C46: 456.8 | D46: 491.1 | E46: 470.7 | F46: 143.2793345 | G46: 133.272246 | H46: 139.048226
A47: 66 | B47: 351.7 | C47: 13.2 | D47: 15.2 | F47: 2664.393939 | G47: 2313.815789
A48: 67 | B48: 352.6 | C48: 13.2 | D48: 15.3 | F48: 2671.212121 | G48: 2304.575163
A49: 68 | B49: 419 | C49: 13.2 | D49: 15.7 | F49: 3174.242424 | G49: 2668.789809
A50: 69 | B50: 422 | C50: 13.2 | D50: 15.8 | F50: 3196.969697 | G50: 2670.886076
A51: 70 | B51: 358.4 | C51: 13.3 | D51: 15.4 | F51: 2694.736842 | G51: 2327.272727
A52: 71 | B52: 482.6 | C52: 13.3 | D52: 16.3 | F52: 3628.571429 | G52: 2960.736196
A53: 73 | B53: 551.1 | C53: 13.3 | D53: 16.8 | F53: 4143.609023 | G53: 3280.357143
A54: 74 | B54: 472.6 | C54: 13.3 | D54: 16.2 | F54: 3553.383459 | G54: 2917.283951
A55: 75 | B55: 463.3 | C55: 13.4 | D55: 16.2 | F55: 3457.462687 | G55: 2859.876543
A56: 76 | B56: 381.1 | C56: 13.4 | D56: 15.7 | F56: 2844.029851 | G56: 2427.388535
A57: 77 | B57: 250.7 | C57: 13.4 | D57: 14.9 | F57: 1870.895522 | G57: 1682.550336
A58: 78 | B58: 508.8 | C58: 13.5 | D58: 16.7 | F58: 3768.888889 | G58: 3046.706587
A59: 79 | B59: 417.4 | C59: 13.5 | D59: 16 | F59: 3091.851852 | G59: 2608.75
A60: 80 | B60: 746.3 | C60: 13.5 | D60: 18.7 | F60: 5528.148148 | G60: 3990.909091
A61: 81 | B61: 249.4 | C61: 13.5 | D61: 15 | F61: 1847.407407 | G61: 1662.666667
A62: 82 | B62: 294.9 | C62: 13.6 | D62: 15.3 | F62: 2168.382353 | G62: 1927.45098
A63: 83 | B63: 349.4 | C63: 13.7 | D63: 15.8 | F63: 2550.364964 | G63: 2211.392405
A64: 84 | B64: 664.2 | C64: 13.7 | D64: 18.3 | F64: 4848.175182 | G64: 3629.508197
A65: 85 | B65: 325.7 | C65: 13.8 | D65: 15.8 | F65: 2360.144928 | G65: 2061.392405
A66: 86 | B66: 388.1 | C66: 13.9 | D66: 16.3 | F66: 2792.086331 | G66: 2380.981595
A67: 88 | B67: 545.2 | C67: 12.2 | D67: 15.4 | F67: 4468.852459 | G67: 3540.25974
A68: 89 | B68: 404.9 | C68: 12.3 | D68: 14.6 | F68: =(ABS(B68/C68))*100 -> 3291.869919 | G68: =(ABS(B68/D68) * 100) -> 2773.287671
A69: 90 | B69: 850.1 | C69: 12.4 | D69: 18.1 | F69: 6855.645161 | G69: 4696.685083
A70: 91 | B70: 572.6 | C70: 12.5 | D70: 16 | F70: 4580.8 | G70: 3578.75
A71: 92 | B71: 876.8 | C71: 12.7 | D71: 18.7 | F71: 6903.937008 | G71: 4688.770053
A72: 93 | B72: 1072.1 | C72: 13 | D72: 21 | F72: 8246.923077 | G72: 5105.238095
A73: 94 | B73: 1546.8 | C73: 13 | D73: 26.9 | F73: 11898.46154 | G73: 5750.185874
A74: 95 | B74: 1041.8 | C74: 13.1 | D74: 20.9 | F74: 7952.671756 | G74: 4984.688995
A75: 96 | B75: 1487.2 | C75: 13.5 | D75: 26.9 | F75: 11016.2963 | G75: 5528.624535
A76: 97 | B76: 1619.7 | C76: 13.6 | D76: 29.2 | F76: 11909.55882 | G76: 5546.917808
A77: 98 | B77: 2500 | C77: 14.2 | D77: 49.4 | F77: 17605.6338 | G77: 5060.728745
A78: 101 | B78: 800.1 | C78: 14.2 | D78: 20.2 | F78: 5634.507042 | G78: 3960.891089
A79: 104 | B79: 1014.6 | C79: 14.8 | D79: 23.2 | F79: 6855.405405 | G79: 4373.275862
A80: 107 | B80: 511.2 | C80: 15.1 | D80: 18.7 | F80: 3385.430464 | G80: 2733.68984
A81: 110 | B81: 396.2 | C81: 16.6 | D81: 19.5 | F81: 2386.746988 | G81: 2031.794872
A82: 113 | B82: 445.3 | C82: 17.1 | D82: 20.5 | F82: 2604.093567 | G82: 2172.195122
A83: 116 | B83: 3556.9 | C83: 20.9 | D83: 135.1 | F83: 17018.66029 | G83: 2632.790526
A84: 118 | B84: 1622.1 | C84: 21.8 | D84: 46.3 | F84: 7440.825688 | G84: 3503.455724
A85: 121 | B85: 2646.7 | C85: 22 | D85: 82.2 | F85: 12030.45455 | G85: 3219.829684
A86: 122 | B86: 1557.3 | C86: 22.3 | D86: 45.7 | F86: 6983.408072 | G86: 3407.658643
A87: 123 | B87: 1668.2 | C87: 22.6 | D87: 49.1 | F87: 7381.415929 | G87: 3397.556008
A88: 124 | B88: 1886.8 | C88: 22.6 | D88: 55.3 | F88: 8348.672566 | G88: 3411.934901
A89: 125 | B89: 2024.6 | C89: 23.5 | D89: 61.8 | F89: 8615.319149 | G89: 3276.05178
A90: 126 | B90: 1833 | C90: 23.5 | D90: 55.7 | F90: 7800 | G90: 3290.843806
A91: 127 | B91: 2142.8 | C91: 23.7 | D91: 66.5 | F91: 9041.350211 | G91: 3222.255639
A92: 128 | B92: 1960.7 | C92: 23.8 | D92: 60.5 | F92: 8238.235294 | G92: 3240.826446
A93: 129 | B93: 2357 | C93: 24.1 | D93: 76.2 | F93: 9780.082988 | G93: 3093.175853
A94: 130 | B94: 2980.4 | C94: 25.5 | D94: 115.2 | F94: 11687.84314 | G94: 2587.152778
A95: 131 | B95: 2469.6 | C95: 25.9 | D95: 87 | F95: 9535.135135 | G95: 2838.62069
A96: 132 | B96: 3134.8 | C96: 29 | D96: 142.4 | F96: 10809.65517 | G96: 2201.404494
A97: 133 | B97: 2028 | C97: 35.4 | D97: 92 | F97: 5728.813559 | G97: 2204.347826
A98: 134 | B98: 919.7 | C98: 135 | D98: 188.1 | F98: 681.2592593 | G98: 488.9420521
A99: 135 | B99: 1427.7 | C99: 163.1 | D99: 280.6 | F99: 875.3525445 | G99: 508.8025659
A100: 136 | B100: 808 | C100: 175.4 | D100: 227.5 | F100: 460.6613455 | G100: 355.1648352
A101: 137 | B101: 886.3 | C101: 177.7 | D101: 238.2 | F101: 498.7619584 | G101: 372.0822838
A102: 140 | B102: 771.3 | C102: 203.5 | D102: 256.2 | F102: 379.017199 | G102: 301.0538642
A103: 141 | B103: 743.2 | C103: 232.8 | D103: 285.5 | F103: 319.2439863 | G103: 260.3152364
A104: 143 | B104: 655.5 | C104: 280.1 | D104: 324.3 | F104: 234.023563 | G104: 202.1276596
A105: 144 | B105: 653 | C105: 304.6 | D105: 348.6 | F105: 214.3795141 | G105: 187.3207114
A106: 145 | B106: 645.9 | C106: 388.3 | D106: 427.7 | F106: 166.3404584 | G106: 151.017068
A107: 148 | B107: 517 | C107: 427.5 | D107: 441.8 | F107: 120.9356725 | G107: 117.0212766
A108: 149 | B108: 648.6 | C108: 473.9 | D108: 505.1 | F108: 136.8643174 | G108: 128.4102158
A109: 150 | B109: 591.7 | C109: 503.4 | D109: 519.7 | F109: 117.5407231 | G109: 113.8541466
A110: 154 | B110: 285.5 | C110: 16.7 | D110: 18.7 | F110: 1709.580838 | G110: 1526.737968
A111: 157 | B111: 565.8 | C111: 17.4 | D111: 22.1 | F111: 3251.724138 | G111: 2560.180995
A112: 160 | B112: 422.5 | C112: 18.1 | D112: 21.5 | F112: 2334.254144 | G112: 1965.116279
A113: 161 | B113: 409.8 | C113: 18.6 | D113: 22 | F113: 2203.225806 | G113: 1862.727273
A114: 162 | B114: 449 | C114: 19 | D114: 22.8 | F114: 2363.157895 | G114: 1969.298246
A115: 165 | B115: 1561.2 | C115: 19.3 | D115: 39.7 | F115: 8089.119171 | G115: 3932.493703
A116: 166 | B116: 696.8 | C116: 19.4 | D116: 26.1 | F116: 3591.752577 | G116: 2669.731801
A117: 167 | B117: 128.4 | C117: 19.8 | D117: 20.7 | F117: 648.4848485 | G117: 620.2898551
A118: 168 | B118: 435.6 | C118: 20 | D118: 23.9 | F118: 2178 | G118: 1822.594142
A119: 169 | B119: 206.4 | C119: 20 | D119: 21.6 | F119: 1032 | G119: 955.5555556
A120: 170 | B120: 469.8 | C120: 20.2 | D120: 24.5 | F120: 2325.742574 | G120: 1917.55102
A121: 171 | B121: 559.2 | C121: 20.2 | D121: 25.5 | F121: 2768.316832 | G121: 2192.941176
A122: 172 | B122: 577.7 | C122: 20.2 | D122: 25.8 | F122: 2859.90099 | G122: 2239.147287
A123: 173 | B123: 1199.9 | C123: 20.5 | D123: 35 | F123: 5853.170732 | G123: 3428.285714
A124: 174 | B124: 804.2 | C124: 20.5 | D124: 29 | F124: 3922.926829 | G124: 2773.103448
A125: 175 | B125: 1273 | C125: 20.7 | D125: 36.8 | F125: 6149.758454 | G125: 3459.23913
A126: 176 | B126: 858.5 | C126: 20.8 | D126: 30.2 | F126: 4127.403846 | G126: 2842.715232
A127: 177 | B127: 445.6 | C127: 21.1 | D127: 25.3 | F127: 2111.848341 | G127: 1761.264822
A128: 178 | B128: 1201.3 | C128: 21.8 | D128: 37.3 | F128: 5510.550459 | G128: 3220.643432
A129: 179 | B129: 1046.8 | C129: 21.8 | D129: 34.6 | F129: 4801.834862 | G129: 3025.433526
A130: 180 | B130: 1599.8 | C130: 22.1 | D130: 46.4 | F130: 7238.914027 | G130: 3447.844828
A131: 181 | B131: 1404.6 | C131: 22.2 | D131: 42.1 | F131: 6327.027027 | G131: 3336.342043
A132: 182 | B132: 1896.9 | C132: 32.7 | D132: 79.4 | F132: =(ABS(B132/C132))*100 -> 5800.917431 | G132: =(ABS(B132/D132) * 100) -> 2389.042821
A133: 185 | B133: 670.6 | C133: 32.9 | D133: 43.4 | F133: 2038.297872 | G133: 1545.16129
A134: 186 | B134: 764.3 | C134: 34.6 | D134: 47.6 | F134: 2208.959538 | G134: 1605.672269
A135: 187 | B135: 963.3 | C135: 36.2 | D135: 54.7 | F135: 2661.049724 | G135: 1761.060329
A136: 188 | B136: 1272.6 | C136: 49.7 | D136: 86.2 | F136: 2560.56338 | G136: 1476.334107
A137: 189 | B137: 1494.5 | C137: 55.1 | D137: 106.4 | F137: 2712.341198 | G137: 1404.605263
A138: 190 | B138: 981.7 | C138: 94.6 | D138: 138.8 | F138: 1037.737844 | G138: 707.2766571
A139: 191 | B139: 643.8 | C139: 118.5 | D139: 147.5 | F139: 543.2911392 | G139: 436.4745763
A140: 192 | B140: 708 | C140: 133.8 | D140: 169.9 | F140: 529.1479821 | G140: 416.7157151
A141: 195 | B141: 592.6 | C141: 140.7 | D141: 169.5 | F141: 421.1798152 | G141: 349.6165192
A142: 198 | B142: 1121.9 | C142: 148.6 | D142: 224.7 | F142: 754.9798116 | G142: 499.2879395
A143: 199 | B143: 525.9 | C143: 192.4 | D143: 220 | F143: 273.3367983 | G143: 239.0454545
A144: 200 | B144: 595 | C144: 229.1 | D144: 264.9 | F144: 259.7119162 | G144: 224.6130615
A145: 201 | B145: 693.1 | C145: 230.3 | D145: 277 | F145: 300.9552757 | G145: 250.2166065
A146: 204 | B146: 930.2 | C146: 381.6 | D146: 470.3 | F146: 243.7631027 | G146: 197.7886455
A147: 207 | B147: 496.6 | C147: 418.9 | D147: 431.1 | F147: 118.5485796 | G147: 115.1936906
A148: 210 | B148: 499.5 | C148: 454.1 | D148: 461.7 | F148: 109.9977978 | G148: 108.1871345
A149: 211 | B149: 539.2 | C149: 471.9 | D149: 483.6 | F149: 114.2614961 | G149: 111.497105
A150: 212 | B150: 567.4 | C150: 494.9 | D150: 508 | F150: 114.6494241 | G150: 111.6929134
A151: 213 | B151: 679.7 | C151: 497.7 | D151: 531.6 | F151: 136.5682138 | G151: 127.8592927
A152: 214 | B152: 600.8 | C152: 504.1 | D152: 522 | F152: 119.1827018 | G152: 115.0957854
A153: 218 | B153: 780.1 | C153: 15.9 | D153: 22.2 | F153: 4906.289308 | G153: 3513.963964
A154: 219 | B154: 783.8 | C154: 18.8 | D154: 26.4 | F154: 4169.148936 | G154: 2968.939394
A155: 221 | B155: 1566.7 | C155: 19.7 | D155: 40.8 | F155: 7952.791878 | G155: 3839.95098
A156: 222 | B156: 1968.7 | C156: 20.2 | D156: 51.7 | F156: 9746.039604 | G156: 3807.930368
A157: 223 | B157: 804.9 | C157: 21.1 | D157: 29.9 | F157: 3814.691943 | G157: 2691.973244
A158: 224 | B158: 1121.4 | C158: 21.3 | D158: 35 | F158: 5264.788732 | G158: 3204
A159: 225 | B159: 956.1 | C159: 21.3 | D159: 32.4 | F159: 4488.732394 | G159: 2950.925926
A160: 226 | B160: 855.9 | C160: 21.5 | D160: 31.1 | F160: 3980.930233 | G160: 2752.090032
A161: 227 | B161: 1154.4 | C161: 21.7 | D161: 36.3 | F161: 5319.815668 | G161: 3180.165289
A162: 228 | B162: 1212.8 | C162: 21.7 | D162: 37.4 | F162: 5588.940092 | G162: 3242.780749
A163: 229 | B163: 880 | C163: 21.8 | D163: 31.9 | F163: 4036.697248 | G163: 2758.62069
A164: 230 | B164: 1557.5 | C164: 22.1 | D164: 45.4 | F164: 7047.511312 | G164: 3430.61674
A165: 231 | B165: 1576.5 | C165: 22.1 | D165: 45.9 | F165: 7133.484163 | G165: 3434.640523
A166: 232 | B166: 1637 | C166: 22.2 | D166: 47.4 | F166: 7373.873874 | G166: 3453.586498
A167: 233 | B167: 1324.9 | C167: 22.3 | D167: 40.5 | F167: 5941.255605 | G167: 3271.358025
A168: 234 | B168: 1549.7 | C168: 22.4 | D168: 45.8 | F168: 6918.303571 | G168: 3383.624454
A169: 235 | B169: 1489.7 | C169: 22.4 | D169: 44.4 | F169: 6650.446429 | G169: 3355.18018
A170: 236 | B170: 1557.1 | C170: 22.5 | D170: 46.2 | F170: 6920.444444 | G170: 3370.34632
A171: 237 | B171: 1504.1 | C171: 22.6 | D171: 45 | F171: 6655.309735 | G171: 3342.444444
A172: 238 | B172: 1633.9 | C172: 22.6 | D172: 48.2 | F172: 7229.646018 | G172: 3389.834025
A173: 239 | B173: 1663.2 | C173: 22.7 | D173: 49.3 | F173: 7326.872247 | G173: 3373.630832
A174: 240 | B174: 1584.4 | C174: 22.8 | D174: 47.4 | F174: 6949.122807 | G174: 3342.616034
A175: 243 | B175: 1999 | C175: 22.8 | D175: 59.2 | F175: 8767.54386 | G175: 3376.689189
A176: 244 | B176: 1590.2 | C176: 22.8 | D176: 47.7 | F176: 6974.561404 | G176: 3333.752621
A177: 245 | B177: 1477.8 | C177: 22.9 | D177: 45.1 | F177: 6453.275109 | G177: 3276.718404
A178: 248 | B178: 928.5 | C178: 30.5 | D178: 45.5 | F178: 3044.262295 | G178: 2040.659341
A179: 251 | B179: 1655.6 | C179: 32.7 | D179: 70 | F179: 5062.996942 | G179: 2365.142857
A180: 254 | B180: 1608.3 | C180: 40.8 | D180: 84.5 | F180: 3941.911765 | G180: 1903.313609
A181: 257 | B181: 4181.7 | C181: 43.3 | D181: 374.6 | F181: 9657.505774 | G181: 1116.310731
A182: 258 | B182: 828.2 | C182: 86 | D182: 118.3 | F182: 963.0232558 | G182: 700.0845309
A183: 259 | B183: 581.2 | C183: 107.9 | D183: 131.4 | F183: 538.6468953 | G183: 442.3135464
A184: 260 | B184: 789.4 | C184: 115.5 | D184: 153.5 | F184: 683.4632035 | G184: 514.267101
A185: 261 | B185: 656.4 | C185: 128.8 | D185: 160.4 | F185: 509.6273292 | G185: 409.2269327
A186: 262 | B186: 955.4 | C186: 171.5 | D186: 237.6 | F186: 557.0845481 | G186: 402.1043771
A187: 263 | B187: 550.8 | C187: 212.2 | D187: 242.8 | F187: 259.5664467 | G187: 226.8533773
A188: 264 | B188: 652.4 | C188: 224.3 | D188: 266.1 | F188: 290.8604547 | G188: 245.1709884
A189: 265 | B189: 496.1 | C189: 305.8 | D189: 329 | F189: 162.2302158 | G189: 150.7902736
A190: 266 | B190: 691.6 | C190: 334.5 | D190: 383.6 | F190: 206.7563528 | G190: 180.2919708
A191: 267 | B191: 506 | C191: 364 | D191: 384 | F191: 139.010989 | G191: 131.7708333
A192: 268 | B192: 586.1 | C192: 513.2 | D192: 526.8 | F192: 114.2049883 | G192: 111.2566439
A193: 269 | B193: 546.4 | C193: 524.1 | D193: 528.3 | F193: 104.2549132 | G193: 103.4260837
A194: 270 | B194: 564.3 | C194: 528.4 | D194: 535.2 | F194: 106.7940954 | G194: 105.4372197
A195: 271 | B195: 566.5 | C195: 532.9 | D195: 539.3 | F195: 106.3051229 | G195: 105.043575
A196: 272 | B196: 528.1 | C196: 536.2 | D196: 534.7 | F196: =(ABS(B196/C196))*100 -> 98.48936964 | G196: =(ABS(B196/D196) * 100) -> 98.76566299
A197: 276 | B197: 2172.8 | C197: 18 | D197: 51.8 | F197: 12071.11111 | G197: 4194.594595
A198: 279 | B198: 1007.5 | C198: 19.3 | D198: 30.1 | F198: 5220.207254 | G198: 3347.17608
A199: 280 | B199: 1030.8 | C199: 19.9 | D199: 31.4 | F199: 5179.899497 | G199: 3282.802548
A200: 283 | B200: 1593.8 | C200: 20.2 | D200: 42.2 | F200: 7890.09901 | G200: 3776.777251
... 44 more rows
